Workbook

Sheet Input E2
E1: =E$3&E$5&$C$4 -> 1maE2 | F1: =F$3&F$5&$C$4 -> 1diE2 | G1: 1woE2 | H1: 1doE2 | I1: 1vrE2 | J1: 1zaE2 | K1: 1zoE2 | L1: 2maE2 | M1: 2diE2 | N1: 2woE2 | O1: 2doE2 | P1: 2vrE2 | Q1: 2zaE2 | R1: 2zoE2 | S1: 3maE2 | T1: 3diE2 | U1: 3woE2 | V1: 3doE2 | W1: 3vrE2 | X1: 3zaE2 | Y1: 3zoE2 | Z1: 4maE2 | AA1: 4diE2 | AB1: 4woE2 | AC1: 4doE2 | AD1: 4vrE2 | AE1: 4zaE2 | AF1: 4zoE2 | AG1: 5maE2 | AH1: 5diE2 | AI1: 5woE2 | AJ1: 5doE2 | AK1: 5vrE2 | AL1: 5zaE2 | AM1: 5zoE2 | AN1: 6maE2 | AO1: 6diE2 | AP1: 6woE2 | AQ1: 6doE2 | AR1: 6vrE2 | AS1: 6zaE2 | AT1: 6zoE2 | AU1: 7maE2 | AV1: 7diE2 | AW1: 7woE2 | AX1: 7doE2 | AY1: 7vrE2 | AZ1: 7zaE2 | BA1: 7zoE2 | BB1: 8maE2 | BC1: 8diE2 | BD1: 8woE2 | BE1: 8doE2 | BF1: 8vrE2 | BG1: 8zaE2 | BH1: 8zoE2 | BI1: 9maE2 | BJ1: 9diE2 | BK1: 9woE2 | BL1: 9doE2 | BM1: 9vrE2 | BN1: 9zaE2 | BO1: 9zoE2 | BP1: 10maE2 | BQ1: 10diE2 | BR1: =BR$3&BR$5&$C$4 -> 10woE2 | BS1: 10doE2 | BT1: 10vrE2 | BU1: 10zaE2 | BV1: 10zoE2 | BW1: 11maE2 | BX1: 11diE2 | BY1: 11woE2 | BZ1: 11doE2 | CA1: 11vrE2 | CB1: 11zaE2 | CC1: 11zoE2 | CD1: 12maE2 | CE1: 12diE2 | CF1: 12woE2 | CG1: 12doE2 | CH1: 12vrE2 | CI1: 12zaE2 | CJ1: 12zoE2 | CK1: 13maE2 | CL1: 13diE2 | CM1: 13woE2 | CN1: 13doE2 | CO1: 13vrE2 | CP1: 13zaE2 | CQ1: 13zoE2 | CR1: 14maE2 | CS1: 14diE2 | CT1: 14woE2 | CU1: 14doE2 | CV1: 14vrE2 | CW1: 14zaE2 | CX1: 14zoE2 | CY1: 15maE2 | CZ1: 15diE2 | DA1: 15woE2 | DB1: 15doE2 | DC1: 15vrE2 | DD1: 15zaE2 | DE1: 15zoE2 | DF1: 16maE2 | DG1: 16diE2 | DH1: 16woE2 | DI1: 16doE2 | DJ1: 16vrE2 | DK1: 16zaE2 | DL1: 16zoE2 | DM1: 17maE2 | DN1: 17diE2 | DO1: 17woE2 | DP1: 17doE2 | DQ1: 17vrE2 | DR1: 17zaE2 | DS1: 17zoE2 | DT1: 18maE2 | DU1: 18diE2 | DV1: 18woE2 | DW1: 18doE2 | DX1: 18vrE2 | DY1: 18zaE2 | DZ1: 18zoE2 | EA1: 19maE2 | EB1: 19diE2 | EC1: 19woE2 | ED1: =ED$3&ED$5&$C$4 -> 19doE2 | EE1: 19vrE2 | EF1: 19zaE2 | EG1: 19zoE2 | EH1: 20maE2 | EI1: 20diE2 | EJ1: 20woE2 | EK1: 20doE2 | EL1: 20vrE2 | EM1: 20zaE2 | EN1: 20zoE2 | EO1: 21maE2 | EP1: 21diE2 | EQ1: 21woE2 | ER1: 21doE2 | ES1: 21vrE2 | ET1: 21zaE2 | EU1: 21zoE2 | EV1: 22maE2 | EW1: 22diE2 | EX1: 22woE2 | EY1: 22doE2 | EZ1: 22vrE2 | FA1: 22zaE2 | FB1: 22zoE2 | FC1: 23maE2 | FD1: 23diE2 | FE1: 23woE2 | FF1: 23doE2 | FG1: 23vrE2 | FH1: 23zaE2 | FI1: 23zoE2 | FJ1: 24maE2 | FK1: 24diE2 | FL1: 24woE2 | FM1: 24doE2 | FN1: 24vrE2 | FO1: 24zaE2 | FP1: 24zoE2 | FQ1: 25maE2 | FR1: 25diE2 | FS1: 25woE2 | FT1: 25doE2 | FU1: 25vrE2 | FV1: 25zaE2 | FW1: 25zoE2 | FX1: 26maE2 | FY1: 26diE2 | FZ1: 26woE2 | GA1: 26doE2 | GB1: 26vrE2 | GC1: 26zaE2 | GD1: 26zoE2 | GE1: 27maE2 | GF1: 27diE2 | GG1: 27woE2 | GH1: 27doE2 | GI1: 27vrE2 | GJ1: 27zaE2 | GK1: 27zoE2 | GL1: 28maE2 | GM1: 28diE2 | GN1: 28woE2 | GO1: 28doE2 | GP1: =GP$3&GP$5&$C$4 -> 28vrE2 | GQ1: 28zaE2 | GR1: 28zoE2 | GS1: 29maE2 | GT1: 29diE2 | GU1: 29woE2 | GV1: 29doE2 | GW1: 29vrE2 | GX1: 29zaE2 | GY1: 29zoE2 | GZ1: 30maE2 | HA1: 30diE2 | HB1: 30woE2 | HC1: 30doE2 | HD1: 30vrE2 | HE1: 30zaE2 | HF1: 30zoE2 | HG1: 31maE2 | HH1: 31diE2 | HI1: 31woE2 | HJ1: 31doE2 | HK1: 31vrE2 | HL1: 31zaE2 | HM1: 31zoE2 | HN1: 32maE2 | HO1: 32diE2 | HP1: 32woE2 | HQ1: 32doE2 | HR1: 32vrE2 | HS1: 32zaE2 | HT1: 32zoE2 | HU1: 33maE2 | HV1: 33diE2 | HW1: 33woE2 | HX1: 33doE2 | HY1: 33vrE2 | HZ1: 33zaE2 | IA1: 33zoE2 | IB1: 34maE2 | IC1: 34diE2 | ID1: 34woE2 | IE1: 34doE2 | IF1: 34vrE2 | IG1: 34zaE2 | IH1: 34zoE2 | II1: 35maE2 | IJ1: 35diE2 | IK1: 35woE2 | IL1: 35doE2 | IM1: 35vrE2 | IN1: 35zaE2 | IO1: 35zoE2 | IP1: 36maE2 | IQ1: 36diE2 | IR1: 36woE2 | IS1: 36doE2 | IT1: 36vrE2 | IU1: 36zaE2 | IV1: 36zoE2 | IW1: 37maE2 | IX1: 37diE2 | IY1: 37woE2 | IZ1: 37doE2 | JA1: 37vrE2 | JB1: =JB$3&JB$5&$C$4 -> 37zaE2 | JC1: 37zoE2 | JD1: 38maE2 | JE1: 38diE2 | JF1: 38woE2 | JG1: 38doE2 | JH1: 38vrE2 | JI1: 38zaE2 | JJ1: 38zoE2 | JK1: 39maE2 | JL1: 39diE2 | JM1: 39woE2 | JN1: 39doE2 | JO1: 39vrE2 | JP1: 39zaE2 | JQ1: 39zoE2 | JR1: 40maE2 | JS1: 40diE2 | JT1: 40woE2 | JU1: 40doE2 | JV1: 40vrE2 | JW1: 40zaE2 | JX1: 40zoE2 | JY1: 41maE2 | JZ1: 41diE2 | KA1: 41woE2 | KB1: 41doE2 | KC1: 41vrE2 | KD1: 41zaE2 | KE1: 41zoE2 | KF1: 42maE2 | KG1: 42diE2 | KH1: 42woE2 | KI1: 42doE2 | KJ1: 42vrE2 | KK1: 42zaE2 | KL1: 42zoE2 | KM1: 43maE2 | KN1: 43diE2 | KO1: 43woE2 | KP1: 43doE2 | KQ1: 43vrE2 | KR1: 43zaE2 | KS1: 43zoE2 | KT1: 44maE2 | KU1: 44diE2 | KV1: 44woE2 | KW1: 44doE2 | KX1: 44vrE2 | KY1: 44zaE2 | KZ1: 44zoE2 | LA1: 45maE2 | LB1: 45diE2 | LC1: 45woE2 | LD1: 45doE2 | LE1: 45vrE2 | LF1: 45zaE2 | LG1: 45zoE2 | LH1: 46maE2 | LI1: 46diE2 | LJ1: 46woE2 | LK1: 46doE2 | LL1: 46vrE2 | LM1: 46zaE2 | LN1: =LN$3&LN$5&$C$4 -> 46zoE2 | LO1: 47maE2 | LP1: 47diE2 | LQ1: 47woE2 | LR1: 47doE2 | LS1: 47vrE2 | LT1: 47zaE2 | LU1: 47zoE2 | LV1: 48maE2 | LW1: 48diE2 | LX1: 48woE2 | LY1: 48doE2 | LZ1: 48vrE2 | MA1: 48zaE2 | MB1: 48zoE2 | MC1: 49maE2 | MD1: 49diE2 | ME1: 49woE2 | MF1: 49doE2 | MG1: 49vrE2 | MH1: 49zaE2 | MI1: 49zoE2 | MJ1: 50maE2 | MK1: 50diE2 | ML1: 50woE2 | MM1: 50doE2 | MN1: 50vrE2 | MO1: 50zaE2 | MP1: 50zoE2 | MQ1: 51maE2 | MR1: 51diE2 | MS1: 51woE2 | MT1: 51doE2 | MU1: 51vrE2 | MV1: 51zaE2 | MW1: 51zoE2 | MX1: 52maE2 | MY1: 52diE2 | MZ1: 52woE2 | NA1: 52doE2 | NB1: 52vrE2 | NC1: 52zaE2 | ND1: 52zoE2
D2: Month | E2: =MONTH(E4) -> 1 | F2: =MONTH(F4) -> 1 | G2: 1 | H2: 1 | I2: 1 | J2: 1 | K2: 1 | L2: 1 | M2: 1 | N2: 1 | O2: 1 | P2: 1 | Q2: 1 | R2: 1 | S2: 1 | T2: 1 | U2: 1 | V2: 1 | W2: 1 | X2: 1 | Y2: 1 | Z2: 1 | AA2: 1 | AB2: 1 | AC2: 1 | AD2: 1 | AE2: 1 | AF2: 1 | AG2: 1 | AH2: 1 | AI2: 1 | AJ2: 2 | AK2: 2 | AL2: 2 | AM2: 2 | AN2: 2 | AO2: 2 | AP2: 2 | AQ2: 2 | AR2: 2 | AS2: 2 | AT2: 2 | AU2: 2 | AV2: 2 | AW2: 2 | AX2: 2 | AY2: 2 | AZ2: 2 | BA2: 2 | BB2: 2 | BC2: 2 | BD2: 2 | BE2: 2 | BF2: 2 | BG2: 2 | BH2: 2 | BI2: 2 | BJ2: 2 | BK2: 2 | BL2: 3 | BM2: 3 | BN2: 3 | BO2: 3 | BP2: 3 | BQ2: 3 | BR2: =MONTH(BR4) -> 3 | BS2: 3 | BT2: 3 | BU2: 3 | BV2: 3 | BW2: 3 | BX2: 3 | BY2: 3 | BZ2: 3 | CA2: 3 | CB2: 3 | CC2: 3 | CD2: 3 | CE2: 3 | CF2: 3 | CG2: 3 | CH2: 3 | CI2: 3 | CJ2: 3 | CK2: 3 | CL2: 3 | CM2: 3 | CN2: 3 | CO2: 3 | CP2: 3 | CQ2: 4 | CR2: 4 | CS2: 4 | CT2: 4 | CU2: 4 | CV2: 4 | CW2: 4 | CX2: 4 | CY2: 4 | CZ2: 4 | DA2: 4 | DB2: 4 | DC2: 4 | DD2: 4 | DE2: 4 | DF2: 4 | DG2: 4 | DH2: 4 | DI2: 4 | DJ2: 4 | DK2: 4 | DL2: 4 | DM2: 4 | DN2: 4 | DO2: 4 | DP2: 4 | DQ2: 4 | DR2: 4 | DS2: 4 | DT2: 4 | DU2: 5 | DV2: 5 | DW2: 5 | DX2: 5 | DY2: 5 | DZ2: 5 | EA2: 5 | EB2: 5 | EC2: 5 | ED2: =MONTH(ED4) -> 5 | EE2: 5 | EF2: 5 | EG2: 5 | EH2: 5 | EI2: 5 | EJ2: 5 | EK2: 5 | EL2: 5 | EM2: 5 | EN2: 5 | EO2: 5 | EP2: 5 | EQ2: 5 | ER2: 5 | ES2: 5 | ET2: 5 | EU2: 5 | EV2: 5 | EW2: 5 | EX2: 5 | EY2: 5 | EZ2: 6 | FA2: 6 | FB2: 6 | FC2: 6 | FD2: 6 | FE2: 6 | FF2: 6 | FG2: 6 | FH2: 6 | FI2: 6 | FJ2: 6 | FK2: 6 | FL2: 6 | FM2: 6 | FN2: 6 | FO2: 6 | FP2: 6 | FQ2: =MONTH(FQ4) -> 6 | FR2: 6 | FS2: 6 | FT2: 6 | FU2: 6 | FV2: 6 | FW2: 6 | FX2: 6 | FY2: 6 | FZ2: 6 | GA2: 6 | GB2: 6 | GC2: 6 | GD2: 7 | GE2: 7 | GF2: 7 | GG2: 7 | GH2: 7 | GI2: 7 | GJ2: 7 | GK2: 7 | GL2: 7 | GM2: 7 | GN2: 7 | GO2: 7 | GP2: =MONTH(GP4) -> 7 | GQ2: 7 | GR2: 7 | GS2: 7 | GT2: 7 | GU2: 7 | GV2: 7 | GW2: 7 | GX2: 7 | GY2: 7 | GZ2: 7 | HA2: 7 | HB2: 7 | HC2: 7 | HD2: 7 | HE2: 7 | HF2: 7 | HG2: 7 | HH2: 7 | HI2: 8 | HJ2: 8 | HK2: 8 | HL2: 8 | HM2: 8 | HN2: 8 | HO2: 8 | HP2: 8 | HQ2: 8 | HR2: 8 | HS2: 8 | HT2: 8 | HU2: 8 | HV2: 8 | HW2: 8 | HX2: 8 | HY2: 8 | HZ2: 8 | IA2: 8 | IB2: 8 | IC2: 8 | ID2: 8 | IE2: 8 | IF2: 8 | IG2: 8 | IH2: 8 | II2: 8 | IJ2: 8 | IK2: 8 | IL2: 8 | IM2: 8 | IN2: 9 | IO2: 9 | IP2: 9 | IQ2: 9 | IR2: 9 | IS2: 9 | IT2: 9 | IU2: 9 | IV2: 9 | IW2: 9 | IX2: 9 | IY2: 9 | IZ2: 9 | JA2: 9 | JB2: =MONTH(JB4) -> 9 | JC2: 9 | JD2: 9 | JE2: 9 | JF2: 9 | JG2: 9 | JH2: 9 | JI2: 9 | JJ2: 9 | JK2: 9 | JL2: 9 | JM2: 9 | JN2: 9 | JO2: 9 | JP2: 9 | JQ2: 9 | JR2: 10 | JS2: 10 | JT2: 10 | JU2: 10 | JV2: 10 | JW2: 10 | JX2: 10 | JY2: 10 | JZ2: 10 | KA2: 10 | KB2: 10 | KC2: 10 | KD2: 10 | KE2: 10 | KF2: 10 | KG2: 10 | KH2: 10 | KI2: 10 | KJ2: 10 | KK2: 10 | KL2: 10 | KM2: 10 | KN2: 10 | KO2: 10 | KP2: 10 | KQ2: 10 | KR2: 10 | KS2: 10 | KT2: 10 | KU2: 10 | KV2: 10 | KW2: 11 | KX2: 11 | KY2: 11 | KZ2: 11 | LA2: 11 | LB2: 11 | LC2: 11 | LD2: 11 | LE2: 11 | LF2: 11 | LG2: 11 | LH2: 11 | LI2: 11 | LJ2: 11 | LK2: 11 | LL2: 11 | LM2: 11 | LN2: =MONTH(LN4) -> 11 | LO2: 11 | LP2: 11 | LQ2: 11 | LR2: 11 | LS2: 11 | LT2: 11 | LU2: 11 | LV2: 11 | LW2: 11 | LX2: 11 | LY2: 11 | LZ2: 11 | MA2: 12 | MB2: 12 | MC2: 12 | MD2: 12 | ME2: 12 | MF2: 12 | MG2: 12 | MH2: 12 | MI2: 12 | MJ2: 12 | MK2: 12 | ML2: 12 | MM2: 12 | MN2: 12 | MO2: 12 | MP2: 12 | MQ2: 12 | MR2: 12 | MS2: 12 | MT2: 12 | MU2: 12 | MV2: 12 | MW2: 12 | MX2: 12 | MY2: 12 | MZ2: 12 | NA2: 12 | NB2: 12 | NC2: 12 | ND2: 12
D3: Week | E3: =WEEKNUM(E4,21) -> 1 | F3: =WEEKNUM(F4,21) -> 1 | G3: 1 | H3: 1 | I3: 1 | J3: 1 | K3: 1 | L3: 2 | M3: 2 | N3: 2 | O3: 2 | P3: 2 | Q3: 2 | R3: 2 | S3: 3 | T3: 3 | U3: 3 | V3: 3 | W3: 3 | X3: 3 | Y3: 3 | Z3: 4 | AA3: 4 | AB3: 4 | AC3: 4 | AD3: 4 | AE3: 4 | AF3: 4 | AG3: 5 | AH3: 5 | AI3: 5 | AJ3: 5 | AK3: 5 | AL3: 5 | AM3: 5 | AN3: 6 | AO3: 6 | AP3: 6 | AQ3: 6 | AR3: 6 | AS3: 6 | AT3: 6 | AU3: 7 | AV3: 7 | AW3: 7 | AX3: 7 | AY3: 7 | AZ3: 7 | BA3: 7 | BB3: 8 | BC3: 8 | BD3: 8 | BE3: 8 | BF3: 8 | BG3: 8 | BH3: 8 | BI3: 9 | BJ3: 9 | BK3: 9 | BL3: 9 | BM3: 9 | BN3: 9 | BO3: 9 | BP3: 10 | BQ3: 10 | BR3: =WEEKNUM(BR4,21) -> 10 | BS3: 10 | BT3: 10 | BU3: 10 | BV3: 10 | BW3: 11 | BX3: 11 | BY3: 11 | BZ3: 11 | CA3: 11 | CB3: 11 | CC3: 11 | CD3: 12 | CE3: 12 | CF3: 12 | CG3: 12 | CH3: 12 | CI3: 12 | CJ3: 12 | CK3: 13 | CL3: 13 | CM3: 13 | CN3: 13 | CO3: 13 | CP3: 13 | CQ3: 13 | CR3: 14 | CS3: 14 | CT3: 14 | CU3: 14 | CV3: 14 | CW3: 14 | CX3: 14 | CY3: 15 | CZ3: 15 | DA3: 15 | DB3: 15 | DC3: 15 | DD3: 15 | DE3: 15 | DF3: 16 | DG3: 16 | DH3: 16 | DI3: 16 | DJ3: 16 | DK3: 16 | DL3: 16 | DM3: 17 | DN3: 17 | DO3: 17 | DP3: 17 | DQ3: 17 | DR3: 17 | DS3: 17 | DT3: 18 | DU3: 18 | DV3: 18 | DW3: 18 | DX3: 18 | DY3: 18 | DZ3: 18 | EA3: 19 | EB3: 19 | EC3: 19 | ED3: =WEEKNUM(ED4,21) -> 19 | EE3: 19 | EF3: 19 | EG3: 19 | EH3: 20 | EI3: 20 | EJ3: 20 | EK3: 20 | EL3: 20 | EM3: 20 | EN3: 20 | EO3: 21 | EP3: 21 | EQ3: 21 | ER3: 21 | ES3: 21 | ET3: 21 | EU3: 21 | EV3: 22 | EW3: 22 | EX3: 22 | EY3: 22 | EZ3: 22 | FA3: 22 | FB3: 22 | FC3: 23 | FD3: 23 | FE3: 23 | FF3: 23 | FG3: 23 | FH3: 23 | FI3: 23 | FJ3: 24 | FK3: 24 | FL3: 24 | FM3: 24 | FN3: 24 | FO3: 24 | FP3: 24 | FQ3: 25 | FR3: 25 | FS3: 25 | FT3: 25 | FU3: 25 | FV3: 25 | FW3: 25 | FX3: 26 | FY3: 26 | FZ3: 26 | GA3: 26 | GB3: 26 | GC3: 26 | GD3: 26 | GE3: 27 | GF3: 27 | GG3: 27 | GH3: 27 | GI3: 27 | GJ3: 27 | GK3: 27 | GL3: 28 | GM3: 28 | GN3: 28 | GO3: 28 | GP3: =WEEKNUM(GP4,21) -> 28 | GQ3: 28 | GR3: 28 | GS3: 29 | GT3: 29 | GU3: 29 | GV3: 29 | GW3: 29 | GX3: 29 | GY3: 29 | GZ3: 30 | HA3: 30 | HB3: 30 | HC3: 30 | HD3: 30 | HE3: 30 | HF3: 30 | HG3: 31 | HH3: 31 | HI3: 31 | HJ3: 31 | HK3: 31 | HL3: 31 | HM3: 31 | HN3: 32 | HO3: 32 | HP3: 32 | HQ3: 32 | HR3: 32 | HS3: 32 | HT3: 32 | HU3: 33 | HV3: 33 | HW3: 33 | HX3: 33 | HY3: 33 | HZ3: 33 | IA3: 33 | IB3: 34 | IC3: 34 | ID3: 34 | IE3: 34 | IF3: 34 | IG3: 34 | IH3: 34 | II3: 35 | IJ3: 35 | IK3: 35 | IL3: 35 | IM3: 35 | IN3: 35 | IO3: 35 | IP3: 36 | IQ3: 36 | IR3: 36 | IS3: 36 | IT3: 36 | IU3: 36 | IV3: 36 | IW3: 37 | IX3: 37 | IY3: 37 | IZ3: 37 | JA3: 37 | JB3: =WEEKNUM(JB4,21) -> 37 | JC3: 37 | JD3: 38 | JE3: 38 | JF3: 38 | JG3: 38 | JH3: 38 | JI3: 38 | JJ3: 38 | JK3: 39 | JL3: 39 | JM3: 39 | JN3: 39 | JO3: 39 | JP3: 39 | JQ3: 39 | JR3: 40 | JS3: 40 | JT3: 40 | JU3: 40 | JV3: 40 | JW3: 40 | JX3: 40 | JY3: 41 | JZ3: 41 | KA3: 41 | KB3: 41 | KC3: 41 | KD3: 41 | KE3: 41 | KF3: 42 | KG3: 42 | KH3: 42 | KI3: 42 | KJ3: 42 | KK3: 42 | KL3: 42 | KM3: 43 | KN3: 43 | KO3: 43 | KP3: 43 | KQ3: 43 | KR3: 43 | KS3: 43 | KT3: 44 | KU3: 44 | KV3: 44 | KW3: 44 | KX3: 44 | KY3: 44 | KZ3: 44 | LA3: 45 | LB3: 45 | LC3: 45 | LD3: 45 | LE3: 45 | LF3: 45 | LG3: 45 | LH3: 46 | LI3: 46 | LJ3: 46 | LK3: 46 | LL3: 46 | LM3: 46 | LN3: =WEEKNUM(LN4,21) -> 46 | LO3: 47 | LP3: 47 | LQ3: 47 | LR3: 47 | LS3: 47 | LT3: 47 | LU3: 47 | LV3: 48 | LW3: 48 | LX3: 48 | LY3: 48 | LZ3: 48 | MA3: 48 | MB3: 48 | MC3: 49 | MD3: 49 | ME3: 49 | MF3: 49 | MG3: 49 | MH3: 49 | MI3: 49 | MJ3: 50 | MK3: 50 | ML3: 50 | MM3: 50 | MN3: 50 | MO3: 50 | MP3: 50 | MQ3: 51 | MR3: 51 | MS3: 51 | MT3: 51 | MU3: 51 | MV3: 51 | MW3: 51 | MX3: 52 | MY3: 52 | MZ3: 52 | NA3: 52 | NB3: 52 | NC3: 52 | ND3: 52
A4: Taakgroep 286 | C4: E2 | E4: 2018-01-01 | F4: =E4+1 -> 2018-01-02 | G4: =F4+1 -> 2018-01-03 | H4: 2018-01-04 | I4: 2018-01-05 | J4: 2018-01-06 | K4: 2018-01-07 | L4: 2018-01-08 | M4: 2018-01-09 | N4: 2018-01-10 | O4: 2018-01-11 | P4: 2018-01-12 | Q4: 2018-01-13 | R4: 2018-01-14 | S4: 2018-01-15 | T4: 2018-01-16 | U4: 2018-01-17 | V4: 2018-01-18 | W4: 2018-01-19 | X4: 2018-01-20 | Y4: 2018-01-21 | Z4: 2018-01-22 | AA4: 2018-01-23 | AB4: 2018-01-24 | AC4: 2018-01-25 | AD4: 2018-01-26 | AE4: 2018-01-27 | AF4: 2018-01-28 | AG4: 2018-01-29 | AH4: 2018-01-30 | AI4: 2018-01-31 | AJ4: 2018-02-01 | AK4: 2018-02-02 | AL4: 2018-02-03 | AM4: 2018-02-04 | AN4: 2018-02-05 | AO4: 2018-02-06 | AP4: 2018-02-07 | AQ4: 2018-02-08 | AR4: 2018-02-09 | AS4: 2018-02-10 | AT4: 2018-02-11 | AU4: 2018-02-12 | AV4: 2018-02-13 | AW4: 2018-02-14 | AX4: 2018-02-15 | AY4: 2018-02-16 | AZ4: 2018-02-17 | BA4: 2018-02-18 | BB4: 2018-02-19 | BC4: 2018-02-20 | BD4: 2018-02-21 | BE4: 2018-02-22 | BF4: 2018-02-23 | BG4: 2018-02-24 | BH4: 2018-02-25 | BI4: 2018-02-26 | BJ4: 2018-02-27 | BK4: 2018-02-28 | BL4: 2018-03-01 | BM4: 2018-03-02 | BN4: 2018-03-03 | BO4: 2018-03-04 | BP4: 2018-03-05 | BQ4: 2018-03-06 | BR4: 2018-03-07 | BS4: =BR4+1 -> 2018-03-08 | BT4: 2018-03-09 | BU4: 2018-03-10 | BV4: 2018-03-11 | BW4: 2018-03-12 | BX4: 2018-03-13 | BY4: 2018-03-14 | BZ4: 2018-03-15 | CA4: 2018-03-16 | CB4: 2018-03-17 | CC4: 2018-03-18 | CD4: 2018-03-19 | CE4: 2018-03-20 | CF4: 2018-03-21 | CG4: 2018-03-22 | CH4: 2018-03-23 | CI4: 2018-03-24 | CJ4: 2018-03-25 | CK4: 2018-03-26 | CL4: 2018-03-27 | CM4: 2018-03-28 | CN4: 2018-03-29 | CO4: 2018-03-30 | CP4: 2018-03-31 | CQ4: 2018-04-01 | CR4: 2018-04-02 | CS4: 2018-04-03 | CT4: 2018-04-04 | CU4: 2018-04-05 | CV4: 2018-04-06 | CW4: 2018-04-07 | CX4: 2018-04-08 | CY4: 2018-04-09 | CZ4: 2018-04-10 | DA4: 2018-04-11 | DB4: 2018-04-12 | DC4: 2018-04-13 | DD4: 2018-04-14 | DE4: 2018-04-15 | DF4: 2018-04-16 | DG4: 2018-04-17 | DH4: 2018-04-18 | DI4: 2018-04-19 | DJ4: 2018-04-20 | DK4: 2018-04-21 | DL4: 2018-04-22 | DM4: 2018-04-23 | DN4: 2018-04-24 | DO4: 2018-04-25 | DP4: 2018-04-26 | DQ4: 2018-04-27 | DR4: 2018-04-28 | DS4: 2018-04-29 | DT4: 2018-04-30 | DU4: 2018-05-01 | DV4: 2018-05-02 | DW4: 2018-05-03 | DX4: 2018-05-04 | DY4: 2018-05-05 | DZ4: 2018-05-06 | EA4: 2018-05-07 | EB4: 2018-05-08 | EC4: 2018-05-09 | ED4: 2018-05-10 | EE4: =ED4+1 -> 2018-05-11 | EF4: 2018-05-12 | EG4: 2018-05-13 | EH4: 2018-05-14 | EI4: 2018-05-15 | EJ4: 2018-05-16 | EK4: 2018-05-17 | EL4: 2018-05-18 | EM4: 2018-05-19 | EN4: 2018-05-20 | EO4: 2018-05-21 | EP4: 2018-05-22 | EQ4: 2018-05-23 | ER4: 2018-05-24 | ES4: 2018-05-25 | ET4: 2018-05-26 | EU4: 2018-05-27 | EV4: 2018-05-28 | EW4: 2018-05-29 | EX4: 2018-05-30 | EY4: 2018-05-31 | EZ4: 2018-06-01 | FA4: 2018-06-02 | FB4: 2018-06-03 | FC4: 2018-06-04 | FD4: 2018-06-05 | FE4: 2018-06-06 | FF4: 2018-06-07 | FG4: 2018-06-08 | FH4: 2018-06-09 | FI4: 2018-06-10 | FJ4: 2018-06-11 | FK4: 2018-06-12 | FL4: 2018-06-13 | FM4: 2018-06-14 | FN4: 2018-06-15 | FO4: 2018-06-16 | FP4: 2018-06-17 | FQ4: 2018-06-18 | FR4: 2018-06-19 | FS4: 2018-06-20 | FT4: 2018-06-21 | FU4: 2018-06-22 | FV4: 2018-06-23 | FW4: 2018-06-24 | FX4: 2018-06-25 | FY4: 2018-06-26 | FZ4: 2018-06-27 | GA4: 2018-06-28 | GB4: 2018-06-29 | GC4: 2018-06-30 | GD4: 2018-07-01 | GE4: 2018-07-02 | GF4: 2018-07-03 | GG4: 2018-07-04 | GH4: 2018-07-05 | GI4: 2018-07-06 | GJ4: 2018-07-07 | GK4: 2018-07-08 | GL4: 2018-07-09 | GM4: 2018-07-10 | GN4: 2018-07-11 | GO4: 2018-07-12 | GP4: 2018-07-13 | GQ4: =GP4+1 -> 2018-07-14 | GR4: 2018-07-15 | GS4: 2018-07-16 | GT4: 2018-07-17 | GU4: 2018-07-18 | GV4: 2018-07-19 | GW4: 2018-07-20 | GX4: 2018-07-21 | GY4: 2018-07-22 | GZ4: 2018-07-23 | HA4: 2018-07-24 | HB4: 2018-07-25 | HC4: 2018-07-26 | HD4: 2018-07-27 | HE4: 2018-07-28 | HF4: 2018-07-29 | HG4: 2018-07-30 | HH4: 2018-07-31 | HI4: 2018-08-01 | HJ4: 2018-08-02 | HK4: 2018-08-03 | HL4: 2018-08-04 | HM4: 2018-08-05 | HN4: 2018-08-06 | HO4: 2018-08-07 | HP4: 2018-08-08 | HQ4: 2018-08-09 | HR4: 2018-08-10 | HS4: 2018-08-11 | HT4: 2018-08-12 | HU4: 2018-08-13 | HV4: 2018-08-14 | HW4: 2018-08-15 | HX4: 2018-08-16 | HY4: 2018-08-17 | HZ4: 2018-08-18 | IA4: 2018-08-19 | IB4: 2018-08-20 | IC4: 2018-08-21 | ID4: 2018-08-22 | IE4: 2018-08-23 | IF4: 2018-08-24 | IG4: 2018-08-25 | IH4: 2018-08-26 | II4: 2018-08-27 | IJ4: 2018-08-28 | IK4: 2018-08-29 | IL4: 2018-08-30 | IM4: 2018-08-31 | IN4: 2018-09-01 | IO4: 2018-09-02 | IP4: 2018-09-03 | IQ4: 2018-09-04 | IR4: 2018-09-05 | IS4: 2018-09-06 | IT4: 2018-09-07 | IU4: 2018-09-08 | IV4: 2018-09-09 | IW4: 2018-09-10 | IX4: 2018-09-11 | IY4: 2018-09-12 | IZ4: 2018-09-13 | JA4: 2018-09-14 | JB4: 2018-09-15 | JC4: =JB4+1 -> 2018-09-16 | JD4: 2018-09-17 | JE4: 2018-09-18 | JF4: 2018-09-19 | JG4: 2018-09-20 | JH4: 2018-09-21 | JI4: 2018-09-22 | JJ4: 2018-09-23 | JK4: 2018-09-24 | JL4: 2018-09-25 | JM4: 2018-09-26 | JN4: 2018-09-27 | JO4: 2018-09-28 | JP4: 2018-09-29 | JQ4: 2018-09-30 | JR4: 2018-10-01 | JS4: 2018-10-02 | JT4: 2018-10-03 | JU4: 2018-10-04 | JV4: 2018-10-05 | JW4: 2018-10-06 | JX4: 2018-10-07 | JY4: 2018-10-08 | JZ4: 2018-10-09 | KA4: 2018-10-10 | KB4: 2018-10-11 | KC4: 2018-10-12 | KD4: 2018-10-13 | KE4: 2018-10-14 | KF4: 2018-10-15 | KG4: 2018-10-16 | KH4: 2018-10-17 | KI4: 2018-10-18 | KJ4: 2018-10-19 | KK4: 2018-10-20 | KL4: 2018-10-21 | KM4: 2018-10-22 | KN4: 2018-10-23 | KO4: 2018-10-24 | KP4: 2018-10-25 | KQ4: 2018-10-26 | KR4: 2018-10-27 | KS4: 2018-10-28 | KT4: 2018-10-29 | KU4: 2018-10-30 | KV4: 2018-10-31 | KW4: 2018-11-01 | KX4: 2018-11-02 | KY4: 2018-11-03 | KZ4: 2018-11-04 | LA4: 2018-11-05 | LB4: 2018-11-06 | LC4: 2018-11-07 | LD4: 2018-11-08 | LE4: 2018-11-09 | LF4: 2018-11-10 | LG4: 2018-11-11 | LH4: 2018-11-12 | LI4: 2018-11-13 | LJ4: 2018-11-14 | LK4: 2018-11-15 | LL4: 2018-11-16 | LM4: 2018-11-17 | LN4: 2018-11-18 | LO4: =LN4+1 -> 2018-11-19 | LP4: 2018-11-20 | LQ4: 2018-11-21 | LR4: 2018-11-22 | LS4: 2018-11-23 | LT4: 2018-11-24 | LU4: 2018-11-25 | LV4: 2018-11-26 | LW4: 2018-11-27 | LX4: 2018-11-28 | LY4: 2018-11-29 | LZ4: 2018-11-30 | MA4: 2018-12-01 | MB4: 2018-12-02 | MC4: 2018-12-03 | MD4: 2018-12-04 | ME4: 2018-12-05 | MF4: 2018-12-06 | MG4: 2018-12-07 | MH4: 2018-12-08 | MI4: 2018-12-09 | MJ4: 2018-12-10 | MK4: 2018-12-11 | ML4: 2018-12-12 | MM4: 2018-12-13 | MN4: 2018-12-14 | MO4: 2018-12-15 | MP4: 2018-12-16 | MQ4: 2018-12-17 | MR4: 2018-12-18 | MS4: 2018-12-19 | MT4: 2018-12-20 | MU4: 2018-12-21 | MV4: 2018-12-22 | MW4: 2018-12-23 | MX4: 2018-12-24 | MY4: 2018-12-25 | MZ4: 2018-12-26 | NA4: 2018-12-27 | NB4: 2018-12-28 | NC4: 2018-12-29 | ND4: 2018-12-30
A5: Rayonleider: | C5: J. op het Veld | E5: =TEXT(E4,"DDD") -> ma | F5: =TEXT(F4,"DDD") -> di | G5: wo | H5: do | I5: vr | J5: za | K5: zo | L5: ma | M5: di | N5: wo | O5: do | P5: vr | Q5: za | R5: zo | S5: ma | T5: di | U5: wo | V5: do | W5: vr | X5: za | Y5: zo | Z5: ma | AA5: di | AB5: wo | AC5: do | AD5: vr | AE5: za | AF5: zo | AG5: ma | AH5: di | AI5: wo | AJ5: do | AK5: vr | AL5: za | AM5: zo | AN5: ma | AO5: di | AP5: wo | AQ5: do | AR5: vr | AS5: za | AT5: zo | AU5: ma | AV5: di | AW5: wo | AX5: do | AY5: vr | AZ5: za | BA5: zo | BB5: ma | BC5: di | BD5: wo | BE5: do | BF5: vr | BG5: za | BH5: zo | BI5: ma | BJ5: di | BK5: wo | BL5: do | BM5: vr | BN5: za | BO5: zo | BP5: ma | BQ5: di | BR5: =TEXT(BR4,"DDD") -> wo | BS5: do | BT5: vr | BU5: za | BV5: zo | BW5: ma | BX5: di | BY5: wo | BZ5: do | CA5: vr | CB5: za | CC5: zo | CD5: ma | CE5: di | CF5: wo | CG5: do | CH5: vr | CI5: za | CJ5: zo | CK5: ma | CL5: di | CM5: wo | CN5: do | CO5: vr | CP5: za | CQ5: zo | CR5: ma | CS5: di | CT5: wo | CU5: do | CV5: vr | CW5: za | CX5: zo | CY5: ma | CZ5: di | DA5: wo | DB5: do | DC5: vr | DD5: za | DE5: zo | DF5: ma | DG5: di | DH5: wo | DI5: do | DJ5: vr | DK5: za | DL5: zo | DM5: =TEXT(DM4,"DDD") -> ma | DN5: =TEXT(DN4,"DDD") -> di | DO5: =TEXT(DO4,"DDD") -> wo | DP5: =TEXT(DP4,"DDD") -> do | DQ5: =TEXT(DQ4,"DDD") -> vr | DR5: =TEXT(DR4,"DDD") -> za | DS5: =TEXT(DS4,"DDD") -> zo | DT5: =TEXT(DT4,"DDD") -> ma | DU5: =TEXT(DU4,"DDD") -> di | DV5: =TEXT(DV4,"DDD") -> wo | DW5: =TEXT(DW4,"DDD") -> do | DX5: =TEXT(DX4,"DDD") -> vr | DY5: =TEXT(DY4,"DDD") -> za | DZ5: =TEXT(DZ4,"DDD") -> zo | EA5: =TEXT(EA4,"DDD") -> ma | EB5: =TEXT(EB4,"DDD") -> di | EC5: =TEXT(EC4,"DDD") -> wo | ED5: =TEXT(ED4,"DDD") -> do | EE5: =TEXT(EE4,"DDD") -> vr | EF5: =TEXT(EF4,"DDD") -> za | EG5: =TEXT(EG4,"DDD") -> zo | EH5: =TEXT(EH4,"DDD") -> ma | EI5: =TEXT(EI4,"DDD") -> di | EJ5: =TEXT(EJ4,"DDD") -> wo | EK5: =TEXT(EK4,"DDD") -> do | EL5: =TEXT(EL4,"DDD") -> vr | EM5: =TEXT(EM4,"DDD") -> za | EN5: =TEXT(EN4,"DDD") -> zo | EO5: =TEXT(EO4,"DDD") -> ma | EP5: =TEXT(EP4,"DDD") -> di | EQ5: =TEXT(EQ4,"DDD") -> wo | ER5: =TEXT(ER4,"DDD") -> do | ES5: =TEXT(ES4,"DDD") -> vr | ET5: =TEXT(ET4,"DDD") -> za | EU5: =TEXT(EU4,"DDD") -> zo | EV5: =TEXT(EV4,"DDD") -> ma | EW5: =TEXT(EW4,"DDD") -> di | EX5: =TEXT(EX4,"DDD") -> wo | EY5: =TEXT(EY4,"DDD") -> do | EZ5: =TEXT(EZ4,"DDD") -> vr | FA5: =TEXT(FA4,"DDD") -> za | FB5: =TEXT(FB4,"DDD") -> zo | FC5: =TEXT(FC4,"DDD") -> ma | FD5: =TEXT(FD4,"DDD") -> di | FE5: =TEXT(FE4,"DDD") -> wo | FF5: =TEXT(FF4,"DDD") -> do | FG5: =TEXT(FG4,"DDD") -> vr | FH5: =TEXT(FH4,"DDD") -> za | FI5: =TEXT(FI4,"DDD") -> zo | FJ5: =TEXT(FJ4,"DDD") -> ma | FK5: =TEXT(FK4,"DDD") -> di | FL5: =TEXT(FL4,"DDD") -> wo | FM5: =TEXT(FM4,"DDD") -> do | FN5: =TEXT(FN4,"DDD") -> vr | FO5: =TEXT(FO4,"DDD") -> za | FP5: =TEXT(FP4,"DDD") -> zo | FQ5: =TEXT(FQ4,"DDD") -> ma | FR5: =TEXT(FR4,"DDD") -> di | FS5: =TEXT(FS4,"DDD") -> wo | FT5: =TEXT(FT4,"DDD") -> do | FU5: =TEXT(FU4,"DDD") -> vr | FV5: =TEXT(FV4,"DDD") -> za | FW5: =TEXT(FW4,"DDD") -> zo | FX5: =TEXT(FX4,"DDD") -> ma | FY5: =TEXT(FY4,"DDD") -> di | FZ5: =TEXT(FZ4,"DDD") -> wo | GA5: =TEXT(GA4,"DDD") -> do | GB5: =TEXT(GB4,"DDD") -> vr | GC5: =TEXT(GC4,"DDD") -> za | GD5: =TEXT(GD4,"DDD") -> zo | GE5: =TEXT(GE4,"DDD") -> ma | GF5: =TEXT(GF4,"DDD") -> di | GG5: =TEXT(GG4,"DDD") -> wo | GH5: =TEXT(GH4,"DDD") -> do | GI5: =TEXT(GI4,"DDD") -> vr | GJ5: =TEXT(GJ4,"DDD") -> za | GK5: =TEXT(GK4,"DDD") -> zo | GL5: =TEXT(GL4,"DDD") -> ma | GM5: =TEXT(GM4,"DDD") -> di | GN5: =TEXT(GN4,"DDD") -> wo | GO5: =TEXT(GO4,"DDD") -> do | GP5: =TEXT(GP4,"DDD") -> vr | GQ5: =TEXT(GQ4,"DDD") -> za | GR5: =TEXT(GR4,"DDD") -> zo | GS5: =TEXT(GS4,"DDD") -> ma | GT5: =TEXT(GT4,"DDD") -> di | GU5: =TEXT(GU4,"DDD") -> wo | GV5: =TEXT(GV4,"DDD") -> do | GW5: =TEXT(GW4,"DDD") -> vr | GX5: =TEXT(GX4,"DDD") -> za | GY5: =TEXT(GY4,"DDD") -> zo | GZ5: =TEXT(GZ4,"DDD") -> ma | HA5: =TEXT(HA4,"DDD") -> di | HB5: =TEXT(HB4,"DDD") -> wo | HC5: =TEXT(HC4,"DDD") -> do | HD5: =TEXT(HD4,"DDD") -> vr | HE5: =TEXT(HE4,"DDD") -> za | HF5: =TEXT(HF4,"DDD") -> zo | HG5: =TEXT(HG4,"DDD") -> ma | HH5: =TEXT(HH4,"DDD") -> di | HI5: =TEXT(HI4,"DDD") -> wo | HJ5: =TEXT(HJ4,"DDD") -> do | HK5: =TEXT(HK4,"DDD") -> vr | HL5: =TEXT(HL4,"DDD") -> za | HM5: =TEXT(HM4,"DDD") -> zo | HN5: =TEXT(HN4,"DDD") -> ma | HO5: =TEXT(HO4,"DDD") -> di | HP5: =TEXT(HP4,"DDD") -> wo | HQ5: =TEXT(HQ4,"DDD") -> do | HR5: =TEXT(HR4,"DDD") -> vr | HS5: =TEXT(HS4,"DDD") -> za | HT5: =TEXT(HT4,"DDD") -> zo | HU5: =TEXT(HU4,"DDD") -> ma | HV5: =TEXT(HV4,"DDD") -> di | HW5: =TEXT(HW4,"DDD") -> wo | HX5: =TEXT(HX4,"DDD") -> do | HY5: =TEXT(HY4,"DDD") -> vr | HZ5: =TEXT(HZ4,"DDD") -> za | IA5: =TEXT(IA4,"DDD") -> zo | IB5: =TEXT(IB4,"DDD") -> ma | IC5: =TEXT(IC4,"DDD") -> di | ID5: =TEXT(ID4,"DDD") -> wo | IE5: =TEXT(IE4,"DDD") -> do | IF5: =TEXT(IF4,"DDD") -> vr | IG5: =TEXT(IG4,"DDD") -> za | IH5: =TEXT(IH4,"DDD") -> zo | II5: =TEXT(II4,"DDD") -> ma | IJ5: =TEXT(IJ4,"DDD") -> di | IK5: =TEXT(IK4,"DDD") -> wo | IL5: =TEXT(IL4,"DDD") -> do | IM5: =TEXT(IM4,"DDD") -> vr | IN5: =TEXT(IN4,"DDD") -> za | IO5: =TEXT(IO4,"DDD") -> zo | IP5: =TEXT(IP4,"DDD") -> ma | IQ5: =TEXT(IQ4,"DDD") -> di | IR5: =TEXT(IR4,"DDD") -> wo | IS5: =TEXT(IS4,"DDD") -> do | IT5: =TEXT(IT4,"DDD") -> vr | IU5: =TEXT(IU4,"DDD") -> za | IV5: =TEXT(IV4,"DDD") -> zo | IW5: =TEXT(IW4,"DDD") -> ma | IX5: =TEXT(IX4,"DDD") -> di | IY5: =TEXT(IY4,"DDD") -> wo | IZ5: =TEXT(IZ4,"DDD") -> do | JA5: =TEXT(JA4,"DDD") -> vr | JB5: =TEXT(JB4,"DDD") -> za | JC5: =TEXT(JC4,"DDD") -> zo | JD5: =TEXT(JD4,"DDD") -> ma | JE5: =TEXT(JE4,"DDD") -> di | JF5: =TEXT(JF4,"DDD") -> wo | JG5: =TEXT(JG4,"DDD") -> do | JH5: =TEXT(JH4,"DDD") -> vr | JI5: =TEXT(JI4,"DDD") -> za | JJ5: =TEXT(JJ4,"DDD") -> zo | JK5: =TEXT(JK4,"DDD") -> ma | JL5: =TEXT(JL4,"DDD") -> di | JM5: =TEXT(JM4,"DDD") -> wo | JN5: =TEXT(JN4,"DDD") -> do | JO5: =TEXT(JO4,"DDD") -> vr | JP5: =TEXT(JP4,"DDD") -> za | JQ5: =TEXT(JQ4,"DDD") -> zo | JR5: =TEXT(JR4,"DDD") -> ma | JS5: =TEXT(JS4,"DDD") -> di | JT5: =TEXT(JT4,"DDD") -> wo | JU5: =TEXT(JU4,"DDD") -> do | JV5: =TEXT(JV4,"DDD") -> vr | JW5: =TEXT(JW4,"DDD") -> za | JX5: =TEXT(JX4,"DDD") -> zo | JY5: =TEXT(JY4,"DDD") -> ma | JZ5: =TEXT(JZ4,"DDD") -> di | KA5: =TEXT(KA4,"DDD") -> wo | KB5: =TEXT(KB4,"DDD") -> do | KC5: =TEXT(KC4,"DDD") -> vr | KD5: =TEXT(KD4,"DDD") -> za | KE5: =TEXT(KE4,"DDD") -> zo | KF5: =TEXT(KF4,"DDD") -> ma | KG5: =TEXT(KG4,"DDD") -> di | KH5: =TEXT(KH4,"DDD") -> wo | KI5: =TEXT(KI4,"DDD") -> do | KJ5: =TEXT(KJ4,"DDD") -> vr | KK5: =TEXT(KK4,"DDD") -> za | KL5: =TEXT(KL4,"DDD") -> zo | KM5: =TEXT(KM4,"DDD") -> ma | KN5: =TEXT(KN4,"DDD") -> di | KO5: =TEXT(KO4,"DDD") -> wo | KP5: =TEXT(KP4,"DDD") -> do | KQ5: =TEXT(KQ4,"DDD") -> vr | KR5: =TEXT(KR4,"DDD") -> za | KS5: =TEXT(KS4,"DDD") -> zo | KT5: =TEXT(KT4,"DDD") -> ma | KU5: =TEXT(KU4,"DDD") -> di | KV5: =TEXT(KV4,"DDD") -> wo | KW5: =TEXT(KW4,"DDD") -> do | KX5: =TEXT(KX4,"DDD") -> vr | KY5: =TEXT(KY4,"DDD") -> za | KZ5: =TEXT(KZ4,"DDD") -> zo | LA5: =TEXT(LA4,"DDD") -> ma | LB5: =TEXT(LB4,"DDD") -> di | LC5: =TEXT(LC4,"DDD") -> wo | LD5: =TEXT(LD4,"DDD") -> do | LE5: =TEXT(LE4,"DDD") -> vr | LF5: =TEXT(LF4,"DDD") -> za | LG5: =TEXT(LG4,"DDD") -> zo | LH5: =TEXT(LH4,"DDD") -> ma | LI5: =TEXT(LI4,"DDD") -> di | LJ5: =TEXT(LJ4,"DDD") -> wo | LK5: =TEXT(LK4,"DDD") -> do | LL5: =TEXT(LL4,"DDD") -> vr | LM5: =TEXT(LM4,"DDD") -> za | LN5: =TEXT(LN4,"DDD") -> zo | LO5: =TEXT(LO4,"DDD") -> ma | LP5: =TEXT(LP4,"DDD") -> di | LQ5: =TEXT(LQ4,"DDD") -> wo | LR5: =TEXT(LR4,"DDD") -> do | LS5: =TEXT(LS4,"DDD") -> vr | LT5: =TEXT(LT4,"DDD") -> za | LU5: =TEXT(LU4,"DDD") -> zo | LV5: =TEXT(LV4,"DDD") -> ma | LW5: =TEXT(LW4,"DDD") -> di | LX5: =TEXT(LX4,"DDD") -> wo | LY5: =TEXT(LY4,"DDD") -> do | LZ5: =TEXT(LZ4,"DDD") -> vr | MA5: =TEXT(MA4,"DDD") -> za | MB5: =TEXT(MB4,"DDD") -> zo | MC5: =TEXT(MC4,"DDD") -> ma | MD5: =TEXT(MD4,"DDD") -> di | ME5: =TEXT(ME4,"DDD") -> wo | MF5: =TEXT(MF4,"DDD") -> do | MG5: =TEXT(MG4,"DDD") -> vr | MH5: =TEXT(MH4,"DDD") -> za | MI5: =TEXT(MI4,"DDD") -> zo | MJ5: =TEXT(MJ4,"DDD") -> ma | MK5: =TEXT(MK4,"DDD") -> di | ML5: =TEXT(ML4,"DDD") -> wo | MM5: =TEXT(MM4,"DDD") -> do | MN5: =TEXT(MN4,"DDD") -> vr | MO5: =TEXT(MO4,"DDD") -> za | MP5: =TEXT(MP4,"DDD") -> zo | MQ5: =TEXT(MQ4,"DDD") -> ma | MR5: =TEXT(MR4,"DDD") -> di | MS5: =TEXT(MS4,"DDD") -> wo | MT5: =TEXT(MT4,"DDD") -> do | MU5: =TEXT(MU4,"DDD") -> vr | MV5: =TEXT(MV4,"DDD") -> za | MW5: =TEXT(MW4,"DDD") -> zo | MX5: =TEXT(MX4,"DDD") -> ma | MY5: =TEXT(MY4,"DDD") -> di | MZ5: =TEXT(MZ4,"DDD") -> wo | NA5: =TEXT(NA4,"DDD") -> do | NB5: =TEXT(NB4,"DDD") -> vr | NC5: =TEXT(NC4,"DDD") -> za | ND5: =TEXT(ND4,"DDD") -> zo
A6: Coördinator: | C6: E. Kamphuis | E6: =IFERROR(INDEX(DATA!$A$1:$NI$21,MATCH($C4,DATA!$A$1:$A$21,0),MATCH(E$4,DATA!$A$1:$NJ$1,0)),"") -> ND | F6: =IFERROR(INDEX(DATA!$A$1:$NI$21,MATCH($C4,DATA!$A$1:$A$21,0),MATCH(F$4,DATA!$A$1:$NJ$1,0)),"") -> ND | G6: =IFERROR(INDEX(DATA!$A$1:$NI$21,MATCH($C4,DATA!$A$1:$A$21,0),MATCH(G$4,DATA!$A$1:$NJ$1,0)),"") -> ND | H6: =IFERROR(INDEX(DATA!$A$1:$NI$21,MATCH($C4,DATA!$A$1:$A$21,0),MATCH(H$4,DATA!$A$1:$NJ$1,0)),"") -> ND | I6: =IFERROR(INDEX(DATA!$A$1:$NI$21,MATCH($C4,DATA!$A$1:$A$21,0),MATCH(I$4,DATA!$A$1:$NJ$1,0)),"") -> ND | J6: =IFERROR(INDEX(DATA!$A$1:$NI$21,MATCH($C4,DATA!$A$1:$A$21,0),MATCH(J$4,DATA!$A$1:$NJ$1,0)),"") -> Za | K6: =IFERROR(INDEX(DATA!$A$1:$NI$21,MATCH($C4,DATA!$A$1:$A$21,0),MATCH(K$4,DATA!$A$1:$NJ$1,0)),"") -> Zo | L6: =IFERROR(INDEX(DATA!$A$1:$NI$21,MATCH($C4,DATA!$A$1:$A$21,0),MATCH(L$4,DATA!$A$1:$NJ$1,0)),"") -> MD | M6: =IFERROR(INDEX(DATA!$A$1:$NI$21,MATCH($C4,DATA!$A$1:$A$21,0),MATCH(M$4,DATA!$A$1:$NJ$1,0)),"") -> MD | N6: =IFERROR(INDEX(DATA!$A$1:$NI$21,MATCH($C4,DATA!$A$1:$A$21,0),MATCH(N$4,DATA!$A$1:$NJ$1,0)),"") -> MD | O6: =IFERROR(INDEX(DATA!$A$1:$NI$21,MATCH($C4,DATA!$A$1:$A$21,0),MATCH(O$4,DATA!$A$1:$NJ$1,0)),"") -> MD | P6: =IFERROR(INDEX(DATA!$A$1:$NI$21,MATCH($C4,DATA!$A$1:$A$21,0),MATCH(P$4,DATA!$A$1:$NJ$1,0)),"") -> MD | Q6: =IFERROR(INDEX(DATA!$A$1:$NI$21,MATCH($C4,DATA!$A$1:$A$21,0),MATCH(Q$4,DATA!$A$1:$NJ$1,0)),"") -> Za | R6: =IFERROR(INDEX(DATA!$A$1:$NI$21,MATCH($C4,DATA!$A$1:$A$21,0),MATCH(R$4,DATA!$A$1:$NJ$1,0)),"") -> Zo | S6: =IFERROR(INDEX(DATA!$A$1:$NI$21,MATCH($C4,DATA!$A$1:$A$21,0),MATCH(S$4,DATA!$A$1:$NJ$1,0)),"") -> DD | T6: =IFERROR(INDEX(DATA!$A$1:$NI$21,MATCH($C4,DATA!$A$1:$A$21,0),MATCH(T$4,DATA!$A$1:$NJ$1,0)),"") -> DD | U6: =IFERROR(INDEX(DATA!$A$1:$NI$21,MATCH($C4,DATA!$A$1:$A$21,0),MATCH(U$4,DATA!$A$1:$NJ$1,0)),"") -> DD | V6: =IFERROR(INDEX(DATA!$A$1:$NI$21,MATCH($C4,DATA!$A$1:$A$21,0),MATCH(V$4,DATA!$A$1:$NJ$1,0)),"") -> DD | W6: =IFERROR(INDEX(DATA!$A$1:$NI$21,MATCH($C4,DATA!$A$1:$A$21,0),MATCH(W$4,DATA!$A$1:$NJ$1,0)),"") -> DD | X6: =IFERROR(INDEX(DATA!$A$1:$NI$21,MATCH($C4,DATA!$A$1:$A$21,0),MATCH(X$4,DATA!$A$1:$NJ$1,0)),"") -> DD | Y6: =IFERROR(INDEX(DATA!$A$1:$NI$21,MATCH($C4,DATA!$A$1:$A$21,0),MATCH(Y$4,DATA!$A$1:$NJ$1,0)),"") -> Zo | Z6: =IFERROR(INDEX(DATA!$A$1:$NI$21,MATCH($C4,DATA!$A$1:$A$21,0),MATCH(Z$4,DATA!$A$1:$NJ$1,0)),"") -> ND | AA6: =IFERROR(INDEX(DATA!$A$1:$NI$21,MATCH($C4,DATA!$A$1:$A$21,0),MATCH(AA$4,DATA!$A$1:$NJ$1,0)),"") -> ND | AB6: =IFERROR(INDEX(DATA!$A$1:$NI$21,MATCH($C4,DATA!$A$1:$A$21,0),MATCH(AB$4,DATA!$A$1:$NJ$1,0)),"") -> ND | AC6: =IFERROR(INDEX(DATA!$A$1:$NI$21,MATCH($C4,DATA!$A$1:$A$21,0),MATCH(AC$4,DATA!$A$1:$NJ$1,0)),"") -> ND | AD6: =IFERROR(INDEX(DATA!$A$1:$NI$21,MATCH($C4,DATA!$A$1:$A$21,0),MATCH(AD$4,DATA!$A$1:$NJ$1,0)),"") -> ND | AE6: =IFERROR(INDEX(DATA!$A$1:$NI$21,MATCH($C4,DATA!$A$1:$A$21,0),MATCH(AE$4,DATA!$A$1:$NJ$1,0)),"") -> Za | AF6: =IFERROR(INDEX(DATA!$A$1:$NI$21,MATCH($C4,DATA!$A$1:$A$21,0),MATCH(AF$4,DATA!$A$1:$NJ$1,0)),"") -> Zo | AG6: =IFERROR(INDEX(DATA!$A$1:$NI$21,MATCH($C4,DATA!$A$1:$A$21,0),MATCH(AG$4,DATA!$A$1:$NJ$1,0)),"") -> MD | AH6: =IFERROR(INDEX(DATA!$A$1:$NI$21,MATCH($C4,DATA!$A$1:$A$21,0),MATCH(AH$4,DATA!$A$1:$NJ$1,0)),"") -> MD | AI6: =IFERROR(INDEX(DATA!$A$1:$NI$21,MATCH($C4,DATA!$A$1:$A$21,0),MATCH(AI$4,DATA!$A$1:$NJ$1,0)),"") -> MD | AJ6: =IFERROR(INDEX(DATA!$A$1:$NI$21,MATCH($C4,DATA!$A$1:$A$21,0),MATCH(AJ$4,DATA!$A$1:$NJ$1,0)),"") -> MD | AK6: =IFERROR(INDEX(DATA!$A$1:$NI$21,MATCH($C4,DATA!$A$1:$A$21,0),MATCH(AK$4,DATA!$A$1:$NJ$1,0)),"") -> MD | AL6: =IFERROR(INDEX(DATA!$A$1:$NI$21,MATCH($C4,DATA!$A$1:$A$21,0),MATCH(AL$4,DATA!$A$1:$NJ$1,0)),"") -> Za | AM6: =IFERROR(INDEX(DATA!$A$1:$NI$21,MATCH($C4,DATA!$A$1:$A$21,0),MATCH(AM$4,DATA!$A$1:$NJ$1,0)),"") -> Zo | AN6: =IFERROR(INDEX(DATA!$A$1:$NI$21,MATCH($C4,DATA!$A$1:$A$21,0),MATCH(AN$4,DATA!$A$1:$NJ$1,0)),"") -> DD | AO6: =IFERROR(INDEX(DATA!$A$1:$NI$21,MATCH($C4,DATA!$A$1:$A$21,0),MATCH(AO$4,DATA!$A$1:$NJ$1,0)),"") -> DD | AP6: =IFERROR(INDEX(DATA!$A$1:$NI$21,MATCH($C4,DATA!$A$1:$A$21,0),MATCH(AP$4,DATA!$A$1:$NJ$1,0)),"") -> DD | AQ6: =IFERROR(INDEX(DATA!$A$1:$NI$21,MATCH($C4,DATA!$A$1:$A$21,0),MATCH(AQ$4,DATA!$A$1:$NJ$1,0)),"") -> DD | AR6: =IFERROR(INDEX(DATA!$A$1:$NI$21,MATCH($C4,DATA!$A$1:$A$21,0),MATCH(AR$4,DATA!$A$1:$NJ$1,0)),"") -> DD | AS6: =IFERROR(INDEX(DATA!$A$1:$NI$21,MATCH($C4,DATA!$A$1:$A$21,0),MATCH(AS$4,DATA!$A$1:$NJ$1,0)),"") -> DD | AT6: =IFERROR(INDEX(DATA!$A$1:$NI$21,MATCH($C4,DATA!$A$1:$A$21,0),MATCH(AT$4,DATA!$A$1:$NJ$1,0)),"") -> Zo | AU6: =IFERROR(INDEX(DATA!$A$1:$NI$21,MATCH($C4,DATA!$A$1:$A$21,0),MATCH(AU$4,DATA!$A$1:$NJ$1,0)),"") -> ND | AV6: =IFERROR(INDEX(DATA!$A$1:$NI$21,MATCH($C4,DATA!$A$1:$A$21,0),MATCH(AV$4,DATA!$A$1:$NJ$1,0)),"") -> ND | AW6: =IFERROR(INDEX(DATA!$A$1:$NI$21,MATCH($C4,DATA!$A$1:$A$21,0),MATCH(AW$4,DATA!$A$1:$NJ$1,0)),"") -> ND | AX6: =IFERROR(INDEX(DATA!$A$1:$NI$21,MATCH($C4,DATA!$A$1:$A$21,0),MATCH(AX$4,DATA!$A$1:$NJ$1,0)),"") -> ND | AY6: =IFERROR(INDEX(DATA!$A$1:$NI$21,MATCH($C4,DATA!$A$1:$A$21,0),MATCH(AY$4,DATA!$A$1:$NJ$1,0)),"") -> ND | AZ6: =IFERROR(INDEX(DATA!$A$1:$NI$21,MATCH($C4,DATA!$A$1:$A$21,0),MATCH(AZ$4,DATA!$A$1:$NJ$1,0)),"") -> Za | BA6: =IFERROR(INDEX(DATA!$A$1:$NI$21,MATCH($C4,DATA!$A$1:$A$21,0),MATCH(BA$4,DATA!$A$1:$NJ$1,0)),"") -> Zo | BB6: =IFERROR(INDEX(DATA!$A$1:$NI$21,MATCH($C4,DATA!$A$1:$A$21,0),MATCH(BB$4,DATA!$A$1:$NJ$1,0)),"") -> MD | BC6: =IFERROR(INDEX(DATA!$A$1:$NI$21,MATCH($C4,DATA!$A$1:$A$21,0),MATCH(BC$4,DATA!$A$1:$NJ$1,0)),"") -> MD | BD6: =IFERROR(INDEX(DATA!$A$1:$NI$21,MATCH($C4,DATA!$A$1:$A$21,0),MATCH(BD$4,DATA!$A$1:$NJ$1,0)),"") -> MD | BE6: =IFERROR(INDEX(DATA!$A$1:$NI$21,MATCH($C4,DATA!$A$1:$A$21,0),MATCH(BE$4,DATA!$A$1:$NJ$1,0)),"") -> MD | BF6: =IFERROR(INDEX(DATA!$A$1:$NI$21,MATCH($C4,DATA!$A$1:$A$21,0),MATCH(BF$4,DATA!$A$1:$NJ$1,0)),"") -> MD | BG6: =IFERROR(INDEX(DATA!$A$1:$NI$21,MATCH($C4,DATA!$A$1:$A$21,0),MATCH(BG$4,DATA!$A$1:$NJ$1,0)),"") -> Za | BH6: =IFERROR(INDEX(DATA!$A$1:$NI$21,MATCH($C4,DATA!$A$1:$A$21,0),MATCH(BH$4,DATA!$A$1:$NJ$1,0)),"") -> Zo | BI6: =IFERROR(INDEX(DATA!$A$1:$NI$21,MATCH($C4,DATA!$A$1:$A$21,0),MATCH(BI$4,DATA!$A$1:$NJ$1,0)),"") -> DD | BJ6: =IFERROR(INDEX(DATA!$A$1:$NI$21,MATCH($C4,DATA!$A$1:$A$21,0),MATCH(BJ$4,DATA!$A$1:$NJ$1,0)),"") -> DD | BK6: =IFERROR(INDEX(DATA!$A$1:$NI$21,MATCH($C4,DATA!$A$1:$A$21,0),MATCH(BK$4,DATA!$A$1:$NJ$1,0)),"") -> DD | BL6: =IFERROR(INDEX(DATA!$A$1:$NI$21,MATCH($C4,DATA!$A$1:$A$21,0),MATCH(BL$4,DATA!$A$1:$NJ$1,0)),"") -> DD | BM6: =IFERROR(INDEX(DATA!$A$1:$NI$21,MATCH($C4,DATA!$A$1:$A$21,0),MATCH(BM$4,DATA!$A$1:$NJ$1,0)),"") -> DD | BN6: =IFERROR(INDEX(DATA!$A$1:$NI$21,MATCH($C4,DATA!$A$1:$A$21,0),MATCH(BN$4,DATA!$A$1:$NJ$1,0)),"") -> DD | BO6: =IFERROR(INDEX(DATA!$A$1:$NI$21,MATCH($C4,DATA!$A$1:$A$21,0),MATCH(BO$4,DATA!$A$1:$NJ$1,0)),"") -> Zo | BP6: =IFERROR(INDEX(DATA!$A$1:$NI$21,MATCH($C4,DATA!$A$1:$A$21,0),MATCH(BP$4,DATA!$A$1:$NJ$1,0)),"") -> ND | BQ6: =IFERROR(INDEX(DATA!$A$1:$NI$21,MATCH($C4,DATA!$A$1:$A$21,0),MATCH(BQ$4,DATA!$A$1:$NJ$1,0)),"") -> ND | BR6: =IFERROR(INDEX(DATA!$A$1:$NI$21,MATCH($C4,DATA!$A$1:$A$21,0),MATCH(BR$4,DATA!$A$1:$NJ$1,0)),"") -> ND | BS6: =IFERROR(INDEX(DATA!$A$1:$NI$21,MATCH($C4,DATA!$A$1:$A$21,0),MATCH(BS$4,DATA!$A$1:$NJ$1,0)),"") -> ND | BT6: =IFERROR(INDEX(DATA!$A$1:$NI$21,MATCH($C4,DATA!$A$1:$A$21,0),MATCH(BT$4,DATA!$A$1:$NJ$1,0)),"") -> ND | BU6: =IFERROR(INDEX(DATA!$A$1:$NI$21,MATCH($C4,DATA!$A$1:$A$21,0),MATCH(BU$4,DATA!$A$1:$NJ$1,0)),"") -> Za | BV6: =IFERROR(INDEX(DATA!$A$1:$NI$21,MATCH($C4,DATA!$A$1:$A$21,0),MATCH(BV$4,DATA!$A$1:$NJ$1,0)),"") -> Zo | BW6: =IFERROR(INDEX(DATA!$A$1:$NI$21,MATCH($C4,DATA!$A$1:$A$21,0),MATCH(BW$4,DATA!$A$1:$NJ$1,0)),"") -> MD | BX6: =IFERROR(INDEX(DATA!$A$1:$NI$21,MATCH($C4,DATA!$A$1:$A$21,0),MATCH(BX$4,DATA!$A$1:$NJ$1,0)),"") -> MD | BY6: =IFERROR(INDEX(DATA!$A$1:$NI$21,MATCH($C4,DATA!$A$1:$A$21,0),MATCH(BY$4,DATA!$A$1:$NJ$1,0)),"") -> MD | BZ6: =IFERROR(INDEX(DATA!$A$1:$NI$21,MATCH($C4,DATA!$A$1:$A$21,0),MATCH(BZ$4,DATA!$A$1:$NJ$1,0)),"") -> MD | CA6: =IFERROR(INDEX(DATA!$A$1:$NI$21,MATCH($C4,DATA!$A$1:$A$21,0),MATCH(CA$4,DATA!$A$1:$NJ$1,0)),"") -> MD | CB6: =IFERROR(INDEX(DATA!$A$1:$NI$21,MATCH($C4,DATA!$A$1:$A$21,0),MATCH(CB$4,DATA!$A$1:$NJ$1,0)),"") -> Za | CC6: =IFERROR(INDEX(DATA!$A$1:$NI$21,MATCH($C4,DATA!$A$1:$A$21,0),MATCH(CC$4,DATA!$A$1:$NJ$1,0)),"") -> Zo | CD6: =IFERROR(INDEX(DATA!$A$1:$NI$21,MATCH($C4,DATA!$A$1:$A$21,0),MATCH(CD$4,DATA!$A$1:$NJ$1,0)),"") -> DD | CE6: =IFERROR(INDEX(DATA!$A$1:$NI$21,MATCH($C4,DATA!$A$1:$A$21,0),MATCH(CE$4,DATA!$A$1:$NJ$1,0)),"") -> DD | CF6: =IFERROR(INDEX(DATA!$A$1:$NI$21,MATCH($C4,DATA!$A$1:$A$21,0),MATCH(CF$4,DATA!$A$1:$NJ$1,0)),"") -> DD | CG6: =IFERROR(INDEX(DATA!$A$1:$NI$21,MATCH($C4,DATA!$A$1:$A$21,0),MATCH(CG$4,DATA!$A$1:$NJ$1,0)),"") -> DD | CH6: =IFERROR(INDEX(DATA!$A$1:$NI$21,MATCH($C4,DATA!$A$1:$A$21,0),MATCH(CH$4,DATA!$A$1:$NJ$1,0)),"") -> DD | CI6: =IFERROR(INDEX(DATA!$A$1:$NI$21,MATCH($C4,DATA!$A$1:$A$21,0),MATCH(CI$4,DATA!$A$1:$NJ$1,0)),"") -> DD | CJ6: =IFERROR(INDEX(DATA!$A$1:$NI$21,MATCH($C4,DATA!$A$1:$A$21,0),MATCH(CJ$4,DATA!$A$1:$NJ$1,0)),"") -> Zo | CK6: =IFERROR(INDEX(DATA!$A$1:$NI$21,MATCH($C4,DATA!$A$1:$A$21,0),MATCH(CK$4,DATA!$A$1:$NJ$1,0)),"") -> ND | CL6: =IFERROR(INDEX(DATA!$A$1:$NI$21,MATCH($C4,DATA!$A$1:$A$21,0),MATCH(CL$4,DATA!$A$1:$NJ$1,0)),"") -> ND | CM6: =IFERROR(INDEX(DATA!$A$1:$NI$21,MATCH($C4,DATA!$A$1:$A$21,0),MATCH(CM$4,DATA!$A$1:$NJ$1,0)),"") -> ND | CN6: =IFERROR(INDEX(DATA!$A$1:$NI$21,MATCH($C4,DATA!$A$1:$A$21,0),MATCH(CN$4,DATA!$A$1:$NJ$1,0)),"") -> ND | CO6: =IFERROR(INDEX(DATA!$A$1:$NI$21,MATCH($C4,DATA!$A$1:$A$21,0),MATCH(CO$4,DATA!$A$1:$NJ$1,0)),"") -> ND | CP6: =IFERROR(INDEX(DATA!$A$1:$NI$21,MATCH($C4,DATA!$A$1:$A$21,0),MATCH(CP$4,DATA!$A$1:$NJ$1,0)),"") -> Za | CQ6: =IFERROR(INDEX(DATA!$A$1:$NI$21,MATCH($C4,DATA!$A$1:$A$21,0),MATCH(CQ$4,DATA!$A$1:$NJ$1,0)),"") -> Zo | CR6: =IFERROR(INDEX(DATA!$A$1:$NI$21,MATCH($C4,DATA!$A$1:$A$21,0),MATCH(CR$4,DATA!$A$1:$NJ$1,0)),"") -> MD | CS6: =IFERROR(INDEX(DATA!$A$1:$NI$21,MATCH($C4,DATA!$A$1:$A$21,0),MATCH(CS$4,DATA!$A$1:$NJ$1,0)),"") -> MD | CT6: =IFERROR(INDEX(DATA!$A$1:$NI$21,MATCH($C4,DATA!$A$1:$A$21,0),MATCH(CT$4,DATA!$A$1:$NJ$1,0)),"") -> MD | CU6: =IFERROR(INDEX(DATA!$A$1:$NI$21,MATCH($C4,DATA!$A$1:$A$21,0),MATCH(CU$4,DATA!$A$1:$NJ$1,0)),"") -> MD | CV6: =IFERROR(INDEX(DATA!$A$1:$NI$21,MATCH($C4,DATA!$A$1:$A$21,0),MATCH(CV$4,DATA!$A$1:$NJ$1,0)),"") -> MD | CW6: =IFERROR(INDEX(DATA!$A$1:$NI$21,MATCH($C4,DATA!$A$1:$A$21,0),MATCH(CW$4,DATA!$A$1:$NJ$1,0)),"") -> Za | CX6: =IFERROR(INDEX(DATA!$A$1:$NI$21,MATCH($C4,DATA!$A$1:$A$21,0),MATCH(CX$4,DATA!$A$1:$NJ$1,0)),"") -> Zo | CY6: =IFERROR(INDEX(DATA!$A$1:$NI$21,MATCH($C4,DATA!$A$1:$A$21,0),MATCH(CY$4,DATA!$A$1:$NJ$1,0)),"") -> DD | CZ6: =IFERROR(INDEX(DATA!$A$1:$NI$21,MATCH($C4,DATA!$A$1:$A$21,0),MATCH(CZ$4,DATA!$A$1:$NJ$1,0)),"") -> DD | DA6: =IFERROR(INDEX(DATA!$A$1:$NI$21,MATCH($C4,DATA!$A$1:$A$21,0),MATCH(DA$4,DATA!$A$1:$NJ$1,0)),"") -> DD | DB6: =IFERROR(INDEX(DATA!$A$1:$NI$21,MATCH($C4,DATA!$A$1:$A$21,0),MATCH(DB$4,DATA!$A$1:$NJ$1,0)),"") -> DD | DC6: =IFERROR(INDEX(DATA!$A$1:$NI$21,MATCH($C4,DATA!$A$1:$A$21,0),MATCH(DC$4,DATA!$A$1:$NJ$1,0)),"") -> DD | DD6: =IFERROR(INDEX(DATA!$A$1:$NI$21,MATCH($C4,DATA!$A$1:$A$21,0),MATCH(DD$4,DATA!$A$1:$NJ$1,0)),"") -> DD | DE6: =IFERROR(INDEX(DATA!$A$1:$NI$21,MATCH($C4,DATA!$A$1:$A$21,0),MATCH(DE$4,DATA!$A$1:$NJ$1,0)),"") -> Zo | DF6: =IFERROR(INDEX(DATA!$A$1:$NI$21,MATCH($C4,DATA!$A$1:$A$21,0),MATCH(DF$4,DATA!$A$1:$NJ$1,0)),"") -> ND | DG6: =IFERROR(INDEX(DATA!$A$1:$NI$21,MATCH($C4,DATA!$A$1:$A$21,0),MATCH(DG$4,DATA!$A$1:$NJ$1,0)),"") -> ND | DH6: =IFERROR(INDEX(DATA!$A$1:$NI$21,MATCH($C4,DATA!$A$1:$A$21,0),MATCH(DH$4,DATA!$A$1:$NJ$1,0)),"") -> ND | DI6: =IFERROR(INDEX(DATA!$A$1:$NI$21,MATCH($C4,DATA!$A$1:$A$21,0),MATCH(DI$4,DATA!$A$1:$NJ$1,0)),"") -> ND | DJ6: =IFERROR(INDEX(DATA!$A$1:$NI$21,MATCH($C4,DATA!$A$1:$A$21,0),MATCH(DJ$4,DATA!$A$1:$NJ$1,0)),"") -> ND | DK6: =IFERROR(INDEX(DATA!$A$1:$NI$21,MATCH($C4,DATA!$A$1:$A$21,0),MATCH(DK$4,DATA!$A$1:$NJ$1,0)),"") -> Za | DL6: =IFERROR(INDEX(DATA!$A$1:$NI$21,MATCH($C4,DATA!$A$1:$A$21,0),MATCH(DL$4,DATA!$A$1:$NJ$1,0)),"") -> Zo | DM6: =IFERROR(INDEX(DATA!$A$1:$NI$21,MATCH($C4,DATA!$A$1:$A$21,0),MATCH(DM$4,DATA!$A$1:$NJ$1,0)),"") -> MD | DN6: =IFERROR(INDEX(DATA!$A$1:$NI$21,MATCH($C4,DATA!$A$1:$A$21,0),MATCH(DN$4,DATA!$A$1:$NJ$1,0)),"") -> MD | DO6: =IFERROR(INDEX(DATA!$A$1:$NI$21,MATCH($C4,DATA!$A$1:$A$21,0),MATCH(DO$4,DATA!$A$1:$NJ$1,0)),"") -> MD | DP6: =IFERROR(INDEX(DATA!$A$1:$NI$21,MATCH($C4,DATA!$A$1:$A$21,0),MATCH(DP$4,DATA!$A$1:$NJ$1,0)),"") -> MD | DQ6: =IFERROR(INDEX(DATA!$A$1:$NI$21,MATCH($C4,DATA!$A$1:$A$21,0),MATCH(DQ$4,DATA!$A$1:$NJ$1,0)),"") -> MD | DR6: =IFERROR(INDEX(DATA!$A$1:$NI$21,MATCH($C4,DATA!$A$1:$A$21,0),MATCH(DR$4,DATA!$A$1:$NJ$1,0)),"") -> Za | DS6: =IFERROR(INDEX(DATA!$A$1:$NI$21,MATCH($C4,DATA!$A$1:$A$21,0),MATCH(DS$4,DATA!$A$1:$NJ$1,0)),"") -> Zo | DT6: =IFERROR(INDEX(DATA!$A$1:$NI$21,MATCH($C4,DATA!$A$1:$A$21,0),MATCH(DT$4,DATA!$A$1:$NJ$1,0)),"") -> DD | DU6: =IFERROR(INDEX(DATA!$A$1:$NI$21,MATCH($C4,DATA!$A$1:$A$21,0),MATCH(DU$4,DATA!$A$1:$NJ$1,0)),"") -> DD | DV6: =IFERROR(INDEX(DATA!$A$1:$NI$21,MATCH($C4,DATA!$A$1:$A$21,0),MATCH(DV$4,DATA!$A$1:$NJ$1,0)),"") -> DD | DW6: =IFERROR(INDEX(DATA!$A$1:$NI$21,MATCH($C4,DATA!$A$1:$A$21,0),MATCH(DW$4,DATA!$A$1:$NJ$1,0)),"") -> DD | DX6: =IFERROR(INDEX(DATA!$A$1:$NI$21,MATCH($C4,DATA!$A$1:$A$21,0),MATCH(DX$4,DATA!$A$1:$NJ$1,0)),"") -> DD | DY6: =IFERROR(INDEX(DATA!$A$1:$NI$21,MATCH($C4,DATA!$A$1:$A$21,0),MATCH(DY$4,DATA!$A$1:$NJ$1,0)),"") -> DD | DZ6: =IFERROR(INDEX(DATA!$A$1:$NI$21,MATCH($C4,DATA!$A$1:$A$21,0),MATCH(DZ$4,DATA!$A$1:$NJ$1,0)),"") -> Zo | EA6: =IFERROR(INDEX(DATA!$A$1:$NI$21,MATCH($C4,DATA!$A$1:$A$21,0),MATCH(EA$4,DATA!$A$1:$NJ$1,0)),"") -> ND | EB6: =IFERROR(INDEX(DATA!$A$1:$NI$21,MATCH($C4,DATA!$A$1:$A$21,0),MATCH(EB$4,DATA!$A$1:$NJ$1,0)),"") -> ND | EC6: =IFERROR(INDEX(DATA!$A$1:$NI$21,MATCH($C4,DATA!$A$1:$A$21,0),MATCH(EC$4,DATA!$A$1:$NJ$1,0)),"") -> ND | ED6: =IFERROR(INDEX(DATA!$A$1:$NI$21,MATCH($C4,DATA!$A$1:$A$21,0),MATCH(ED$4,DATA!$A$1:$NJ$1,0)),"") -> ND | EE6: =IFERROR(INDEX(DATA!$A$1:$NI$21,MATCH($C4,DATA!$A$1:$A$21,0),MATCH(EE$4,DATA!$A$1:$NJ$1,0)),"") -> ND | EF6: =IFERROR(INDEX(DATA!$A$1:$NI$21,MATCH($C4,DATA!$A$1:$A$21,0),MATCH(EF$4,DATA!$A$1:$NJ$1,0)),"") -> Za | EG6: =IFERROR(INDEX(DATA!$A$1:$NI$21,MATCH($C4,DATA!$A$1:$A$21,0),MATCH(EG$4,DATA!$A$1:$NJ$1,0)),"") -> Zo | EH6: =IFERROR(INDEX(DATA!$A$1:$NI$21,MATCH($C4,DATA!$A$1:$A$21,0),MATCH(EH$4,DATA!$A$1:$NJ$1,0)),"") -> MD | EI6: =IFERROR(INDEX(DATA!$A$1:$NI$21,MATCH($C4,DATA!$A$1:$A$21,0),MATCH(EI$4,DATA!$A$1:$NJ$1,0)),"") -> MD | EJ6: =IFERROR(INDEX(DATA!$A$1:$NI$21,MATCH($C4,DATA!$A$1:$A$21,0),MATCH(EJ$4,DATA!$A$1:$NJ$1,0)),"") -> MD | EK6: =IFERROR(INDEX(DATA!$A$1:$NI$21,MATCH($C4,DATA!$A$1:$A$21,0),MATCH(EK$4,DATA!$A$1:$NJ$1,0)),"") -> MD | EL6: =IFERROR(INDEX(DATA!$A$1:$NI$21,MATCH($C4,DATA!$A$1:$A$21,0),MATCH(EL$4,DATA!$A$1:$NJ$1,0)),"") -> MD | EM6: =IFERROR(INDEX(DATA!$A$1:$NI$21,MATCH($C4,DATA!$A$1:$A$21,0),MATCH(EM$4,DATA!$A$1:$NJ$1,0)),"") -> Za | EN6: =IFERROR(INDEX(DATA!$A$1:$NI$21,MATCH($C4,DATA!$A$1:$A$21,0),MATCH(EN$4,DATA!$A$1:$NJ$1,0)),"") -> Zo | EO6: =IFERROR(INDEX(DATA!$A$1:$NI$21,MATCH($C4,DATA!$A$1:$A$21,0),MATCH(EO$4,DATA!$A$1:$NJ$1,0)),"") -> DD | EP6: =IFERROR(INDEX(DATA!$A$1:$NI$21,MATCH($C4,DATA!$A$1:$A$21,0),MATCH(EP$4,DATA!$A$1:$NJ$1,0)),"") -> DD | EQ6: =IFERROR(INDEX(DATA!$A$1:$NI$21,MATCH($C4,DATA!$A$1:$A$21,0),MATCH(EQ$4,DATA!$A$1:$NJ$1,0)),"") -> DD | ER6: =IFERROR(INDEX(DATA!$A$1:$NI$21,MATCH($C4,DATA!$A$1:$A$21,0),MATCH(ER$4,DATA!$A$1:$NJ$1,0)),"") -> DD | ES6: =IFERROR(INDEX(DATA!$A$1:$NI$21,MATCH($C4,DATA!$A$1:$A$21,0),MATCH(ES$4,DATA!$A$1:$NJ$1,0)),"") -> DD | ET6: =IFERROR(INDEX(DATA!$A$1:$NI$21,MATCH($C4,DATA!$A$1:$A$21,0),MATCH(ET$4,DATA!$A$1:$NJ$1,0)),"") -> DD | EU6: =IFERROR(INDEX(DATA!$A$1:$NI$21,MATCH($C4,DATA!$A$1:$A$21,0),MATCH(EU$4,DATA!$A$1:$NJ$1,0)),"") -> Zo | EV6: =IFERROR(INDEX(DATA!$A$1:$NI$21,MATCH($C4,DATA!$A$1:$A$21,0),MATCH(EV$4,DATA!$A$1:$NJ$1,0)),"") -> ND | EW6: =IFERROR(INDEX(DATA!$A$1:$NI$21,MATCH($C4,DATA!$A$1:$A$21,0),MATCH(EW$4,DATA!$A$1:$NJ$1,0)),"") -> ND | EX6: =IFERROR(INDEX(DATA!$A$1:$NI$21,MATCH($C4,DATA!$A$1:$A$21,0),MATCH(EX$4,DATA!$A$1:$NJ$1,0)),"") -> ND | EY6: =IFERROR(INDEX(DATA!$A$1:$NI$21,MATCH($C4,DATA!$A$1:$A$21,0),MATCH(EY$4,DATA!$A$1:$NJ$1,0)),"") -> ND | EZ6: =IFERROR(INDEX(DATA!$A$1:$NI$21,MATCH($C4,DATA!$A$1:$A$21,0),MATCH(EZ$4,DATA!$A$1:$NJ$1,0)),"") -> ND | FA6: =IFERROR(INDEX(DATA!$A$1:$NI$21,MATCH($C4,DATA!$A$1:$A$21,0),MATCH(FA$4,DATA!$A$1:$NJ$1,0)),"") -> Za | FB6: =IFERROR(INDEX(DATA!$A$1:$NI$21,MATCH($C4,DATA!$A$1:$A$21,0),MATCH(FB$4,DATA!$A$1:$NJ$1,0)),"") -> Zo | FC6: =IFERROR(INDEX(DATA!$A$1:$NI$21,MATCH($C4,DATA!$A$1:$A$21,0),MATCH(FC$4,DATA!$A$1:$NJ$1,0)),"") -> MD | FD6: =IFERROR(INDEX(DATA!$A$1:$NI$21,MATCH($C4,DATA!$A$1:$A$21,0),MATCH(FD$4,DATA!$A$1:$NJ$1,0)),"") -> MD | FE6: =IFERROR(INDEX(DATA!$A$1:$NI$21,MATCH($C4,DATA!$A$1:$A$21,0),MATCH(FE$4,DATA!$A$1:$NJ$1,0)),"") -> MD | FF6: =IFERROR(INDEX(DATA!$A$1:$NI$21,MATCH($C4,DATA!$A$1:$A$21,0),MATCH(FF$4,DATA!$A$1:$NJ$1,0)),"") -> MD | FG6: =IFERROR(INDEX(DATA!$A$1:$NI$21,MATCH($C4,DATA!$A$1:$A$21,0),MATCH(FG$4,DATA!$A$1:$NJ$1,0)),"") -> MD | FH6: =IFERROR(INDEX(DATA!$A$1:$NI$21,MATCH($C4,DATA!$A$1:$A$21,0),MATCH(FH$4,DATA!$A$1:$NJ$1,0)),"") -> Za | FI6: =IFERROR(INDEX(DATA!$A$1:$NI$21,MATCH($C4,DATA!$A$1:$A$21,0),MATCH(FI$4,DATA!$A$1:$NJ$1,0)),"") -> Zo | FJ6: =IFERROR(INDEX(DATA!$A$1:$NI$21,MATCH($C4,DATA!$A$1:$A$21,0),MATCH(FJ$4,DATA!$A$1:$NJ$1,0)),"") -> DD | FK6: =IFERROR(INDEX(DATA!$A$1:$NI$21,MATCH($C4,DATA!$A$1:$A$21,0),MATCH(FK$4,DATA!$A$1:$NJ$1,0)),"") -> DD | FL6: =IFERROR(INDEX(DATA!$A$1:$NI$21,MATCH($C4,DATA!$A$1:$A$21,0),MATCH(FL$4,DATA!$A$1:$NJ$1,0)),"") -> DD | FM6: =IFERROR(INDEX(DATA!$A$1:$NI$21,MATCH($C4,DATA!$A$1:$A$21,0),MATCH(FM$4,DATA!$A$1:$NJ$1,0)),"") -> DD | FN6: =IFERROR(INDEX(DATA!$A$1:$NI$21,MATCH($C4,DATA!$A$1:$A$21,0),MATCH(FN$4,DATA!$A$1:$NJ$1,0)),"") -> DD | FO6: =IFERROR(INDEX(DATA!$A$1:$NI$21,MATCH($C4,DATA!$A$1:$A$21,0),MATCH(FO$4,DATA!$A$1:$NJ$1,0)),"") -> DD | FP6: =IFERROR(INDEX(DATA!$A$1:$NI$21,MATCH($C4,DATA!$A$1:$A$21,0),MATCH(FP$4,DATA!$A$1:$NJ$1,0)),"") -> Zo | FQ6: =IFERROR(INDEX(DATA!$A$1:$NI$21,MATCH($C4,DATA!$A$1:$A$21,0),MATCH(FQ$4,DATA!$A$1:$NJ$1,0)),"") -> ND | FR6: =IFERROR(INDEX(DATA!$A$1:$NI$21,MATCH($C4,DATA!$A$1:$A$21,0),MATCH(FR$4,DATA!$A$1:$NJ$1,0)),"") -> ND | FS6: =IFERROR(INDEX(DATA!$A$1:$NI$21,MATCH($C4,DATA!$A$1:$A$21,0),MATCH(FS$4,DATA!$A$1:$NJ$1,0)),"") -> ND | FT6: =IFERROR(INDEX(DATA!$A$1:$NI$21,MATCH($C4,DATA!$A$1:$A$21,0),MATCH(FT$4,DATA!$A$1:$NJ$1,0)),"") -> ND | FU6: =IFERROR(INDEX(DATA!$A$1:$NI$21,MATCH($C4,DATA!$A$1:$A$21,0),MATCH(FU$4,DATA!$A$1:$NJ$1,0)),"") -> ND | FV6: =IFERROR(INDEX(DATA!$A$1:$NI$21,MATCH($C4,DATA!$A$1:$A$21,0),MATCH(FV$4,DATA!$A$1:$NJ$1,0)),"") -> Za | FW6: =IFERROR(INDEX(DATA!$A$1:$NI$21,MATCH($C4,DATA!$A$1:$A$21,0),MATCH(FW$4,DATA!$A$1:$NJ$1,0)),"") -> Zo | FX6: =IFERROR(INDEX(DATA!$A$1:$NI$21,MATCH($C4,DATA!$A$1:$A$21,0),MATCH(FX$4,DATA!$A$1:$NJ$1,0)),"") -> MD | FY6: =IFERROR(INDEX(DATA!$A$1:$NI$21,MATCH($C4,DATA!$A$1:$A$21,0),MATCH(FY$4,DATA!$A$1:$NJ$1,0)),"") -> MD | FZ6: =IFERROR(INDEX(DATA!$A$1:$NI$21,MATCH($C4,DATA!$A$1:$A$21,0),MATCH(FZ$4,DATA!$A$1:$NJ$1,0)),"") -> MD | GA6: =IFERROR(INDEX(DATA!$A$1:$NI$21,MATCH($C4,DATA!$A$1:$A$21,0),MATCH(GA$4,DATA!$A$1:$NJ$1,0)),"") -> MD | GB6: =IFERROR(INDEX(DATA!$A$1:$NI$21,MATCH($C4,DATA!$A$1:$A$21,0),MATCH(GB$4,DATA!$A$1:$NJ$1,0)),"") -> MD | GC6: =IFERROR(INDEX(DATA!$A$1:$NI$21,MATCH($C4,DATA!$A$1:$A$21,0),MATCH(GC$4,DATA!$A$1:$NJ$1,0)),"") -> Za | GD6: =IFERROR(INDEX(DATA!$A$1:$NI$21,MATCH($C4,DATA!$A$1:$A$21,0),MATCH(GD$4,DATA!$A$1:$NJ$1,0)),"") -> Zo | GE6: =IFERROR(INDEX(DATA!$A$1:$NI$21,MATCH($C4,DATA!$A$1:$A$21,0),MATCH(GE$4,DATA!$A$1:$NJ$1,0)),"") -> DD | GF6: =IFERROR(INDEX(DATA!$A$1:$NI$21,MATCH($C4,DATA!$A$1:$A$21,0),MATCH(GF$4,DATA!$A$1:$NJ$1,0)),"") -> DD | GG6: =IFERROR(INDEX(DATA!$A$1:$NI$21,MATCH($C4,DATA!$A$1:$A$21,0),MATCH(GG$4,DATA!$A$1:$NJ$1,0)),"") -> DD | GH6: =IFERROR(INDEX(DATA!$A$1:$NI$21,MATCH($C4,DATA!$A$1:$A$21,0),MATCH(GH$4,DATA!$A$1:$NJ$1,0)),"") -> DD | GI6: =IFERROR(INDEX(DATA!$A$1:$NI$21,MATCH($C4,DATA!$A$1:$A$21,0),MATCH(GI$4,DATA!$A$1:$NJ$1,0)),"") -> DD | GJ6: =IFERROR(INDEX(DATA!$A$1:$NI$21,MATCH($C4,DATA!$A$1:$A$21,0),MATCH(GJ$4,DATA!$A$1:$NJ$1,0)),"") -> DD | GK6: =IFERROR(INDEX(DATA!$A$1:$NI$21,MATCH($C4,DATA!$A$1:$A$21,0),MATCH(GK$4,DATA!$A$1:$NJ$1,0)),"") -> Zo | GL6: =IFERROR(INDEX(DATA!$A$1:$NI$21,MATCH($C4,DATA!$A$1:$A$21,0),MATCH(GL$4,DATA!$A$1:$NJ$1,0)),"") -> ND | GM6: =IFERROR(INDEX(DATA!$A$1:$NI$21,MATCH($C4,DATA!$A$1:$A$21,0),MATCH(GM$4,DATA!$A$1:$NJ$1,0)),"") -> ND | GN6: =IFERROR(INDEX(DATA!$A$1:$NI$21,MATCH($C4,DATA!$A$1:$A$21,0),MATCH(GN$4,DATA!$A$1:$NJ$1,0)),"") -> ND | GO6: =IFERROR(INDEX(DATA!$A$1:$NI$21,MATCH($C4,DATA!$A$1:$A$21,0),MATCH(GO$4,DATA!$A$1:$NJ$1,0)),"") -> ND | GP6: =IFERROR(INDEX(DATA!$A$1:$NI$21,MATCH($C4,DATA!$A$1:$A$21,0),MATCH(GP$4,DATA!$A$1:$NJ$1,0)),"") -> ND | GQ6: =IFERROR(INDEX(DATA!$A$1:$NI$21,MATCH($C4,DATA!$A$1:$A$21,0),MATCH(GQ$4,DATA!$A$1:$NJ$1,0)),"") -> Za | GR6: =IFERROR(INDEX(DATA!$A$1:$NI$21,MATCH($C4,DATA!$A$1:$A$21,0),MATCH(GR$4,DATA!$A$1:$NJ$1,0)),"") -> Zo | GS6: =IFERROR(INDEX(DATA!$A$1:$NI$21,MATCH($C4,DATA!$A$1:$A$21,0),MATCH(GS$4,DATA!$A$1:$NJ$1,0)),"") -> MD | GT6: =IFERROR(INDEX(DATA!$A$1:$NI$21,MATCH($C4,DATA!$A$1:$A$21,0),MATCH(GT$4,DATA!$A$1:$NJ$1,0)),"") -> MD | GU6: =IFERROR(INDEX(DATA!$A$1:$NI$21,MATCH($C4,DATA!$A$1:$A$21,0),MATCH(GU$4,DATA!$A$1:$NJ$1,0)),"") -> MD | GV6: =IFERROR(INDEX(DATA!$A$1:$NI$21,MATCH($C4,DATA!$A$1:$A$21,0),MATCH(GV$4,DATA!$A$1:$NJ$1,0)),"") -> MD | GW6: =IFERROR(INDEX(DATA!$A$1:$NI$21,MATCH($C4,DATA!$A$1:$A$21,0),MATCH(GW$4,DATA!$A$1:$NJ$1,0)),"") -> MD | GX6: =IFERROR(INDEX(DATA!$A$1:$NI$21,MATCH($C4,DATA!$A$1:$A$21,0),MATCH(GX$4,DATA!$A$1:$NJ$1,0)),"") -> Za | GY6: =IFERROR(INDEX(DATA!$A$1:$NI$21,MATCH($C4,DATA!$A$1:$A$21,0),MATCH(GY$4,DATA!$A$1:$NJ$1,0)),"") -> Zo | GZ6: =IFERROR(INDEX(DATA!$A$1:$NI$21,MATCH($C4,DATA!$A$1:$A$21,0),MATCH(GZ$4,DATA!$A$1:$NJ$1,0)),"") -> DD | HA6: =IFERROR(INDEX(DATA!$A$1:$NI$21,MATCH($C4,DATA!$A$1:$A$21,0),MATCH(HA$4,DATA!$A$1:$NJ$1,0)),"") -> DD | HB6: =IFERROR(INDEX(DATA!$A$1:$NI$21,MATCH($C4,DATA!$A$1:$A$21,0),MATCH(HB$4,DATA!$A$1:$NJ$1,0)),"") -> DD | HC6: =IFERROR(INDEX(DATA!$A$1:$NI$21,MATCH($C4,DATA!$A$1:$A$21,0),MATCH(HC$4,DATA!$A$1:$NJ$1,0)),"") -> DD | HD6: =IFERROR(INDEX(DATA!$A$1:$NI$21,MATCH($C4,DATA!$A$1:$A$21,0),MATCH(HD$4,DATA!$A$1:$NJ$1,0)),"") -> DD | HE6: =IFERROR(INDEX(DATA!$A$1:$NI$21,MATCH($C4,DATA!$A$1:$A$21,0),MATCH(HE$4,DATA!$A$1:$NJ$1,0)),"") -> DD | HF6: =IFERROR(INDEX(DATA!$A$1:$NI$21,MATCH($C4,DATA!$A$1:$A$21,0),MATCH(HF$4,DATA!$A$1:$NJ$1,0)),"") -> Zo | HG6: =IFERROR(INDEX(DATA!$A$1:$NI$21,MATCH($C4,DATA!$A$1:$A$21,0),MATCH(HG$4,DATA!$A$1:$NJ$1,0)),"") -> ND | HH6: =IFERROR(INDEX(DATA!$A$1:$NI$21,MATCH($C4,DATA!$A$1:$A$21,0),MATCH(HH$4,DATA!$A$1:$NJ$1,0)),"") -> ND | HI6: =IFERROR(INDEX(DATA!$A$1:$NI$21,MATCH($C4,DATA!$A$1:$A$21,0),MATCH(HI$4,DATA!$A$1:$NJ$1,0)),"") -> ND | HJ6: =IFERROR(INDEX(DATA!$A$1:$NI$21,MATCH($C4,DATA!$A$1:$A$21,0),MATCH(HJ$4,DATA!$A$1:$NJ$1,0)),"") -> ND | HK6: =IFERROR(INDEX(DATA!$A$1:$NI$21,MATCH($C4,DATA!$A$1:$A$21,0),MATCH(HK$4,DATA!$A$1:$NJ$1,0)),"") -> ND | HL6: =IFERROR(INDEX(DATA!$A$1:$NI$21,MATCH($C4,DATA!$A$1:$A$21,0),MATCH(HL$4,DATA!$A$1:$NJ$1,0)),"") -> Za | HM6: =IFERROR(INDEX(DATA!$A$1:$NI$21,MATCH($C4,DATA!$A$1:$A$21,0),MATCH(HM$4,DATA!$A$1:$NJ$1,0)),"") -> Zo | HN6: =IFERROR(INDEX(DATA!$A$1:$NI$21,MATCH($C4,DATA!$A$1:$A$21,0),MATCH(HN$4,DATA!$A$1:$NJ$1,0)),"") -> MD | HO6: =IFERROR(INDEX(DATA!$A$1:$NI$21,MATCH($C4,DATA!$A$1:$A$21,0),MATCH(HO$4,DATA!$A$1:$NJ$1,0)),"") -> MD | HP6: =IFERROR(INDEX(DATA!$A$1:$NI$21,MATCH($C4,DATA!$A$1:$A$21,0),MATCH(HP$4,DATA!$A$1:$NJ$1,0)),"") -> MD | HQ6: =IFERROR(INDEX(DATA!$A$1:$NI$21,MATCH($C4,DATA!$A$1:$A$21,0),MATCH(HQ$4,DATA!$A$1:$NJ$1,0)),"") -> MD | HR6: =IFERROR(INDEX(DATA!$A$1:$NI$21,MATCH($C4,DATA!$A$1:$A$21,0),MATCH(HR$4,DATA!$A$1:$NJ$1,0)),"") -> MD | HS6: =IFERROR(INDEX(DATA!$A$1:$NI$21,MATCH($C4,DATA!$A$1:$A$21,0),MATCH(HS$4,DATA!$A$1:$NJ$1,0)),"") -> Za | HT6: =IFERROR(INDEX(DATA!$A$1:$NI$21,MATCH($C4,DATA!$A$1:$A$21,0),MATCH(HT$4,DATA!$A$1:$NJ$1,0)),"") -> Zo | HU6: =IFERROR(INDEX(DATA!$A$1:$NI$21,MATCH($C4,DATA!$A$1:$A$21,0),MATCH(HU$4,DATA!$A$1:$NJ$1,0)),"") -> DD | HV6: =IFERROR(INDEX(DATA!$A$1:$NI$21,MATCH($C4,DATA!$A$1:$A$21,0),MATCH(HV$4,DATA!$A$1:$NJ$1,0)),"") -> DD | HW6: =IFERROR(INDEX(DATA!$A$1:$NI$21,MATCH($C4,DATA!$A$1:$A$21,0),MATCH(HW$4,DATA!$A$1:$NJ$1,0)),"") -> DD | HX6: =IFERROR(INDEX(DATA!$A$1:$NI$21,MATCH($C4,DATA!$A$1:$A$21,0),MATCH(HX$4,DATA!$A$1:$NJ$1,0)),"") -> DD | HY6: =IFERROR(INDEX(DATA!$A$1:$NI$21,MATCH($C4,DATA!$A$1:$A$21,0),MATCH(HY$4,DATA!$A$1:$NJ$1,0)),"") -> DD | HZ6: =IFERROR(INDEX(DATA!$A$1:$NI$21,MATCH($C4,DATA!$A$1:$A$21,0),MATCH(HZ$4,DATA!$A$1:$NJ$1,0)),"") -> DD | IA6: =IFERROR(INDEX(DATA!$A$1:$NI$21,MATCH($C4,DATA!$A$1:$A$21,0),MATCH(IA$4,DATA!$A$1:$NJ$1,0)),"") -> Zo | IB6: =IFERROR(INDEX(DATA!$A$1:$NI$21,MATCH($C4,DATA!$A$1:$A$21,0),MATCH(IB$4,DATA!$A$1:$NJ$1,0)),"") -> ND | IC6: =IFERROR(INDEX(DATA!$A$1:$NI$21,MATCH($C4,DATA!$A$1:$A$21,0),MATCH(IC$4,DATA!$A$1:$NJ$1,0)),"") -> ND | ID6: =IFERROR(INDEX(DATA!$A$1:$NI$21,MATCH($C4,DATA!$A$1:$A$21,0),MATCH(ID$4,DATA!$A$1:$NJ$1,0)),"") -> ND | IE6: =IFERROR(INDEX(DATA!$A$1:$NI$21,MATCH($C4,DATA!$A$1:$A$21,0),MATCH(IE$4,DATA!$A$1:$NJ$1,0)),"") -> ND | IF6: =IFERROR(INDEX(DATA!$A$1:$NI$21,MATCH($C4,DATA!$A$1:$A$21,0),MATCH(IF$4,DATA!$A$1:$NJ$1,0)),"") -> ND | IG6: =IFERROR(INDEX(DATA!$A$1:$NI$21,MATCH($C4,DATA!$A$1:$A$21,0),MATCH(IG$4,DATA!$A$1:$NJ$1,0)),"") -> Za | IH6: =IFERROR(INDEX(DATA!$A$1:$NI$21,MATCH($C4,DATA!$A$1:$A$21,0),MATCH(IH$4,DATA!$A$1:$NJ$1,0)),"") -> Zo | II6: =IFERROR(INDEX(DATA!$A$1:$NI$21,MATCH($C4,DATA!$A$1:$A$21,0),MATCH(II$4,DATA!$A$1:$NJ$1,0)),"") -> MD | IJ6: =IFERROR(INDEX(DATA!$A$1:$NI$21,MATCH($C4,DATA!$A$1:$A$21,0),MATCH(IJ$4,DATA!$A$1:$NJ$1,0)),"") -> MD | IK6: =IFERROR(INDEX(DATA!$A$1:$NI$21,MATCH($C4,DATA!$A$1:$A$21,0),MATCH(IK$4,DATA!$A$1:$NJ$1,0)),"") -> MD | IL6: =IFERROR(INDEX(DATA!$A$1:$NI$21,MATCH($C4,DATA!$A$1:$A$21,0),MATCH(IL$4,DATA!$A$1:$NJ$1,0)),"") -> MD | IM6: =IFERROR(INDEX(DATA!$A$1:$NI$21,MATCH($C4,DATA!$A$1:$A$21,0),MATCH(IM$4,DATA!$A$1:$NJ$1,0)),"") -> MD | IN6: =IFERROR(INDEX(DATA!$A$1:$NI$21,MATCH($C4,DATA!$A$1:$A$21,0),MATCH(IN$4,DATA!$A$1:$NJ$1,0)),"") -> Za | IO6: =IFERROR(INDEX(DATA!$A$1:$NI$21,MATCH($C4,DATA!$A$1:$A$21,0),MATCH(IO$4,DATA!$A$1:$NJ$1,0)),"") -> Zo | IP6: =IFERROR(INDEX(DATA!$A$1:$NI$21,MATCH($C4,DATA!$A$1:$A$21,0),MATCH(IP$4,DATA!$A$1:$NJ$1,0)),"") -> DD | IQ6: =IFERROR(INDEX(DATA!$A$1:$NI$21,MATCH($C4,DATA!$A$1:$A$21,0),MATCH(IQ$4,DATA!$A$1:$NJ$1,0)),"") -> DD | IR6: =IFERROR(INDEX(DATA!$A$1:$NI$21,MATCH($C4,DATA!$A$1:$A$21,0),MATCH(IR$4,DATA!$A$1:$NJ$1,0)),"") -> DD | IS6: =IFERROR(INDEX(DATA!$A$1:$NI$21,MATCH($C4,DATA!$A$1:$A$21,0),MATCH(IS$4,DATA!$A$1:$NJ$1,0)),"") -> DD | IT6: =IFERROR(INDEX(DATA!$A$1:$NI$21,MATCH($C4,DATA!$A$1:$A$21,0),MATCH(IT$4,DATA!$A$1:$NJ$1,0)),"") -> DD | IU6: =IFERROR(INDEX(DATA!$A$1:$NI$21,MATCH($C4,DATA!$A$1:$A$21,0),MATCH(IU$4,DATA!$A$1:$NJ$1,0)),"") -> DD | IV6: =IFERROR(INDEX(DATA!$A$1:$NI$21,MATCH($C4,DATA!$A$1:$A$21,0),MATCH(IV$4,DATA!$A$1:$NJ$1,0)),"") -> Zo | IW6: =IFERROR(INDEX(DATA!$A$1:$NI$21,MATCH($C4,DATA!$A$1:$A$21,0),MATCH(IW$4,DATA!$A$1:$NJ$1,0)),"") -> ND | IX6: =IFERROR(INDEX(DATA!$A$1:$NI$21,MATCH($C4,DATA!$A$1:$A$21,0),MATCH(IX$4,DATA!$A$1:$NJ$1,0)),"") -> ND | IY6: =IFERROR(INDEX(DATA!$A$1:$NI$21,MATCH($C4,DATA!$A$1:$A$21,0),MATCH(IY$4,DATA!$A$1:$NJ$1,0)),"") -> ND | IZ6: =IFERROR(INDEX(DATA!$A$1:$NI$21,MATCH($C4,DATA!$A$1:$A$21,0),MATCH(IZ$4,DATA!$A$1:$NJ$1,0)),"") -> ND | JA6: =IFERROR(INDEX(DATA!$A$1:$NI$21,MATCH($C4,DATA!$A$1:$A$21,0),MATCH(JA$4,DATA!$A$1:$NJ$1,0)),"") -> ND | JB6: =IFERROR(INDEX(DATA!$A$1:$NI$21,MATCH($C4,DATA!$A$1:$A$21,0),MATCH(JB$4,DATA!$A$1:$NJ$1,0)),"") -> Za | JC6: =IFERROR(INDEX(DATA!$A$1:$NI$21,MATCH($C4,DATA!$A$1:$A$21,0),MATCH(JC$4,DATA!$A$1:$NJ$1,0)),"") -> Zo | JD6: =IFERROR(INDEX(DATA!$A$1:$NI$21,MATCH($C4,DATA!$A$1:$A$21,0),MATCH(JD$4,DATA!$A$1:$NJ$1,0)),"") -> MD | JE6: =IFERROR(INDEX(DATA!$A$1:$NI$21,MATCH($C4,DATA!$A$1:$A$21,0),MATCH(JE$4,DATA!$A$1:$NJ$1,0)),"") -> MD | JF6: =IFERROR(INDEX(DATA!$A$1:$NI$21,MATCH($C4,DATA!$A$1:$A$21,0),MATCH(JF$4,DATA!$A$1:$NJ$1,0)),"") -> MD | JG6: =IFERROR(INDEX(DATA!$A$1:$NI$21,MATCH($C4,DATA!$A$1:$A$21,0),MATCH(JG$4,DATA!$A$1:$NJ$1,0)),"") -> MD | JH6: =IFERROR(INDEX(DATA!$A$1:$NI$21,MATCH($C4,DATA!$A$1:$A$21,0),MATCH(JH$4,DATA!$A$1:$NJ$1,0)),"") -> MD | JI6: =IFERROR(INDEX(DATA!$A$1:$NI$21,MATCH($C4,DATA!$A$1:$A$21,0),MATCH(JI$4,DATA!$A$1:$NJ$1,0)),"") -> Za | JJ6: =IFERROR(INDEX(DATA!$A$1:$NI$21,MATCH($C4,DATA!$A$1:$A$21,0),MATCH(JJ$4,DATA!$A$1:$NJ$1,0)),"") -> Zo | JK6: =IFERROR(INDEX(DATA!$A$1:$NI$21,MATCH($C4,DATA!$A$1:$A$21,0),MATCH(JK$4,DATA!$A$1:$NJ$1,0)),"") -> DD | JL6: =IFERROR(INDEX(DATA!$A$1:$NI$21,MATCH($C4,DATA!$A$1:$A$21,0),MATCH(JL$4,DATA!$A$1:$NJ$1,0)),"") -> DD | JM6: =IFERROR(INDEX(DATA!$A$1:$NI$21,MATCH($C4,DATA!$A$1:$A$21,0),MATCH(JM$4,DATA!$A$1:$NJ$1,0)),"") -> DD | JN6: =IFERROR(INDEX(DATA!$A$1:$NI$21,MATCH($C4,DATA!$A$1:$A$21,0),MATCH(JN$4,DATA!$A$1:$NJ$1,0)),"") -> DD | JO6: =IFERROR(INDEX(DATA!$A$1:$NI$21,MATCH($C4,DATA!$A$1:$A$21,0),MATCH(JO$4,DATA!$A$1:$NJ$1,0)),"") -> DD | JP6: =IFERROR(INDEX(DATA!$A$1:$NI$21,MATCH($C4,DATA!$A$1:$A$21,0),MATCH(JP$4,DATA!$A$1:$NJ$1,0)),"") -> DD | JQ6: =IFERROR(INDEX(DATA!$A$1:$NI$21,MATCH($C4,DATA!$A$1:$A$21,0),MATCH(JQ$4,DATA!$A$1:$NJ$1,0)),"") -> Zo | JR6: =IFERROR(INDEX(DATA!$A$1:$NI$21,MATCH($C4,DATA!$A$1:$A$21,0),MATCH(JR$4,DATA!$A$1:$NJ$1,0)),"") -> ND | JS6: =IFERROR(INDEX(DATA!$A$1:$NI$21,MATCH($C4,DATA!$A$1:$A$21,0),MATCH(JS$4,DATA!$A$1:$NJ$1,0)),"") -> ND | JT6: =IFERROR(INDEX(DATA!$A$1:$NI$21,MATCH($C4,DATA!$A$1:$A$21,0),MATCH(JT$4,DATA!$A$1:$NJ$1,0)),"") -> ND | JU6: =IFERROR(INDEX(DATA!$A$1:$NI$21,MATCH($C4,DATA!$A$1:$A$21,0),MATCH(JU$4,DATA!$A$1:$NJ$1,0)),"") -> ND | JV6: =IFERROR(INDEX(DATA!$A$1:$NI$21,MATCH($C4,DATA!$A$1:$A$21,0),MATCH(JV$4,DATA!$A$1:$NJ$1,0)),"") -> ND | JW6: =IFERROR(INDEX(DATA!$A$1:$NI$21,MATCH($C4,DATA!$A$1:$A$21,0),MATCH(JW$4,DATA!$A$1:$NJ$1,0)),"") -> Za | JX6: =IFERROR(INDEX(DATA!$A$1:$NI$21,MATCH($C4,DATA!$A$1:$A$21,0),MATCH(JX$4,DATA!$A$1:$NJ$1,0)),"") -> Zo | JY6: =IFERROR(INDEX(DATA!$A$1:$NI$21,MATCH($C4,DATA!$A$1:$A$21,0),MATCH(JY$4,DATA!$A$1:$NJ$1,0)),"") -> MD | JZ6: =IFERROR(INDEX(DATA!$A$1:$NI$21,MATCH($C4,DATA!$A$1:$A$21,0),MATCH(JZ$4,DATA!$A$1:$NJ$1,0)),"") -> MD | KA6: =IFERROR(INDEX(DATA!$A$1:$NI$21,MATCH($C4,DATA!$A$1:$A$21,0),MATCH(KA$4,DATA!$A$1:$NJ$1,0)),"") -> MD | KB6: =IFERROR(INDEX(DATA!$A$1:$NI$21,MATCH($C4,DATA!$A$1:$A$21,0),MATCH(KB$4,DATA!$A$1:$NJ$1,0)),"") -> MD | KC6: =IFERROR(INDEX(DATA!$A$1:$NI$21,MATCH($C4,DATA!$A$1:$A$21,0),MATCH(KC$4,DATA!$A$1:$NJ$1,0)),"") -> MD | KD6: =IFERROR(INDEX(DATA!$A$1:$NI$21,MATCH($C4,DATA!$A$1:$A$21,0),MATCH(KD$4,DATA!$A$1:$NJ$1,0)),"") -> Za | KE6: =IFERROR(INDEX(DATA!$A$1:$NI$21,MATCH($C4,DATA!$A$1:$A$21,0),MATCH(KE$4,DATA!$A$1:$NJ$1,0)),"") -> Zo | KF6: =IFERROR(INDEX(DATA!$A$1:$NI$21,MATCH($C4,DATA!$A$1:$A$21,0),MATCH(KF$4,DATA!$A$1:$NJ$1,0)),"") -> DD | KG6: =IFERROR(INDEX(DATA!$A$1:$NI$21,MATCH($C4,DATA!$A$1:$A$21,0),MATCH(KG$4,DATA!$A$1:$NJ$1,0)),"") -> DD | KH6: =IFERROR(INDEX(DATA!$A$1:$NI$21,MATCH($C4,DATA!$A$1:$A$21,0),MATCH(KH$4,DATA!$A$1:$NJ$1,0)),"") -> DD | KI6: =IFERROR(INDEX(DATA!$A$1:$NI$21,MATCH($C4,DATA!$A$1:$A$21,0),MATCH(KI$4,DATA!$A$1:$NJ$1,0)),"") -> DD | KJ6: =IFERROR(INDEX(DATA!$A$1:$NI$21,MATCH($C4,DATA!$A$1:$A$21,0),MATCH(KJ$4,DATA!$A$1:$NJ$1,0)),"") -> DD | KK6: =IFERROR(INDEX(DATA!$A$1:$NI$21,MATCH($C4,DATA!$A$1:$A$21,0),MATCH(KK$4,DATA!$A$1:$NJ$1,0)),"") -> DD | KL6: =IFERROR(INDEX(DATA!$A$1:$NI$21,MATCH($C4,DATA!$A$1:$A$21,0),MATCH(KL$4,DATA!$A$1:$NJ$1,0)),"") -> Zo | KM6: =IFERROR(INDEX(DATA!$A$1:$NI$21,MATCH($C4,DATA!$A$1:$A$21,0),MATCH(KM$4,DATA!$A$1:$NJ$1,0)),"") -> ND | KN6: =IFERROR(INDEX(DATA!$A$1:$NI$21,MATCH($C4,DATA!$A$1:$A$21,0),MATCH(KN$4,DATA!$A$1:$NJ$1,0)),"") -> ND | KO6: =IFERROR(INDEX(DATA!$A$1:$NI$21,MATCH($C4,DATA!$A$1:$A$21,0),MATCH(KO$4,DATA!$A$1:$NJ$1,0)),"") -> ND | KP6: =IFERROR(INDEX(DATA!$A$1:$NI$21,MATCH($C4,DATA!$A$1:$A$21,0),MATCH(KP$4,DATA!$A$1:$NJ$1,0)),"") -> ND | KQ6: =IFERROR(INDEX(DATA!$A$1:$NI$21,MATCH($C4,DATA!$A$1:$A$21,0),MATCH(KQ$4,DATA!$A$1:$NJ$1,0)),"") -> ND | KR6: =IFERROR(INDEX(DATA!$A$1:$NI$21,MATCH($C4,DATA!$A$1:$A$21,0),MATCH(KR$4,DATA!$A$1:$NJ$1,0)),"") -> Za | KS6: =IFERROR(INDEX(DATA!$A$1:$NI$21,MATCH($C4,DATA!$A$1:$A$21,0),MATCH(KS$4,DATA!$A$1:$NJ$1,0)),"") -> Zo | KT6: =IFERROR(INDEX(DATA!$A$1:$NI$21,MATCH($C4,DATA!$A$1:$A$21,0),MATCH(KT$4,DATA!$A$1:$NJ$1,0)),"") -> MD | KU6: =IFERROR(INDEX(DATA!$A$1:$NI$21,MATCH($C4,DATA!$A$1:$A$21,0),MATCH(KU$4,DATA!$A$1:$NJ$1,0)),"") -> MD | KV6: =IFERROR(INDEX(DATA!$A$1:$NI$21,MATCH($C4,DATA!$A$1:$A$21,0),MATCH(KV$4,DATA!$A$1:$NJ$1,0)),"") -> MD | KW6: =IFERROR(INDEX(DATA!$A$1:$NI$21,MATCH($C4,DATA!$A$1:$A$21,0),MATCH(KW$4,DATA!$A$1:$NJ$1,0)),"") -> MD | KX6: =IFERROR(INDEX(DATA!$A$1:$NI$21,MATCH($C4,DATA!$A$1:$A$21,0),MATCH(KX$4,DATA!$A$1:$NJ$1,0)),"") -> MD | KY6: =IFERROR(INDEX(DATA!$A$1:$NI$21,MATCH($C4,DATA!$A$1:$A$21,0),MATCH(KY$4,DATA!$A$1:$NJ$1,0)),"") -> Za | KZ6: =IFERROR(INDEX(DATA!$A$1:$NI$21,MATCH($C4,DATA!$A$1:$A$21,0),MATCH(KZ$4,DATA!$A$1:$NJ$1,0)),"") -> Zo | LA6: =IFERROR(INDEX(DATA!$A$1:$NI$21,MATCH($C4,DATA!$A$1:$A$21,0),MATCH(LA$4,DATA!$A$1:$NJ$1,0)),"") -> DD | LB6: =IFERROR(INDEX(DATA!$A$1:$NI$21,MATCH($C4,DATA!$A$1:$A$21,0),MATCH(LB$4,DATA!$A$1:$NJ$1,0)),"") -> DD | LC6: =IFERROR(INDEX(DATA!$A$1:$NI$21,MATCH($C4,DATA!$A$1:$A$21,0),MATCH(LC$4,DATA!$A$1:$NJ$1,0)),"") -> DD | LD6: =IFERROR(INDEX(DATA!$A$1:$NI$21,MATCH($C4,DATA!$A$1:$A$21,0),MATCH(LD$4,DATA!$A$1:$NJ$1,0)),"") -> DD | LE6: =IFERROR(INDEX(DATA!$A$1:$NI$21,MATCH($C4,DATA!$A$1:$A$21,0),MATCH(LE$4,DATA!$A$1:$NJ$1,0)),"") -> DD | LF6: =IFERROR(INDEX(DATA!$A$1:$NI$21,MATCH($C4,DATA!$A$1:$A$21,0),MATCH(LF$4,DATA!$A$1:$NJ$1,0)),"") -> DD | LG6: =IFERROR(INDEX(DATA!$A$1:$NI$21,MATCH($C4,DATA!$A$1:$A$21,0),MATCH(LG$4,DATA!$A$1:$NJ$1,0)),"") -> Zo | LH6: =IFERROR(INDEX(DATA!$A$1:$NI$21,MATCH($C4,DATA!$A$1:$A$21,0),MATCH(LH$4,DATA!$A$1:$NJ$1,0)),"") -> ND | LI6: =IFERROR(INDEX(DATA!$A$1:$NI$21,MATCH($C4,DATA!$A$1:$A$21,0),MATCH(LI$4,DATA!$A$1:$NJ$1,0)),"") -> ND | LJ6: =IFERROR(INDEX(DATA!$A$1:$NI$21,MATCH($C4,DATA!$A$1:$A$21,0),MATCH(LJ$4,DATA!$A$1:$NJ$1,0)),"") -> ND | LK6: =IFERROR(INDEX(DATA!$A$1:$NI$21,MATCH($C4,DATA!$A$1:$A$21,0),MATCH(LK$4,DATA!$A$1:$NJ$1,0)),"") -> ND | LL6: =IFERROR(INDEX(DATA!$A$1:$NI$21,MATCH($C4,DATA!$A$1:$A$21,0),MATCH(LL$4,DATA!$A$1:$NJ$1,0)),"") -> ND | LM6: =IFERROR(INDEX(DATA!$A$1:$NI$21,MATCH($C4,DATA!$A$1:$A$21,0),MATCH(LM$4,DATA!$A$1:$NJ$1,0)),"") -> Za | LN6: =IFERROR(INDEX(DATA!$A$1:$NI$21,MATCH($C4,DATA!$A$1:$A$21,0),MATCH(LN$4,DATA!$A$1:$NJ$1,0)),"") -> Zo | LO6: =IFERROR(INDEX(DATA!$A$1:$NI$21,MATCH($C4,DATA!$A$1:$A$21,0),MATCH(LO$4,DATA!$A$1:$NJ$1,0)),"") -> MD | LP6: =IFERROR(INDEX(DATA!$A$1:$NI$21,MATCH($C4,DATA!$A$1:$A$21,0),MATCH(LP$4,DATA!$A$1:$NJ$1,0)),"") -> MD | LQ6: =IFERROR(INDEX(DATA!$A$1:$NI$21,MATCH($C4,DATA!$A$1:$A$21,0),MATCH(LQ$4,DATA!$A$1:$NJ$1,0)),"") -> MD | LR6: =IFERROR(INDEX(DATA!$A$1:$NI$21,MATCH($C4,DATA!$A$1:$A$21,0),MATCH(LR$4,DATA!$A$1:$NJ$1,0)),"") -> MD | LS6: =IFERROR(INDEX(DATA!$A$1:$NI$21,MATCH($C4,DATA!$A$1:$A$21,0),MATCH(LS$4,DATA!$A$1:$NJ$1,0)),"") -> MD | LT6: =IFERROR(INDEX(DATA!$A$1:$NI$21,MATCH($C4,DATA!$A$1:$A$21,0),MATCH(LT$4,DATA!$A$1:$NJ$1,0)),"") -> Za | LU6: =IFERROR(INDEX(DATA!$A$1:$NI$21,MATCH($C4,DATA!$A$1:$A$21,0),MATCH(LU$4,DATA!$A$1:$NJ$1,0)),"") -> Zo | LV6: =IFERROR(INDEX(DATA!$A$1:$NI$21,MATCH($C4,DATA!$A$1:$A$21,0),MATCH(LV$4,DATA!$A$1:$NJ$1,0)),"") -> DD | LW6: =IFERROR(INDEX(DATA!$A$1:$NI$21,MATCH($C4,DATA!$A$1:$A$21,0),MATCH(LW$4,DATA!$A$1:$NJ$1,0)),"") -> DD | LX6: =IFERROR(INDEX(DATA!$A$1:$NI$21,MATCH($C4,DATA!$A$1:$A$21,0),MATCH(LX$4,DATA!$A$1:$NJ$1,0)),"") -> DD | LY6: =IFERROR(INDEX(DATA!$A$1:$NI$21,MATCH($C4,DATA!$A$1:$A$21,0),MATCH(LY$4,DATA!$A$1:$NJ$1,0)),"") -> DD | LZ6: =IFERROR(INDEX(DATA!$A$1:$NI$21,MATCH($C4,DATA!$A$1:$A$21,0),MATCH(LZ$4,DATA!$A$1:$NJ$1,0)),"") -> DD | MA6: =IFERROR(INDEX(DATA!$A$1:$NI$21,MATCH($C4,DATA!$A$1:$A$21,0),MATCH(MA$4,DATA!$A$1:$NJ$1,0)),"") -> DD | MB6: =IFERROR(INDEX(DATA!$A$1:$NI$21,MATCH($C4,DATA!$A$1:$A$21,0),MATCH(MB$4,DATA!$A$1:$NJ$1,0)),"") -> Zo | MC6: =IFERROR(INDEX(DATA!$A$1:$NI$21,MATCH($C4,DATA!$A$1:$A$21,0),MATCH(MC$4,DATA!$A$1:$NJ$1,0)),"") -> ND | MD6: =IFERROR(INDEX(DATA!$A$1:$NI$21,MATCH($C4,DATA!$A$1:$A$21,0),MATCH(MD$4,DATA!$A$1:$NJ$1,0)),"") -> ND | ME6: =IFERROR(INDEX(DATA!$A$1:$NI$21,MATCH($C4,DATA!$A$1:$A$21,0),MATCH(ME$4,DATA!$A$1:$NJ$1,0)),"") -> ND | MF6: =IFERROR(INDEX(DATA!$A$1:$NI$21,MATCH($C4,DATA!$A$1:$A$21,0),MATCH(MF$4,DATA!$A$1:$NJ$1,0)),"") -> ND | MG6: =IFERROR(INDEX(DATA!$A$1:$NI$21,MATCH($C4,DATA!$A$1:$A$21,0),MATCH(MG$4,DATA!$A$1:$NJ$1,0)),"") -> ND | MH6: =IFERROR(INDEX(DATA!$A$1:$NI$21,MATCH($C4,DATA!$A$1:$A$21,0),MATCH(MH$4,DATA!$A$1:$NJ$1,0)),"") -> Za | MI6: =IFERROR(INDEX(DATA!$A$1:$NI$21,MATCH($C4,DATA!$A$1:$A$21,0),MATCH(MI$4,DATA!$A$1:$NJ$1,0)),"") -> Zo | MJ6: =IFERROR(INDEX(DATA!$A$1:$NI$21,MATCH($C4,DATA!$A$1:$A$21,0),MATCH(MJ$4,DATA!$A$1:$NJ$1,0)),"") -> MD | MK6: =IFERROR(INDEX(DATA!$A$1:$NI$21,MATCH($C4,DATA!$A$1:$A$21,0),MATCH(MK$4,DATA!$A$1:$NJ$1,0)),"") -> MD | ML6: =IFERROR(INDEX(DATA!$A$1:$NI$21,MATCH($C4,DATA!$A$1:$A$21,0),MATCH(ML$4,DATA!$A$1:$NJ$1,0)),"") -> MD | MM6: =IFERROR(INDEX(DATA!$A$1:$NI$21,MATCH($C4,DATA!$A$1:$A$21,0),MATCH(MM$4,DATA!$A$1:$NJ$1,0)),"") -> MD | MN6: =IFERROR(INDEX(DATA!$A$1:$NI$21,MATCH($C4,DATA!$A$1:$A$21,0),MATCH(MN$4,DATA!$A$1:$NJ$1,0)),"") -> MD | MO6: =IFERROR(INDEX(DATA!$A$1:$NI$21,MATCH($C4,DATA!$A$1:$A$21,0),MATCH(MO$4,DATA!$A$1:$NJ$1,0)),"") -> Za | MP6: =IFERROR(INDEX(DATA!$A$1:$NI$21,MATCH($C4,DATA!$A$1:$A$21,0),MATCH(MP$4,DATA!$A$1:$NJ$1,0)),"") -> Zo | MQ6: =IFERROR(INDEX(DATA!$A$1:$NI$21,MATCH($C4,DATA!$A$1:$A$21,0),MATCH(MQ$4,DATA!$A$1:$NJ$1,0)),"") -> DD | MR6: =IFERROR(INDEX(DATA!$A$1:$NI$21,MATCH($C4,DATA!$A$1:$A$21,0),MATCH(MR$4,DATA!$A$1:$NJ$1,0)),"") -> DD | MS6: =IFERROR(INDEX(DATA!$A$1:$NI$21,MATCH($C4,DATA!$A$1:$A$21,0),MATCH(MS$4,DATA!$A$1:$NJ$1,0)),"") -> DD | MT6: =IFERROR(INDEX(DATA!$A$1:$NI$21,MATCH($C4,DATA!$A$1:$A$21,0),MATCH(MT$4,DATA!$A$1:$NJ$1,0)),"") -> DD | MU6: =IFERROR(INDEX(DATA!$A$1:$NI$21,MATCH($C4,DATA!$A$1:$A$21,0),MATCH(MU$4,DATA!$A$1:$NJ$1,0)),"") -> DD | MV6: =IFERROR(INDEX(DATA!$A$1:$NI$21,MATCH($C4,DATA!$A$1:$A$21,0),MATCH(MV$4,DATA!$A$1:$NJ$1,0)),"") -> DD | MW6: =IFERROR(INDEX(DATA!$A$1:$NI$21,MATCH($C4,DATA!$A$1:$A$21,0),MATCH(MW$4,DATA!$A$1:$NJ$1,0)),"") -> Zo | MX6: =IFERROR(INDEX(DATA!$A$1:$NI$21,MATCH($C4,DATA!$A$1:$A$21,0),MATCH(MX$4,DATA!$A$1:$NJ$1,0)),"") -> ND | MY6: =IFERROR(INDEX(DATA!$A$1:$NI$21,MATCH($C4,DATA!$A$1:$A$21,0),MATCH(MY$4,DATA!$A$1:$NJ$1,0)),"") -> ND | MZ6: =IFERROR(INDEX(DATA!$A$1:$NI$21,MATCH($C4,DATA!$A$1:$A$21,0),MATCH(MZ$4,DATA!$A$1:$NJ$1,0)),"") -> ND | NA6: =IFERROR(INDEX(DATA!$A$1:$NI$21,MATCH($C4,DATA!$A$1:$A$21,0),MATCH(NA$4,DATA!$A$1:$NJ$1,0)),"") -> ND | NB6: =IFERROR(INDEX(DATA!$A$1:$NI$21,MATCH($C4,DATA!$A$1:$A$21,0),MATCH(NB$4,DATA!$A$1:$NJ$1,0)),"") -> ND | NC6: =IFERROR(INDEX(DATA!$A$1:$NI$21,MATCH($C4,DATA!$A$1:$A$21,0),MATCH(NC$4,DATA!$A$1:$NJ$1,0)),"") -> Za | ND6: =IFERROR(INDEX(DATA!$A$1:$NI$21,MATCH($C4,DATA!$A$1:$A$21,0),MATCH(ND$4,DATA!$A$1:$NJ$1,0)),"") -> Zo
A7: 1 | B7: People (P) | C7: Status: Ready | E7: =COUNTIF(E10:J10,">0") -> 0 | F7: =COUNTIF(E10:J10,">0") -> 0 | G7: =COUNTIF(E10:J10,">0") -> 0 | H7: =COUNTIF(E10:J10,">0") -> 0 | I7: =COUNTIF(E10:J10,">0") -> 0 | J7: =COUNTIF(E10:J10,">0") -> 0 | K7: =COUNTIF(E10:J10,">0") -> 0 | L7: =COUNTIF(L10:Q10,">0") -> 0 | M7: =COUNTIF(L10:Q10,">0") -> 0 | N7: =COUNTIF(L10:Q10,">0") -> 0 | O7: =COUNTIF(L10:Q10,">0") -> 0 | P7: =COUNTIF(L10:Q10,">0") -> 0 | Q7: =COUNTIF(L10:Q10,">0") -> 0 | R7: =COUNTIF(L10:Q10,">0") -> 0 | S7: =COUNTIF(S10:X10,">0") -> 0 | T7: =COUNTIF(S10:X10,">0") -> 0 | U7: =COUNTIF(S10:X10,">0") -> 0 | V7: =COUNTIF(S10:X10,">0") -> 0 | W7: =COUNTIF(S10:X10,">0") -> 0 | X7: =COUNTIF(S10:X10,">0") -> 0 | Y7: =COUNTIF(S10:X10,">0") -> 0 | Z7: =COUNTIF(Z10:AE10,">0") -> 0 | AA7: =COUNTIF(Z10:AE10,">0") -> 0 | AB7: =COUNTIF(Z10:AE10,">0") -> 0 | AC7: =COUNTIF(Z10:AE10,">0") -> 0 | AD7: =COUNTIF(Z10:AE10,">0") -> 0 | AE7: =COUNTIF(Z10:AE10,">0") -> 0 | AF7: =COUNTIF(Z10:AE10,">0") -> 0 | AG7: =COUNTIF(AG10:AL10,">0") -> 0 | AH7: =COUNTIF(AG10:AL10,">0") -> 0 | AI7: =COUNTIF(AG10:AL10,">0") -> 0 | AJ7: =COUNTIF(AG10:AL10,">0") -> 0 | AK7: =COUNTIF(AG10:AL10,">0") -> 0 | AL7: =COUNTIF(AG10:AL10,">0") -> 0 | AM7: =COUNTIF(AG10:AL10,">0") -> 0 | AN7: =COUNTIF(AN10:AS10,">0") -> 0 | AO7: =COUNTIF(AN10:AS10,">0") -> 0 | AP7: =COUNTIF(AN10:AS10,">0") -> 0 | AQ7: =COUNTIF(AN10:AS10,">0") -> 0 | AR7: =COUNTIF(AN10:AS10,">0") -> 0 | AS7: =COUNTIF(AN10:AS10,">0") -> 0 | AT7: =COUNTIF(AN10:AS10,">0") -> 0 | AU7: =COUNTIF(AU10:AZ10,">0") -> 0 | AV7: =COUNTIF(AU10:AZ10,">0") -> 0 | AW7: =COUNTIF(AU10:AZ10,">0") -> 0 | AX7: =COUNTIF(AU10:AZ10,">0") -> 0 | AY7: =COUNTIF(AU10:AZ10,">0") -> 0 | AZ7: =COUNTIF(AU10:AZ10,">0") -> 0 | BA7: =COUNTIF(AU10:AZ10,">0") -> 0 | BB7: =COUNTIF(BB10:BG10,">0") -> 0 | BC7: =COUNTIF(BB10:BG10,">0") -> 0 | BD7: =COUNTIF(BB10:BG10,">0") -> 0 | BE7: =COUNTIF(BB10:BG10,">0") -> 0 | BF7: =COUNTIF(BB10:BG10,">0") -> 0 | BG7: =COUNTIF(BB10:BG10,">0") -> 0 | BH7: =COUNTIF(BB10:BG10,">0") -> 0 | BI7: =COUNTIF(BI10:BN10,">0") -> 0 | BJ7: =COUNTIF(BI10:BN10,">0") -> 0 | BK7: =COUNTIF(BI10:BN10,">0") -> 0 | BL7: =COUNTIF(BI10:BN10,">0") -> 0 | BM7: =COUNTIF(BI10:BN10,">0") -> 0 | BN7: =COUNTIF(BI10:BN10,">0") -> 0 | BO7: =COUNTIF(BI10:BN10,">0") -> 0 | BP7: =COUNTIF(BP10:BU10,">0") -> 0 | BQ7: =COUNTIF(BP10:BU10,">0") -> 0 | BR7: =COUNTIF(BP10:BU10,">0") -> 0 | BS7: =COUNTIF(BP10:BU10,">0") -> 0 | BT7: =COUNTIF(BP10:BU10,">0") -> 0 | BU7: =COUNTIF(BP10:BU10,">0") -> 0 | BV7: =COUNTIF(BP10:BU10,">0") -> 0 | BW7: =COUNTIF(BW10:CB10,">0") -> 0 | BX7: =COUNTIF(BW10:CB10,">0") -> 0 | BY7: =COUNTIF(BW10:CB10,">0") -> 0 | BZ7: =COUNTIF(BW10:CB10,">0") -> 0 | CA7: =COUNTIF(BW10:CB10,">0") -> 0 | CB7: =COUNTIF(BW10:CB10,">0") -> 0 | CC7: =COUNTIF(BW10:CB10,">0") -> 0 | CD7: =COUNTIF(CD10:CI10,">0") -> 0 | CE7: =COUNTIF(CD10:CI10,">0") -> 0 | CF7: =COUNTIF(CD10:CI10,">0") -> 0 | CG7: =COUNTIF(CD10:CI10,">0") -> 0 | CH7: =COUNTIF(CD10:CI10,">0") -> 0 | CI7: =COUNTIF(CD10:CI10,">0") -> 0 | CJ7: =COUNTIF(CD10:CI10,">0") -> 0 | CK7: =COUNTIF(CK10:CP10,">0") -> 0 | CL7: =COUNTIF(CK10:CP10,">0") -> 0 | CM7: =COUNTIF(CK10:CP10,">0") -> 0 | CN7: =COUNTIF(CK10:CP10,">0") -> 0 | CO7: =COUNTIF(CK10:CP10,">0") -> 0 | CP7: =COUNTIF(CK10:CP10,">0") -> 0 | CQ7: =COUNTIF(CK10:CP10,">0") -> 0 | CR7: =COUNTIF(CR10:CW10,">0") -> 0 | CS7: =COUNTIF(CR10:CW10,">0") -> 0 | CT7: =COUNTIF(CR10:CW10,">0") -> 0 | CU7: =COUNTIF(CR10:CW10,">0") -> 0 | CV7: =COUNTIF(CR10:CW10,">0") -> 0 | CW7: =COUNTIF(CR10:CW10,">0") -> 0 | CX7: =COUNTIF(CR10:CW10,">0") -> 0 | CY7: =COUNTIF(CY10:DD10,">0") -> 0 | CZ7: =COUNTIF(CY10:DD10,">0") -> 0 | DA7: =COUNTIF(CY10:DD10,">0") -> 0 | DB7: =COUNTIF(CY10:DD10,">0") -> 0 | DC7: =COUNTIF(CY10:DD10,">0") -> 0 | DD7: =COUNTIF(CY10:DD10,">0") -> 0 | DE7: =COUNTIF(CY10:DD10,">0") -> 0 | DF7: =COUNTIF(DF10:DK10,">0") -> 0 | DG7: =COUNTIF(DF10:DK10,">0") -> 0 | DH7: =COUNTIF(DF10:DK10,">0") -> 0 | DI7: =COUNTIF(DF10:DK10,">0") -> 0 | DJ7: =COUNTIF(DF10:DK10,">0") -> 0 | DK7: =COUNTIF(DF10:DK10,">0") -> 0 | DL7: =COUNTIF(DF10:DK10,">0") -> 0 | DM7: =COUNTIF(DM10:DR10,">0") -> 0 | DN7: =COUNTIF(DM10:DR10,">0") -> 0 | DO7: =COUNTIF(DM10:DR10,">0") -> 0 | DP7: =COUNTIF(DM10:DR10,">0") -> 0 | DQ7: =COUNTIF(DM10:DR10,">0") -> 0 | DR7: =COUNTIF(DM10:DR10,">0") -> 0 | DS7: =COUNTIF(DM10:DR10,">0") -> 0 | DT7: =COUNTIF(DT10:DY10,">0") -> 0 | DU7: =COUNTIF(DT10:DY10,">0") -> 0 | DV7: =COUNTIF(DT10:DY10,">0") -> 0 | DW7: =COUNTIF(DT10:DY10,">0") -> 0 | DX7: =COUNTIF(DT10:DY10,">0") -> 0 | DY7: =COUNTIF(DT10:DY10,">0") -> 0 | DZ7: =COUNTIF(DT10:DY10,">0") -> 0 | EA7: =COUNTIF(EA10:EF10,">0") -> 0 | EB7: =COUNTIF(EA10:EF10,">0") -> 0 | EC7: =COUNTIF(EA10:EF10,">0") -> 0 | ED7: =COUNTIF(EA10:EF10,">0") -> 0 | EE7: =COUNTIF(EA10:EF10,">0") -> 0 | EF7: =COUNTIF(EA10:EF10,">0") -> 0 | EG7: =COUNTIF(EA10:EF10,">0") -> 0 | EH7: =COUNTIF(EH10:EM10,">0") -> 5 | EI7: =COUNTIF(EH10:EM10,">0") -> 5 | EJ7: =COUNTIF(EH10:EM10,">0") -> 5 | EK7: =COUNTIF(EH10:EM10,">0") -> 5 | EL7: =COUNTIF(EH10:EM10,">0") -> 5 | EM7: =COUNTIF(EH10:EM10,">0") -> 5 | EN7: =COUNTIF(EH10:EM10,">0") -> 5 | EO7: =COUNTIF(EO10:ET10,">0") -> 5 | EP7: =COUNTIF(EO10:ET10,">0") -> 5 | EQ7: =COUNTIF(EO10:ET10,">0") -> 5 | ER7: =COUNTIF(EO10:ET10,">0") -> 5 | ES7: =COUNTIF(EO10:ET10,">0") -> 5 | ET7: =COUNTIF(EO10:ET10,">0") -> 5 | EU7: =COUNTIF(EO10:ET10,">0") -> 5 | EV7: =COUNTIF(EV10:FA10,">0") -> 5 | EW7: =COUNTIF(EV10:FA10,">0") -> 5 | EX7: =COUNTIF(EV10:FA10,">0") -> 5 | EY7: =COUNTIF(EV10:FA10,">0") -> 5 | EZ7: =COUNTIF(EV10:FA10,">0") -> 5 | FA7: =COUNTIF(EV10:FA10,">0") -> 5 | FB7: =COUNTIF(EV10:FA10,">0") -> 5 | FC7: =COUNTIF(FC10:FH10,">0") -> 5 | FD7: =COUNTIF(FC10:FH10,">0") -> 5 | FE7: =COUNTIF(FC10:FH10,">0") -> 5 | FF7: =COUNTIF(FC10:FH10,">0") -> 5 | FG7: =COUNTIF(FC10:FH10,">0") -> 5 | FH7: =COUNTIF(FC10:FH10,">0") -> 5 | FI7: =COUNTIF(FC10:FH10,">0") -> 5 | FJ7: =COUNTIF(FJ10:FO10,">0") -> 6 | FK7: =COUNTIF(FJ10:FO10,">0") -> 6 | FL7: =COUNTIF(FJ10:FO10,">0") -> 6 | FM7: =COUNTIF(FJ10:FO10,">0") -> 6 | FN7: =COUNTIF(FJ10:FO10,">0") -> 6 | FO7: =COUNTIF(FJ10:FO10,">0") -> 6 | FP7: =COUNTIF(FJ10:FO10,">0") -> 6 | FQ7: =COUNTIF(FQ10:FV10,">0") -> 5 | FR7: =COUNTIF(FQ10:FV10,">0") -> 5 | FS7: =COUNTIF(FQ10:FV10,">0") -> 5 | FT7: =COUNTIF(FQ10:FV10,">0") -> 5 | FU7: =COUNTIF(FQ10:FV10,">0") -> 5 | FV7: =COUNTIF(FQ10:FV10,">0") -> 5 | FW7: =COUNTIF(FQ10:FV10,">0") -> 5 | FX7: =COUNTIF(FX10:GC10,">0") -> 5 | FY7: =COUNTIF(FX10:GC10,">0") -> 5 | FZ7: =COUNTIF(FX10:GC10,">0") -> 5 | GA7: =COUNTIF(FX10:GC10,">0") -> 5 | GB7: =COUNTIF(FX10:GC10,">0") -> 5 | GC7: =COUNTIF(FX10:GC10,">0") -> 5 | GD7: =COUNTIF(FX10:GC10,">0") -> 5 | GE7: =COUNTIF(GE10:GJ10,">0") -> 6 | GF7: =COUNTIF(GE10:GJ10,">0") -> 6 | GG7: =COUNTIF(GE10:GJ10,">0") -> 6 | GH7: =COUNTIF(GE10:GJ10,">0") -> 6 | GI7: =COUNTIF(GE10:GJ10,">0") -> 6 | GJ7: =COUNTIF(GE10:GJ10,">0") -> 6 | GK7: =COUNTIF(GE10:GJ10,">0") -> 6 | GL7: =COUNTIF(GL10:GQ10,">0") -> 5 | GM7: =COUNTIF(GL10:GQ10,">0") -> 5 | GN7: =COUNTIF(GL10:GQ10,">0") -> 5 | GO7: =COUNTIF(GL10:GQ10,">0") -> 5 | GP7: =COUNTIF(GL10:GQ10,">0") -> 5 | GQ7: =COUNTIF(GL10:GQ10,">0") -> 5 | GR7: =COUNTIF(GL10:GQ10,">0") -> 5 | GS7: =COUNTIF(GS10:GX10,">0") -> 5 | GT7: =COUNTIF(GS10:GX10,">0") -> 5 | GU7: =COUNTIF(GS10:GX10,">0") -> 5 | GV7: =COUNTIF(GS10:GX10,">0") -> 5 | GW7: =COUNTIF(GS10:GX10,">0") -> 5 | GX7: =COUNTIF(GS10:GX10,">0") -> 5 | GY7: =COUNTIF(GS10:GX10,">0") -> 5 | GZ7: =COUNTIF(GZ10:HE10,">0") -> 0 | HA7: =COUNTIF(GZ10:HE10,">0") -> 0 | HB7: =COUNTIF(GZ10:HE10,">0") -> 0 | HC7: =COUNTIF(GZ10:HE10,">0") -> 0 | HD7: =COUNTIF(GZ10:HE10,">0") -> 0 | HE7: =COUNTIF(GZ10:HE10,">0") -> 0 | HF7: =COUNTIF(GZ10:HE10,">0") -> 0 | HG7: =COUNTIF(HG10:HL10,">0") -> 0 | HH7: =COUNTIF(HG10:HL10,">0") -> 0 | HI7: =COUNTIF(HG10:HL10,">0") -> 0 | HJ7: =COUNTIF(HG10:HL10,">0") -> 0 | HK7: =COUNTIF(HG10:HL10,">0") -> 0 | HL7: =COUNTIF(HG10:HL10,">0") -> 0 | HM7: =COUNTIF(HG10:HL10,">0") -> 0 | HN7: =COUNTIF(HN10:HS10,">0") -> 0 | HO7: =COUNTIF(HN10:HS10,">0") -> 0 | HP7: =COUNTIF(HN10:HS10,">0") -> 0 | HQ7: =COUNTIF(HN10:HS10,">0") -> 0 | HR7: =COUNTIF(HN10:HS10,">0") -> 0 | HS7: =COUNTIF(HN10:HS10,">0") -> 0 | HT7: =COUNTIF(HN10:HS10,">0") -> 0 | HU7: =COUNTIF(HU10:HZ10,">0") -> 6 | HV7: =COUNTIF(HU10:HZ10,">0") -> 6 | HW7: =COUNTIF(HU10:HZ10,">0") -> 6 | HX7: =COUNTIF(HU10:HZ10,">0") -> 6 | HY7: =COUNTIF(HU10:HZ10,">0") -> 6 | HZ7: =COUNTIF(HU10:HZ10,">0") -> 6 | IA7: =COUNTIF(HU10:HZ10,">0") -> 6 | IB7: =COUNTIF(IB10:IG10,">0") -> 5 | IC7: =COUNTIF(IB10:IG10,">0") -> 5 | ID7: =COUNTIF(IB10:IG10,">0") -> 5 | IE7: =COUNTIF(IB10:IG10,">0") -> 5 | IF7: =COUNTIF(IB10:IG10,">0") -> 5 | IG7: =COUNTIF(IB10:IG10,">0") -> 5 | IH7: =COUNTIF(IB10:IG10,">0") -> 5 | II7: =COUNTIF(II10:IN10,">0") -> 5 | IJ7: =COUNTIF(II10:IN10,">0") -> 5 | IK7: =COUNTIF(II10:IN10,">0") -> 5 | IL7: =COUNTIF(II10:IN10,">0") -> 5 | IM7: =COUNTIF(II10:IN10,">0") -> 5 | IN7: =COUNTIF(II10:IN10,">0") -> 5 | IO7: =COUNTIF(II10:IN10,">0") -> 5 | IP7: =COUNTIF(IP10:IU10,">0") -> 6 | IQ7: =COUNTIF(IP10:IU10,">0") -> 6 | IR7: =COUNTIF(IP10:IU10,">0") -> 6 | IS7: =COUNTIF(IP10:IU10,">0") -> 6 | IT7: =COUNTIF(IP10:IU10,">0") -> 6 | IU7: =COUNTIF(IP10:IU10,">0") -> 6 | IV7: =COUNTIF(IP10:IU10,">0") -> 6 | IW7: =COUNTIF(IW10:JB10,">0") -> 5 | IX7: =COUNTIF(IW10:JB10,">0") -> 5 | IY7: =COUNTIF(IW10:JB10,">0") -> 5 | IZ7: =COUNTIF(IW10:JB10,">0") -> 5 | JA7: =COUNTIF(IW10:JB10,">0") -> 5 | JB7: =COUNTIF(IW10:JB10,">0") -> 5 | JC7: =COUNTIF(IW10:JB10,">0") -> 5 | JD7: =COUNTIF(JD10:JI10,">0") -> 5 | JE7: =COUNTIF(JD10:JI10,">0") -> 5 | JF7: =COUNTIF(JD10:JI10,">0") -> 5 | JG7: =COUNTIF(JD10:JI10,">0") -> 5 | JH7: =COUNTIF(JD10:JI10,">0") -> 5 | JI7: =COUNTIF(JD10:JI10,">0") -> 5 | JJ7: =COUNTIF(JD10:JI10,">0") -> 5 | JK7: =COUNTIF(JK10:JP10,">0") -> 6 | JL7: =COUNTIF(JK10:JP10,">0") -> 6 | JM7: =COUNTIF(JK10:JP10,">0") -> 6 | JN7: =COUNTIF(JK10:JP10,">0") -> 6 | JO7: =COUNTIF(JK10:JP10,">0") -> 6 | JP7: =COUNTIF(JK10:JP10,">0") -> 6 | JQ7: =COUNTIF(JK10:JP10,">0") -> 6 | JR7: =COUNTIF(JR10:JW10,">0") -> 5 | JS7: =COUNTIF(JR10:JW10,">0") -> 5 | JT7: =COUNTIF(JR10:JW10,">0") -> 5 | JU7: =COUNTIF(JR10:JW10,">0") -> 5 | JV7: =COUNTIF(JR10:JW10,">0") -> 5 | JW7: =COUNTIF(JR10:JW10,">0") -> 5 | JX7: =COUNTIF(JR10:JW10,">0") -> 5 | JY7: =COUNTIF(JY10:KD10,">0") -> 0 | JZ7: =COUNTIF(JY10:KD10,">0") -> 0 | KA7: =COUNTIF(JY10:KD10,">0") -> 0 | KB7: =COUNTIF(JY10:KD10,">0") -> 0 | KC7: =COUNTIF(JY10:KD10,">0") -> 0 | KD7: =COUNTIF(JY10:KD10,">0") -> 0 | KE7: =COUNTIF(JY10:KD10,">0") -> 0 | KF7: =COUNTIF(KF10:KK10,">0") -> 0 | KG7: =COUNTIF(KF10:KK10,">0") -> 0 | KH7: =COUNTIF(KF10:KK10,">0") -> 0 | KI7: =COUNTIF(KF10:KK10,">0") -> 0 | KJ7: =COUNTIF(KF10:KK10,">0") -> 0 | KK7: =COUNTIF(KF10:KK10,">0") -> 0 | KL7: =COUNTIF(KF10:KK10,">0") -> 0 | KM7: =COUNTIF(KM10:KR10,">0") -> 0 | KN7: =COUNTIF(KM10:KR10,">0") -> 0 | KO7: =COUNTIF(KM10:KR10,">0") -> 0 | KP7: =COUNTIF(KM10:KR10,">0") -> 0 | KQ7: =COUNTIF(KM10:KR10,">0") -> 0 | KR7: =COUNTIF(KM10:KR10,">0") -> 0 | KS7: =COUNTIF(KM10:KR10,">0") -> 0 | KT7: =COUNTIF(KT10:KY10,">0") -> 0 | KU7: =COUNTIF(KT10:KY10,">0") -> 0 | KV7: =COUNTIF(KT10:KY10,">0") -> 0 | KW7: =COUNTIF(KT10:KY10,">0") -> 0 | KX7: =COUNTIF(KT10:KY10,">0") -> 0 | KY7: =COUNTIF(KT10:KY10,">0") -> 0 | KZ7: =COUNTIF(KT10:KY10,">0") -> 0 | LA7: =COUNTIF(LA10:LF10,">0") -> 0 | LB7: =COUNTIF(LA10:LF10,">0") -> 0 | LC7: =COUNTIF(LA10:LF10,">0") -> 0 | LD7: =COUNTIF(LA10:LF10,">0") -> 0 | LE7: =COUNTIF(LA10:LF10,">0") -> 0 | LF7: =COUNTIF(LA10:LF10,">0") -> 0 | LG7: =COUNTIF(LA10:LF10,">0") -> 0 | LH7: =COUNTIF(LH10:LM10,">0") -> 0 | LI7: =COUNTIF(LH10:LM10,">0") -> 0 | LJ7: =COUNTIF(LH10:LM10,">0") -> 0 | LK7: =COUNTIF(LH10:LM10,">0") -> 0 | LL7: =COUNTIF(LH10:LM10,">0") -> 0 | LM7: =COUNTIF(LH10:LM10,">0") -> 0 | LN7: =COUNTIF(LH10:LM10,">0") -> 0 | LO7: =COUNTIF(LO10:LT10,">0") -> 0 | LP7: =COUNTIF(LO10:LT10,">0") -> 0 | LQ7: =COUNTIF(LO10:LT10,">0") -> 0 | LR7: =COUNTIF(LO10:LT10,">0") -> 0 | LS7: =COUNTIF(LO10:LT10,">0") -> 0 | LT7: =COUNTIF(LO10:LT10,">0") -> 0 | LU7: =COUNTIF(LO10:LT10,">0") -> 0 | LV7: =COUNTIF(LV10:MA10,">0") -> 0 | LW7: =COUNTIF(LV10:MA10,">0") -> 0 | LX7: =COUNTIF(LV10:MA10,">0") -> 0 | LY7: =COUNTIF(LV10:MA10,">0") -> 0 | LZ7: =COUNTIF(LV10:MA10,">0") -> 0 | MA7: =COUNTIF(LV10:MA10,">0") -> 0 | MB7: =COUNTIF(LV10:MA10,">0") -> 0 | MC7: =COUNTIF(MC10:MH10,">0") -> 0 | MD7: =COUNTIF(MC10:MH10,">0") -> 0 | ME7: =COUNTIF(MC10:MH10,">0") -> 0 | MF7: =COUNTIF(MC10:MH10,">0") -> 0 | MG7: =COUNTIF(MC10:MH10,">0") -> 0 | MH7: =COUNTIF(MC10:MH10,">0") -> 0 | MI7: =COUNTIF(MC10:MH10,">0") -> 0 | MJ7: =COUNTIF(MJ10:MO10,">0") -> 0 | MK7: =COUNTIF(MJ10:MO10,">0") -> 0 | ML7: =COUNTIF(MJ10:MO10,">0") -> 0 | MM7: =COUNTIF(MJ10:MO10,">0") -> 0 | MN7: =COUNTIF(MJ10:MO10,">0") -> 0 | MO7: =COUNTIF(MJ10:MO10,">0") -> 0 | MP7: =COUNTIF(MJ10:MO10,">0") -> 0 | MQ7: =COUNTIF(MQ10:MV10,">0") -> 0 | MR7: =COUNTIF(MQ10:MV10,">0") -> 0 | MS7: =COUNTIF(MQ10:MV10,">0") -> 0 | MT7: =COUNTIF(MQ10:MV10,">0") -> 0 | MU7: =COUNTIF(MQ10:MV10,">0") -> 0 | MV7: =COUNTIF(MQ10:MV10,">0") -> 0 | MW7: =COUNTIF(MQ10:MV10,">0") -> 0 | MX7: =COUNTIF(MX10:NC10,">0") -> 0 | MY7: =COUNTIF(MX10:NC10,">0") -> 0 | MZ7: =COUNTIF(MX10:NC10,">0") -> 0 | NA7: =COUNTIF(MX10:NC10,">0") -> 0 | NB7: =COUNTIF(MX10:NC10,">0") -> 0 | NC7: =COUNTIF(MX10:NC10,">0") -> 0 | ND7: =COUNTIF(MX10:NC10,">0") -> 0
A8: Value | B8: Goal | C8: K.P.I. | D8: =TODAY() -> 2018-10-06 | E8: =IF(E5="Ma",WEEKNUM(E4,21),"") -> 1 | L8: 2 | S8: 3 | Z8: 4 | AG8: 5 | AN8: 6 | AU8: 7 | BB8: 8 | BI8: 9 | BP8: 10 | BQ8: =IF(BQ5="Ma",WEEKNUM(BQ4,21),"") ->  | BW8: 11 | CD8: 12 | CK8: 13 | CR8: 14 | CY8: 15 | DF8: =IF(DF5="Ma",WEEKNUM(DF4,21),"") -> 16 | DG8: =IF(DG5="Ma",WEEKNUM(DG4,21),"") ->  | DM8: 17 | DT8: 18 | EA8: 19 | EH8: 20 | EO8: 21 | EV8: 22 | FC8: 23 | FJ8: 24 | FQ8: 25 | FS8: =IF(FS5="Ma",WEEKNUM(FS4,21),"") ->  | FX8: 26 | GE8: 27 | GL8: 28 | GS8: 29 | GZ8: 30 | HG8: 31 | HN8: 32 | HU8: 33 | IB8: 34 | IE8: =IF(IE5="Ma",WEEKNUM(IE4,21),"") ->  | II8: 35 | IP8: 36 | IW8: 37 | JD8: 38 | JK8: 39 | JR8: 40 | JY8: 41 | KF8: 42 | KM8: 43 | KQ8: =IF(KQ5="Ma",WEEKNUM(KQ4,21),"") ->  | KT8: 44 | LA8: 45 | LH8: 46 | LO8: 47 | LV8: 48 | MC8: 49 | MJ8: 50 | MQ8: 51 | MX8: 52 | NC8: =IF(NC5="Ma",WEEKNUM(NC4,21),"") -> 
D9: =WEEKNUM(D8,21) -> 40
A10: 18 | B10: 18 | C10: FTE SAP [#] | D10: RAYONLEIDER | EH10: 18 | EI10: 18 | EJ10: 18 | EK10: 18 | EL10: 18 | EP10: 18 | EQ10: 18 | ER10: 18 | ES10: 18 | ET10: 18 | EV10: 18 | EW10: 18 | EX10: 18 | EY10: 18 | EZ10: 18 | FC10: 18 | FD10: 18 | FE10: 18 | FF10: 18 | FG10: 18 | FJ10: 18 | FK10: 18 | FL10: 18 | FM10: 18 | FN10: 18 | FO10: 18 | FQ10: 18 | FR10: 18 | FS10: 18 | FT10: 18 | FU10: 18 | FX10: 18 | FY10: 18 | FZ10: 18 | GA10: 18 | GB10: 18 | GE10: 18 | GF10: 18 | GG10: 18 | GH10: 18 | GI10: 18 | GJ10: 18 | GL10: 18 | GM10: 18 | GN10: 18 | GO10: 18 | GP10: 18 | GS10: 18 | GT10: 18 | GU10: 18 | GV10: 18 | GW10: 18 | HU10: 18 | HV10: 18 | HW10: 18 | HX10: 18 | HY10: 18 | HZ10: 18 | IB10: 18 | IC10: 18 | ID10: 18 | IE10: 18 | IF10: 18 | II10: 18 | IJ10: 18 | IK10: 18 | IL10: 18 | IM10: 18 | IP10: 18 | IQ10: 18 | IR10: 18 | IS10: 18 | IT10: 18 | IU10: 18 | IW10: 18 | IX10: 18 | IY10: 18 | IZ10: 18 | JA10: 18 | JD10: 18 | JE10: 18 | JF10: 18 | JG10: 18 | JH10: 18 | JK10: 18 | JL10: 18 | JM10: 18 | JN10: 18 | JO10: 18 | JP10: 18 | JR10: 18 | JS10: 18 | JT10: 18 | JU10: 18 | JV10: 18
A11: 16 | B11: 16 | C11: Functions required [#l] | EH11: 16 | EI11: 16 | EJ11: 16 | EK11: 16 | EL11: 16 | EP11: 16 | EQ11: 16 | ER11: 16 | ES11: 16 | ET11: 16 | EV11: 16 | EW11: 16 | EX11: 16 | EY11: 16 | EZ11: 16 | FC11: 16 | FD11: 16 | FE11: 16 | FF11: 16 | FG11: 16 | FJ11: 16 | FK11: 16 | FL11: 16 | FM11: 16 | FN11: 16 | FO11: 16 | FQ11: 16 | FR11: 16 | FS11: 16 | FT11: 16 | FU11: 16 | FX11: 16 | FY11: 16 | FZ11: 16 | GA11: 16 | GB11: 16 | GE11: 16 | GF11: 16 | GG11: 16 | GH11: 16 | GI11: 16 | GJ11: 16 | GL11: 16 | GM11: 16 | GN11: 16 | GO11: 16 | GP11: 16 | GS11: 16 | GT11: 16 | GU11: 16 | GV11: 16 | GW11: 16 | HU11: 16 | HV11: 16 | HW11: 16 | HX11: 16 | HY11: 16 | HZ11: 16 | IB11: 16 | IC11: 16 | ID11: 16 | IE11: 16 | IF11: 16 | II11: 16 | IJ11: 16 | IK11: 16 | IL11: 16 | IM11: 16 | IP11: 16 | IQ11: 16 | IR11: 16 | IS11: 16 | IT11: 16 | IU11: 16 | IW11: 16 | IX11: 16 | IY11: 16 | IZ11: 16 | JA11: 16 | JD11: 16 | JE11: 16 | JF11: 16 | JG11: 16 | JH11: 16 | JK11: 16 | JL11: 16 | JM11: 16 | JN11: 16 | JO11: 16 | JP11: 16 | JR11: 16 | JS11: 16 | JT11: 16 | JU11: 16 | JV11: 16
A12: 20 | B12: 20 | C12: Direct blue collar present [#] | EH12: 17 | EI12: 15 | EJ12: 16 | EK12: 14 | EL12: 13 | EP12: 15 | EQ12: 18 | ER12: 16 | ES12: 15 | ET12: 15 | EV12: 17 | EW12: 15 | EX12: 16 | EY12: 15 | EZ12: 15 | FC12: 18 | FD12: 17 | FE12: 16 | FF12: 17 | FG12: 16 | FJ12: 15 | FK12: 17 | FL12: 15 | FM12: 15 | FN12: 15 | FO12: 12 | FQ12: 14 | FR12: 17 | FS12: 17 | FT12: 16 | FU12: 17 | FX12: 13.5 | FY12: 14.5 | FZ12: 14.5 | GA12: 16 | GB12: 11 | GE12: 14 | GF12: 17 | GG12: 16 | GH12: 17 | GI12: 16 | GJ12: 15 | GL12: 17 | GM12: 17 | GN12: 16 | GO12: 15 | GP12: 13.5 | GS12: 16 | GT12: 16 | GU12: 17 | GV12: 18 | HU12: 16 | HV12: 15 | HW12: 16 | HX12: 16 | HY12: 16 | HZ12: 12 | IB12: 13 | IC12: 13 | ID12: 14 | IE12: 14 | IF12: 14 | II12: 17 | IJ12: 17 | IK12: 16 | IL12: 17 | IM12: 15 | IP12: 17 | IQ12: 18 | IR12: 16 | IS12: 17 | IT12: 12 | IU12: 12 | IW12: 14 | IX12: 14 | IY12: 14 | IZ12: 14 | JA12: 15 | JD12: 15 | JE12: 15 | JF12: 15 | JG12: 15 | JH12: 17 | JK12: 15 | JL12: 17 | JM12: 15 | JN12: 17 | JO12: 17 | JP12: 14 | JR12: 17 | JS12: 17 | JT12: 17 | JU12: 16 | JV12: 15
A13: 0 | B13: >=0 | C13: Idle capacity | E13: =IF(E10="","",E12-E11) ->  | BQ13: =IF(BQ10="","",BQ12-BQ11) ->  | DF13: =IF(DF10="","",DF12-DF11) ->  | DG13: =IF(DG10="","",DG12-DG11) ->  | EH13: 1 | EI13: -1 | EJ13: 0 | EK13: -2 | EL13: -3 | EP13: -1 | EQ13: 2 | ER13: 0 | ES13: -1 | ET13: -1 | EV13: 1 | EW13: -1 | EX13: 0 | EY13: -1 | EZ13: -1 | FC13: 2 | FD13: 1 | FE13: 0 | FF13: 1 | FG13: 0 | FJ13: -1 | FK13: 1 | FL13: -1 | FM13: -1 | FN13: -1 | FO13: -4 | FQ13: -2 | FR13: 1 | FS13: =IF(FS10="","",FS12-FS11) -> 1 | FT13: 0 | FU13: 1 | FX13: -2.5 | FY13: -1.5 | FZ13: -1.5 | GA13: 0 | GB13: -5 | GE13: -2 | GF13: 1 | GG13: 0 | GH13: 1 | GI13: 0 | GJ13: -1 | GL13: 1 | GM13: 1 | GN13: 0 | GO13: -1 | GP13: -2.5 | GS13: 0 | GT13: 0 | GU13: 1 | GV13: 2 | GW13: -16 | HU13: 0 | HV13: -1 | HW13: 0 | HX13: 0 | HY13: 0 | HZ13: -4 | IB13: -3 | IC13: -3 | ID13: -2 | IE13: =IF(IE10="","",IE12-IE11) -> -2 | IF13: -2 | II13: 1 | IJ13: 1 | IK13: 0 | IL13: 1 | IM13: -1 | IP13: 1 | IQ13: 2 | IR13: 0 | IS13: 1 | IT13: -4 | IU13: -4 | IW13: -2 | IX13: -2 | IY13: -2 | IZ13: -2 | JA13: -1 | JD13: -1 | JE13: -1 | JF13: -1 | JG13: -1 | JH13: 1 | JK13: -1 | JL13: 1 | JM13: -1 | JN13: 1 | JO13: 1 | JP13: -2 | JR13: 1 | JS13: 1 | JT13: 1 | JU13: 0 | JV13: -1 | KQ13: =IF(KQ10="","",KQ12-KQ11) ->  | NC13: =IF(NC10="","",NC12-NC11) -> 
B14: Max | C14: Idle (aantal Medewerkers uitleen/ Opleiding) | EH14: 1 | EI14: 0 | EJ14: 0 | EK14: 0 | EL14: 0 | EP14: 0 | EQ14: 0 | ER14: 0 | ES14: 0 | ET14: 0 | EV14: 0 | EW14: 0 | EX14: 0 | EY14: 0 | EZ14: 0 | FC14: 2 | FD14: 1 | FE14: 0 | FF14: 1 | FG14: 1 | FJ14: 1 | FK14: 1 | FL14: 1 | FM14: 1 | FN14: 1 | FO14: 0 | FQ14: 1 | FR14: 1 | FS14: 0 | FT14: 0 | FU14: 0 | FX14: 0 | FY14: 0 | FZ14: 0 | GA14: 0 | GB14: 0 | GE14: 0 | GF14: 1 | GG14: 0 | GH14: 0 | GI14: 0 | GJ14: 0 | GL14: 1 | GM14: 1 | GN14: 0 | GO14: 0 | GP14: 0.5 | GS14: 0 | GT14: 0 | GU14: 1 | GV14: 2 | HU14: 0 | HV14: 0 | HW14: 1 | HX14: 1 | HY14: 1 | HZ14: 0 | IB14: 1 | IC14: 1 | ID14: 1 | IE14: 1 | IF14: 1 | II14: 0 | IJ14: 0 | IK14: 0 | IL14: 1 | IM14: 0 | IP14: 1 | IQ14: 1 | IR14: 2 | IS14: 1 | IT14: 1 | IU14: 1 | IW14: 0 | IX14: 1 | IY14: 1 | IZ14: 0 | JA14: 0 | JD14: 0 | JE14: 0 | JF14: 0 | JG14: 0 | JH14: 0 | JK14: 0 | JL14: 1 | JM14: 0 | JN14: 1 | JO14: 1 | JP14: 0 | JR14: 0 | JS14: 0 | JT14: 0 | JU14: 0 | JV14: 0
B15: Max | C15: Eigen Onderhoud | EH15: 0 | EI15: 0 | EJ15: 0 | EK15: 0 | EL15: 0 | EP15: 0 | EQ15: 2 | ER15: 0 | ES15: 0 | ET15: 0 | EV15: 0 | EW15: 0 | EX15: 0 | EY15: 0 | EZ15: 0 | FC15: 0 | FD15: 0 | FE15: 0 | FF15: 0 | FG15: 0 | FJ15: 0 | FK15: 0 | FL15: 0 | FM15: 0 | FN15: 0 | FO15: 0 | FQ15: 0 | FR15: 0 | FS15: 0 | FT15: 0 | FU15: 0 | FX15: 0 | FY15: 0 | FZ15: 0 | GA15: 0 | GB15: 0 | GE15: 0 | GF15: 0 | GG15: 0 | GH15: 0 | GI15: 0 | GJ15: 0 | GL15: 0 | GM15: 0 | GN15: 0 | GO15: 0 | GP15: 0 | GS15: 0 | GT15: 0 | GU15: 0 | GV15: 0 | HU15: 0 | HV15: 0 | HW15: 0 | HX15: 1 | HY15: 0 | HZ15: 0 | IB15: 0 | IC15: 0 | ID15: 0 | IE15: 0 | IF15: 0 | II15: 0 | IJ15: 0 | IK15: 0 | IL15: 0 | IM15: 0 | IP15: 0 | IQ15: 0 | IR15: 0 | IS15: 0 | IT15: 0 | IU15: 0 | IW15: 0 | IX15: 0 | IY15: 0 | IZ15: 0 | JA15: 0 | JD15: 0 | JE15: 0 | JF15: 0 | JG15: 0 | JH15: 0 | JK15: 0 | JL15: 0 | JM15: 0 | JN15: 0 | JO15: 0 | JP15: 0 | JR15: 0 | JS15: 0 | JT15: 0 | JU15: 1 | JV15: 0
A16: 0 | B16: 0 | C16: Injury (F.g.p.) Zonder verzuim | EH16: 0 | EI16: 0 | EJ16: 0 | EK16: 0 | EL16: 0 | EP16: 0 | EQ16: 0 | ER16: 0 | ES16: 0 | ET16: 0 | EV16: 0 | EW16: 0 | EX16: 0 | EY16: 0 | EZ16: 0 | FC16: 0 | FD16: 0 | FE16: 0 | FF16: 0 | FG16: 0 | FJ16: 0 | FK16: 0 | FL16: 0 | FM16: 0 | FN16: 0 | FO16: 0 | FQ16: 0 | FR16: 0 | FS16: 0 | FT16: 0 | FU16: 0 | FX16: 0 | FY16: 0 | FZ16: 0 | GA16: 0 | GB16: 0 | GE16: 0 | GF16: 0 | GG16: 0 | GH16: 0 | GI16: 0 | GJ16: 0 | GL16: 0 | GM16: 0 | GN16: 0 | GO16: 0 | GP16: 0 | GS16: 0 | GT16: 0 | GU16: 0 | GV16: 0 | HU16: 0 | HV16: 0 | HW16: 0 | HX16: 0 | HY16: 0 | HZ16: 0 | IB16: 0 | IC16: 0 | ID16: 0 | IE16: 0 | IF16: 0 | II16: 0 | IJ16: 0 | IK16: 0 | IL16: 0 | IM16: 0 | IP16: 0 | IQ16: 0 | IR16: 0 | IS16: 0 | IT16: 0 | IU16: 0 | IW16: 0 | IX16: 0 | IY16: 0 | IZ16: 0 | JA16: 0 | JD16: 0 | JE16: 0 | JF16: 0 | JG16: 0 | JH16: 0 | JK16: 0 | JL16: 0 | JM16: 0 | JN16: 0 | JO16: 0 | JP16: 0 | JR16: 0 | JS16: 0 | JT16: 0 | JU16: 0 | JV16: 0
A17: 0 | B17: 0 | C17: Injury (E.g.p.) Met verzuim | EH17: 0 | EI17: 0 | EJ17: 0 | EK17: 0 | EL17: 0 | EP17: 0 | EQ17: 0 | ER17: 0 | ES17: 0 | ET17: 0 | EV17: 0 | EW17: 0 | EX17: 0 | EY17: 0 | EZ17: 0 | FC17: 0 | FD17: 0 | FE17: 0 | FF17: 0 | FG17: 0 | FJ17: 0 | FK17: 0 | FL17: 0 | FM17: 0 | FN17: 0 | FO17: 0 | FQ17: 0 | FR17: 0 | FS17: 0 | FT17: 0 | FU17: 0 | FX17: 0 | FY17: 0 | FZ17: 0 | GA17: 0 | GB17: 0 | GE17: 0 | GF17: 0 | GG17: 0 | GH17: 0 | GI17: 0 | GJ17: 0 | GL17: 0 | GM17: 0 | GN17: 0 | GO17: 0 | GP17: 0 | GS17: 0 | GT17: 0 | GU17: 0 | GV17: 0 | HU17: 0 | HV17: 0 | HW17: 1 | HX17: 0 | HY17: 0 | HZ17: 0 | IB17: 0 | IC17: 0 | ID17: 0 | IE17: 0 | IF17: 0 | II17: 0 | IJ17: 0 | IK17: 0 | IL17: 0 | IM17: 0 | IP17: 0 | IQ17: 0 | IR17: 0 | IS17: 0 | IT17: 0 | IU17: 0 | IW17: 0 | IX17: 0 | IY17: 0 | IZ17: 0 | JA17: 0 | JD17: 0 | JE17: 0 | JF17: 0 | JG17: 0 | JH17: 0 | JK17: 0 | JL17: 0 | JM17: 0 | JN17: 0 | JO17: 0 | JP17: 0 | JR17: 0 | JS17: 0 | JT17: 0 | JU17: 0 | JV17: 0
A18: 1 | B18: <=1 | C18: Illness direct blue collar | EH18: 1 | EI18: 1.5 | EJ18: 2 | EK18: 3 | EL18: 2 | EP18: 1 | EQ18: 1 | ER18: 1 | ES18: 0 | ET18: 0 | EV18: 0 | EW18: 0 | EX18: 0 | EY18: 1 | EZ18: 1 | FC18: 0 | FD18: 0 | FE18: 0 | FF18: 0 | FG18: 0 | FJ18: 1 | FK18: 1 | FL18: 1 | FM18: 0 | FN18: 0 | FO18: 0 | FQ18: 1 | FR18: 1 | FS18: 1 | FT18: 1 | FU18: 1 | FX18: 2.5 | FY18: 2.5 | FZ18: 2.5 | GA18: 2.5 | GB18: 2.5 | GE18: 3 | GF18: 2 | GG18: 2 | GH18: 2 | GI18: 2 | GJ18: 2 | GL18: 2 | GM18: 2 | GN18: 2 | GO18: 2 | GP18: 3 | GS18: 1 | GT18: 1 | GU18: 1 | GV18: 1 | GW18: 1 | HU18: 2 | HV18: 2 | HW18: 2.25 | HX18: 3 | HY18: 3 | HZ18: 3 | IB18: 2 | IC18: 2 | ID18: 2 | IE18: 2 | IF18: 2 | II18: 2 | IJ18: 2 | IK18: 2 | IL18: 2 | IM18: 3 | IP18: 3 | IQ18: 3 | IR18: 4 | IS18: 4 | IT18: 4 | IU18: 4 | IW18: 4 | IX18: 4 | IY18: 3 | IZ18: 3 | JA18: 3 | JD18: 4 | JE18: 3 | JF18: 3 | JG18: 3 | JH18: 3 | JK18: 3 | JL18: 3 | JM18: 3 | JN18: 3 | JO18: 2 | JP18: 2 | JR18: 2 | JS18: 2 | JT18: 2 | JU18: 3 | JV18: 3
A19: 0.045 | B19: <4,50% | C19: Percentage Illness per day | E19: =IFERROR((E17+E18)/E$10,0%) -> 0 | F19: 0 | G19: 0 | H19: 0 | I19: 0 | J19: 0 | K19: 0 | L19: 0 | M19: 0 | N19: 0 | O19: 0 | P19: 0 | Q19: 0 | R19: 0 | S19: 0 | T19: 0 | U19: 0 | V19: 0 | W19: 0 | X19: 0 | Y19: 0 | Z19: 0 | AA19: 0 | AB19: 0 | AC19: 0 | AD19: 0 | AE19: 0 | AF19: 0 | AG19: 0 | AH19: 0 | AI19: 0 | AJ19: 0 | AK19: 0 | AL19: 0 | AM19: 0 | AN19: 0 | AO19: 0 | AP19: 0 | AQ19: 0 | AR19: 0 | AS19: 0 | AT19: 0 | AU19: 0 | AV19: 0 | AW19: 0 | AX19: 0 | AY19: 0 | AZ19: 0 | BA19: 0 | BB19: 0 | BC19: 0 | BD19: 0 | BE19: 0 | BF19: 0 | BG19: 0 | BH19: 0 | BI19: 0 | BJ19: 0 | BK19: 0 | BL19: 0 | BM19: 0 | BN19: 0 | BO19: 0 | BP19: 0 | BQ19: =IFERROR((BQ17+BQ18)/BQ$10,0%) -> 0 | BR19: 0 | BS19: 0 | BT19: 0 | BU19: 0 | BV19: 0 | BW19: 0 | BX19: 0 | BY19: 0 | BZ19: 0 | CA19: 0 | CB19: 0 | CC19: 0 | CD19: 0 | CE19: 0 | CF19: 0 | CG19: 0 | CH19: 0 | CI19: 0 | CJ19: 0 | CK19: 0 | CL19: 0 | CM19: 0 | CN19: 0 | CO19: 0 | CP19: 0 | CQ19: 0 | CR19: 0 | CS19: 0 | CT19: 0 | CU19: 0 | CV19: 0 | CW19: 0 | CX19: 0 | CY19: 0 | CZ19: 0 | DA19: 0 | DB19: 0 | DC19: 0 | DD19: 0 | DE19: 0 | DF19: 0 | DG19: 0 | DH19: 0 | DI19: 0 | DJ19: 0 | DK19: 0 | DL19: 0 | DM19: 0 | DN19: 0 | DO19: 0 | DP19: 0 | DQ19: 0 | DR19: 0 | DS19: 0 | DT19: 0 | DU19: 0 | DV19: 0 | DW19: 0 | DX19: 0 | DY19: 0 | DZ19: 0 | EA19: 0 | EB19: 0 | EC19: =IFERROR((EC17+EC18)/EC$10,0%) -> 0 | ED19: 0 | EE19: 0 | EF19: 0 | EG19: 0 | EH19: 0.05555555556 | EI19: 0.08333333333 | EJ19: 0.1111111111 | EK19: 0.1666666667 | EL19: 0.1111111111 | EM19: 0 | EN19: 0 | EO19: 0 | EP19: 0.05555555556 | EQ19: 0.05555555556 | ER19: 0.05555555556 | ES19: 0 | ET19: 0 | EU19: 0 | EV19: 0 | EW19: 0 | EX19: 0 | EY19: 0.05555555556 | EZ19: 0.05555555556 | FA19: 0 | FB19: 0 | FC19: 0 | FD19: 0 | FE19: 0 | FF19: 0 | FG19: 0 | FH19: 0 | FI19: 0 | FJ19: 0.05555555556 | FK19: 0.05555555556 | FL19: 0.05555555556 | FM19: 0 | FN19: 0 | FO19: 0 | FP19: 0 | FQ19: 0.05555555556 | FR19: 0.05555555556 | FS19: 0.05555555556 | FT19: 0.05555555556 | FU19: 0.05555555556 | FV19: 0 | FW19: 0 | FX19: 0.1388888889 | FY19: 0.1388888889 | FZ19: 0.1388888889 | GA19: 0.1388888889 | GB19: 0.1388888889 | GC19: 0 | GD19: 0 | GE19: 0.1666666667 | GF19: 0.1111111111 | GG19: 0.1111111111 | GH19: 0.1111111111 | GI19: 0.1111111111 | GJ19: 0.1111111111 | GK19: 0 | GL19: 0.1111111111 | GM19: 0.1111111111 | GN19: 0.1111111111 | GO19: =IFERROR((GO17+GO18)/GO$10,0%) -> 0.1111111111 | GP19: 0.1666666667 | GQ19: 0 | GR19: 0 | GS19: 0.05555555556 | GT19: 0.05555555556 | GU19: 0.05555555556 | GV19: 0.05555555556 | GW19: 0.05555555556 | GX19: 0 | GY19: 0 | GZ19: 0 | HA19: 0 | HB19: 0 | HC19: 0 | HD19: 0 | HE19: 0 | HF19: 0 | HG19: 0 | HH19: 0 | HI19: 0 | HJ19: 0 | HK19: 0 | HL19: 0 | HM19: 0 | HN19: 0 | HO19: 0 | HP19: 0 | HQ19: 0 | HR19: 0 | HS19: 0 | HT19: 0 | HU19: 0.1111111111 | HV19: 0.1111111111 | HW19: 0.1805555556 | HX19: 0.1666666667 | HY19: 0.1666666667 | HZ19: 0.1666666667 | IA19: 0 | IB19: 0.1111111111 | IC19: 0.1111111111 | ID19: 0.1111111111 | IE19: 0.1111111111 | IF19: 0.1111111111 | IG19: 0 | IH19: 0 | II19: 0.1111111111 | IJ19: 0.1111111111 | IK19: 0.1111111111 | IL19: 0.1111111111 | IM19: 0.1666666667 | IN19: 0 | IO19: 0 | IP19: 0.1666666667 | IQ19: 0.1666666667 | IR19: 0.2222222222 | IS19: 0.2222222222 | IT19: 0.2222222222 | IU19: 0.2222222222 | IV19: 0 | IW19: 0.2222222222 | IX19: 0.2222222222 | IY19: 0.1666666667 | IZ19: 0.1666666667 | JA19: =IFERROR((JA17+JA18)/JA$10,0%) -> 0.1666666667 | JB19: 0 | JC19: 0 | JD19: 0.2222222222 | JE19: 0.1666666667 | JF19: 0.1666666667 | JG19: 0.1666666667 | JH19: 0.1666666667 | JI19: 0 | JJ19: 0 | JK19: 0.1666666667 | JL19: 0.1666666667 | JM19: 0.1666666667 | JN19: 0.1666666667 | JO19: 0.1111111111 | JP19: 0.1111111111 | JQ19: 0 | JR19: 0.1111111111 | JS19: 0.1111111111 | JT19: 0.1111111111 | JU19: 0.1666666667 | JV19: 0.1666666667 | JW19: 0 | JX19: 0 | JY19: 0 | JZ19: 0 | KA19: 0 | KB19: 0 | KC19: 0 | KD19: 0 | KE19: 0 | KF19: 0 | KG19: 0 | KH19: 0 | KI19: 0 | KJ19: 0 | KK19: 0 | KL19: 0 | KM19: 0 | KN19: 0 | KO19: 0 | KP19: 0 | KQ19: 0 | KR19: 0 | KS19: 0 | KT19: 0 | KU19: 0 | KV19: 0 | KW19: 0 | KX19: 0 | KY19: 0 | KZ19: 0 | LA19: 0 | LB19: 0 | LC19: 0 | LD19: 0 | LE19: 0 | LF19: 0 | LG19: 0 | LH19: 0 | LI19: 0 | LJ19: 0 | LK19: 0 | LL19: 0 | LM19: =IFERROR((LM17+LM18)/LM$10,0%) -> 0 | LN19: 0 | LO19: 0 | LP19: 0 | LQ19: 0 | LR19: 0 | LS19: 0 | LT19: 0 | LU19: 0 | LV19: 0 | LW19: 0 | LX19: 0 | LY19: 0 | LZ19: 0 | MA19: 0 | MB19: 0 | MC19: 0 | MD19: 0 | ME19: 0 | MF19: 0 | MG19: 0 | MH19: 0 | MI19: 0 | MJ19: 0 | MK19: 0 | ML19: 0 | MM19: 0 | MN19: 0 | MO19: 0 | MP19: 0 | MQ19: 0 | MR19: 0 | MS19: 0 | MT19: 0 | MU19: 0 | MV19: 0 | MW19: 0 | MX19: 0 | MY19: 0 | MZ19: 0 | NA19: 0 | NB19: 0 | NC19: 0 | ND19: 0
A20: 2 | B20: 2/Week | C20: Individual small improvements | EH20: 0 | EI20: 0 | EJ20: 0 | EK20: 0 | EL20: 0 | EP20: 0 | EQ20: 0 | ER20: 0 | ES20: 0 | ET20: 0 | EV20: 0 | EW20: 0 | EX20: 0 | EY20: 0 | EZ20: 0 | FC20: 0 | FD20: 0 | FE20: 0 | FF20: 0 | FG20: 0 | FJ20: 0 | FK20: 0 | FL20: 0 | FM20: 0 | FN20: 0 | FO20: 0 | FQ20: 0 | FR20: 0 | FS20: 0 | FT20: 0 | FU20: 0 | FX20: 0 | FY20: 0 | FZ20: 0 | GA20: 0 | GB20: 0 | GE20: 0 | GF20: 0 | GG20: 0 | GH20: 0 | GI20: 0 | GJ20: 0 | GL20: 0 | GM20: 0 | GN20: 0 | GO20: 0 | GP20: 0 | GS20: 0 | GT20: 0 | GU20: 0 | GV20: 0 | HU20: 0 | HV20: 0 | HW20: 0 | HX20: 0 | HY20: 0 | HZ20: 0 | IB20: 0 | IC20: 0 | ID20: 0 | IE20: 0 | IF20: 0 | II20: 0 | IJ20: 0 | IK20: 0 | IL20: 0 | IM20: 0 | IP20: 0 | IQ20: 0 | IR20: 0 | IS20: 0 | IT20: 0 | IU20: 0 | IW20: 0 | IX20: 0 | IY20: 0 | IZ20: 0 | JA20: 0 | JD20: 0 | JE20: 0 | JF20: 0 | JG20: 0 | JH20: 0 | JK20: 0 | JL20: 0 | JM20: 0 | JN20: 0 | JO20: 0 | JP20: 0 | JR20: 0 | JS20: 0 | JT20: 0 | JU20: 0 | JV20: 0
B21: - | C21: Workshop Action Implementation | EH21: 0 | EI21: 0 | EJ21: 0 | EK21: 0 | EL21: 0 | EP21: 0 | EQ21: 0 | ER21: 0 | ES21: 0 | ET21: 0 | EV21: 0 | EW21: 0 | EX21: 0 | EY21: 0 | EZ21: 0 | FC21: 0 | FD21: 0 | FE21: 0 | FF21: 0 | FG21: 0 | FJ21: 0 | FK21: 0 | FL21: 0 | FM21: 0 | FN21: 0 | FO21: 0 | FQ21: 0 | FR21: 0 | FS21: 0 | FT21: 0 | FU21: 0 | FX21: 0 | FY21: 0 | FZ21: 0 | GA21: 0 | GB21: 0 | GE21: 0 | GF21: 0 | GG21: 0 | GH21: 0 | GI21: 0 | GJ21: 0 | GL21: 0 | GM21: 0 | GN21: 0 | GO21: 0 | GP21: 0 | GS21: 0 | GT21: 0 | GU21: 0 | GV21: 0 | HU21: 0 | HV21: 0 | HW21: 0 | HX21: 0 | HY21: 0 | HZ21: 0 | IB21: 0 | IC21: 0 | ID21: 0 | IE21: 0 | IF21: 0 | II21: 0 | IJ21: 0 | IK21: 0 | IL21: 0 | IM21: 0 | IP21: 0 | IQ21: 0 | IR21: 0 | IS21: 0 | IT21: 0 | IU21: 0 | IW21: 0 | IX21: 0 | IY21: 0 | IZ21: 0 | JA21: 0 | JD21: 0 | JE21: 0 | JF21: 0 | JG21: 0 | JH21: 0 | JK21: 0 | JL21: 0 | JM21: 0 | JN21: 0 | JO21: 0 | JP21: 0 | JR21: 0 | JS21: 0 | JT21: 0 | JU21: 0 | JV21: 0
A22: 0.8 | B22: 0.8 | C22: FCOM score borging | EH22: 0 | EI22: 0 | EJ22: 0 | EK22: 0 | EL22: 0 | EP22: 0 | EQ22: 0 | ER22: 0 | ES22: 0 | ET22: 0 | EV22: 0 | EW22: 0 | EX22: 0 | EY22: 0 | EZ22: 0 | FC22: 0 | FD22: 0 | FE22: 0 | FF22: 0 | FG22: 0 | FJ22: 0.6 | FK22: 0.6 | FL22: 0.6 | FM22: 0.6 | FN22: 0.6 | FO22: 0.6 | FQ22: 0.6 | FR22: 0.6 | FS22: 0.6 | FT22: 0.6 | FU22: 0.6 | FX22: 0.6 | FY22: 0.6 | FZ22: 0.6 | GA22: 0.6 | GB22: 0.6 | GE22: 0.6 | GF22: 0.6 | GG22: 0.6 | GH22: 0.6 | GI22: 0.6 | GJ22: 0.6 | GL22: 0.6 | GM22: 0.6 | GN22: 0.6 | GO22: 0.6 | GP22: 0.6 | GS22: 0.6 | GT22: 0.6 | GU22: 0.6 | GV22: 0.6 | HU22: 0.6 | HV22: 0.6 | HW22: 0.6 | HX22: 0.6 | HY22: 0.6 | HZ22: 0.6 | IB22: 0.6 | IC22: 0.6 | ID22: 0.6 | IE22: 0.6 | IF22: 0.6 | II22: 0.6 | IJ22: 0.6 | IK22: 0.6 | IL22: 0.6 | IM22: 0.6 | IP22: 0.6 | IQ22: 0.6 | IR22: 0.6 | IS22: 0.6 | IT22: 0.6 | IU22: 0.6 | IW22: 0.6 | IX22: 0.6 | IY22: 0.6 | IZ22: 0.6 | JA22: 0.6 | JD22: 0.6 | JE22: 0.6 | JF22: 0.6 | JG22: 0.6 | JH22: 0.6 | JK22: 0.6 | JL22: 0.6 | JM22: 0.6 | JN22: 0.6 | JO22: 0.6 | JP22: 0.6 | JR22: 0.6 | JS22: 0.6 | JT22: 0.6 | JU22: 0.6 | JV22: 0.6
A23: 0.9 | B23: 0.9 | C23: FCOM score milieu | EH23: 0 | EI23: 0 | EJ23: 0 | EK23: 0 | EL23: 0 | EP23: 0 | EQ23: 0 | ER23: 0 | ES23: 0 | ET23: 0 | EV23: 0 | EW23: 0 | EX23: 0 | EY23: 0 | EZ23: 0 | FC23: 0 | FD23: 0 | FE23: 0 | FF23: 0 | FG23: 0 | FJ23: 0.9 | FK23: 0.9 | FL23: 0.9 | FM23: 0.9 | FN23: 0.9 | FO23: 0.9 | FQ23: 0.9 | FR23: 0.9 | FS23: 0.9 | FT23: 0.9 | FU23: 0.9 | FX23: 0.9 | FY23: 0.9 | FZ23: 0.9 | GA23: 0.9 | GB23: 0.9 | GE23: 0.9 | GF23: 0.9 | GG23: 0.9 | GH23: 0.9 | GI23: 0.9 | GJ23: 0.9 | GL23: 0.9 | GM23: 0.9 | GN23: 0.9 | GO23: 0.9 | GP23: 0.9 | GS23: 0.9 | GT23: 0.9 | GU23: 0.9 | GV23: 0.9 | HU23: 0.9 | HV23: 0.9 | HW23: 0.9 | HX23: 0.9 | HY23: 0.9 | HZ23: 0.9 | IB23: 0.9 | IC23: 0.9 | ID23: 0.9 | IE23: 0.9 | IF23: 0.9 | II23: 0.9 | IJ23: 0.9 | IK23: 0.9 | IL23: 0.9 | IM23: 0.9 | IP23: 0.9 | IQ23: 0.9 | IR23: 0.9 | IS23: 0.9 | IT23: 0.9 | IU23: 0.9 | IW23: 0.9 | IX23: 0.9 | IY23: 0.9 | IZ23: 0.9 | JA23: 0.9 | JD23: 0.9 | JE23: 0.9 | JF23: 0.9 | JG23: 0.9 | JH23: 0.9 | JK23: 0.9 | JL23: 0.9 | JM23: 0.9 | JN23: 0.9 | JO23: 0.9 | JP23: 0.9 | JR23: 0.9 | JS23: 0.9 | JT23: 0.9 | JU23: 0.9 | JV23: 0.9
A24: 1 | B24: 1/Week | C24: Number of HR-Conversations | EH24: 0 | EI24: 0 | EJ24: 0 | EK24: 0 | EL24: 0 | EP24: 0 | EQ24: 0 | ER24: 0 | ES24: 0 | ET24: 0 | EV24: 0 | EW24: 0 | EX24: 0 | EY24: 0 | EZ24: 0 | FC24: 0 | FD24: 0 | FE24: 0 | FF24: 0 | FG24: 0 | FJ24: 0 | FK24: 0 | FL24: 0 | FM24: 0 | FN24: 0 | FO24: 0 | FQ24: 0 | FR24: 0 | FS24: 0 | FT24: 0 | FU24: 0 | FX24: 0 | FY24: 0 | FZ24: 0 | GA24: 0 | GB24: 0 | GE24: 0 | GF24: 0 | GG24: 0 | GH24: 0 | GI24: 0 | GJ24: 0 | GL24: 0 | GM24: 0 | GN24: 0 | GO24: 0 | GP24: 0 | GS24: 0 | GT24: 0 | GU24: 0 | GV24: 0 | HU24: 0 | HV24: 0 | HW24: 0 | HX24: 0 | HY24: 0 | HZ24: 0 | IB24: 0 | IC24: 0 | ID24: 0 | IE24: 0 | IF24: 0 | II24: 0 | IJ24: 0 | IK24: 1 | IL24: 0 | IM24: 0 | IP24: 0 | IQ24: 0 | IR24: 0 | IS24: 0 | IT24: 0 | IU24: 0 | IW24: 0 | IX24: 0 | IY24: 0 | IZ24: 0 | JA24: 0 | JD24: 0 | JE24: 0 | JF24: 0 | JG24: 0 | JH24: 0 | JK24: 0 | JL24: 0 | JM24: 0 | JN24: 0 | JO24: 1 | JP24: 0 | JR24: 0 | JS24: 0 | JT24: 0 | JU24: 0 | JV24: 0
A25: 1 | B25: 1/Dayshift | C25: Number of Taskgroupmeetings | EH25: 0 | EI25: 0 | EJ25: 0 | EK25: 0 | EL25: 0 | EP25: 0 | EQ25: 0 | ER25: 0 | ES25: 0 | ET25: 0 | EV25: 0 | EW25: 0 | EX25: 0 | EY25: 0 | EZ25: 0 | FC25: 0 | FD25: 0 | FE25: 0 | FF25: 0 | FG25: 0 | FJ25: 0 | FK25: 0 | FL25: 0 | FM25: 0 | FN25: 0 | FO25: 1 | FQ25: 0 | FR25: 0 | FS25: 0 | FT25: 0 | FU25: 0 | FX25: 0 | FY25: 0 | FZ25: 0 | GA25: 0 | GB25: 0 | GE25: 0 | GF25: 0 | GG25: 0 | GH25: 0 | GI25: 0 | GJ25: 0 | GL25: 0 | GM25: 0 | GN25: 0 | GO25: 0 | GP25: 0 | GS25: 0 | GT25: 0 | GU25: 0 | GV25: 0 | HU25: 0 | HV25: 0 | HW25: 0 | HX25: 0 | HY25: 0 | HZ25: 0 | IB25: 0 | IC25: 0 | ID25: 0 | IE25: 0 | IF25: 0 | II25: 0 | IJ25: 0 | IK25: 0 | IL25: 0 | IM25: 0 | IP25: 0 | IQ25: 0 | IR25: 0 | IS25: 0 | IT25: 0 | IU25: 0 | IW25: 0 | IX25: 0 | IY25: 0 | IZ25: 0 | JA25: 0 | JD25: 0 | JE25: 0 | JF25: 0 | JG25: 0 | JH25: 0 | JK25: 0 | JL25: 0 | JM25: 0 | JN25: 0 | JO25: 1 | JP25: 0 | JR25: 0 | JS25: 0 | JT25: 0 | JU25: 0 | JV25: 0
A26: 2 | B26: Delivery (D)
B27: Goal | C27: K.P.I.
A29: Plan | B29: Plan | C29: Realized SRM LH | D29: OPERATOR / STERSPELER | EH29: 320 | EI29: 340 | EJ29: 342 | EK29: 291 | EL29: 291 | EP29: 264 | EQ29: 303 | ER29: 297 | ES29: 291 | ET29: 298 | EV29: 279 | EW29: 280 | EX29: 325 | EY29: 326 | EZ29: 334 | FC29: 267 | FD29: 295 | FE29: 285 | FF29: 311 | FG29: 366 | FJ29: 290 | FK29: 321 | FL29: 385 | FM29: 305 | FN29: 282 | FO29: 87 | FQ29: 235 | FR29: 94 | FS29: 338 | FT29: 327 | FU29: 287 | FX29: 341 | FY29: 356 | FZ29: 352 | GA29: 341 | GB29: 0 | GE29: 290 | GF29: 344 | GG29: 336 | GH29: 295 | GI29: 291 | GJ29: 149 | GL29: 320 | GM29: 381 | GN29: 334 | GO29: 253 | GP29: 347 | GS29: 313 | GT29: 236 | GU29: 376 | GV29: 108 | HU29: 283 | HV29: 291 | HW29: 256 | HX29: 216 | HY29: 338 | HZ29: 383 | IB29: 212 | IC29: 335 | ID29: 252 | IE29: 355 | IF29: 340 | II29: 369 | IJ29: 345 | IK29: 321 | IL29: 365 | IM29: 374 | IP29: 284 | IQ29: 288 | IR29: 366 | IS29: 337 | IT29: 263 | IU29: 183 | IW29: 333 | IX29: 334 | IY29: 346 | IZ29: 347 | JA29: 379 | JD29: 242 | JE29: 312 | JF29: 298 | JG29: 370 | JH29: 328 | JK29: 355 | JL29: 383 | JM29: 380 | JN29: 307 | JO29: 237 | JP29: 282 | JR29: 367 | JS29: 310 | JT29: 343 | JU29: 323 | JV29: 298
A30: 40 | B30: t.b.d. | C30: Downtime Technical SRM LH [Min] | E30: =VLOOKUP(E$4,[1]SRM!$S$4:$Z$368,4,0) -> 0 | F30: =VLOOKUP(F$4,[1]SRM!$S$4:$Z$368,4,0) -> 0 | G30: =VLOOKUP(G$4,[1]SRM!$S$4:$Z$368,4,0) -> 0 | H30: =VLOOKUP(H$4,[1]SRM!$S$4:$Z$368,4,0) -> 0 | I30: =VLOOKUP(I$4,[1]SRM!$S$4:$Z$368,4,0) -> 0 | J30: =VLOOKUP(J$4,[1]SRM!$S$4:$Z$368,4,0) -> 0 | K30: =VLOOKUP(K$4,[1]SRM!$S$4:$Z$368,4,0) -> 0 | L30: =VLOOKUP(L$4,[1]SRM!$S$4:$Z$368,3,0) -> 10 | M30: =VLOOKUP(M$4,[1]SRM!$S$4:$Z$368,3,0) -> 24 | N30: =VLOOKUP(N$4,[1]SRM!$S$4:$Z$368,3,0) -> 37 | O30: =VLOOKUP(O$4,[1]SRM!$S$4:$Z$368,3,0) -> 60 | P30: =VLOOKUP(P$4,[1]SRM!$S$4:$Z$368,3,0) -> 32 | Q30: =VLOOKUP(Q$4,[1]SRM!$S$4:$Z$368,3,0) -> 0 | R30: =VLOOKUP(R$4,[1]SRM!$S$4:$Z$368,3,0) -> 0 | S30: =VLOOKUP(S$4,[1]SRM!$S$4:$Z$368,2,0) -> 54 | T30: =VLOOKUP(T$4,[1]SRM!$S$4:$Z$368,2,0) -> 13 | U30: =VLOOKUP(U$4,[1]SRM!$S$4:$Z$368,2,0) -> 55 | V30: =VLOOKUP(V$4,[1]SRM!$S$4:$Z$368,2,0) -> 33 | W30: =VLOOKUP(W$4,[1]SRM!$S$4:$Z$368,2,0) -> 54 | X30: =VLOOKUP(X$4,[1]SRM!$S$4:$Z$368,2,0) -> 0 | Y30: =VLOOKUP(Y$4,[1]SRM!$S$4:$Z$368,2,0) -> 0 | Z30: =VLOOKUP(Z$4,[1]SRM!$S$4:$Z$368,4,0) -> 0 | AA30: =VLOOKUP(AA$4,[1]SRM!$S$4:$Z$368,4,0) -> 0 | AB30: =VLOOKUP(AB$4,[1]SRM!$S$4:$Z$368,4,0) -> 0 | AC30: =VLOOKUP(AC$4,[1]SRM!$S$4:$Z$368,4,0) -> 0 | AD30: =VLOOKUP(AD$4,[1]SRM!$S$4:$Z$368,4,0) -> 0 | AE30: =VLOOKUP(AE$4,[1]SRM!$S$4:$Z$368,4,0) -> 0 | AF30: =VLOOKUP(AF$4,[1]SRM!$S$4:$Z$368,4,0) -> 0 | AG30: =VLOOKUP(AG$4,[1]SRM!$S$4:$Z$368,3,0) -> 30 | AH30: =VLOOKUP(AH$4,[1]SRM!$S$4:$Z$368,3,0) -> 44 | AI30: =VLOOKUP(AI$4,[1]SRM!$S$4:$Z$368,3,0) -> 10 | AJ30: =VLOOKUP(AJ$4,[1]SRM!$S$4:$Z$368,3,0) -> 11 | AK30: =VLOOKUP(AK$4,[1]SRM!$S$4:$Z$368,3,0) -> 26 | AL30: =VLOOKUP(AL$4,[1]SRM!$S$4:$Z$368,3,0) -> 0 | AM30: =VLOOKUP(AM$4,[1]SRM!$S$4:$Z$368,3,0) -> 0 | AN30: =VLOOKUP(AN$4,[1]SRM!$S$4:$Z$368,2,0) -> 23 | AO30: =VLOOKUP(AO$4,[1]SRM!$S$4:$Z$368,2,0) -> 37 | AP30: =VLOOKUP(AP$4,[1]SRM!$S$4:$Z$368,2,0) -> 60 | AQ30: =VLOOKUP(AQ$4,[1]SRM!$S$4:$Z$368,2,0) -> 15 | AR30: =VLOOKUP(AR$4,[1]SRM!$S$4:$Z$368,2,0) -> 33 | AS30: =VLOOKUP(AS$4,[1]SRM!$S$4:$Z$368,2,0) -> 0 | AT30: =VLOOKUP(AT$4,[1]SRM!$S$4:$Z$368,2,0) -> 0 | AU30: =VLOOKUP(AU$4,[1]SRM!$S$4:$Z$368,4,0) -> 0 | AV30: =VLOOKUP(AV$4,[1]SRM!$S$4:$Z$368,4,0) -> 0 | AW30: =VLOOKUP(AW$4,[1]SRM!$S$4:$Z$368,4,0) -> 0 | AX30: =VLOOKUP(AX$4,[1]SRM!$S$4:$Z$368,4,0) -> 0 | AY30: =VLOOKUP(AY$4,[1]SRM!$S$4:$Z$368,4,0) -> 10 | AZ30: =VLOOKUP(AZ$4,[1]SRM!$S$4:$Z$368,4,0) -> 0 | BA30: =VLOOKUP(BA$4,[1]SRM!$S$4:$Z$368,4,0) -> 0 | BB30: =VLOOKUP(BB$4,[1]SRM!$S$4:$Z$368,3,0) -> 50 | BC30: =VLOOKUP(BC$4,[1]SRM!$S$4:$Z$368,3,0) -> 22 | BD30: =VLOOKUP(BD$4,[1]SRM!$S$4:$Z$368,3,0) -> 22 | BE30: =VLOOKUP(BE$4,[1]SRM!$S$4:$Z$368,3,0) -> 13 | BF30: =VLOOKUP(BF$4,[1]SRM!$S$4:$Z$368,3,0) -> 26 | BG30: =VLOOKUP(BG$4,[1]SRM!$S$4:$Z$368,3,0) -> 0 | BH30: =VLOOKUP(BH$4,[1]SRM!$S$4:$Z$368,3,0) -> 0 | BI30: =VLOOKUP(BI$4,[1]SRM!$S$4:$Z$368,2,0) -> 0 | BJ30: =VLOOKUP(BJ$4,[1]SRM!$S$4:$Z$368,2,0) -> 19 | BK30: =VLOOKUP(BK$4,[1]SRM!$S$4:$Z$368,2,0) -> 20 | BL30: =VLOOKUP(BL$4,[1]SRM!$S$4:$Z$368,2,0) -> 30 | BM30: =VLOOKUP(BM$4,[1]SRM!$S$4:$Z$368,2,0) -> 49 | BN30: =VLOOKUP(BN$4,[1]SRM!$S$4:$Z$368,2,0) -> 0 | BO30: =VLOOKUP(BO$4,[1]SRM!$S$4:$Z$368,2,0) -> 0 | BP30: =VLOOKUP(BP$4,[1]SRM!$S$4:$Z$368,4,0) -> 0 | BQ30: =VLOOKUP(BQ$4,[1]SRM!$S$4:$Z$368,4,0) -> 0 | BR30: =VLOOKUP(BR$4,[1]SRM!$S$4:$Z$368,4,0) -> 0 | BS30: =VLOOKUP(BS$4,[1]SRM!$S$4:$Z$368,4,0) -> 0 | BT30: =VLOOKUP(BT$4,[1]SRM!$S$4:$Z$368,4,0) -> 0 | BU30: =VLOOKUP(BU$4,[1]SRM!$S$4:$Z$368,4,0) -> 0 | BV30: =VLOOKUP(BV$4,[1]SRM!$S$4:$Z$368,4,0) -> 0 | BW30: =VLOOKUP(BW$4,[1]SRM!$S$4:$Z$368,3,0) -> 32 | BX30: =VLOOKUP(BX$4,[1]SRM!$S$4:$Z$368,3,0) -> 40 | BY30: =VLOOKUP(BY$4,[1]SRM!$S$4:$Z$368,3,0) -> 41 | BZ30: =VLOOKUP(BZ$4,[1]SRM!$S$4:$Z$368,3,0) -> 25 | CA30: =VLOOKUP(CA$4,[1]SRM!$S$4:$Z$368,3,0) -> 40 | CB30: =VLOOKUP(CB$4,[1]SRM!$S$4:$Z$368,3,0) -> 0 | CC30: =VLOOKUP(CC$4,[1]SRM!$S$4:$Z$368,3,0) -> 0 | CD30: =VLOOKUP(CD$4,[1]SRM!$S$4:$Z$368,2,0) -> 30 | CE30: =VLOOKUP(CE$4,[1]SRM!$S$4:$Z$368,2,0) -> 10 | CF30: =VLOOKUP(CF$4,[1]SRM!$S$4:$Z$368,2,0) -> 8 | CG30: =VLOOKUP(CG$4,[1]SRM!$S$4:$Z$368,2,0) -> 11 | CH30: =VLOOKUP(CH$4,[1]SRM!$S$4:$Z$368,2,0) -> 46 | CI30: =VLOOKUP(CI$4,[1]SRM!$S$4:$Z$368,2,0) -> 0 | CJ30: =VLOOKUP(CJ$4,[1]SRM!$S$4:$Z$368,2,0) -> 0 | CK30: =VLOOKUP(CK$4,[1]SRM!$S$4:$Z$368,4,0) -> 0 | CL30: =VLOOKUP(CL$4,[1]SRM!$S$4:$Z$368,4,0) -> 0 | CM30: =VLOOKUP(CM$4,[1]SRM!$S$4:$Z$368,4,0) -> 0 | CN30: =VLOOKUP(CN$4,[1]SRM!$S$4:$Z$368,4,0) -> 0 | CO30: =VLOOKUP(CO$4,[1]SRM!$S$4:$Z$368,4,0) -> 0 | CP30: =VLOOKUP(CP$4,[1]SRM!$S$4:$Z$368,4,0) -> 0 | CQ30: =VLOOKUP(CQ$4,[1]SRM!$S$4:$Z$368,4,0) -> 0 | CR30: =VLOOKUP(CR$4,[1]SRM!$S$4:$Z$368,3,0) -> 0 | CS30: =VLOOKUP(CS$4,[1]SRM!$S$4:$Z$368,3,0) -> 30 | CT30: =VLOOKUP(CT$4,[1]SRM!$S$4:$Z$368,3,0) -> 87 | CU30: =VLOOKUP(CU$4,[1]SRM!$S$4:$Z$368,3,0) -> 37 | CV30: =VLOOKUP(CV$4,[1]SRM!$S$4:$Z$368,3,0) -> 33 | CW30: =VLOOKUP(CW$4,[1]SRM!$S$4:$Z$368,3,0) -> 0 | CX30: =VLOOKUP(CX$4,[1]SRM!$S$4:$Z$368,3,0) -> 0 | CY30: =VLOOKUP(CY$4,[1]SRM!$S$4:$Z$368,2,0) -> 113 | CZ30: =VLOOKUP(CZ$4,[1]SRM!$S$4:$Z$368,2,0) -> 48 | DA30: =VLOOKUP(DA$4,[1]SRM!$S$4:$Z$368,2,0) -> 44 | DB30: =VLOOKUP(DB$4,[1]SRM!$S$4:$Z$368,2,0) -> 30 | DC30: =VLOOKUP(DC$4,[1]SRM!$S$4:$Z$368,2,0) -> 48 | DD30: =VLOOKUP(DD$4,[1]SRM!$S$4:$Z$368,2,0) -> 0 | DE30: =VLOOKUP(DE$4,[1]SRM!$S$4:$Z$368,2,0) -> 0 | DF30: =VLOOKUP(DF$4,[1]SRM!$S$4:$Z$368,4,0) -> 33 | DG30: =VLOOKUP(DG$4,[1]SRM!$S$4:$Z$368,4,0) -> 70 | DH30: =VLOOKUP(DH$4,[1]SRM!$S$4:$Z$368,4,0) -> 170 | DI30: =VLOOKUP(DI$4,[1]SRM!$S$4:$Z$368,4,0) -> 19 | DJ30: =VLOOKUP(DJ$4,[1]SRM!$S$4:$Z$368,4,0) -> 41 | DK30: =VLOOKUP(DK$4,[1]SRM!$S$4:$Z$368,4,0) -> 0 | DL30: =VLOOKUP(DL$4,[1]SRM!$S$4:$Z$368,4,0) -> 0 | DM30: =VLOOKUP(DM$4,[1]SRM!$S$4:$Z$368,3,0) -> 67 | DN30: =VLOOKUP(DN$4,[1]SRM!$S$4:$Z$368,3,0) -> 39 | DO30: =VLOOKUP(DO$4,[1]SRM!$S$4:$Z$368,3,0) -> 32 | DP30: =VLOOKUP(DP$4,[1]SRM!$S$4:$Z$368,3,0) -> 32 | DQ30: =VLOOKUP(DQ$4,[1]SRM!$S$4:$Z$368,3,0) -> 0 | DR30: =VLOOKUP(DR$4,[1]SRM!$S$4:$Z$368,3,0) -> 0 | DS30: =VLOOKUP(DS$4,[1]SRM!$S$4:$Z$368,3,0) -> 0 | DT30: =VLOOKUP(DT$4,[1]SRM!$S$4:$Z$368,2,0) -> 24 | DU30: =VLOOKUP(DU$4,[1]SRM!$S$4:$Z$368,2,0) -> 107 | DV30: =VLOOKUP(DV$4,[1]SRM!$S$4:$Z$368,2,0) -> 115 | DW30: =VLOOKUP(DW$4,[1]SRM!$S$4:$Z$368,2,0) -> 16 | DX30: =VLOOKUP(DX$4,[1]SRM!$S$4:$Z$368,2,0) -> 44 | DY30: =VLOOKUP(DY$4,[1]SRM!$S$4:$Z$368,2,0) -> 87 | DZ30: =VLOOKUP(DZ$4,[1]SRM!$S$4:$Z$368,2,0) -> 0 | EA30: =VLOOKUP(EA$4,[1]SRM!$S$4:$Z$368,4,0) -> 41 | EB30: =VLOOKUP(EB$4,[1]SRM!$S$4:$Z$368,4,0) -> 16 | EC30: =VLOOKUP(EC$4,[1]SRM!$S$4:$Z$368,4,0) -> 58 | ED30: =VLOOKUP(ED$4,[1]SRM!$S$4:$Z$368,4,0) -> 0 | EE30: =VLOOKUP(EE$4,[1]SRM!$S$4:$Z$368,4,0) -> 0 | EF30: =VLOOKUP(EF$4,[1]SRM!$S$4:$Z$368,4,0) -> 0 | EG30: =VLOOKUP(EG$4,[1]SRM!$S$4:$Z$368,4,0) -> 0 | EH30: =VLOOKUP(EH$4,[1]SRM!$S$4:$Z$368,3,0) -> 34 | EI30: =VLOOKUP(EI$4,[1]SRM!$S$4:$Z$368,3,0) -> 15 | EJ30: =VLOOKUP(EJ$4,[1]SRM!$S$4:$Z$368,3,0) -> 61 | EK30: =VLOOKUP(EK$4,[1]SRM!$S$4:$Z$368,3,0) -> 46 | EL30: =VLOOKUP(EL$4,[1]SRM!$S$4:$Z$368,3,0) -> 48 | EM30: =VLOOKUP(EM$4,[1]SRM!$S$4:$Z$368,3,0) -> 0 | EN30: =VLOOKUP(EN$4,[1]SRM!$S$4:$Z$368,3,0) -> 0 | EO30: =VLOOKUP(EO$4,[1]SRM!$S$4:$Z$368,2,0) -> 0 | EP30: =VLOOKUP(EP$4,[1]SRM!$S$4:$Z$368,2,0) -> 22 | EQ30: =VLOOKUP(EQ$4,[1]SRM!$S$4:$Z$368,2,0) -> 50 | ER30: =VLOOKUP(ER$4,[1]SRM!$S$4:$Z$368,2,0) -> 50 | ES30: =VLOOKUP(ES$4,[1]SRM!$S$4:$Z$368,2,0) -> 8 | ET30: =VLOOKUP(ET$4,[1]SRM!$S$4:$Z$368,2,0) -> 60 | EU30: =VLOOKUP(EU$4,[1]SRM!$S$4:$Z$368,2,0) -> 0 | EV30: =VLOOKUP(EV$4,[1]SRM!$S$4:$Z$368,4,0) -> 6 | EW30: =VLOOKUP(EW$4,[1]SRM!$S$4:$Z$368,4,0) -> 80 | EX30: =VLOOKUP(EX$4,[1]SRM!$S$4:$Z$368,4,0) -> 10 | EY30: =VLOOKUP(EY$4,[1]SRM!$S$4:$Z$368,4,0) -> 39 | EZ30: =VLOOKUP(EZ$4,[1]SRM!$S$4:$Z$368,4,0) -> 6 | FA30: =VLOOKUP(FA$4,[1]SRM!$S$4:$Z$368,4,0) -> 0 | FB30: =VLOOKUP(FB$4,[1]SRM!$S$4:$Z$368,4,0) -> 0 | FC30: =VLOOKUP(FC$4,[1]SRM!$S$4:$Z$368,3,0) -> 38 | FD30: =VLOOKUP(FD$4,[1]SRM!$S$4:$Z$368,3,0) -> 3 | FE30: =VLOOKUP(FE$4,[1]SRM!$S$4:$Z$368,3,0) -> 11 | FF30: =VLOOKUP(FF$4,[1]SRM!$S$4:$Z$368,3,0) -> 47 | FG30: =VLOOKUP(FG$4,[1]SRM!$S$4:$Z$368,3,0) -> 46 | FH30: =VLOOKUP(FH$4,[1]SRM!$S$4:$Z$368,3,0) -> 0 | FI30: =VLOOKUP(FI$4,[1]SRM!$S$4:$Z$368,3,0) -> 0 | FJ30: =VLOOKUP(FJ$4,[1]SRM!$S$4:$Z$368,2,0) -> 73 | FK30: =VLOOKUP(FK$4,[1]SRM!$S$4:$Z$368,2,0) -> 34 | FL30: =VLOOKUP(FL$4,[1]SRM!$S$4:$Z$368,2,0) -> 69 | FM30: =VLOOKUP(FM$4,[1]SRM!$S$4:$Z$368,2,0) -> 6 | FN30: =VLOOKUP(FN$4,[1]SRM!$S$4:$Z$368,2,0) -> 24 | FO30: =VLOOKUP(FO$4,[1]SRM!$S$4:$Z$368,2,0) -> 0 | FP30: =VLOOKUP(FP$4,[1]SRM!$S$4:$Z$368,2,0) -> 0 | FQ30: =VLOOKUP(FQ$4,[1]SRM!$S$4:$Z$368,4,0) -> 0 | FR30: =VLOOKUP(FR$4,[1]SRM!$S$4:$Z$368,4,0) -> 0 | FS30: =VLOOKUP(FS$4,[1]SRM!$S$4:$Z$368,4,0) -> 20 | FT30: =VLOOKUP(FT$4,[1]SRM!$S$4:$Z$368,4,0) -> 26 | FU30: =VLOOKUP(FU$4,[1]SRM!$S$4:$Z$368,4,0) -> 0 | FV30: =VLOOKUP(FV$4,[1]SRM!$S$4:$Z$368,4,0) -> 0 | FW30: =VLOOKUP(FW$4,[1]SRM!$S$4:$Z$368,4,0) -> 0 | FX30: =VLOOKUP(FX$4,[1]SRM!$S$4:$Z$368,3,0) -> 14 | FY30: =VLOOKUP(FY$4,[1]SRM!$S$4:$Z$368,3,0) -> 28 | FZ30: =VLOOKUP(FZ$4,[1]SRM!$S$4:$Z$368,3,0) -> 0 | GA30: =VLOOKUP(GA$4,[1]SRM!$S$4:$Z$368,3,0) -> 5 | GB30: =VLOOKUP(GB$4,[1]SRM!$S$4:$Z$368,3,0) -> 0 | GC30: =VLOOKUP(GC$4,[1]SRM!$S$4:$Z$368,3,0) -> 0 | GD30: =VLOOKUP(GD$4,[1]SRM!$S$4:$Z$368,3,0) -> 0 | GE30: =VLOOKUP(GE$4,[1]SRM!$S$4:$Z$368,2,0) -> 27 | GF30: =VLOOKUP(GF$4,[1]SRM!$S$4:$Z$368,2,0) -> 24 | GG30: =VLOOKUP(GG$4,[1]SRM!$S$4:$Z$368,2,0) -> 31 | GH30: =VLOOKUP(GH$4,[1]SRM!$S$4:$Z$368,2,0) -> 12 | GI30: =VLOOKUP(GI$4,[1]SRM!$S$4:$Z$368,2,0) -> 73 | GJ30: =VLOOKUP(GJ$4,[1]SRM!$S$4:$Z$368,2,0) -> 0 | GK30: =VLOOKUP(GK$4,[1]SRM!$S$4:$Z$368,2,0) -> 0 | GL30: =VLOOKUP(GL$4,[1]SRM!$S$4:$Z$368,4,0) -> 95 | GM30: =VLOOKUP(GM$4,[1]SRM!$S$4:$Z$368,4,0) -> 7 | GN30: =VLOOKUP(GN$4,[1]SRM!$S$4:$Z$368,4,0) -> 4 | GO30: =VLOOKUP(GO$4,[1]SRM!$S$4:$Z$368,4,0) -> 0 | GP30: =VLOOKUP(GP$4,[1]SRM!$S$4:$Z$368,4,0) -> 0 | GQ30: =VLOOKUP(GQ$4,[1]SRM!$S$4:$Z$368,4,0) -> 0 | GR30: =VLOOKUP(GR$4,[1]SRM!$S$4:$Z$368,4,0) -> 0 | GS30: =VLOOKUP(GS$4,[1]SRM!$S$4:$Z$368,3,0) -> 17 | GT30: =VLOOKUP(GT$4,[1]SRM!$S$4:$Z$368,3,0) -> 108 | GU30: =VLOOKUP(GU$4,[1]SRM!$S$4:$Z$368,3,0) -> 15 | GV30: =VLOOKUP(GV$4,[1]SRM!$S$4:$Z$368,3,0) -> 0 | GW30: =VLOOKUP(GW$4,[1]SRM!$S$4:$Z$368,3,0) -> 0 | GX30: =VLOOKUP(GX$4,[1]SRM!$S$4:$Z$368,3,0) -> 0 | GY30: =VLOOKUP(GY$4,[1]SRM!$S$4:$Z$368,3,0) -> 0 | GZ30: =VLOOKUP(GZ$4,[1]SRM!$S$4:$Z$368,2,0) -> 0 | HA30: =VLOOKUP(HA$4,[1]SRM!$S$4:$Z$368,2,0) -> 0 | HB30: =VLOOKUP(HB$4,[1]SRM!$S$4:$Z$368,2,0) -> 0 | HC30: =VLOOKUP(HC$4,[1]SRM!$S$4:$Z$368,2,0) -> 0 | HD30: =VLOOKUP(HD$4,[1]SRM!$S$4:$Z$368,2,0) -> 0 | HE30: =VLOOKUP(HE$4,[1]SRM!$S$4:$Z$368,2,0) -> 0 | HF30: =VLOOKUP(HF$4,[1]SRM!$S$4:$Z$368,2,0) -> 0 | HG30: =VLOOKUP(HG$4,[1]SRM!$S$4:$Z$368,4,0) -> 0 | HH30: =VLOOKUP(HH$4,[1]SRM!$S$4:$Z$368,4,0) -> 0 | HI30: =VLOOKUP(HI$4,[1]SRM!$S$4:$Z$368,4,0) -> 0 | HJ30: =VLOOKUP(HJ$4,[1]SRM!$S$4:$Z$368,4,0) -> 0 | HK30: =VLOOKUP(HK$4,[1]SRM!$S$4:$Z$368,4,0) -> 0 | HL30: =VLOOKUP(HL$4,[1]SRM!$S$4:$Z$368,4,0) -> 0 | HM30: =VLOOKUP(HM$4,[1]SRM!$S$4:$Z$368,4,0) -> 0 | HN30: =VLOOKUP(HN$4,[1]SRM!$S$4:$Z$368,3,0) -> 0 | HO30: =VLOOKUP(HO$4,[1]SRM!$S$4:$Z$368,3,0) -> 0 | HP30: =VLOOKUP(HP$4,[1]SRM!$S$4:$Z$368,3,0) -> 0 | HQ30: =VLOOKUP(HQ$4,[1]SRM!$S$4:$Z$368,3,0) -> 0 | HR30: =VLOOKUP(HR$4,[1]SRM!$S$4:$Z$368,3,0) -> 0 | HS30: =VLOOKUP(HS$4,[1]SRM!$S$4:$Z$368,3,0) -> 0 | HT30: =VLOOKUP(HT$4,[1]SRM!$S$4:$Z$368,3,0) -> 0 | HU30: =VLOOKUP(HU$4,[1]SRM!$S$4:$Z$368,2,0) -> 53 | HV30: =VLOOKUP(HV$4,[1]SRM!$S$4:$Z$368,2,0) -> 44 | HW30: =VLOOKUP(HW$4,[1]SRM!$S$4:$Z$368,2,0) -> 17 | HX30: =VLOOKUP(HX$4,[1]SRM!$S$4:$Z$368,2,0) -> 4 | HY30: =VLOOKUP(HY$4,[1]SRM!$S$4:$Z$368,2,0) -> 19 | HZ30: =VLOOKUP(HZ$4,[1]SRM!$S$4:$Z$368,2,0) -> 0 | IA30: =VLOOKUP(IA$4,[1]SRM!$S$4:$Z$368,2,0) -> 0 | IB30: =VLOOKUP(IB$4,[1]SRM!$S$4:$Z$368,4,0) -> 43 | IC30: =VLOOKUP(IC$4,[1]SRM!$S$4:$Z$368,4,0) -> 12 | ID30: =VLOOKUP(ID$4,[1]SRM!$S$4:$Z$368,4,0) -> 48 | IE30: =VLOOKUP(IE$4,[1]SRM!$S$4:$Z$368,4,0) -> 33 | IF30: =VLOOKUP(IF$4,[1]SRM!$S$4:$Z$368,4,0) -> 0 | IG30: =VLOOKUP(IG$4,[1]SRM!$S$4:$Z$368,4,0) -> 0 | IH30: =VLOOKUP(IH$4,[1]SRM!$S$4:$Z$368,4,0) -> 0 | II30: =VLOOKUP(II$4,[1]SRM!$S$4:$Z$368,3,0) -> 23 | IJ30: =VLOOKUP(IJ$4,[1]SRM!$S$4:$Z$368,3,0) -> 33 | IK30: =VLOOKUP(IK$4,[1]SRM!$S$4:$Z$368,3,0) -> 85 | IL30: =VLOOKUP(IL$4,[1]SRM!$S$4:$Z$368,3,0) -> 12 | IM30: =VLOOKUP(IM$4,[1]SRM!$S$4:$Z$368,3,0) -> 72 | IN30: =VLOOKUP(IN$4,[1]SRM!$S$4:$Z$368,3,0) -> 0 | IO30: =VLOOKUP(IO$4,[1]SRM!$S$4:$Z$368,3,0) -> 0 | IP30: =VLOOKUP(IP$4,[1]SRM!$S$4:$Z$368,2,0) -> 47 | IQ30: =VLOOKUP(IQ$4,[1]SRM!$S$4:$Z$368,2,0) -> 47 | IR30: =VLOOKUP(IR$4,[1]SRM!$S$4:$Z$368,2,0) -> 101 | IS30: =VLOOKUP(IS$4,[1]SRM!$S$4:$Z$368,2,0) -> 18 | IT30: =VLOOKUP(IT$4,[1]SRM!$S$4:$Z$368,2,0) -> 30 | IU30: =VLOOKUP(IU$4,[1]SRM!$S$4:$Z$368,2,0) -> 0 | IV30: =VLOOKUP(IV$4,[1]SRM!$S$4:$Z$368,2,0) -> 0 | IW30: =VLOOKUP(IW$4,[1]SRM!$S$4:$Z$368,4,0) -> 66 | IX30: =VLOOKUP(IX$4,[1]SRM!$S$4:$Z$368,4,0) -> 22 | IY30: =VLOOKUP(IY$4,[1]SRM!$S$4:$Z$368,4,0) -> 26 | IZ30: =VLOOKUP(IZ$4,[1]SRM!$S$4:$Z$368,4,0) -> 10 | JA30: =VLOOKUP(JA$4,[1]SRM!$S$4:$Z$368,4,0) -> 0 | JB30: =VLOOKUP(JB$4,[1]SRM!$S$4:$Z$368,4,0) -> 0 | JC30: =VLOOKUP(JC$4,[1]SRM!$S$4:$Z$368,4,0) -> 0 | JD30: =VLOOKUP(JD$4,[1]SRM!$S$4:$Z$368,3,0) -> 108 | JE30: =VLOOKUP(JE$4,[1]SRM!$S$4:$Z$368,3,0) -> 63 | JF30: =VLOOKUP(JF$4,[1]SRM!$S$4:$Z$368,3,0) -> 86 | JG30: =VLOOKUP(JG$4,[1]SRM!$S$4:$Z$368,3,0) -> 3 | JH30: =VLOOKUP(JH$4,[1]SRM!$S$4:$Z$368,3,0) -> 18 | JI30: =VLOOKUP(JI$4,[1]SRM!$S$4:$Z$368,3,0) -> 0 | JJ30: =VLOOKUP(JJ$4,[1]SRM!$S$4:$Z$368,3,0) -> 0 | JK30: =VLOOKUP(JK$4,[1]SRM!$S$4:$Z$368,2,0) -> 49 | JL30: =VLOOKUP(JL$4,[1]SRM!$S$4:$Z$368,2,0) -> 24 | JM30: =VLOOKUP(JM$4,[1]SRM!$S$4:$Z$368,2,0) -> 58 | JN30: =VLOOKUP(JN$4,[1]SRM!$S$4:$Z$368,2,0) -> 47 | JO30: =VLOOKUP(JO$4,[1]SRM!$S$4:$Z$368,2,0) -> 0 | JP30: =VLOOKUP(JP$4,[1]SRM!$S$4:$Z$368,2,0) -> 0 | JQ30: =VLOOKUP(JQ$4,[1]SRM!$S$4:$Z$368,2,0) -> 0 | JR30: =VLOOKUP(JR$4,[1]SRM!$S$4:$Z$368,4,0) -> 33 | JS30: =VLOOKUP(JS$4,[1]SRM!$S$4:$Z$368,4,0) -> 25 | JT30: =VLOOKUP(JT$4,[1]SRM!$S$4:$Z$368,4,0) -> 20 | JU30: =VLOOKUP(JU$4,[1]SRM!$S$4:$Z$368,4,0) -> 0 | JV30: =VLOOKUP(JV$4,[1]SRM!$S$4:$Z$368,4,0) -> 0 | JW30: =VLOOKUP(JW$4,[1]SRM!$S$4:$Z$368,4,0) -> 0 | JX30: =VLOOKUP(JX$4,[1]SRM!$S$4:$Z$368,4,0) -> 0 | JY30: =VLOOKUP(JY$4,[1]SRM!$S$4:$Z$368,3,0) -> 0 | JZ30: =VLOOKUP(JZ$4,[1]SRM!$S$4:$Z$368,3,0) -> 0 | KA30: =VLOOKUP(KA$4,[1]SRM!$S$4:$Z$368,3,0) -> 0 | KB30: =VLOOKUP(KB$4,[1]SRM!$S$4:$Z$368,3,0) -> 0 | KC30: =VLOOKUP(KC$4,[1]SRM!$S$4:$Z$368,3,0) -> 0 | KD30: =VLOOKUP(KD$4,[1]SRM!$S$4:$Z$368,3,0) -> 0 | KE30: =VLOOKUP(KE$4,[1]SRM!$S$4:$Z$368,3,0) -> 0 | KF30: =VLOOKUP(KF$4,[1]SRM!$S$4:$Z$368,2,0) -> 0 | KG30: =VLOOKUP(KG$4,[1]SRM!$S$4:$Z$368,2,0) -> 0 | KH30: =VLOOKUP(KH$4,[1]SRM!$S$4:$Z$368,2,0) -> 0 | KI30: =VLOOKUP(KI$4,[1]SRM!$S$4:$Z$368,2,0) -> 0 | KJ30: =VLOOKUP(KJ$4,[1]SRM!$S$4:$Z$368,2,0) -> 0 | KK30: =VLOOKUP(KK$4,[1]SRM!$S$4:$Z$368,2,0) -> 0 | KL30: =VLOOKUP(KL$4,[1]SRM!$S$4:$Z$368,2,0) -> 0 | KM30: =VLOOKUP(KM$4,[1]SRM!$S$4:$Z$368,4,0) -> 0 | KN30: =VLOOKUP(KN$4,[1]SRM!$S$4:$Z$368,4,0) -> 0 | KO30: =VLOOKUP(KO$4,[1]SRM!$S$4:$Z$368,4,0) -> 0 | KP30: =VLOOKUP(KP$4,[1]SRM!$S$4:$Z$368,4,0) -> 0 | KQ30: =VLOOKUP(KQ$4,[1]SRM!$S$4:$Z$368,4,0) -> 0 | KR30: =VLOOKUP(KR$4,[1]SRM!$S$4:$Z$368,4,0) -> 0 | KS30: =VLOOKUP(KS$4,[1]SRM!$S$4:$Z$368,4,0) -> 0 | KT30: =VLOOKUP(KT$4,[1]SRM!$S$4:$Z$368,3,0) -> 0 | KU30: =VLOOKUP(KU$4,[1]SRM!$S$4:$Z$368,3,0) -> 0 | KV30: =VLOOKUP(KV$4,[1]SRM!$S$4:$Z$368,3,0) -> 0 | KW30: =VLOOKUP(KW$4,[1]SRM!$S$4:$Z$368,3,0) -> 0 | KX30: =VLOOKUP(KX$4,[1]SRM!$S$4:$Z$368,3,0) -> 0 | KY30: =VLOOKUP(KY$4,[1]SRM!$S$4:$Z$368,3,0) -> 0 | KZ30: =VLOOKUP(KZ$4,[1]SRM!$S$4:$Z$368,3,0) -> 0 | LA30: =VLOOKUP(LA$4,[1]SRM!$S$4:$Z$368,2,0) -> 0 | LB30: =VLOOKUP(LB$4,[1]SRM!$S$4:$Z$368,2,0) -> 0 | LC30: =VLOOKUP(LC$4,[1]SRM!$S$4:$Z$368,2,0) -> 0 | LD30: =VLOOKUP(LD$4,[1]SRM!$S$4:$Z$368,2,0) -> 0 | LE30: =VLOOKUP(LE$4,[1]SRM!$S$4:$Z$368,2,0) -> 0 | LF30: =VLOOKUP(LF$4,[1]SRM!$S$4:$Z$368,2,0) -> 0 | LG30: =VLOOKUP(LG$4,[1]SRM!$S$4:$Z$368,2,0) -> 0 | LH30: =VLOOKUP(LH$4,[1]SRM!$S$4:$Z$368,4,0) -> 0 | LI30: =VLOOKUP(LI$4,[1]SRM!$S$4:$Z$368,4,0) -> 0 | LJ30: =VLOOKUP(LJ$4,[1]SRM!$S$4:$Z$368,4,0) -> 0 | LK30: =VLOOKUP(LK$4,[1]SRM!$S$4:$Z$368,4,0) -> 0 | LL30: =VLOOKUP(LL$4,[1]SRM!$S$4:$Z$368,4,0) -> 0 | LM30: =VLOOKUP(LM$4,[1]SRM!$S$4:$Z$368,4,0) -> 0 | LN30: =VLOOKUP(LN$4,[1]SRM!$S$4:$Z$368,4,0) -> 0 | LO30: =VLOOKUP(LO$4,[1]SRM!$S$4:$Z$368,3,0) -> 0 | LP30: =VLOOKUP(LP$4,[1]SRM!$S$4:$Z$368,3,0) -> 0 | LQ30: =VLOOKUP(LQ$4,[1]SRM!$S$4:$Z$368,3,0) -> 0 | LR30: =VLOOKUP(LR$4,[1]SRM!$S$4:$Z$368,3,0) -> 0 | LS30: =VLOOKUP(LS$4,[1]SRM!$S$4:$Z$368,3,0) -> 0 | LT30: =VLOOKUP(LT$4,[1]SRM!$S$4:$Z$368,3,0) -> 0 | LU30: =VLOOKUP(LU$4,[1]SRM!$S$4:$Z$368,3,0) -> 0 | LV30: =VLOOKUP(LV$4,[1]SRM!$S$4:$Z$368,2,0) -> 0 | LW30: =VLOOKUP(LW$4,[1]SRM!$S$4:$Z$368,2,0) -> 0 | LX30: =VLOOKUP(LX$4,[1]SRM!$S$4:$Z$368,2,0) -> 0 | LY30: =VLOOKUP(LY$4,[1]SRM!$S$4:$Z$368,2,0) -> 0 | LZ30: =VLOOKUP(LZ$4,[1]SRM!$S$4:$Z$368,2,0) -> 0 | MA30: =VLOOKUP(MA$4,[1]SRM!$S$4:$Z$368,2,0) -> 0 | MB30: =VLOOKUP(MB$4,[1]SRM!$S$4:$Z$368,2,0) -> 0 | MC30: =VLOOKUP(MC$4,[1]SRM!$S$4:$Z$368,4,0) -> 0 | MD30: =VLOOKUP(MD$4,[1]SRM!$S$4:$Z$368,4,0) -> 0 | ME30: =VLOOKUP(ME$4,[1]SRM!$S$4:$Z$368,4,0) -> 0 | MF30: =VLOOKUP(MF$4,[1]SRM!$S$4:$Z$368,4,0) -> 0 | MG30: =VLOOKUP(MG$4,[1]SRM!$S$4:$Z$368,4,0) -> 0 | MH30: =VLOOKUP(MH$4,[1]SRM!$S$4:$Z$368,4,0) -> 0 | MI30: =VLOOKUP(MI$4,[1]SRM!$S$4:$Z$368,4,0) -> 0 | MJ30: =VLOOKUP(MJ$4,[1]SRM!$S$4:$Z$368,3,0) -> 0 | MK30: =VLOOKUP(MK$4,[1]SRM!$S$4:$Z$368,3,0) -> 0 | ML30: =VLOOKUP(ML$4,[1]SRM!$S$4:$Z$368,3,0) -> 0 | MM30: =VLOOKUP(MM$4,[1]SRM!$S$4:$Z$368,3,0) -> 0 | MN30: =VLOOKUP(MN$4,[1]SRM!$S$4:$Z$368,3,0) -> 0 | MO30: =VLOOKUP(MO$4,[1]SRM!$S$4:$Z$368,3,0) -> 0 | MP30: =VLOOKUP(MP$4,[1]SRM!$S$4:$Z$368,3,0) -> 0 | MQ30: =VLOOKUP(MQ$4,[1]SRM!$S$4:$Z$368,2,0) -> 0 | MR30: =VLOOKUP(MR$4,[1]SRM!$S$4:$Z$368,2,0) -> 0 | MS30: =VLOOKUP(MS$4,[1]SRM!$S$4:$Z$368,2,0) -> 0 | MT30: =VLOOKUP(MT$4,[1]SRM!$S$4:$Z$368,2,0) -> 0 | MU30: =VLOOKUP(MU$4,[1]SRM!$S$4:$Z$368,2,0) -> 0 | MV30: =VLOOKUP(MV$4,[1]SRM!$S$4:$Z$368,2,0) -> 0 | MW30: =VLOOKUP(MW$4,[1]SRM!$S$4:$Z$368,2,0) -> 0 | MX30: =VLOOKUP(MX$4,[1]SRM!$S$4:$Z$368,4,0) -> 0 | MY30: =VLOOKUP(MY$4,[1]SRM!$S$4:$Z$368,4,0) -> 0 | MZ30: =VLOOKUP(MZ$4,[1]SRM!$S$4:$Z$368,4,0) -> 0 | NA30: =VLOOKUP(NA$4,[1]SRM!$S$4:$Z$368,4,0) -> 0 | NB30: =VLOOKUP(NB$4,[1]SRM!$S$4:$Z$368,4,0) -> 0 | NC30: =VLOOKUP(NC$4,[1]SRM!$S$4:$Z$368,4,0) -> 0 | ND30: =VLOOKUP(ND$4,[1]SRM!$S$4:$Z$368,4,0) -> 0
A31: 0.089 | B31: t.b.d. | C31: Downtime Technical SRM LH [%] | E31: =IF(E29="",0%,(E30*60)/((E29*62)+(E30*60))) -> 0 | F31: =IF(F29="",0%,(F30*60)/((F29*62)+(F30*60))) -> 0 | G31: 0 | H31: 0 | I31: 0 | J31: 0 | K31: 0 | L31: 0 | M31: 0 | N31: 0 | O31: 0 | P31: 0 | Q31: 0 | R31: 0 | S31: 0 | T31: 0 | U31: 0 | V31: 0 | W31: 0 | X31: 0 | Y31: 0 | Z31: 0 | AA31: 0 | AB31: 0 | AC31: 0 | AD31: 0 | AE31: 0 | AF31: 0 | AG31: 0 | AH31: 0 | AI31: 0 | AJ31: 0 | AK31: 0 | AL31: 0 | AM31: 0 | AN31: 0 | AO31: 0 | AP31: 0 | AQ31: 0 | AR31: 0 | AS31: 0 | AT31: 0 | AU31: 0 | AV31: 0 | AW31: 0 | AX31: 0 | AY31: 0 | AZ31: 0 | BA31: 0 | BB31: 0 | BC31: 0 | BD31: 0 | BE31: 0 | BF31: 0 | BG31: 0 | BH31: 0 | BI31: 0 | BJ31: 0 | BK31: 0 | BL31: 0 | BM31: 0 | BN31: 0 | BO31: 0 | BP31: 0 | BQ31: 0 | BR31: =IF(BR29="",0%,(BR30*60)/((BR29*62)+(BR30*60))) -> 0 | BS31: 0 | BT31: 0 | BU31: 0 | BV31: 0 | BW31: 0 | BX31: 0 | BY31: 0 | BZ31: 0 | CA31: 0 | CB31: 0 | CC31: 0 | CD31: 0 | CE31: 0 | CF31: 0 | CG31: 0 | CH31: 0 | CI31: 0 | CJ31: 0 | CK31: 0 | CL31: 0 | CM31: 0 | CN31: 0 | CO31: 0 | CP31: 0 | CQ31: 0 | CR31: 0 | CS31: 0 | CT31: 0 | CU31: 0 | CV31: 0 | CW31: 0 | CX31: 0 | CY31: 0 | CZ31: 0 | DA31: 0 | DB31: 0 | DC31: 0 | DD31: 0 | DE31: 0 | DF31: 0 | DG31: 0 | DH31: 0 | DI31: 0 | DJ31: 0 | DK31: 0 | DL31: 0 | DM31: 0 | DN31: 0 | DO31: 0 | DP31: 0 | DQ31: 0 | DR31: 0 | DS31: 0 | DT31: 0 | DU31: 0 | DV31: 0 | DW31: 0 | DX31: 0 | DY31: 0 | DZ31: 0 | EA31: 0 | EB31: 0 | EC31: 0 | ED31: =IF(ED29="",0%,(ED30*60)/((ED29*62)+(ED30*60))) -> 0 | EE31: 0 | EF31: 0 | EG31: 0 | EH31: 0.09323583181 | EI31: 0.04094631483 | EJ31: 0.1472007722 | EK31: 0.13267955 | EL31: 0.137654144 | EM31: 0 | EN31: 0 | EO31: 0 | EP31: 0.07462686567 | EQ31: 0.1377031121 | ER31: 0.1400952648 | ES31: 0.02591512796 | ET31: 0.1630730205 | EU31: 0 | EV31: 0.02038735984 | EW31: 0.2166064982 | EX31: 0.02891566265 | EY31: 0.1037601987 | EZ31: 0.01708752611 | FA31: 0 | FB31: 0 | FC31: 0.1210576617 | FD31: 0.009745533297 | FE31: 0.03600654664 | FF31: 0.1275902633 | FG31: 0.1084394154 | FH31: 0 | FI31: 0 | FJ31: 0.1958855098 | FK31: 0.09297238173 | FL31: 0.1478043556 | FM31: 0.01868188895 | FN31: 0.07609384908 | FO31: 0 | FP31: 0 | FQ31: 0 | FR31: 0 | FS31: 0.05416140097 | FT31: 0.07144820005 | FU31: 0 | FV31: 0 | FW31: 0 | FX31: 0.03821308343 | FY31: 0.07073088582 | FZ31: 0 | GA31: 0.01399123216 | GC31: 0 | GD31: 0 | GE31: 0.08265306122 | GF31: 0.06324666198 | GG31: 0.08196721311 | GH31: 0.03787480274 | GI31: 0.1953438587 | GJ31: 0 | GK31: 0 | GL31: 0.2231793265 | GM31: 0.0174694285 | GN31: 0.011456941 | GO31: 0 | GP31: =IF(GP29="",0%,(GP30*60)/((GP29*62)+(GP30*60))) -> 0 | GQ31: 0 | GR31: 0 | GS31: 0.04993635563 | GT31: 0.3069344449 | GU31: 0.03717165042 | GV31: 0 | GW31: 0 | GX31: 0 | GY31: 0 | GZ31: 0 | HA31: 0 | HB31: 0 | HC31: 0 | HD31: 0 | HE31: 0 | HF31: 0 | HG31: 0 | HH31: 0 | HI31: 0 | HJ31: 0 | HK31: 0 | HL31: 0 | HM31: 0 | HN31: 0 | HO31: 0 | HP31: 0 | HQ31: 0 | HR31: 0 | HS31: 0 | HT31: 0 | HU31: 0.1534304738 | HV31: 0.1276472295 | HW31: 0.06038361354 | HX31: 0.0176056338 | HY31: 0.05159304852 | HZ31: 0 | IA31: 0 | IB31: 0.1640803867 | IC31: 0.03350395533 | ID31: 0.1556420233 | IE31: 0.08253438933 | IF31: 0 | IG31: 0 | IH31: 0 | II31: 0.05688844917 | IJ31: 0.08472400513 | IK31: 0.2039836813 | IL31: 0.03083511777 | IM31: 0.1570452232 | IN31: 0 | IO31: 0 | IP31: 0.1380458195 | IQ31: 0.1363900174 | IR31: 0.2107679466 | IS31: 0.04914899427 | IT31: 0.09941455871 | IU31: 0 | IV31: 0 | IW31: 0.160936357 | IX31: 0.05992373343 | IY31: 0.06779071789 | IZ31: 0.02713213349 | JA31: 0 | JB31: =IF(JB29="",0%,(JB30*60)/((JB29*62)+(JB30*60))) -> 0 | JC31: 0 | JD31: 0.3016198101 | JE31: 0.1634665283 | JF31: 0.2183110509 | JG31: 0.007785467128 | JH31: 0.05042958536 | JI31: 0 | JJ31: 0 | JK31: 0.1178356713 | JL31: 0.05717462082 | JM31: 0.1286982249 | JN31: 0.1290381624 | JO31: 0 | JP31: 0 | JQ31: 0 | JR31: 0.08005175063 | JS31: 0.07239382239 | JT31: 0.05341404789 | JU31: 0 | JV31: 0 | JW31: 0 | JX31: 0 | JY31: 0 | JZ31: 0 | KA31: 0 | KB31: 0 | KC31: 0 | KD31: 0 | KE31: 0 | KF31: 0 | KG31: 0 | KH31: 0 | KI31: 0 | KJ31: 0 | KK31: 0 | KL31: 0 | KM31: 0 | KN31: 0 | KO31: 0 | KP31: 0 | KQ31: 0 | KR31: 0 | KS31: 0 | KT31: 0 | KU31: 0 | KV31: 0 | KW31: 0 | KX31: 0 | KY31: 0 | KZ31: 0 | LA31: 0 | LB31: 0 | LC31: 0 | LD31: 0 | LE31: 0 | LF31: 0 | LG31: 0 | LH31: 0 | LI31: 0 | LJ31: 0 | LK31: 0 | LL31: 0 | LM31: 0 | LN31: =IF(LN29="",0%,(LN30*60)/((LN29*62)+(LN30*60))) -> 0 | LO31: 0 | LP31: 0 | LQ31: 0 | LR31: 0 | LS31: 0 | LT31: 0 | LU31: 0 | LV31: 0 | LW31: 0 | LX31: 0 | LY31: 0 | LZ31: 0 | MA31: 0 | MB31: 0 | MC31: 0 | MD31: 0 | ME31: 0 | MF31: 0 | MG31: 0 | MH31: 0 | MI31: 0 | MJ31: 0 | MK31: 0 | ML31: 0 | MM31: 0 | MN31: 0 | MO31: 0 | MP31: 0 | MQ31: 0 | MR31: 0 | MS31: 0 | MT31: 0 | MU31: 0 | MV31: 0 | MW31: 0 | MX31: 0 | MY31: 0 | MZ31: 0 | NA31: 0 | NB31: 0 | NC31: 0 | ND31: 0
A32: 0 | B32: t.b.d. | C32: Blocked Starved [Min] | EH32: 24 | EI32: 94 | EJ32: 4 | EK32: 34 | EL32: 37 | EP32: 52 | EQ32: 29 | ER32: 44 | ES32: 44 | ET32: 31 | EV32: 43 | EW32: 69 | EX32: 44 | EY32: 40 | EZ32: 41 | FC32: 55 | FD32: 56 | FE32: 39 | FF32: 43 | FG32: 11 | FJ32: 0 | FK32: 77 | FL32: 28 | FM32: 60 | FN32: 35 | FO32: 0 | FQ32: 74 | FR32: 11 | FS32: 79 | FT32: 111 | FU32: 71 | FX32: 37 | FY32: 51 | FZ32: 62 | GA32: 101 | GB32: 0 | GE32: 44 | GF32: 55 | GG32: 11 | GH32: 81 | GI32: 11 | GJ32: 32 | GL32: 11 | GM32: 3 | GN32: 52 | GO32: 41 | GP32: 66 | GS32: 37 | GT32: 72 | GU32: 32 | GV32: 0 | HU32: 47 | HV32: 41 | HW32: 58 | HX32: 32 | HY32: 59 | HZ32: 43 | IB32: 59 | IC32: 63 | ID32: 57 | IE32: 32 | IF32: 34 | II32: 63 | IJ32: 43 | IK32: 46 | IL32: 41 | IM32: 24 | IP32: 57 | IQ32: 29 | IR32: 8 | IS32: 60 | IT32: 68 | IU32: 34 | IW32: 70 | IX32: 42 | IY32: 19 | IZ32: 44 | JA32: 37 | JD32: 20 | JE32: 78 | JF32: 53 | JG32: 46 | JH32: 71 | JK32: 67 | JL32: 63 | JM32: 36 | JN32: 68 | JO32: 40 | JP32: 41 | JR32: 53 | JS32: 57 | JT32: 13 | JU32: 43 | JV32: 77
A33: 0 | B33: t.b.d. | C33: Parts at Break [Aantal] | EH33: 41 | EI33: 30 | EJ33: 35 | EK33: 37 | EL33: 25 | EP33: 19 | EQ33: 22 | ER33: 27 | ES33: 23 | ET33: 16 | EV33: 23 | EW33: 30 | EX33: 5 | EY33: 27 | EZ33: 19 | FC33: 36 | FD33: 39 | FE33: 15 | FF33: 34 | FG33: 44 | FJ33: 24 | FK33: 30 | FL33: 38 | FM33: 31 | FN33: 16 | FO33: 6 | FQ33: 3 | FR33: 5 | FS33: 46 | FT33: 30 | FU33: 11 | FX33: 19 | FY33: 28 | FZ33: 29 | GA33: 24 | GB33: 0 | GE33: 27 | GF33: 22 | GG33: 27 | GH33: 24 | GI33: 17 | GJ33: 6 | GL33: 32 | GM33: 39 | GN33: 33 | GO33: 11 | GP33: 31 | GS33: 32 | GT33: 20 | GU33: 31 | GV33: 0 | HU33: 27 | HV33: 21 | HW33: 12 | HX33: 9 | HY33: 27 | HZ33: 26 | IB33: 30 | IC33: 35 | ID33: 27 | IE33: 27 | IF33: 21 | II33: 38 | IJ33: 36 | IK33: 18 | IL33: 42 | IM33: 39 | IP33: 12 | IQ33: 5 | IR33: 31 | IS33: 22 | IT33: 18 | IU33: 16 | IW33: 24 | IX33: 21 | IY33: 23 | IZ33: 22 | JA33: 32 | JD33: 18 | JE33: 21 | JF33: 31 | JG33: 31 | JH33: 12 | JK33: 39 | JL33: 30 | JM33: 41 | JN33: 30 | JO33: 17 | JP33: 40 | JR33: 26 | JS33: 38 | JT33: 32 | JU33: 25 | JV33: 19
A34: 0 | B34: t.b.d. | C34: Planned Stop [Min] | EH34: 0 | EI34: 0 | EJ34: 0 | EK34: 0 | EL34: 0 | EP34: 0 | EQ34: 0 | ER34: 0 | ES34: 0 | ET34: 0 | EV34: 0 | EW34: 0 | EX34: 0 | EY34: 0 | EZ34: 0 | FC34: 0 | FD34: 0 | FE34: 0 | FF34: 0 | FG34: 0 | FJ34: 0 | FK34: 0 | FL34: 0 | FM34: 0 | FN34: 0 | FO34: 0 | FQ34: 0 | FR34: 0 | FS34: 0 | FT34: 0 | FU34: 0 | FX34: 0 | FY34: 0 | FZ34: 0 | GA34: 0 | GB34: 0 | GE34: 0 | GF34: 0 | GG34: 0 | GH34: 0 | GI34: 35 | GJ34: 0 | GL34: 0 | GM34: 0 | GN34: 30 | GO34: 60 | GP34: 0 | GS34: 0 | GT34: 30 | GU34: 0 | GV34: 0 | HU34: 0 | HV34: 0 | HW34: 0 | HX34: 60 | HY34: 0 | HZ34: 0 | IB34: 0 | IC34: 0 | ID34: 0 | IE34: 0 | IF34: 0 | II34: 0 | IJ34: 0 | IK34: 30 | IL34: 0 | IM34: 0 | IP34: 0 | IQ34: 0 | IR34: 0 | IS34: 0 | IT34: 0 | IU34: 0 | IW34: 0 | IX34: 0 | IY34: 0 | IZ34: 0 | JA34: 0 | JD34: 0 | JE34: 0 | JF34: 0 | JG34: 0 | JH34: 0 | JK34: 0 | JL34: 0 | JM34: 0 | JN34: 0 | JO34: 35 | JP34: 0 | JR34: 0 | JS34: 0 | JT34: 0 | JU34: 0 | JV34: 0
A35: Plan | B35: Plan | C35: Realized SRM RH | EH35: 324 | EI35: 343 | EJ35: 324 | EK35: 286 | EL35: 291 | EP35: 287 | EQ35: 315 | ER35: 296 | ES35: 283 | ET35: 298 | EV35: 283 | EW35: 296 | EX35: 304 | EY35: 315 | EZ35: 338 | FC35: 262 | FD35: 304 | FE35: 280 | FF35: 314 | FG35: 367 | FJ35: 296 | FK35: 322 | FL35: 395 | FM35: 292 | FN35: 265 | FO35: 84 | FQ35: 239 | FR35: 94 | FS35: 342 | FT35: 323 | FU35: 203 | FX35: 347 | FY35: 355 | FZ35: 345 | GA35: 358 | GB35: 0 | GE35: 291 | GF35: 345 | GG35: 340 | GH35: 297 | GI35: 307 | GJ35: 149 | GL35: 321 | GM35: 362 | GN35: 322 | GO35: 261 | GP35: 359 | GS35: 317 | GT35: 248 | GU35: 367 | GV35: 106 | HU35: 277 | HV35: 288 | HW35: 257 | HX35: 217 | HY35: 339 | HZ35: 413 | IB35: 212 | IC35: 331 | ID35: 269 | IE35: 353 | IF35: 326 | II35: 373 | IJ35: 358 | IK35: 341 | IL35: 367 | IM35: 370 | IP35: 286 | IQ35: 290 | IR35: 360 | IS35: 318 | IT35: 275 | IU35: 176 | IW35: 339 | IX35: 341 | IY35: 357 | IZ35: 347 | JA35: 363 | JD35: 252 | JE35: 314 | JF35: 305 | JG35: 347 | JH35: 326 | JK35: 377 | JL35: 389 | JM35: 394 | JN35: 309 | JO35: 238 | JP35: 285 | JR35: 362 | JS35: 301 | JT35: 324 | JU35: 335 | JV35: 298
A36: 40 | B36: t.b.d. | C36: Downtime Technical SRM RH [Min] | E36: =VLOOKUP(E4,[1]SRM!$S$4:$Z$368,8,0) -> 0 | F36: =VLOOKUP(F4,[1]SRM!$S$4:$Z$368,8,0) -> 0 | G36: =VLOOKUP(G4,[1]SRM!$S$4:$Z$368,8,0) -> 0 | H36: =VLOOKUP(H4,[1]SRM!$S$4:$Z$368,8,0) -> 0 | I36: =VLOOKUP(I4,[1]SRM!$S$4:$Z$368,8,0) -> 0 | J36: =VLOOKUP(J4,[1]SRM!$S$4:$Z$368,8,0) -> 0 | K36: =VLOOKUP(K4,[1]SRM!$S$4:$Z$368,8,0) -> 0 | L36: =VLOOKUP(L4,[1]SRM!$S$4:$Z$368,7,0) -> 43 | M36: =VLOOKUP(M4,[1]SRM!$S$4:$Z$368,7,0) -> 6 | N36: =VLOOKUP(N4,[1]SRM!$S$4:$Z$368,7,0) -> 43 | O36: =VLOOKUP(O4,[1]SRM!$S$4:$Z$368,7,0) -> 31 | P36: =VLOOKUP(P4,[1]SRM!$S$4:$Z$368,7,0) -> 20 | Q36: =VLOOKUP(Q4,[1]SRM!$S$4:$Z$368,7,0) -> 0 | R36: =VLOOKUP(R4,[1]SRM!$S$4:$Z$368,7,0) -> 0 | S36: =VLOOKUP(S4,[1]SRM!$S$4:$Z$368,6,0) -> 10 | T36: =VLOOKUP(T4,[1]SRM!$S$4:$Z$368,6,0) -> 55 | U36: =VLOOKUP(U4,[1]SRM!$S$4:$Z$368,6,0) -> 15 | V36: =VLOOKUP(V4,[1]SRM!$S$4:$Z$368,6,0) -> 22 | W36: =VLOOKUP(W4,[1]SRM!$S$4:$Z$368,6,0) -> 18 | X36: =VLOOKUP(X4,[1]SRM!$S$4:$Z$368,6,0) -> 0 | Y36: =VLOOKUP(Y4,[1]SRM!$S$4:$Z$368,6,0) -> 0 | Z36: =VLOOKUP(Z4,[1]SRM!$S$4:$Z$368,8,0) -> 0 | AA36: =VLOOKUP(AA4,[1]SRM!$S$4:$Z$368,8,0) -> 0 | AB36: =VLOOKUP(AB4,[1]SRM!$S$4:$Z$368,8,0) -> 0 | AC36: =VLOOKUP(AC4,[1]SRM!$S$4:$Z$368,8,0) -> 0 | AD36: =VLOOKUP(AD4,[1]SRM!$S$4:$Z$368,8,0) -> 0 | AE36: =VLOOKUP(AE4,[1]SRM!$S$4:$Z$368,8,0) -> 0 | AF36: =VLOOKUP(AF4,[1]SRM!$S$4:$Z$368,8,0) -> 0 | AG36: =VLOOKUP(AG4,[1]SRM!$S$4:$Z$368,7,0) -> 15 | AH36: =VLOOKUP(AH4,[1]SRM!$S$4:$Z$368,7,0) -> 12 | AI36: =VLOOKUP(AI4,[1]SRM!$S$4:$Z$368,7,0) -> 31 | AJ36: =VLOOKUP(AJ4,[1]SRM!$S$4:$Z$368,7,0) -> 24 | AK36: =VLOOKUP(AK4,[1]SRM!$S$4:$Z$368,7,0) -> 20 | AL36: =VLOOKUP(AL4,[1]SRM!$S$4:$Z$368,7,0) -> 0 | AM36: =VLOOKUP(AM4,[1]SRM!$S$4:$Z$368,7,0) -> 0 | AN36: =VLOOKUP(AN4,[1]SRM!$S$4:$Z$368,6,0) -> 25 | AO36: =VLOOKUP(AO4,[1]SRM!$S$4:$Z$368,6,0) -> 35 | AP36: =VLOOKUP(AP4,[1]SRM!$S$4:$Z$368,6,0) -> 63 | AQ36: =VLOOKUP(AQ4,[1]SRM!$S$4:$Z$368,6,0) -> 62 | AR36: =VLOOKUP(AR4,[1]SRM!$S$4:$Z$368,6,0) -> 46 | AS36: =VLOOKUP(AS4,[1]SRM!$S$4:$Z$368,6,0) -> 0 | AT36: =VLOOKUP(AT4,[1]SRM!$S$4:$Z$368,6,0) -> 0 | AU36: =VLOOKUP(AU4,[1]SRM!$S$4:$Z$368,8,0) -> 0 | AV36: =VLOOKUP(AV4,[1]SRM!$S$4:$Z$368,8,0) -> 0 | AW36: =VLOOKUP(AW4,[1]SRM!$S$4:$Z$368,8,0) -> 0 | AX36: =VLOOKUP(AX4,[1]SRM!$S$4:$Z$368,8,0) -> 0 | AY36: =VLOOKUP(AY4,[1]SRM!$S$4:$Z$368,8,0) -> 15 | AZ36: =VLOOKUP(AZ4,[1]SRM!$S$4:$Z$368,8,0) -> 0 | BA36: =VLOOKUP(BA4,[1]SRM!$S$4:$Z$368,8,0) -> 0 | BB36: =VLOOKUP(BB4,[1]SRM!$S$4:$Z$368,7,0) -> 22 | BC36: =VLOOKUP(BC4,[1]SRM!$S$4:$Z$368,7,0) -> 24 | BD36: =VLOOKUP(BD4,[1]SRM!$S$4:$Z$368,7,0) -> 58 | BE36: =VLOOKUP(BE4,[1]SRM!$S$4:$Z$368,7,0) -> 32 | BF36: =VLOOKUP(BF4,[1]SRM!$S$4:$Z$368,7,0) -> 10 | BG36: =VLOOKUP(BG4,[1]SRM!$S$4:$Z$368,7,0) -> 0 | BH36: =VLOOKUP(BH4,[1]SRM!$S$4:$Z$368,7,0) -> 0 | BI36: =VLOOKUP(BI4,[1]SRM!$S$4:$Z$368,6,0) -> 0 | BJ36: =VLOOKUP(BJ4,[1]SRM!$S$4:$Z$368,6,0) -> 22 | BK36: =VLOOKUP(BK4,[1]SRM!$S$4:$Z$368,6,0) -> 21 | BL36: =VLOOKUP(BL4,[1]SRM!$S$4:$Z$368,6,0) -> 39 | BM36: =VLOOKUP(BM4,[1]SRM!$S$4:$Z$368,6,0) -> 25 | BN36: =VLOOKUP(BN4,[1]SRM!$S$4:$Z$368,6,0) -> 0 | BO36: =VLOOKUP(BO4,[1]SRM!$S$4:$Z$368,6,0) -> 0 | BP36: =VLOOKUP(BP4,[1]SRM!$S$4:$Z$368,8,0) -> 0 | BQ36: =VLOOKUP(BQ4,[1]SRM!$S$4:$Z$368,8,0) -> 0 | BR36: =VLOOKUP(BR4,[1]SRM!$S$4:$Z$368,8,0) -> 0 | BS36: =VLOOKUP(BS4,[1]SRM!$S$4:$Z$368,8,0) -> 0 | BT36: =VLOOKUP(BT4,[1]SRM!$S$4:$Z$368,8,0) -> 0 | BU36: =VLOOKUP(BU4,[1]SRM!$S$4:$Z$368,8,0) -> 0 | BV36: =VLOOKUP(BV4,[1]SRM!$S$4:$Z$368,8,0) -> 0 | BW36: =VLOOKUP(BW4,[1]SRM!$S$4:$Z$368,7,0) -> 89 | BX36: =VLOOKUP(BX4,[1]SRM!$S$4:$Z$368,7,0) -> 27 | BY36: =VLOOKUP(BY4,[1]SRM!$S$4:$Z$368,7,0) -> 9 | BZ36: =VLOOKUP(BZ4,[1]SRM!$S$4:$Z$368,7,0) -> 4 | CA36: =VLOOKUP(CA4,[1]SRM!$S$4:$Z$368,7,0) -> 80 | CB36: =VLOOKUP(CB4,[1]SRM!$S$4:$Z$368,7,0) -> 0 | CC36: =VLOOKUP(CC4,[1]SRM!$S$4:$Z$368,7,0) -> 0 | CD36: =VLOOKUP(CD4,[1]SRM!$S$4:$Z$368,6,0) -> 19 | CE36: =VLOOKUP(CE4,[1]SRM!$S$4:$Z$368,6,0) -> 23 | CF36: =VLOOKUP(CF4,[1]SRM!$S$4:$Z$368,6,0) -> 43 | CG36: =VLOOKUP(CG4,[1]SRM!$S$4:$Z$368,6,0) -> 26 | CH36: =VLOOKUP(CH4,[1]SRM!$S$4:$Z$368,6,0) -> 45 | CI36: =VLOOKUP(CI4,[1]SRM!$S$4:$Z$368,6,0) -> 0 | CJ36: =VLOOKUP(CJ4,[1]SRM!$S$4:$Z$368,6,0) -> 0 | CK36: =VLOOKUP(CK4,[1]SRM!$S$4:$Z$368,8,0) -> 0 | CL36: =VLOOKUP(CL4,[1]SRM!$S$4:$Z$368,8,0) -> 0 | CM36: =VLOOKUP(CM4,[1]SRM!$S$4:$Z$368,8,0) -> 0 | CN36: =VLOOKUP(CN4,[1]SRM!$S$4:$Z$368,8,0) -> 0 | CO36: =VLOOKUP(CO4,[1]SRM!$S$4:$Z$368,8,0) -> 0 | CP36: =VLOOKUP(CP4,[1]SRM!$S$4:$Z$368,8,0) -> 0 | CQ36: =VLOOKUP(CQ4,[1]SRM!$S$4:$Z$368,8,0) -> 0 | CR36: =VLOOKUP(CR4,[1]SRM!$S$4:$Z$368,7,0) -> 0 | CS36: =VLOOKUP(CS4,[1]SRM!$S$4:$Z$368,7,0) -> 49 | CT36: =VLOOKUP(CT4,[1]SRM!$S$4:$Z$368,7,0) -> 9 | CU36: =VLOOKUP(CU4,[1]SRM!$S$4:$Z$368,7,0) -> 21 | CV36: =VLOOKUP(CV4,[1]SRM!$S$4:$Z$368,7,0) -> 20 | CW36: =VLOOKUP(CW4,[1]SRM!$S$4:$Z$368,7,0) -> 0 | CX36: =VLOOKUP(CX4,[1]SRM!$S$4:$Z$368,7,0) -> 0 | CY36: =VLOOKUP(CY4,[1]SRM!$S$4:$Z$368,6,0) -> 22 | CZ36: =VLOOKUP(CZ4,[1]SRM!$S$4:$Z$368,6,0) -> 49 | DA36: =VLOOKUP(DA4,[1]SRM!$S$4:$Z$368,6,0) -> 35 | DB36: =VLOOKUP(DB4,[1]SRM!$S$4:$Z$368,6,0) -> 51 | DC36: =VLOOKUP(DC4,[1]SRM!$S$4:$Z$368,6,0) -> 57 | DD36: =VLOOKUP(DD4,[1]SRM!$S$4:$Z$368,6,0) -> 0 | DE36: =VLOOKUP(DE4,[1]SRM!$S$4:$Z$368,6,0) -> 0 | DF36: =VLOOKUP(DF4,[1]SRM!$S$4:$Z$368,8,0) -> 23 | DG36: =VLOOKUP(DG4,[1]SRM!$S$4:$Z$368,8,0) -> 5 | DH36: =VLOOKUP(DH4,[1]SRM!$S$4:$Z$368,8,0) -> 0 | DI36: =VLOOKUP(DI4,[1]SRM!$S$4:$Z$368,8,0) -> 13 | DJ36: =VLOOKUP(DJ4,[1]SRM!$S$4:$Z$368,8,0) -> 10 | DK36: =VLOOKUP(DK4,[1]SRM!$S$4:$Z$368,8,0) -> 0 | DL36: =VLOOKUP(DL4,[1]SRM!$S$4:$Z$368,8,0) -> 0 | DM36: =VLOOKUP(DM4,[1]SRM!$S$4:$Z$368,7,0) -> 11 | DN36: =VLOOKUP(DN4,[1]SRM!$S$4:$Z$368,7,0) -> 143 | DO36: =VLOOKUP(DO4,[1]SRM!$S$4:$Z$368,7,0) -> 56 | DP36: =VLOOKUP(DP4,[1]SRM!$S$4:$Z$368,7,0) -> 31 | DQ36: =VLOOKUP(DQ4,[1]SRM!$S$4:$Z$368,7,0) -> 0 | DR36: =VLOOKUP(DR4,[1]SRM!$S$4:$Z$368,7,0) -> 0 | DS36: =VLOOKUP(DS4,[1]SRM!$S$4:$Z$368,7,0) -> 0 | DT36: =VLOOKUP(DT4,[1]SRM!$S$4:$Z$368,6,0) -> 42 | DU36: =VLOOKUP(DU4,[1]SRM!$S$4:$Z$368,6,0) -> 11 | DV36: =VLOOKUP(DV4,[1]SRM!$S$4:$Z$368,6,0) -> 101 | DW36: =VLOOKUP(DW4,[1]SRM!$S$4:$Z$368,6,0) -> 83 | DX36: =VLOOKUP(DX4,[1]SRM!$S$4:$Z$368,6,0) -> 18 | DY36: =VLOOKUP(DY4,[1]SRM!$S$4:$Z$368,6,0) -> 50 | DZ36: =VLOOKUP(DZ4,[1]SRM!$S$4:$Z$368,6,0) -> 0 | EA36: =VLOOKUP(EA4,[1]SRM!$S$4:$Z$368,8,0) -> 20 | EB36: =VLOOKUP(EB4,[1]SRM!$S$4:$Z$368,8,0) -> 76 | EC36: =VLOOKUP(EC4,[1]SRM!$S$4:$Z$368,8,0) -> 71 | ED36: =VLOOKUP(ED4,[1]SRM!$S$4:$Z$368,8,0) -> 0 | EE36: =VLOOKUP(EE4,[1]SRM!$S$4:$Z$368,8,0) -> 50 | EF36: =VLOOKUP(EF4,[1]SRM!$S$4:$Z$368,8,0) -> 0 | EG36: =VLOOKUP(EG4,[1]SRM!$S$4:$Z$368,8,0) -> 0 | EH36: =VLOOKUP(EH4,[1]SRM!$S$4:$Z$368,7,0) -> 30 | EI36: =VLOOKUP(EI4,[1]SRM!$S$4:$Z$368,7,0) -> 37 | EJ36: =VLOOKUP(EJ4,[1]SRM!$S$4:$Z$368,7,0) -> 55 | EK36: =VLOOKUP(EK4,[1]SRM!$S$4:$Z$368,7,0) -> 19 | EL36: =VLOOKUP(EL4,[1]SRM!$S$4:$Z$368,7,0) -> 15 | EM36: =VLOOKUP(EM4,[1]SRM!$S$4:$Z$368,7,0) -> 0 | EN36: =VLOOKUP(EN4,[1]SRM!$S$4:$Z$368,7,0) -> 0 | EO36: =VLOOKUP(EO4,[1]SRM!$S$4:$Z$368,6,0) -> 0 | EP36: =VLOOKUP(EP4,[1]SRM!$S$4:$Z$368,6,0) -> 26 | EQ36: =VLOOKUP(EQ4,[1]SRM!$S$4:$Z$368,6,0) -> 3 | ER36: =VLOOKUP(ER4,[1]SRM!$S$4:$Z$368,6,0) -> 15 | ES36: =VLOOKUP(ES4,[1]SRM!$S$4:$Z$368,6,0) -> 33 | ET36: =VLOOKUP(ET4,[1]SRM!$S$4:$Z$368,6,0) -> 16 | EU36: =VLOOKUP(EU4,[1]SRM!$S$4:$Z$368,6,0) -> 0 | EV36: =VLOOKUP(EV4,[1]SRM!$S$4:$Z$368,8,0) -> 18 | EW36: =VLOOKUP(EW4,[1]SRM!$S$4:$Z$368,8,0) -> 17 | EX36: =VLOOKUP(EX4,[1]SRM!$S$4:$Z$368,8,0) -> 50 | EY36: =VLOOKUP(EY4,[1]SRM!$S$4:$Z$368,8,0) -> 5 | EZ36: =VLOOKUP(EZ4,[1]SRM!$S$4:$Z$368,8,0) -> 0 | FA36: =VLOOKUP(FA4,[1]SRM!$S$4:$Z$368,8,0) -> 0 | FB36: =VLOOKUP(FB4,[1]SRM!$S$4:$Z$368,8,0) -> 0 | FC36: =VLOOKUP(FC4,[1]SRM!$S$4:$Z$368,7,0) -> 11 | FD36: =VLOOKUP(FD4,[1]SRM!$S$4:$Z$368,7,0) -> 24 | FE36: =VLOOKUP(FE4,[1]SRM!$S$4:$Z$368,7,0) -> 75 | FF36: =VLOOKUP(FF4,[1]SRM!$S$4:$Z$368,7,0) -> 100 | FG36: =VLOOKUP(FG4,[1]SRM!$S$4:$Z$368,7,0) -> 69 | FH36: =VLOOKUP(FH4,[1]SRM!$S$4:$Z$368,7,0) -> 0 | FI36: =VLOOKUP(FI4,[1]SRM!$S$4:$Z$368,7,0) -> 0 | FJ36: =VLOOKUP(FJ4,[1]SRM!$S$4:$Z$368,6,0) -> 35 | FK36: =VLOOKUP(FK4,[1]SRM!$S$4:$Z$368,6,0) -> 19 | FL36: =VLOOKUP(FL4,[1]SRM!$S$4:$Z$368,6,0) -> 9 | FM36: =VLOOKUP(FM4,[1]SRM!$S$4:$Z$368,6,0) -> 35 | FN36: =VLOOKUP(FN4,[1]SRM!$S$4:$Z$368,6,0) -> 0 | FO36: =VLOOKUP(FO4,[1]SRM!$S$4:$Z$368,6,0) -> 0 | FP36: =VLOOKUP(FP4,[1]SRM!$S$4:$Z$368,6,0) -> 0 | FQ36: =VLOOKUP(FQ4,[1]SRM!$S$4:$Z$368,8,0) -> 56 | FR36: =VLOOKUP(FR4,[1]SRM!$S$4:$Z$368,8,0) -> 0 | FS36: =VLOOKUP(FS4,[1]SRM!$S$4:$Z$368,8,0) -> 70 | FT36: =VLOOKUP(FT4,[1]SRM!$S$4:$Z$368,8,0) -> 86 | FU36: =VLOOKUP(FU4,[1]SRM!$S$4:$Z$368,8,0) -> 0 | FV36: =VLOOKUP(FV4,[1]SRM!$S$4:$Z$368,8,0) -> 0 | FW36: =VLOOKUP(FW4,[1]SRM!$S$4:$Z$368,8,0) -> 0 | FX36: =VLOOKUP(FX4,[1]SRM!$S$4:$Z$368,7,0) -> 70 | FY36: =VLOOKUP(FY4,[1]SRM!$S$4:$Z$368,7,0) -> 101 | FZ36: =VLOOKUP(FZ4,[1]SRM!$S$4:$Z$368,7,0) -> 56 | GA36: =VLOOKUP(GA4,[1]SRM!$S$4:$Z$368,7,0) -> 35 | GB36: =VLOOKUP(GB4,[1]SRM!$S$4:$Z$368,7,0) -> 0 | GC36: =VLOOKUP(GC4,[1]SRM!$S$4:$Z$368,7,0) -> 0 | GD36: =VLOOKUP(GD4,[1]SRM!$S$4:$Z$368,7,0) -> 0 | GE36: =VLOOKUP(GE4,[1]SRM!$S$4:$Z$368,6,0) -> 24 | GF36: =VLOOKUP(GF4,[1]SRM!$S$4:$Z$368,6,0) -> 21 | GG36: =VLOOKUP(GG4,[1]SRM!$S$4:$Z$368,6,0) -> 32 | GH36: =VLOOKUP(GH4,[1]SRM!$S$4:$Z$368,6,0) -> 33 | GI36: =VLOOKUP(GI4,[1]SRM!$S$4:$Z$368,6,0) -> 38 | GJ36: =VLOOKUP(GJ4,[1]SRM!$S$4:$Z$368,6,0) -> 0 | GK36: =VLOOKUP(GK4,[1]SRM!$S$4:$Z$368,6,0) -> 0 | GL36: =VLOOKUP(GL4,[1]SRM!$S$4:$Z$368,8,0) -> 30 | GM36: =VLOOKUP(GM4,[1]SRM!$S$4:$Z$368,8,0) -> 49 | GN36: =VLOOKUP(GN4,[1]SRM!$S$4:$Z$368,8,0) -> 28 | GO36: =VLOOKUP(GO4,[1]SRM!$S$4:$Z$368,8,0) -> 0 | GP36: =VLOOKUP(GP4,[1]SRM!$S$4:$Z$368,8,0) -> 0 | GQ36: =VLOOKUP(GQ4,[1]SRM!$S$4:$Z$368,8,0) -> 0 | GR36: =VLOOKUP(GR4,[1]SRM!$S$4:$Z$368,8,0) -> 0 | GS36: =VLOOKUP(GS4,[1]SRM!$S$4:$Z$368,7,0) -> 54 | GT36: =VLOOKUP(GT4,[1]SRM!$S$4:$Z$368,7,0) -> 75 | GU36: =VLOOKUP(GU4,[1]SRM!$S$4:$Z$368,7,0) -> 40 | GV36: =VLOOKUP(GV4,[1]SRM!$S$4:$Z$368,7,0) -> 0 | GW36: =VLOOKUP(GW4,[1]SRM!$S$4:$Z$368,7,0) -> 0 | GX36: =VLOOKUP(GX4,[1]SRM!$S$4:$Z$368,7,0) -> 0 | GY36: =VLOOKUP(GY4,[1]SRM!$S$4:$Z$368,7,0) -> 0 | GZ36: =VLOOKUP(GZ4,[1]SRM!$S$4:$Z$368,6,0) -> 0 | HA36: =VLOOKUP(HA4,[1]SRM!$S$4:$Z$368,6,0) -> 0 | HB36: =VLOOKUP(HB4,[1]SRM!$S$4:$Z$368,6,0) -> 0 | HC36: =VLOOKUP(HC4,[1]SRM!$S$4:$Z$368,6,0) -> 0 | HD36: =VLOOKUP(HD4,[1]SRM!$S$4:$Z$368,6,0) -> 0 | HE36: =VLOOKUP(HE4,[1]SRM!$S$4:$Z$368,6,0) -> 0 | HF36: =VLOOKUP(HF4,[1]SRM!$S$4:$Z$368,6,0) -> 0 | HG36: =VLOOKUP(HG4,[1]SRM!$S$4:$Z$368,8,0) -> 0 | HH36: =VLOOKUP(HH4,[1]SRM!$S$4:$Z$368,8,0) -> 0 | HI36: =VLOOKUP(HI4,[1]SRM!$S$4:$Z$368,8,0) -> 0 | HJ36: =VLOOKUP(HJ4,[1]SRM!$S$4:$Z$368,8,0) -> 0 | HK36: =VLOOKUP(HK4,[1]SRM!$S$4:$Z$368,8,0) -> 0 | HL36: =VLOOKUP(HL4,[1]SRM!$S$4:$Z$368,8,0) -> 0 | HM36: =VLOOKUP(HM4,[1]SRM!$S$4:$Z$368,8,0) -> 0 | HN36: =VLOOKUP(HN4,[1]SRM!$S$4:$Z$368,7,0) -> 0 | HO36: =VLOOKUP(HO4,[1]SRM!$S$4:$Z$368,7,0) -> 0 | HP36: =VLOOKUP(HP4,[1]SRM!$S$4:$Z$368,7,0) -> 0 | HQ36: =VLOOKUP(HQ4,[1]SRM!$S$4:$Z$368,7,0) -> 0 | HR36: =VLOOKUP(HR4,[1]SRM!$S$4:$Z$368,7,0) -> 0 | HS36: =VLOOKUP(HS4,[1]SRM!$S$4:$Z$368,7,0) -> 0 | HT36: =VLOOKUP(HT4,[1]SRM!$S$4:$Z$368,7,0) -> 0 | HU36: =VLOOKUP(HU4,[1]SRM!$S$4:$Z$368,6,0) -> 60 | HV36: =VLOOKUP(HV4,[1]SRM!$S$4:$Z$368,6,0) -> 17 | HW36: =VLOOKUP(HW4,[1]SRM!$S$4:$Z$368,6,0) -> 13 | HX36: =VLOOKUP(HX4,[1]SRM!$S$4:$Z$368,6,0) -> 8 | HY36: =VLOOKUP(HY4,[1]SRM!$S$4:$Z$368,6,0) -> 32 | HZ36: =VLOOKUP(HZ4,[1]SRM!$S$4:$Z$368,6,0) -> 0 | IA36: =VLOOKUP(IA4,[1]SRM!$S$4:$Z$368,6,0) -> 0 | IB36: =VLOOKUP(IB4,[1]SRM!$S$4:$Z$368,8,0) -> 45 | IC36: =VLOOKUP(IC4,[1]SRM!$S$4:$Z$368,8,0) -> 13 | ID36: =VLOOKUP(ID4,[1]SRM!$S$4:$Z$368,8,0) -> 8 | IE36: =VLOOKUP(IE4,[1]SRM!$S$4:$Z$368,8,0) -> 62 | IF36: =VLOOKUP(IF4,[1]SRM!$S$4:$Z$368,8,0) -> 0 | IG36: =VLOOKUP(IG4,[1]SRM!$S$4:$Z$368,8,0) -> 0 | IH36: =VLOOKUP(IH4,[1]SRM!$S$4:$Z$368,8,0) -> 0 | II36: =VLOOKUP(II4,[1]SRM!$S$4:$Z$368,7,0) -> 43 | IJ36: =VLOOKUP(IJ4,[1]SRM!$S$4:$Z$368,7,0) -> 127 | IK36: =VLOOKUP(IK4,[1]SRM!$S$4:$Z$368,7,0) -> 83 | IL36: =VLOOKUP(IL4,[1]SRM!$S$4:$Z$368,7,0) -> 69 | IM36: =VLOOKUP(IM4,[1]SRM!$S$4:$Z$368,7,0) -> 98 | IN36: =VLOOKUP(IN4,[1]SRM!$S$4:$Z$368,7,0) -> 0 | IO36: =VLOOKUP(IO4,[1]SRM!$S$4:$Z$368,7,0) -> 0 | IP36: =VLOOKUP(IP4,[1]SRM!$S$4:$Z$368,6,0) -> 40 | IQ36: =VLOOKUP(IQ4,[1]SRM!$S$4:$Z$368,6,0) -> 136 | IR36: =VLOOKUP(IR4,[1]SRM!$S$4:$Z$368,6,0) -> 37 | IS36: =VLOOKUP(IS4,[1]SRM!$S$4:$Z$368,6,0) -> 61 | IT36: =VLOOKUP(IT4,[1]SRM!$S$4:$Z$368,6,0) -> 9 | IU36: =VLOOKUP(IU4,[1]SRM!$S$4:$Z$368,6,0) -> 0 | IV36: =VLOOKUP(IV4,[1]SRM!$S$4:$Z$368,6,0) -> 0 | IW36: =VLOOKUP(IW4,[1]SRM!$S$4:$Z$368,8,0) -> 73 | IX36: =VLOOKUP(IX4,[1]SRM!$S$4:$Z$368,8,0) -> 44 | IY36: =VLOOKUP(IY4,[1]SRM!$S$4:$Z$368,8,0) -> 6 | IZ36: =VLOOKUP(IZ4,[1]SRM!$S$4:$Z$368,8,0) -> 6 | JA36: =VLOOKUP(JA4,[1]SRM!$S$4:$Z$368,8,0) -> 0 | JB36: =VLOOKUP(JB4,[1]SRM!$S$4:$Z$368,8,0) -> 0 | JC36: =VLOOKUP(JC4,[1]SRM!$S$4:$Z$368,8,0) -> 0 | JD36: =VLOOKUP(JD4,[1]SRM!$S$4:$Z$368,7,0) -> 11 | JE36: =VLOOKUP(JE4,[1]SRM!$S$4:$Z$368,7,0) -> 8 | JF36: =VLOOKUP(JF4,[1]SRM!$S$4:$Z$368,7,0) -> 37 | JG36: =VLOOKUP(JG4,[1]SRM!$S$4:$Z$368,7,0) -> 74 | JH36: =VLOOKUP(JH4,[1]SRM!$S$4:$Z$368,7,0) -> 26 | JI36: =VLOOKUP(JI4,[1]SRM!$S$4:$Z$368,7,0) -> 0 | JJ36: =VLOOKUP(JJ4,[1]SRM!$S$4:$Z$368,7,0) -> 0 | JK36: =VLOOKUP(JK4,[1]SRM!$S$4:$Z$368,6,0) -> 21 | JL36: =VLOOKUP(JL4,[1]SRM!$S$4:$Z$368,6,0) -> 26 | JM36: =VLOOKUP(JM4,[1]SRM!$S$4:$Z$368,6,0) -> 91 | JN36: =VLOOKUP(JN4,[1]SRM!$S$4:$Z$368,6,0) -> 40 | JO36: =VLOOKUP(JO4,[1]SRM!$S$4:$Z$368,6,0) -> 0 | JP36: =VLOOKUP(JP4,[1]SRM!$S$4:$Z$368,6,0) -> 0 | JQ36: =VLOOKUP(JQ4,[1]SRM!$S$4:$Z$368,6,0) -> 0 | JR36: =VLOOKUP(JR4,[1]SRM!$S$4:$Z$368,8,0) -> 57 | JS36: =VLOOKUP(JS4,[1]SRM!$S$4:$Z$368,8,0) -> 11 | JT36: =VLOOKUP(JT4,[1]SRM!$S$4:$Z$368,8,0) -> 18 | JU36: =VLOOKUP(JU4,[1]SRM!$S$4:$Z$368,8,0) -> 0 | JV36: =VLOOKUP(JV4,[1]SRM!$S$4:$Z$368,8,0) -> 0 | JW36: =VLOOKUP(JW4,[1]SRM!$S$4:$Z$368,8,0) -> 0 | JX36: =VLOOKUP(JX4,[1]SRM!$S$4:$Z$368,8,0) -> 0 | JY36: =VLOOKUP(JY4,[1]SRM!$S$4:$Z$368,7,0) -> 0 | JZ36: =VLOOKUP(JZ4,[1]SRM!$S$4:$Z$368,7,0) -> 0 | KA36: =VLOOKUP(KA4,[1]SRM!$S$4:$Z$368,7,0) -> 0 | KB36: =VLOOKUP(KB4,[1]SRM!$S$4:$Z$368,7,0) -> 0 | KC36: =VLOOKUP(KC4,[1]SRM!$S$4:$Z$368,7,0) -> 0 | KD36: =VLOOKUP(KD4,[1]SRM!$S$4:$Z$368,7,0) -> 0 | KE36: =VLOOKUP(KE4,[1]SRM!$S$4:$Z$368,7,0) -> 0 | KF36: =VLOOKUP(KF4,[1]SRM!$S$4:$Z$368,6,0) -> 0 | KG36: =VLOOKUP(KG4,[1]SRM!$S$4:$Z$368,6,0) -> 0 | KH36: =VLOOKUP(KH4,[1]SRM!$S$4:$Z$368,6,0) -> 0 | KI36: =VLOOKUP(KI4,[1]SRM!$S$4:$Z$368,6,0) -> 0 | KJ36: =VLOOKUP(KJ4,[1]SRM!$S$4:$Z$368,6,0) -> 0 | KK36: =VLOOKUP(KK4,[1]SRM!$S$4:$Z$368,6,0) -> 0 | KL36: =VLOOKUP(KL4,[1]SRM!$S$4:$Z$368,6,0) -> 0 | KM36: =VLOOKUP(KM4,[1]SRM!$S$4:$Z$368,8,0) -> 0 | KN36: =VLOOKUP(KN4,[1]SRM!$S$4:$Z$368,8,0) -> 0 | KO36: =VLOOKUP(KO4,[1]SRM!$S$4:$Z$368,8,0) -> 0 | KP36: =VLOOKUP(KP4,[1]SRM!$S$4:$Z$368,8,0) -> 0 | KQ36: =VLOOKUP(KQ4,[1]SRM!$S$4:$Z$368,8,0) -> 0 | KR36: =VLOOKUP(KR4,[1]SRM!$S$4:$Z$368,8,0) -> 0 | KS36: =VLOOKUP(KS4,[1]SRM!$S$4:$Z$368,8,0) -> 0 | KT36: =VLOOKUP(KT4,[1]SRM!$S$4:$Z$368,7,0) -> 0 | KU36: =VLOOKUP(KU4,[1]SRM!$S$4:$Z$368,7,0) -> 0 | KV36: =VLOOKUP(KV4,[1]SRM!$S$4:$Z$368,7,0) -> 0 | KW36: =VLOOKUP(KW4,[1]SRM!$S$4:$Z$368,7,0) -> 0 | KX36: =VLOOKUP(KX4,[1]SRM!$S$4:$Z$368,7,0) -> 0 | KY36: =VLOOKUP(KY4,[1]SRM!$S$4:$Z$368,7,0) -> 0 | KZ36: =VLOOKUP(KZ4,[1]SRM!$S$4:$Z$368,7,0) -> 0 | LA36: =VLOOKUP(LA4,[1]SRM!$S$4:$Z$368,6,0) -> 0 | LB36: =VLOOKUP(LB4,[1]SRM!$S$4:$Z$368,6,0) -> 0 | LC36: =VLOOKUP(LC4,[1]SRM!$S$4:$Z$368,6,0) -> 0 | LD36: =VLOOKUP(LD4,[1]SRM!$S$4:$Z$368,6,0) -> 0 | LE36: =VLOOKUP(LE4,[1]SRM!$S$4:$Z$368,6,0) -> 0 | LF36: =VLOOKUP(LF4,[1]SRM!$S$4:$Z$368,6,0) -> 0 | LG36: =VLOOKUP(LG4,[1]SRM!$S$4:$Z$368,6,0) -> 0 | LH36: =VLOOKUP(LH4,[1]SRM!$S$4:$Z$368,8,0) -> 0 | LI36: =VLOOKUP(LI4,[1]SRM!$S$4:$Z$368,8,0) -> 0 | LJ36: =VLOOKUP(LJ4,[1]SRM!$S$4:$Z$368,8,0) -> 0 | LK36: =VLOOKUP(LK4,[1]SRM!$S$4:$Z$368,8,0) -> 0 | LL36: =VLOOKUP(LL4,[1]SRM!$S$4:$Z$368,8,0) -> 0 | LM36: =VLOOKUP(LM4,[1]SRM!$S$4:$Z$368,8,0) -> 0 | LN36: =VLOOKUP(LN4,[1]SRM!$S$4:$Z$368,8,0) -> 0 | LO36: =VLOOKUP(LO4,[1]SRM!$S$4:$Z$368,7,0) -> 0 | LP36: =VLOOKUP(LP4,[1]SRM!$S$4:$Z$368,7,0) -> 0 | LQ36: =VLOOKUP(LQ4,[1]SRM!$S$4:$Z$368,7,0) -> 0 | LR36: =VLOOKUP(LR4,[1]SRM!$S$4:$Z$368,7,0) -> 0 | LS36: =VLOOKUP(LS4,[1]SRM!$S$4:$Z$368,7,0) -> 0 | LT36: =VLOOKUP(LT4,[1]SRM!$S$4:$Z$368,7,0) -> 0 | LU36: =VLOOKUP(LU4,[1]SRM!$S$4:$Z$368,7,0) -> 0 | LV36: =VLOOKUP(LV4,[1]SRM!$S$4:$Z$368,6,0) -> 0 | LW36: =VLOOKUP(LW4,[1]SRM!$S$4:$Z$368,6,0) -> 0 | LX36: =VLOOKUP(LX4,[1]SRM!$S$4:$Z$368,6,0) -> 0 | LY36: =VLOOKUP(LY4,[1]SRM!$S$4:$Z$368,6,0) -> 0 | LZ36: =VLOOKUP(LZ4,[1]SRM!$S$4:$Z$368,6,0) -> 0 | MA36: =VLOOKUP(MA4,[1]SRM!$S$4:$Z$368,6,0) -> 0 | MB36: =VLOOKUP(MB4,[1]SRM!$S$4:$Z$368,6,0) -> 0 | MC36: =VLOOKUP(MC4,[1]SRM!$S$4:$Z$368,8,0) -> 0 | MD36: =VLOOKUP(MD4,[1]SRM!$S$4:$Z$368,8,0) -> 0 | ME36: =VLOOKUP(ME4,[1]SRM!$S$4:$Z$368,8,0) -> 0 | MF36: =VLOOKUP(MF4,[1]SRM!$S$4:$Z$368,8,0) -> 0 | MG36: =VLOOKUP(MG4,[1]SRM!$S$4:$Z$368,8,0) -> 0 | MH36: =VLOOKUP(MH4,[1]SRM!$S$4:$Z$368,8,0) -> 0 | MI36: =VLOOKUP(MI4,[1]SRM!$S$4:$Z$368,8,0) -> 0 | MJ36: =VLOOKUP(MJ4,[1]SRM!$S$4:$Z$368,7,0) -> 0 | MK36: =VLOOKUP(MK4,[1]SRM!$S$4:$Z$368,7,0) -> 0 | ML36: =VLOOKUP(ML4,[1]SRM!$S$4:$Z$368,7,0) -> 0 | MM36: =VLOOKUP(MM4,[1]SRM!$S$4:$Z$368,7,0) -> 0 | MN36: =VLOOKUP(MN4,[1]SRM!$S$4:$Z$368,7,0) -> 0 | MO36: =VLOOKUP(MO4,[1]SRM!$S$4:$Z$368,7,0) -> 0 | MP36: =VLOOKUP(MP4,[1]SRM!$S$4:$Z$368,7,0) -> 0 | MQ36: =VLOOKUP(MQ4,[1]SRM!$S$4:$Z$368,6,0) -> 0 | MR36: =VLOOKUP(MR4,[1]SRM!$S$4:$Z$368,6,0) -> 0 | MS36: =VLOOKUP(MS4,[1]SRM!$S$4:$Z$368,6,0) -> 0 | MT36: =VLOOKUP(MT4,[1]SRM!$S$4:$Z$368,6,0) -> 0 | MU36: =VLOOKUP(MU4,[1]SRM!$S$4:$Z$368,6,0) -> 0 | MV36: =VLOOKUP(MV4,[1]SRM!$S$4:$Z$368,6,0) -> 0 | MW36: =VLOOKUP(MW4,[1]SRM!$S$4:$Z$368,6,0) -> 0 | MX36: =VLOOKUP(MX4,[1]SRM!$S$4:$Z$368,8,0) -> 0 | MY36: =VLOOKUP(MY4,[1]SRM!$S$4:$Z$368,8,0) -> 0 | MZ36: =VLOOKUP(MZ4,[1]SRM!$S$4:$Z$368,8,0) -> 0 | NA36: =VLOOKUP(NA4,[1]SRM!$S$4:$Z$368,8,0) -> 0 | NB36: =VLOOKUP(NB4,[1]SRM!$S$4:$Z$368,8,0) -> 0 | NC36: =VLOOKUP(NC4,[1]SRM!$S$4:$Z$368,8,0) -> 0 | ND36: =VLOOKUP(ND4,[1]SRM!$S$4:$Z$368,8,0) -> 0
A37: 0.089 | B37: t.b.d. | C37: Downtime Technical SRM RH [%] | E37: =IF(E35="",0%,(E36*60)/((E35*62)+(E36*60))) -> 0 | F37: =IF(F35="",0%,(F36*60)/((F35*62)+(F36*60))) -> 0 | G37: 0 | H37: 0 | I37: 0 | J37: 0 | K37: 0 | L37: 0 | M37: 0 | N37: 0 | O37: 0 | P37: 0 | Q37: 0 | R37: 0 | S37: 0 | T37: 0 | U37: 0 | V37: 0 | W37: 0 | X37: 0 | Y37: 0 | Z37: 0 | AA37: 0 | AB37: 0 | AC37: 0 | AD37: 0 | AE37: 0 | AF37: 0 | AG37: 0 | AH37: 0 | AI37: 0 | AJ37: 0 | AK37: 0 | AL37: 0 | AM37: 0 | AN37: 0 | AO37: 0 | AP37: 0 | AQ37: 0 | AR37: 0 | AS37: 0 | AT37: 0 | AU37: 0 | AV37: 0 | AW37: 0 | AX37: 0 | AY37: 0 | AZ37: 0 | BA37: 0 | BB37: 0 | BC37: 0 | BD37: 0 | BE37: 0 | BF37: 0 | BG37: 0 | BH37: 0 | BI37: 0 | BJ37: 0 | BK37: 0 | BL37: 0 | BM37: 0 | BN37: 0 | BO37: 0 | BP37: 0 | BQ37: 0 | BR37: =IF(BR35="",0%,(BR36*60)/((BR35*62)+(BR36*60))) -> 0 | BS37: 0 | BT37: 0 | BU37: 0 | BV37: 0 | BW37: 0 | BX37: 0 | BY37: 0 | BZ37: 0 | CA37: 0 | CB37: 0 | CC37: 0 | CD37: 0 | CE37: 0 | CF37: 0 | CG37: 0 | CH37: 0 | CI37: 0 | CJ37: 0 | CK37: 0 | CL37: 0 | CM37: 0 | CN37: 0 | CO37: 0 | CP37: 0 | CQ37: 0 | CR37: 0 | CS37: 0 | CT37: 0 | CU37: 0 | CV37: 0 | CW37: 0 | CX37: 0 | CY37: 0 | CZ37: 0 | DA37: 0 | DB37: 0 | DC37: 0 | DD37: 0 | DE37: 0 | DF37: 0 | DG37: 0 | DH37: 0 | DI37: 0 | DJ37: 0 | DK37: 0 | DL37: 0 | DM37: 0 | DN37: 0 | DO37: 0 | DP37: 0 | DQ37: 0 | DR37: 0 | DS37: 0 | DT37: 0 | DU37: 0 | DV37: 0 | DW37: 0 | DX37: 0 | DY37: 0 | DZ37: 0 | EA37: 0 | EB37: 0 | EC37: 0 | ED37: =IF(ED35="",0%,(ED36*60)/((ED35*62)+(ED36*60))) -> 0 | EE37: 0 | EF37: 0 | EG37: 0 | EH37: 0.08223684211 | EI37: 0.09452439751 | EJ37: 0.141097999 | EK37: 0.0604069521 | EL37: 0.04751346215 | EM37: 0 | EN37: 0 | EO37: 0 | EP37: 0.08060349282 | EQ37: 0.009132420091 | ER37: 0.04674838978 | ES37: 0.1014032572 | ET37: 0.04939287919 | EU37: 0 | EV37: 0.05798346398 | EW37: 0.05265331406 | EX37: 0.1373123398 | EY37: 0.01512859304 | EZ37: 0 | FA37: 0 | FB37: 0 | FC37: 0.03904401325 | FD37: 0.07097791798 | FE37: 0.2058554437 | FF37: 0.2355897597 | FG37: 0.1539376813 | FH37: 0 | FI37: 0 | FJ37: 0.1026794446 | FK37: 0.0540181956 | FL37: 0.02157411107 | FM37: 0.1039398139 | FN37: 0 | FO37: 0 | FP37: 0 | FQ37: 0.1848388162 | FR37: 0 | FS37: 0.1653282948 | FT37: 0.2048757246 | FU37: 0 | FV37: 0 | FW37: 0 | FX37: 0.1633351482 | FY37: 0.2158888493 | FZ37: 0.1357575758 | GA37: 0.0864339809 | GC37: 0 | GD37: 0 | GE37: 0.07391438251 | GF37: 0.05562913907 | GG37: 0.08347826087 | GH37: 0.09708737864 | GI37: 0.1069719433 | GJ37: 0 | GK37: 0 | GL37: 0.08294166436 | GM37: 0.1158209896 | GN37: 0.07761966365 | GO37: 0 | GP37: =IF(GP35="",0%,(GP36*60)/((GP35*62)+(GP36*60))) -> 0 | GQ37: 0 | GR37: 0 | GS37: 0.1415217961 | GT37: 0.226403703 | GU37: 0.09541226048 | GV37: 0 | GW37: 0 | GX37: 0 | GY37: 0 | GZ37: 0 | HA37: 0 | HB37: 0 | HC37: 0 | HD37: 0 | HE37: 0 | HF37: 0 | HG37: 0 | HH37: 0 | HI37: 0 | HJ37: 0 | HK37: 0 | HL37: 0 | HM37: 0 | HN37: 0 | HO37: 0 | HP37: 0 | HQ37: 0 | HR37: 0 | HS37: 0 | HT37: 0 | HU37: 0.17329354 | HV37: 0.05403687222 | HW37: 0.0466674644 | HX37: 0.03444811253 | HY37: 0.08370389746 | HZ37: 0 | IA37: 0 | IB37: 0.1704115122 | IC37: 0.03661628016 | ID37: 0.0279752885 | IE37: 0.1452784504 | IF37: 0 | IG37: 0 | IH37: 0 | II37: 0.1003656734 | IJ37: 0.2555674805 | IK37: 0.1906439017 | IL37: 0.1539376813 | IM37: 0.2040249827 | IN37: 0 | IO37: 0 | IP37: 0.1192131929 | IQ37: 0.312165264 | IR37: 0.09046454768 | IS37: 0.1565708419 | IT37: 0.03069926094 | IU37: 0 | IV37: 0 | IW37: 0.172454524 | IX37: 0.1110083256 | IY37: 0.0160042678 | IZ37: 0.01645789522 | JA37: 0 | JB37: =IF(JB35="",0%,(JB36*60)/((JB35*62)+(JB36*60))) -> 0 | JC37: 0 | JD37: 0.04053058217 | JE37: 0.02406256266 | JF37: 0.1050638902 | JG37: 0.1710718964 | JH37: 0.07165166269 | JI37: 0 | JJ37: 0 | JK37: 0.05114881871 | JL37: 0.06075239505 | JM37: 0.1826820128 | JN37: 0.1113275814 | JO37: 0 | JP37: 0 | JQ37: 0 | JR37: 0.1322301268 | JS37: 0.03415795466 | JT37: 0.05102040816 | JU37: 0 | JV37: 0 | JW37: 0 | JX37: 0 | JY37: 0 | JZ37: 0 | KA37: 0 | KB37: 0 | KC37: 0 | KD37: 0 | KE37: 0 | KF37: 0 | KG37: 0 | KH37: 0 | KI37: 0 | KJ37: 0 | KK37: 0 | KL37: 0 | KM37: 0 | KN37: 0 | KO37: 0 | KP37: 0 | KQ37: 0 | KR37: 0 | KS37: 0 | KT37: 0 | KU37: 0 | KV37: 0 | KW37: 0 | KX37: 0 | KY37: 0 | KZ37: 0 | LA37: 0 | LB37: 0 | LC37: 0 | LD37: 0 | LE37: 0 | LF37: 0 | LG37: 0 | LH37: 0 | LI37: 0 | LJ37: 0 | LK37: 0 | LL37: 0 | LM37: 0 | LN37: =IF(LN35="",0%,(LN36*60)/((LN35*62)+(LN36*60))) -> 0 | LO37: 0 | LP37: 0 | LQ37: 0 | LR37: 0 | LS37: 0 | LT37: 0 | LU37: 0 | LV37: 0 | LW37: 0 | LX37: 0 | LY37: 0 | LZ37: 0 | MA37: 0 | MB37: 0 | MC37: 0 | MD37: 0 | ME37: 0 | MF37: 0 | MG37: 0 | MH37: 0 | MI37: 0 | MJ37: 0 | MK37: 0 | ML37: 0 | MM37: 0 | MN37: 0 | MO37: 0 | MP37: 0 | MQ37: 0 | MR37: 0 | MS37: 0 | MT37: 0 | MU37: 0 | MV37: 0 | MW37: 0 | MX37: 0 | MY37: 0 | MZ37: 0 | NA37: 0 | NB37: 0 | NC37: 0 | ND37: 0
A38: 0 | B38: t.b.d. | C38: Blocked Starved [Min] | EH38: 28 | EI38: 40 | EJ38: 12 | EK38: 22 | EL38: 7 | EP38: 43 | EQ38: 22 | ER38: 29 | ES38: 28 | ET38: 21 | EV38: 23 | EW38: 20 | EX38: 13 | EY38: 20 | EZ38: 12 | FC38: 24 | FD38: 19 | FE38: 26 | FF38: 19 | FG38: 31 | FJ38: 1 | FK38: 47 | FL38: 27 | FM38: 31 | FN38: 67 | FO38: 2 | FQ38: 48 | FR38: 0 | FS38: 16 | FT38: 2 | FU38: 0 | FX38: 12 | FY38: 18 | FZ38: 21 | GA38: 36 | GB38: 0 | GE38: 6 | GF38: 56 | GG38: 17 | GH38: 61 | GI38: 14 | GJ38: 20 | GL38: 13 | GM38: 9 | GN38: 32 | GO38: 30 | GP38: 70 | GS38: 56 | GT38: 11 | GU38: 25 | GV38: 0 | HU38: 60 | HV38: 52 | HW38: 56 | HX38: 21 | HY38: 6 | HZ38: 58 | IB38: 63 | IC38: 77 | ID38: 110 | IE38: 9 | IF38: 26 | II38: 48 | IJ38: 31 | IK38: 0 | IL38: 36 | IM38: 26 | IP38: 42 | IQ38: 16 | IR38: 23 | IS38: 27 | IT38: 60 | IU38: 21 | IW38: 40 | IX38: 21 | IY38: 44 | IZ38: 35 | JA38: 7 | JD38: 18 | JE38: 54 | JF38: 33 | JG38: 22 | JH38: 36 | JK38: 36 | JL38: 0 | JM38: 1 | JN38: 30 | JO38: 28 | JP38: 0 | JR38: 33 | JS38: 19 | JT38: 39 | JU38: 5 | JV38: 61
A39: 0 | B39: t.b.d. | C39: Parts at Break [Aantal] | EH39: 27 | EI39: 26 | EJ39: 36 | EK39: 25 | EL39: 24 | EP39: 18 | EQ39: 30 | ER39: 25 | ES39: 24 | ET39: 26 | EV39: 20 | EW39: 21 | EX39: 12 | EY39: 84 | EZ39: 25 | FC39: 38 | FD39: 29 | FE39: 13 | FF39: 22 | FG39: 36 | FJ39: 23 | FK39: 18 | FL39: 43 | FM39: 5 | FN39: 15 | FO39: 0 | FQ39: 2 | FR39: 5 | FS39: 32 | FT39: 6 | FU39: 6 | FX39: 18 | FY39: 23 | FZ39: 34 | GA39: 31 | GB39: 0 | GE39: 38 | GF39: 19 | GG39: 21 | GH39: 23 | GI39: 26 | GJ39: 6 | GL39: 30 | GM39: 29 | GN39: 36 | GO39: 12 | GP39: 23 | GS39: 32 | GT39: 20 | GU39: 18 | GV39: 0 | HU39: 29 | HV39: 14 | HW39: 13 | HX39: 11 | HY39: 33 | HZ39: 38 | IB39: 27 | IC39: 28 | ID39: 32 | IE39: 34 | IF39: 20 | II39: 38 | IJ39: 30 | IK39: 19 | IL39: 40 | IM39: 29 | IP39: 12 | IQ39: 12 | IR39: 37 | IS39: 14 | IT39: 24 | IU39: 10 | IW39: 14 | IX39: 40 | IY39: 16 | IZ39: 23 | JA39: 41 | JD39: 20 | JE39: 18 | JF39: 32 | JG39: 20 | JH39: 12 | JK39: 27 | JL39: 31 | JM39: 42 | JN39: 33 | JO39: 14 | JP39: 26 | JR39: 17 | JS39: 40 | JT39: 32 | JU39: 24 | JV39: 10
A40: 0 | B40: t.b.d. | C40: Planned Stop [Min] | EH40: 0 | EI40: 0 | EJ40: 0 | EK40: 0 | EL40: 0 | EP40: 0 | EQ40: 0 | ER40: 0 | ES40: 0 | ET40: 0 | EV40: 0 | EW40: 0 | EX40: 0 | EY40: 0 | EZ40: 0 | FC40: 0 | FD40: 0 | FE40: 0 | FF40: 0 | FG40: 0 | FJ40: 0 | FK40: 0 | FL40: 0 | FM40: 0 | FN40: 0 | FO40: 0 | FQ40: 0 | FR40: 0 | FS40: 0 | FT40: 0 | FU40: 0 | FX40: 0 | FY40: 0 | FZ40: 0 | GA40: 0 | GB40: 0 | GE40: 0 | GF40: 0 | GG40: 0 | GH40: 0 | GI40: 35 | GJ40: 0 | GL40: 0 | GM40: 0 | GN40: 30 | GO40: 60 | GP40: 0 | GS40: 0 | GT40: 30 | GU40: 0 | GV40: 0 | HU40: 0 | HV40: 0 | HW40: 0 | HX40: 0 | HY40: 0 | HZ40: 0 | IB40: 0 | IC40: 0 | ID40: 0 | IE40: 0 | IF40: 0 | II40: 0 | IJ40: 0 | IK40: 30 | IL40: 0 | IM40: 0 | IP40: 0 | IQ40: 0 | IR40: 0 | IS40: 0 | IT40: 0 | IU40: 0 | IW40: 0 | IX40: 0 | IY40: 0 | IZ40: 0 | JA40: 0 | JD40: 0 | JE40: 0 | JF40: 0 | JG40: 0 | JH40: 0 | JK40: 0 | JL40: 0 | JM40: 0 | JN40: 0 | JO40: 35 | JP40: 0 | JR40: 0 | JS40: 0 | JT40: 0 | JU40: 0 | JV40: 0
A41: Plan | B41: Plan | C41: SILL1 LH | EH41: 250 | EI41: 171 | EJ41: 215 | EK41: 243 | EL41: 211 | EP41: 265 | EQ41: 269 | ER41: 250 | ES41: 226 | ET41: 170 | EV41: 209 | EW41: 241 | EX41: 282 | EY41: 279 | EZ41: 199 | FC41: 218 | FD41: 250 | FE41: 279 | FF41: 278 | FG41: 269 | FJ41: 238 | FK41: 295 | FL41: 279 | FM41: 206 | FN41: 233 | FO41: 108 | FQ41: 230 | FR41: 153 | FS41: 209 | FT41: 270 | FU41: 154 | FX41: 234 | FY41: 270 | FZ41: 242 | GA41: 273 | GB41: 0 | GE41: 203 | GF41: 293 | GG41: 255 | GH41: 241 | GI41: 218 | GJ41: 201 | GL41: 213 | GM41: 271 | GN41: 286 | GO41: 306 | GP41: 266 | GS41: 218 | GT41: 203 | GU41: 200 | GV41: 13 | HU41: 216 | HV41: 297 | HW41: 230 | HX41: 156 | HY41: 267 | HZ41: 322 | IB41: 215 | IC41: 233 | ID41: 232 | IE41: 164 | IF41: 183 | II41: 257 | IJ41: 268 | IK41: 258 | IL41: 305 | IM41: 311 | IP41: 307 | IQ41: 287 | IR41: 239 | IS41: 224 | IT41: 154 | IU41: 258 | IW41: 200 | IX41: 213 | IY41: 269 | IZ41: 290 | JA41: 255 | JD41: 214 | JE41: 240 | JF41: 354 | JG41: 313 | JH41: 277 | JK41: 297 | JL41: 310 | JM41: 325 | JN41: 264 | JO41: 324 | JP41: 243 | JR41: 308 | JS41: 231 | JT41: 274 | JU41: 295 | JV41: 283
A42: 40 | B42: t.b.d. | C42: Downtime Technical SILL1 LH [Min] | E42: =VLOOKUP(E$4,[1]SILL1!$S$4:$Z$368,4,0) -> 0 | F42: =VLOOKUP(F$4,[1]SILL1!$S$4:$Z$368,4,0) -> 0 | G42: =VLOOKUP(G$4,[1]SILL1!$S$4:$Z$368,4,0) -> 0 | H42: =VLOOKUP(H$4,[1]SILL1!$S$4:$Z$368,4,0) -> 0 | I42: =VLOOKUP(I$4,[1]SILL1!$S$4:$Z$368,4,0) -> 0 | J42: =VLOOKUP(J$4,[1]SILL1!$S$4:$Z$368,4,0) -> 0 | K42: =VLOOKUP(K$4,[1]SILL1!$S$4:$Z$368,4,0) -> 0 | L42: =VLOOKUP(L$4,[1]SILL1!$S$4:$Z$368,3,0) -> 4 | M42: =VLOOKUP(M$4,[1]SILL1!$S$4:$Z$368,3,0) -> 0 | N42: =VLOOKUP(N$4,[1]SILL1!$S$4:$Z$368,3,0) -> 0 | O42: =VLOOKUP(O$4,[1]SILL1!$S$4:$Z$368,3,0) -> 4 | P42: =VLOOKUP(P$4,[1]SILL1!$S$4:$Z$368,3,0) -> 21 | Q42: =VLOOKUP(Q$4,[1]SILL1!$S$4:$Z$368,3,0) -> 0 | R42: =VLOOKUP(R$4,[1]SILL1!$S$4:$Z$368,3,0) -> 0 | S42: =VLOOKUP(S$4,[1]SILL1!$S$4:$Z$368,2,0) -> 105 | T42: =VLOOKUP(T$4,[1]SILL1!$S$4:$Z$368,2,0) -> 8 | U42: =VLOOKUP(U$4,[1]SILL1!$S$4:$Z$368,2,0) -> 0 | V42: =VLOOKUP(V$4,[1]SILL1!$S$4:$Z$368,2,0) -> 0 | W42: =VLOOKUP(W$4,[1]SILL1!$S$4:$Z$368,2,0) -> 0 | X42: =VLOOKUP(X$4,[1]SILL1!$S$4:$Z$368,2,0) -> 0 | Y42: =VLOOKUP(Y$4,[1]SILL1!$S$4:$Z$368,2,0) -> 0 | Z42: =VLOOKUP(Z$4,[1]SILL1!$S$4:$Z$368,4,0) -> 0 | AA42: =VLOOKUP(AA$4,[1]SILL1!$S$4:$Z$368,4,0) -> 0 | AB42: =VLOOKUP(AB$4,[1]SILL1!$S$4:$Z$368,4,0) -> 0 | AC42: =VLOOKUP(AC$4,[1]SILL1!$S$4:$Z$368,4,0) -> 0 | AD42: =VLOOKUP(AD$4,[1]SILL1!$S$4:$Z$368,4,0) -> 0 | AE42: =VLOOKUP(AE$4,[1]SILL1!$S$4:$Z$368,4,0) -> 0 | AF42: =VLOOKUP(AF$4,[1]SILL1!$S$4:$Z$368,4,0) -> 0 | AG42: =VLOOKUP(AG$4,[1]SILL1!$S$4:$Z$368,3,0) -> 0 | AH42: =VLOOKUP(AH$4,[1]SILL1!$S$4:$Z$368,3,0) -> 0 | AI42: =VLOOKUP(AI$4,[1]SILL1!$S$4:$Z$368,3,0) -> 4 | AJ42: =VLOOKUP(AJ$4,[1]SILL1!$S$4:$Z$368,3,0) -> 0 | AK42: =VLOOKUP(AK$4,[1]SILL1!$S$4:$Z$368,3,0) -> 0 | AL42: =VLOOKUP(AL$4,[1]SILL1!$S$4:$Z$368,3,0) -> 0 | AM42: =VLOOKUP(AM$4,[1]SILL1!$S$4:$Z$368,3,0) -> 0 | AN42: =VLOOKUP(AN$4,[1]SILL1!$S$4:$Z$368,2,0) -> 0 | AO42: =VLOOKUP(AO$4,[1]SILL1!$S$4:$Z$368,2,0) -> 4 | AP42: =VLOOKUP(AP$4,[1]SILL1!$S$4:$Z$368,2,0) -> 6 | AQ42: =VLOOKUP(AQ$4,[1]SILL1!$S$4:$Z$368,2,0) -> 0 | AR42: =VLOOKUP(AR$4,[1]SILL1!$S$4:$Z$368,2,0) -> 11 | AS42: =VLOOKUP(AS$4,[1]SILL1!$S$4:$Z$368,2,0) -> 0 | AT42: =VLOOKUP(AT$4,[1]SILL1!$S$4:$Z$368,2,0) -> 0 | AU42: =VLOOKUP(AU$4,[1]SILL1!$S$4:$Z$368,4,0) -> 0 | AV42: =VLOOKUP(AV$4,[1]SILL1!$S$4:$Z$368,4,0) -> 0 | AW42: =VLOOKUP(AW$4,[1]SILL1!$S$4:$Z$368,4,0) -> 0 | AX42: =VLOOKUP(AX$4,[1]SILL1!$S$4:$Z$368,4,0) -> 0 | AY42: =VLOOKUP(AY$4,[1]SILL1!$S$4:$Z$368,4,0) -> 0 | AZ42: =VLOOKUP(AZ$4,[1]SILL1!$S$4:$Z$368,4,0) -> 0 | BA42: =VLOOKUP(BA$4,[1]SILL1!$S$4:$Z$368,4,0) -> 0 | BB42: =VLOOKUP(BB$4,[1]SILL1!$S$4:$Z$368,3,0) -> 6 | BC42: =VLOOKUP(BC$4,[1]SILL1!$S$4:$Z$368,3,0) -> 7 | BD42: =VLOOKUP(BD$4,[1]SILL1!$S$4:$Z$368,3,0) -> 6 | BE42: =VLOOKUP(BE$4,[1]SILL1!$S$4:$Z$368,3,0) -> 11 | BF42: =VLOOKUP(BF$4,[1]SILL1!$S$4:$Z$368,3,0) -> 8 | BG42: =VLOOKUP(BG$4,[1]SILL1!$S$4:$Z$368,3,0) -> 0 | BH42: =VLOOKUP(BH$4,[1]SILL1!$S$4:$Z$368,3,0) -> 0 | BI42: =VLOOKUP(BI$4,[1]SILL1!$S$4:$Z$368,2,0) -> 0 | BJ42: =VLOOKUP(BJ$4,[1]SILL1!$S$4:$Z$368,2,0) -> 0 | BK42: =VLOOKUP(BK$4,[1]SILL1!$S$4:$Z$368,2,0) -> 0 | BL42: =VLOOKUP(BL$4,[1]SILL1!$S$4:$Z$368,2,0) -> 5 | BM42: =VLOOKUP(BM$4,[1]SILL1!$S$4:$Z$368,2,0) -> 4 | BN42: =VLOOKUP(BN$4,[1]SILL1!$S$4:$Z$368,2,0) -> 0 | BO42: =VLOOKUP(BO$4,[1]SILL1!$S$4:$Z$368,2,0) -> 0 | BP42: =VLOOKUP(BP$4,[1]SILL1!$S$4:$Z$368,4,0) -> 0 | BQ42: =VLOOKUP(BQ$4,[1]SILL1!$S$4:$Z$368,4,0) -> 0 | BR42: =VLOOKUP(BR$4,[1]SILL1!$S$4:$Z$368,4,0) -> 0 | BS42: =VLOOKUP(BS$4,[1]SILL1!$S$4:$Z$368,4,0) -> 0 | BT42: =VLOOKUP(BT$4,[1]SILL1!$S$4:$Z$368,4,0) -> 0 | BU42: =VLOOKUP(BU$4,[1]SILL1!$S$4:$Z$368,4,0) -> 0 | BV42: =VLOOKUP(BV$4,[1]SILL1!$S$4:$Z$368,4,0) -> 0 | BW42: =VLOOKUP(BW$4,[1]SILL1!$S$4:$Z$368,3,0) -> 3 | BX42: =VLOOKUP(BX$4,[1]SILL1!$S$4:$Z$368,3,0) -> 3 | BY42: =VLOOKUP(BY$4,[1]SILL1!$S$4:$Z$368,3,0) -> 7 | BZ42: =VLOOKUP(BZ$4,[1]SILL1!$S$4:$Z$368,3,0) -> 6 | CA42: =VLOOKUP(CA$4,[1]SILL1!$S$4:$Z$368,3,0) -> 5 | CB42: =VLOOKUP(CB$4,[1]SILL1!$S$4:$Z$368,3,0) -> 0 | CC42: =VLOOKUP(CC$4,[1]SILL1!$S$4:$Z$368,3,0) -> 0 | CD42: =VLOOKUP(CD$4,[1]SILL1!$S$4:$Z$368,2,0) -> 0 | CE42: =VLOOKUP(CE$4,[1]SILL1!$S$4:$Z$368,2,0) -> 4 | CF42: =VLOOKUP(CF$4,[1]SILL1!$S$4:$Z$368,2,0) -> 0 | CG42: =VLOOKUP(CG$4,[1]SILL1!$S$4:$Z$368,2,0) -> 3 | CH42: =VLOOKUP(CH$4,[1]SILL1!$S$4:$Z$368,2,0) -> 0 | CI42: =VLOOKUP(CI$4,[1]SILL1!$S$4:$Z$368,2,0) -> 0 | CJ42: =VLOOKUP(CJ$4,[1]SILL1!$S$4:$Z$368,2,0) -> 0 | CK42: =VLOOKUP(CK$4,[1]SILL1!$S$4:$Z$368,4,0) -> 0 | CL42: =VLOOKUP(CL$4,[1]SILL1!$S$4:$Z$368,4,0) -> 0 | CM42: =VLOOKUP(CM$4,[1]SILL1!$S$4:$Z$368,4,0) -> 0 | CN42: =VLOOKUP(CN$4,[1]SILL1!$S$4:$Z$368,4,0) -> 0 | CO42: =VLOOKUP(CO$4,[1]SILL1!$S$4:$Z$368,4,0) -> 0 | CP42: =VLOOKUP(CP$4,[1]SILL1!$S$4:$Z$368,4,0) -> 0 | CQ42: =VLOOKUP(CQ$4,[1]SILL1!$S$4:$Z$368,4,0) -> 0 | CR42: =VLOOKUP(CR$4,[1]SILL1!$S$4:$Z$368,3,0) -> 0 | CS42: =VLOOKUP(CS$4,[1]SILL1!$S$4:$Z$368,3,0) -> 6 | CT42: =VLOOKUP(CT$4,[1]SILL1!$S$4:$Z$368,3,0) -> 5 | CU42: =VLOOKUP(CU$4,[1]SILL1!$S$4:$Z$368,3,0) -> 0 | CV42: =VLOOKUP(CV$4,[1]SILL1!$S$4:$Z$368,3,0) -> 30 | CW42: =VLOOKUP(CW$4,[1]SILL1!$S$4:$Z$368,3,0) -> 0 | CX42: =VLOOKUP(CX$4,[1]SILL1!$S$4:$Z$368,3,0) -> 0 | CY42: =VLOOKUP(CY$4,[1]SILL1!$S$4:$Z$368,2,0) -> 6 | CZ42: =VLOOKUP(CZ$4,[1]SILL1!$S$4:$Z$368,2,0) -> 0 | DA42: =VLOOKUP(DA$4,[1]SILL1!$S$4:$Z$368,2,0) -> 8 | DB42: =VLOOKUP(DB$4,[1]SILL1!$S$4:$Z$368,2,0) -> 3 | DC42: =VLOOKUP(DC$4,[1]SILL1!$S$4:$Z$368,2,0) -> 10 | DD42: =VLOOKUP(DD$4,[1]SILL1!$S$4:$Z$368,2,0) -> 0 | DE42: =VLOOKUP(DE$4,[1]SILL1!$S$4:$Z$368,2,0) -> 0 | DF42: =VLOOKUP(DF$4,[1]SILL1!$S$4:$Z$368,4,0) -> 0 | DG42: =VLOOKUP(DG$4,[1]SILL1!$S$4:$Z$368,4,0) -> 0 | DH42: =VLOOKUP(DH$4,[1]SILL1!$S$4:$Z$368,4,0) -> 0 | DI42: =VLOOKUP(DI$4,[1]SILL1!$S$4:$Z$368,4,0) -> 0 | DJ42: =VLOOKUP(DJ$4,[1]SILL1!$S$4:$Z$368,4,0) -> 30 | DK42: =VLOOKUP(DK$4,[1]SILL1!$S$4:$Z$368,4,0) -> 0 | DL42: =VLOOKUP(DL$4,[1]SILL1!$S$4:$Z$368,4,0) -> 0 | DM42: =VLOOKUP(DM$4,[1]SILL1!$S$4:$Z$368,3,0) -> 6 | DN42: =VLOOKUP(DN$4,[1]SILL1!$S$4:$Z$368,3,0) -> 5 | DO42: =VLOOKUP(DO$4,[1]SILL1!$S$4:$Z$368,3,0) -> 0 | DP42: =VLOOKUP(DP$4,[1]SILL1!$S$4:$Z$368,3,0) -> 5 | DQ42: =VLOOKUP(DQ$4,[1]SILL1!$S$4:$Z$368,3,0) -> 0 | DR42: =VLOOKUP(DR$4,[1]SILL1!$S$4:$Z$368,3,0) -> 0 | DS42: =VLOOKUP(DS$4,[1]SILL1!$S$4:$Z$368,3,0) -> 0 | DT42: =VLOOKUP(DT$4,[1]SILL1!$S$4:$Z$368,2,0) -> 4 | DU42: =VLOOKUP(DU$4,[1]SILL1!$S$4:$Z$368,2,0) -> 0 | DV42: =VLOOKUP(DV$4,[1]SILL1!$S$4:$Z$368,2,0) -> 8 | DW42: =VLOOKUP(DW$4,[1]SILL1!$S$4:$Z$368,2,0) -> 6 | DX42: =VLOOKUP(DX$4,[1]SILL1!$S$4:$Z$368,2,0) -> 25 | DY42: =VLOOKUP(DY$4,[1]SILL1!$S$4:$Z$368,2,0) -> 5 | DZ42: =VLOOKUP(DZ$4,[1]SILL1!$S$4:$Z$368,2,0) -> 0 | EA42: =VLOOKUP(EA$4,[1]SILL1!$S$4:$Z$368,4,0) -> 0 | EB42: =VLOOKUP(EB$4,[1]SILL1!$S$4:$Z$368,4,0) -> 30 | EC42: =VLOOKUP(EC$4,[1]SILL1!$S$4:$Z$368,4,0) -> 16 | ED42: =VLOOKUP(ED$4,[1]SILL1!$S$4:$Z$368,4,0) -> 0 | EE42: =VLOOKUP(EE$4,[1]SILL1!$S$4:$Z$368,4,0) -> 0 | EF42: =VLOOKUP(EF$4,[1]SILL1!$S$4:$Z$368,4,0) -> 0 | EG42: =VLOOKUP(EG$4,[1]SILL1!$S$4:$Z$368,4,0) -> 0 | EH42: =VLOOKUP(EH$4,[1]SILL1!$S$4:$Z$368,3,0) -> 90 | EI42: =VLOOKUP(EI$4,[1]SILL1!$S$4:$Z$368,3,0) -> 60 | EJ42: =VLOOKUP(EJ$4,[1]SILL1!$S$4:$Z$368,3,0) -> 0 | EK42: =VLOOKUP(EK$4,[1]SILL1!$S$4:$Z$368,3,0) -> 0 | EL42: =VLOOKUP(EL$4,[1]SILL1!$S$4:$Z$368,3,0) -> 45 | EM42: =VLOOKUP(EM$4,[1]SILL1!$S$4:$Z$368,3,0) -> 0 | EN42: =VLOOKUP(EN$4,[1]SILL1!$S$4:$Z$368,3,0) -> 0 | EO42: =VLOOKUP(EO$4,[1]SILL1!$S$4:$Z$368,2,0) -> 0 | EP42: =VLOOKUP(EP$4,[1]SILL1!$S$4:$Z$368,2,0) -> 45 | EQ42: =VLOOKUP(EQ$4,[1]SILL1!$S$4:$Z$368,2,0) -> 0 | ER42: =VLOOKUP(ER$4,[1]SILL1!$S$4:$Z$368,2,0) -> 38 | ES42: =VLOOKUP(ES$4,[1]SILL1!$S$4:$Z$368,2,0) -> 0 | ET42: =VLOOKUP(ET$4,[1]SILL1!$S$4:$Z$368,2,0) -> 0 | EU42: =VLOOKUP(EU$4,[1]SILL1!$S$4:$Z$368,2,0) -> 0 | EV42: =VLOOKUP(EV$4,[1]SILL1!$S$4:$Z$368,4,0) -> 0 | EW42: =VLOOKUP(EW$4,[1]SILL1!$S$4:$Z$368,4,0) -> 10 | EX42: =VLOOKUP(EX$4,[1]SILL1!$S$4:$Z$368,4,0) -> 20 | EY42: =VLOOKUP(EY$4,[1]SILL1!$S$4:$Z$368,4,0) -> 40 | EZ42: =VLOOKUP(EZ$4,[1]SILL1!$S$4:$Z$368,4,0) -> 0 | FA42: =VLOOKUP(FA$4,[1]SILL1!$S$4:$Z$368,4,0) -> 0 | FB42: =VLOOKUP(FB$4,[1]SILL1!$S$4:$Z$368,4,0) -> 0 | FC42: =VLOOKUP(FC$4,[1]SILL1!$S$4:$Z$368,3,0) -> 4 | FD42: =VLOOKUP(FD$4,[1]SILL1!$S$4:$Z$368,3,0) -> 0 | FE42: =VLOOKUP(FE$4,[1]SILL1!$S$4:$Z$368,3,0) -> 0 | FF42: =VLOOKUP(FF$4,[1]SILL1!$S$4:$Z$368,3,0) -> 15 | FG42: =VLOOKUP(FG$4,[1]SILL1!$S$4:$Z$368,3,0) -> 9 | FH42: =VLOOKUP(FH$4,[1]SILL1!$S$4:$Z$368,3,0) -> 0 | FI42: =VLOOKUP(FI$4,[1]SILL1!$S$4:$Z$368,3,0) -> 0 | FJ42: =VLOOKUP(FJ$4,[1]SILL1!$S$4:$Z$368,2,0) -> 50 | FK42: =VLOOKUP(FK$4,[1]SILL1!$S$4:$Z$368,2,0) -> 4 | FL42: =VLOOKUP(FL$4,[1]SILL1!$S$4:$Z$368,2,0) -> 3 | FM42: =VLOOKUP(FM$4,[1]SILL1!$S$4:$Z$368,2,0) -> 4 | FN42: =VLOOKUP(FN$4,[1]SILL1!$S$4:$Z$368,2,0) -> 0 | FO42: =VLOOKUP(FO$4,[1]SILL1!$S$4:$Z$368,2,0) -> 0 | FP42: =VLOOKUP(FP$4,[1]SILL1!$S$4:$Z$368,2,0) -> 0 | FQ42: =VLOOKUP(FQ$4,[1]SILL1!$S$4:$Z$368,4,0) -> 0 | FR42: =VLOOKUP(FR$4,[1]SILL1!$S$4:$Z$368,4,0) -> 0 | FS42: =VLOOKUP(FS$4,[1]SILL1!$S$4:$Z$368,4,0) -> 0 | FT42: =VLOOKUP(FT$4,[1]SILL1!$S$4:$Z$368,4,0) -> 0 | FU42: =VLOOKUP(FU$4,[1]SILL1!$S$4:$Z$368,4,0) -> 0 | FV42: =VLOOKUP(FV$4,[1]SILL1!$S$4:$Z$368,4,0) -> 0 | FW42: =VLOOKUP(FW$4,[1]SILL1!$S$4:$Z$368,4,0) -> 0 | FX42: =VLOOKUP(FX$4,[1]SILL1!$S$4:$Z$368,3,0) -> 30 | FY42: =VLOOKUP(FY$4,[1]SILL1!$S$4:$Z$368,3,0) -> 4 | FZ42: =VLOOKUP(FZ$4,[1]SILL1!$S$4:$Z$368,3,0) -> 40 | GA42: =VLOOKUP(GA$4,[1]SILL1!$S$4:$Z$368,3,0) -> 0 | GB42: =VLOOKUP(GB$4,[1]SILL1!$S$4:$Z$368,3,0) -> 0 | GC42: =VLOOKUP(GC$4,[1]SILL1!$S$4:$Z$368,3,0) -> 0 | GD42: =VLOOKUP(GD$4,[1]SILL1!$S$4:$Z$368,3,0) -> 0 | GE42: =VLOOKUP(GE$4,[1]SILL1!$S$4:$Z$368,2,0) -> 25 | GF42: =VLOOKUP(GF$4,[1]SILL1!$S$4:$Z$368,2,0) -> 5 | GG42: =VLOOKUP(GG$4,[1]SILL1!$S$4:$Z$368,2,0) -> 3 | GH42: =VLOOKUP(GH$4,[1]SILL1!$S$4:$Z$368,2,0) -> 0 | GI42: =VLOOKUP(GI$4,[1]SILL1!$S$4:$Z$368,2,0) -> 0 | GJ42: =VLOOKUP(GJ$4,[1]SILL1!$S$4:$Z$368,2,0) -> 0 | GK42: =VLOOKUP(GK$4,[1]SILL1!$S$4:$Z$368,2,0) -> 0 | GL42: =VLOOKUP(GL$4,[1]SILL1!$S$4:$Z$368,4,0) -> 40 | GM42: =VLOOKUP(GM$4,[1]SILL1!$S$4:$Z$368,4,0) -> 48 | GN42: =VLOOKUP(GN$4,[1]SILL1!$S$4:$Z$368,4,0) -> 10 | GO42: =VLOOKUP(GO$4,[1]SILL1!$S$4:$Z$368,4,0) -> 0 | GP42: =VLOOKUP(GP$4,[1]SILL1!$S$4:$Z$368,4,0) -> 0 | GQ42: =VLOOKUP(GQ$4,[1]SILL1!$S$4:$Z$368,4,0) -> 0 | GR42: =VLOOKUP(GR$4,[1]SILL1!$S$4:$Z$368,4,0) -> 0 | GS42: =VLOOKUP(GS$4,[1]SILL1!$S$4:$Z$368,3,0) -> 50 | GT42: =VLOOKUP(GT$4,[1]SILL1!$S$4:$Z$368,3,0) -> 9 | GU42: =VLOOKUP(GU$4,[1]SILL1!$S$4:$Z$368,3,0) -> 48 | GV42: =VLOOKUP(GV$4,[1]SILL1!$S$4:$Z$368,3,0) -> 0 | GW42: =VLOOKUP(GW$4,[1]SILL1!$S$4:$Z$368,3,0) -> 0 | GX42: =VLOOKUP(GX$4,[1]SILL1!$S$4:$Z$368,3,0) -> 0 | GY42: =VLOOKUP(GY$4,[1]SILL1!$S$4:$Z$368,3,0) -> 0 | GZ42: =VLOOKUP(GZ$4,[1]SILL1!$S$4:$Z$368,2,0) -> 0 | HA42: =VLOOKUP(HA$4,[1]SILL1!$S$4:$Z$368,2,0) -> 0 | HB42: =VLOOKUP(HB$4,[1]SILL1!$S$4:$Z$368,2,0) -> 0 | HC42: =VLOOKUP(HC$4,[1]SILL1!$S$4:$Z$368,2,0) -> 0 | HD42: =VLOOKUP(HD$4,[1]SILL1!$S$4:$Z$368,2,0) -> 0 | HE42: =VLOOKUP(HE$4,[1]SILL1!$S$4:$Z$368,2,0) -> 0 | HF42: =VLOOKUP(HF$4,[1]SILL1!$S$4:$Z$368,2,0) -> 0 | HG42: =VLOOKUP(HG$4,[1]SILL1!$S$4:$Z$368,4,0) -> 0 | HH42: =VLOOKUP(HH$4,[1]SILL1!$S$4:$Z$368,4,0) -> 0 | HI42: =VLOOKUP(HI$4,[1]SILL1!$S$4:$Z$368,4,0) -> 0 | HJ42: =VLOOKUP(HJ$4,[1]SILL1!$S$4:$Z$368,4,0) -> 0 | HK42: =VLOOKUP(HK$4,[1]SILL1!$S$4:$Z$368,4,0) -> 0 | HL42: =VLOOKUP(HL$4,[1]SILL1!$S$4:$Z$368,4,0) -> 0 | HM42: =VLOOKUP(HM$4,[1]SILL1!$S$4:$Z$368,4,0) -> 0 | HN42: =VLOOKUP(HN$4,[1]SILL1!$S$4:$Z$368,3,0) -> 0 | HO42: =VLOOKUP(HO$4,[1]SILL1!$S$4:$Z$368,3,0) -> 0 | HP42: =VLOOKUP(HP$4,[1]SILL1!$S$4:$Z$368,3,0) -> 0 | HQ42: =VLOOKUP(HQ$4,[1]SILL1!$S$4:$Z$368,3,0) -> 0 | HR42: =VLOOKUP(HR$4,[1]SILL1!$S$4:$Z$368,3,0) -> 0 | HS42: =VLOOKUP(HS$4,[1]SILL1!$S$4:$Z$368,3,0) -> 0 | HT42: =VLOOKUP(HT$4,[1]SILL1!$S$4:$Z$368,3,0) -> 0 | HU42: =VLOOKUP(HU$4,[1]SILL1!$S$4:$Z$368,2,0) -> 10 | HV42: =VLOOKUP(HV$4,[1]SILL1!$S$4:$Z$368,2,0) -> 10 | HW42: =VLOOKUP(HW$4,[1]SILL1!$S$4:$Z$368,2,0) -> 0 | HX42: =VLOOKUP(HX$4,[1]SILL1!$S$4:$Z$368,2,0) -> 43 | HY42: =VLOOKUP(HY$4,[1]SILL1!$S$4:$Z$368,2,0) -> 0 | HZ42: =VLOOKUP(HZ$4,[1]SILL1!$S$4:$Z$368,2,0) -> 0 | IA42: =VLOOKUP(IA$4,[1]SILL1!$S$4:$Z$368,2,0) -> 0 | IB42: =VLOOKUP(IB$4,[1]SILL1!$S$4:$Z$368,4,0) -> 15 | IC42: =VLOOKUP(IC$4,[1]SILL1!$S$4:$Z$368,4,0) -> 0 | ID42: =VLOOKUP(ID$4,[1]SILL1!$S$4:$Z$368,4,0) -> 0 | IE42: =VLOOKUP(IE$4,[1]SILL1!$S$4:$Z$368,4,0) -> 0 | IF42: =VLOOKUP(IF$4,[1]SILL1!$S$4:$Z$368,4,0) -> 0 | IG42: =VLOOKUP(IG$4,[1]SILL1!$S$4:$Z$368,4,0) -> 0 | IH42: =VLOOKUP(IH$4,[1]SILL1!$S$4:$Z$368,4,0) -> 0 | II42: =VLOOKUP(II$4,[1]SILL1!$S$4:$Z$368,3,0) -> 9 | IJ42: =VLOOKUP(IJ$4,[1]SILL1!$S$4:$Z$368,3,0) -> 12 | IK42: =VLOOKUP(IK$4,[1]SILL1!$S$4:$Z$368,3,0) -> 0 | IL42: =VLOOKUP(IL$4,[1]SILL1!$S$4:$Z$368,3,0) -> 0 | IM42: =VLOOKUP(IM$4,[1]SILL1!$S$4:$Z$368,3,0) -> 0 | IN42: =VLOOKUP(IN$4,[1]SILL1!$S$4:$Z$368,3,0) -> 0 | IO42: =VLOOKUP(IO$4,[1]SILL1!$S$4:$Z$368,3,0) -> 0 | IP42: =VLOOKUP(IP$4,[1]SILL1!$S$4:$Z$368,2,0) -> 0 | IQ42: =VLOOKUP(IQ$4,[1]SILL1!$S$4:$Z$368,2,0) -> 5 | IR42: =VLOOKUP(IR$4,[1]SILL1!$S$4:$Z$368,2,0) -> 0 | IS42: =VLOOKUP(IS$4,[1]SILL1!$S$4:$Z$368,2,0) -> 0 | IT42: =VLOOKUP(IT$4,[1]SILL1!$S$4:$Z$368,2,0) -> 0 | IU42: =VLOOKUP(IU$4,[1]SILL1!$S$4:$Z$368,2,0) -> 0 | IV42: =VLOOKUP(IV$4,[1]SILL1!$S$4:$Z$368,2,0) -> 0 | IW42: =VLOOKUP(IW$4,[1]SILL1!$S$4:$Z$368,4,0) -> 0 | IX42: =VLOOKUP(IX$4,[1]SILL1!$S$4:$Z$368,4,0) -> 15 | IY42: =VLOOKUP(IY$4,[1]SILL1!$S$4:$Z$368,4,0) -> 0 | IZ42: =VLOOKUP(IZ$4,[1]SILL1!$S$4:$Z$368,4,0) -> 0 | JA42: =VLOOKUP(JA$4,[1]SILL1!$S$4:$Z$368,4,0) -> 0 | JB42: =VLOOKUP(JB$4,[1]SILL1!$S$4:$Z$368,4,0) -> 0 | JC42: =VLOOKUP(JC$4,[1]SILL1!$S$4:$Z$368,4,0) -> 0 | JD42: =VLOOKUP(JD$4,[1]SILL1!$S$4:$Z$368,3,0) -> 0 | JE42: =VLOOKUP(JE$4,[1]SILL1!$S$4:$Z$368,3,0) -> 0 | JF42: =VLOOKUP(JF$4,[1]SILL1!$S$4:$Z$368,3,0) -> 0 | JG42: =VLOOKUP(JG$4,[1]SILL1!$S$4:$Z$368,3,0) -> 10 | JH42: =VLOOKUP(JH$4,[1]SILL1!$S$4:$Z$368,3,0) -> 4 | JI42: =VLOOKUP(JI$4,[1]SILL1!$S$4:$Z$368,3,0) -> 0 | JJ42: =VLOOKUP(JJ$4,[1]SILL1!$S$4:$Z$368,3,0) -> 0 | JK42: =VLOOKUP(JK$4,[1]SILL1!$S$4:$Z$368,2,0) -> 0 | JL42: =VLOOKUP(JL$4,[1]SILL1!$S$4:$Z$368,2,0) -> 0 | JM42: =VLOOKUP(JM$4,[1]SILL1!$S$4:$Z$368,2,0) -> 0 | JN42: =VLOOKUP(JN$4,[1]SILL1!$S$4:$Z$368,2,0) -> 0 | JO42: =VLOOKUP(JO$4,[1]SILL1!$S$4:$Z$368,2,0) -> 0 | JP42: =VLOOKUP(JP$4,[1]SILL1!$S$4:$Z$368,2,0) -> 0 | JQ42: =VLOOKUP(JQ$4,[1]SILL1!$S$4:$Z$368,2,0) -> 0 | JR42: =VLOOKUP(JR$4,[1]SILL1!$S$4:$Z$368,4,0) -> 0 | JS42: =VLOOKUP(JS$4,[1]SILL1!$S$4:$Z$368,4,0) -> 0 | JT42: =VLOOKUP(JT$4,[1]SILL1!$S$4:$Z$368,4,0) -> 0 | JU42: =VLOOKUP(JU$4,[1]SILL1!$S$4:$Z$368,4,0) -> 0 | JV42: =VLOOKUP(JV$4,[1]SILL1!$S$4:$Z$368,4,0) -> 0 | JW42: =VLOOKUP(JW$4,[1]SILL1!$S$4:$Z$368,4,0) -> 0 | JX42: =VLOOKUP(JX$4,[1]SILL1!$S$4:$Z$368,4,0) -> 0 | JY42: =VLOOKUP(JY$4,[1]SILL1!$S$4:$Z$368,3,0) -> 0 | JZ42: =VLOOKUP(JZ$4,[1]SILL1!$S$4:$Z$368,3,0) -> 0 | KA42: =VLOOKUP(KA$4,[1]SILL1!$S$4:$Z$368,3,0) -> 0 | KB42: =VLOOKUP(KB$4,[1]SILL1!$S$4:$Z$368,3,0) -> 0 | KC42: =VLOOKUP(KC$4,[1]SILL1!$S$4:$Z$368,3,0) -> 0 | KD42: =VLOOKUP(KD$4,[1]SILL1!$S$4:$Z$368,3,0) -> 0 | KE42: =VLOOKUP(KE$4,[1]SILL1!$S$4:$Z$368,3,0) -> 0 | KF42: =VLOOKUP(KF$4,[1]SILL1!$S$4:$Z$368,2,0) -> 0 | KG42: =VLOOKUP(KG$4,[1]SILL1!$S$4:$Z$368,2,0) -> 0 | KH42: =VLOOKUP(KH$4,[1]SILL1!$S$4:$Z$368,2,0) -> 0 | KI42: =VLOOKUP(KI$4,[1]SILL1!$S$4:$Z$368,2,0) -> 0 | KJ42: =VLOOKUP(KJ$4,[1]SILL1!$S$4:$Z$368,2,0) -> 0 | KK42: =VLOOKUP(KK$4,[1]SILL1!$S$4:$Z$368,2,0) -> 0 | KL42: =VLOOKUP(KL$4,[1]SILL1!$S$4:$Z$368,2,0) -> 0 | KM42: =VLOOKUP(KM$4,[1]SILL1!$S$4:$Z$368,4,0) -> 0 | KN42: =VLOOKUP(KN$4,[1]SILL1!$S$4:$Z$368,4,0) -> 0 | KO42: =VLOOKUP(KO$4,[1]SILL1!$S$4:$Z$368,4,0) -> 0 | KP42: =VLOOKUP(KP$4,[1]SILL1!$S$4:$Z$368,4,0) -> 0 | KQ42: =VLOOKUP(KQ$4,[1]SILL1!$S$4:$Z$368,4,0) -> 0 | KR42: =VLOOKUP(KR$4,[1]SILL1!$S$4:$Z$368,4,0) -> 0 | KS42: =VLOOKUP(KS$4,[1]SILL1!$S$4:$Z$368,4,0) -> 0 | KT42: =VLOOKUP(KT$4,[1]SILL1!$S$4:$Z$368,3,0) -> 0 | KU42: =VLOOKUP(KU$4,[1]SILL1!$S$4:$Z$368,3,0) -> 0 | KV42: =VLOOKUP(KV$4,[1]SILL1!$S$4:$Z$368,3,0) -> 0 | KW42: =VLOOKUP(KW$4,[1]SILL1!$S$4:$Z$368,3,0) -> 0 | KX42: =VLOOKUP(KX$4,[1]SILL1!$S$4:$Z$368,3,0) -> 0 | KY42: =VLOOKUP(KY$4,[1]SILL1!$S$4:$Z$368,3,0) -> 0 | KZ42: =VLOOKUP(KZ$4,[1]SILL1!$S$4:$Z$368,3,0) -> 0 | LA42: =VLOOKUP(LA$4,[1]SILL1!$S$4:$Z$368,2,0) -> 0 | LB42: =VLOOKUP(LB$4,[1]SILL1!$S$4:$Z$368,2,0) -> 0 | LC42: =VLOOKUP(LC$4,[1]SILL1!$S$4:$Z$368,2,0) -> 0 | LD42: =VLOOKUP(LD$4,[1]SILL1!$S$4:$Z$368,2,0) -> 0 | LE42: =VLOOKUP(LE$4,[1]SILL1!$S$4:$Z$368,2,0) -> 0 | LF42: =VLOOKUP(LF$4,[1]SILL1!$S$4:$Z$368,2,0) -> 0 | LG42: =VLOOKUP(LG$4,[1]SILL1!$S$4:$Z$368,2,0) -> 0 | LH42: =VLOOKUP(LH$4,[1]SILL1!$S$4:$Z$368,4,0) -> 0 | LI42: =VLOOKUP(LI$4,[1]SILL1!$S$4:$Z$368,4,0) -> 0 | LJ42: =VLOOKUP(LJ$4,[1]SILL1!$S$4:$Z$368,4,0) -> 0 | LK42: =VLOOKUP(LK$4,[1]SILL1!$S$4:$Z$368,4,0) -> 0 | LL42: =VLOOKUP(LL$4,[1]SILL1!$S$4:$Z$368,4,0) -> 0 | LM42: =VLOOKUP(LM$4,[1]SILL1!$S$4:$Z$368,4,0) -> 0 | LN42: =VLOOKUP(LN$4,[1]SILL1!$S$4:$Z$368,4,0) -> 0 | LO42: =VLOOKUP(LO$4,[1]SILL1!$S$4:$Z$368,3,0) -> 0 | LP42: =VLOOKUP(LP$4,[1]SILL1!$S$4:$Z$368,3,0) -> 0 | LQ42: =VLOOKUP(LQ$4,[1]SILL1!$S$4:$Z$368,3,0) -> 0 | LR42: =VLOOKUP(LR$4,[1]SILL1!$S$4:$Z$368,3,0) -> 0 | LS42: =VLOOKUP(LS$4,[1]SILL1!$S$4:$Z$368,3,0) -> 0 | LT42: =VLOOKUP(LT$4,[1]SILL1!$S$4:$Z$368,3,0) -> 0 | LU42: =VLOOKUP(LU$4,[1]SILL1!$S$4:$Z$368,3,0) -> 0 | LV42: =VLOOKUP(LV$4,[1]SILL1!$S$4:$Z$368,2,0) -> 0 | LW42: =VLOOKUP(LW$4,[1]SILL1!$S$4:$Z$368,2,0) -> 0 | LX42: =VLOOKUP(LX$4,[1]SILL1!$S$4:$Z$368,2,0) -> 0 | LY42: =VLOOKUP(LY$4,[1]SILL1!$S$4:$Z$368,2,0) -> 0 | LZ42: =VLOOKUP(LZ$4,[1]SILL1!$S$4:$Z$368,2,0) -> 0 | MA42: =VLOOKUP(MA$4,[1]SILL1!$S$4:$Z$368,2,0) -> 0 | MB42: =VLOOKUP(MB$4,[1]SILL1!$S$4:$Z$368,2,0) -> 0 | MC42: =VLOOKUP(MC$4,[1]SILL1!$S$4:$Z$368,4,0) -> 0 | MD42: =VLOOKUP(MD$4,[1]SILL1!$S$4:$Z$368,4,0) -> 0 | ME42: =VLOOKUP(ME$4,[1]SILL1!$S$4:$Z$368,4,0) -> 0 | MF42: =VLOOKUP(MF$4,[1]SILL1!$S$4:$Z$368,4,0) -> 0 | MG42: =VLOOKUP(MG$4,[1]SILL1!$S$4:$Z$368,4,0) -> 0 | MH42: =VLOOKUP(MH$4,[1]SILL1!$S$4:$Z$368,4,0) -> 0 | MI42: =VLOOKUP(MI$4,[1]SILL1!$S$4:$Z$368,4,0) -> 0 | MJ42: =VLOOKUP(MJ$4,[1]SILL1!$S$4:$Z$368,3,0) -> 0 | MK42: =VLOOKUP(MK$4,[1]SILL1!$S$4:$Z$368,3,0) -> 0 | ML42: =VLOOKUP(ML$4,[1]SILL1!$S$4:$Z$368,3,0) -> 0 | MM42: =VLOOKUP(MM$4,[1]SILL1!$S$4:$Z$368,3,0) -> 0 | MN42: =VLOOKUP(MN$4,[1]SILL1!$S$4:$Z$368,3,0) -> 0 | MO42: =VLOOKUP(MO$4,[1]SILL1!$S$4:$Z$368,3,0) -> 0 | MP42: =VLOOKUP(MP$4,[1]SILL1!$S$4:$Z$368,3,0) -> 0 | MQ42: =VLOOKUP(MQ$4,[1]SILL1!$S$4:$Z$368,2,0) -> 0 | MR42: =VLOOKUP(MR$4,[1]SILL1!$S$4:$Z$368,2,0) -> 0 | MS42: =VLOOKUP(MS$4,[1]SILL1!$S$4:$Z$368,2,0) -> 0 | MT42: =VLOOKUP(MT$4,[1]SILL1!$S$4:$Z$368,2,0) -> 0 | MU42: =VLOOKUP(MU$4,[1]SILL1!$S$4:$Z$368,2,0) -> 0 | MV42: =VLOOKUP(MV$4,[1]SILL1!$S$4:$Z$368,2,0) -> 0 | MW42: =VLOOKUP(MW$4,[1]SILL1!$S$4:$Z$368,2,0) -> 0 | MX42: =VLOOKUP(MX$4,[1]SILL1!$S$4:$Z$368,4,0) -> 0 | MY42: =VLOOKUP(MY$4,[1]SILL1!$S$4:$Z$368,4,0) -> 0 | MZ42: =VLOOKUP(MZ$4,[1]SILL1!$S$4:$Z$368,4,0) -> 0 | NA42: =VLOOKUP(NA$4,[1]SILL1!$S$4:$Z$368,4,0) -> 0 | NB42: =VLOOKUP(NB$4,[1]SILL1!$S$4:$Z$368,4,0) -> 0 | NC42: =VLOOKUP(NC$4,[1]SILL1!$S$4:$Z$368,4,0) -> 0 | ND42: =VLOOKUP(ND$4,[1]SILL1!$S$4:$Z$368,4,0) -> 0
A43: 0.089 | B43: t.b.d. | C43: Downtime Technical SILL1 LH [%] | E43: =IF(E41="",0%,(E42*60)/((E41*62)+(E42*60))) -> 0 | F43: =IF(F41="",0%,(F42*60)/((F41*62)+(F42*60))) -> 0 | G43: 0 | H43: 0 | I43: 0 | J43: 0 | K43: 0 | L43: 0 | M43: 0 | N43: 0 | O43: 0 | P43: 0 | Q43: 0 | R43: 0 | S43: 0 | T43: 0 | U43: 0 | V43: 0 | W43: 0 | X43: 0 | Y43: 0 | Z43: 0 | AA43: 0 | AB43: 0 | AC43: 0 | AD43: 0 | AE43: 0 | AF43: 0 | AG43: 0 | AH43: 0 | AI43: 0 | AJ43: 0 | AK43: 0 | AL43: 0 | AM43: 0 | AN43: 0 | AO43: 0 | AP43: 0 | AQ43: 0 | AR43: 0 | AS43: 0 | AT43: 0 | AU43: 0 | AV43: 0 | AW43: 0 | AX43: 0 | AY43: 0 | AZ43: 0 | BA43: 0 | BB43: 0 | BC43: 0 | BD43: 0 | BE43: 0 | BF43: 0 | BG43: 0 | BH43: 0 | BI43: 0 | BJ43: 0 | BK43: 0 | BL43: 0 | BM43: 0 | BN43: 0 | BO43: 0 | BP43: 0 | BQ43: 0 | BR43: =IF(BR41="",0%,(BR42*60)/((BR41*62)+(BR42*60))) -> 0 | BS43: 0 | BT43: 0 | BU43: 0 | BV43: 0 | BW43: 0 | BX43: 0 | BY43: 0 | BZ43: 0 | CA43: 0 | CB43: 0 | CC43: 0 | CD43: 0 | CE43: 0 | CF43: 0 | CG43: 0 | CH43: 0 | CI43: 0 | CJ43: 0 | CK43: 0 | CL43: 0 | CM43: 0 | CN43: 0 | CO43: 0 | CP43: 0 | CQ43: 0 | CR43: 0 | CS43: 0 | CT43: 0 | CU43: 0 | CV43: 0 | CW43: 0 | CX43: 0 | CY43: 0 | CZ43: 0 | DA43: 0 | DB43: 0 | DC43: 0 | DD43: 0 | DE43: 0 | DF43: 0 | DG43: 0 | DH43: 0 | DI43: 0 | DJ43: 0 | DK43: 0 | DL43: 0 | DM43: 0 | DN43: 0 | DO43: 0 | DP43: 0 | DQ43: 0 | DR43: 0 | DS43: 0 | DT43: 0 | DU43: 0 | DV43: 0 | DW43: 0 | DX43: 0 | DY43: 0 | DZ43: 0 | EA43: 0 | EB43: 0 | EC43: 0 | ED43: =IF(ED41="",0%,(ED42*60)/((ED41*62)+(ED42*60))) -> 0 | EE43: 0 | EF43: 0 | EG43: 0 | EH43: 0.2583732057 | EI43: 0.2534854246 | EJ43: 0 | EK43: 0 | EL43: 0.1710809783 | EM43: 0 | EN43: 0 | EO43: 0 | EP43: 0.1411395714 | EQ43: 0 | ER43: 0.1282339708 | ES43: 0 | ET43: 0 | EU43: 0 | EV43: 0 | EW43: 0.03860507013 | EX43: 0.06422607579 | EY43: 0.1218397807 | EZ43: 0 | FA43: 0 | FB43: 0 | FC43: 0.01744693225 | FD43: 0 | FE43: 0 | FF43: 0.04962505514 | FG43: 0.03136252759 | FH43: 0 | FI43: 0 | FJ43: 0.1689569723 | FK43: 0.01295196978 | FL43: 0.01029866117 | FM43: 0.01844451276 | FN43: 0 | FO43: 0 | FP43: 0 | FQ43: 0 | FR43: 0 | FS43: 0 | FT43: 0 | FU43: 0 | FV43: 0 | FW43: 0 | FX43: 0.1103752759 | FY43: 0.01413427562 | FZ43: 0.1378993335 | GA43: 0 | GC43: 0 | GD43: 0 | GE43: 0.1064887122 | GF43: 0.01624607387 | GG43: 0.01125703565 | GH43: 0 | GI43: 0 | GJ43: 0 | GK43: 0 | GL43: 0.153787005 | GM43: 0.1463265928 | GN43: 0.03272965307 | GO43: 0 | GP43: =IF(GP41="",0%,(GP42*60)/((GP41*62)+(GP42*60))) -> 0 | GQ43: 0 | GR43: 0 | GS43: 0.1816420441 | GT43: 0.04113972269 | GU43: 0.1884816754 | GV43: 0 | GW43: 0 | GX43: 0 | GY43: 0 | GZ43: 0 | HA43: 0 | HB43: 0 | HC43: 0 | HD43: 0 | HE43: 0 | HF43: 0 | HG43: 0 | HH43: 0 | HI43: 0 | HJ43: 0 | HK43: 0 | HL43: 0 | HM43: 0 | HN43: 0 | HO43: 0 | HP43: 0 | HQ43: 0 | HR43: 0 | HS43: 0 | HT43: 0 | HU43: 0.04288164666 | HV43: 0.0315556958 | HW43: 0 | HX43: 0.2105778648 | HY43: 0 | HZ43: 0 | IA43: 0 | IB43: 0.06324666198 | IC43: 0 | ID43: 0 | IE43: 0 | IF43: 0 | IG43: 0 | IH43: 0 | II43: 0.03277892437 | IJ43: 0.04153207199 | IK43: 0 | IL43: 0 | IM43: 0 | IN43: 0 | IO43: 0 | IP43: 0 | IQ43: 0.0165800818 | IR43: 0 | IS43: 0 | IT43: 0 | IU43: 0 | IV43: 0 | IW43: 0 | IX43: 0.06380263718 | IY43: 0 | IZ43: 0 | JA43: 0 | JB43: =IF(JB41="",0%,(JB42*60)/((JB41*62)+(JB42*60))) -> 0 | JC43: 0 | JD43: 0 | JE43: 0 | JF43: 0 | JG43: 0.0299910027 | JH43: 0.01378201447 | JI43: 0 | JJ43: 0 | JK43: 0 | JL43: 0 | JM43: 0 | JN43: 0 | JO43: 0 | JP43: 0 | JQ43: 0 | JR43: 0 | JS43: 0 | JT43: 0 | JU43: 0 | JV43: 0 | JW43: 0 | JX43: 0 | JY43: 0 | JZ43: 0 | KA43: 0 | KB43: 0 | KC43: 0 | KD43: 0 | KE43: 0 | KF43: 0 | KG43: 0 | KH43: 0 | KI43: 0 | KJ43: 0 | KK43: 0 | KL43: 0 | KM43: 0 | KN43: 0 | KO43: 0 | KP43: 0 | KQ43: 0 | KR43: 0 | KS43: 0 | KT43: 0 | KU43: 0 | KV43: 0 | KW43: 0 | KX43: 0 | KY43: 0 | KZ43: 0 | LA43: 0 | LB43: 0 | LC43: 0 | LD43: 0 | LE43: 0 | LF43: 0 | LG43: 0 | LH43: 0 | LI43: 0 | LJ43: 0 | LK43: 0 | LL43: 0 | LM43: 0 | LN43: =IF(LN41="",0%,(LN42*60)/((LN41*62)+(LN42*60))) -> 0 | LO43: 0 | LP43: 0 | LQ43: 0 | LR43: 0 | LS43: 0 | LT43: 0 | LU43: 0 | LV43: 0 | LW43: 0 | LX43: 0 | LY43: 0 | LZ43: 0 | MA43: 0 | MB43: 0 | MC43: 0 | MD43: 0 | ME43: 0 | MF43: 0 | MG43: 0 | MH43: 0 | MI43: 0 | MJ43: 0 | MK43: 0 | ML43: 0 | MM43: 0 | MN43: 0 | MO43: 0 | MP43: 0 | MQ43: 0 | MR43: 0 | MS43: 0 | MT43: 0 | MU43: 0 | MV43: 0 | MW43: 0 | MX43: 0 | MY43: 0 | MZ43: 0 | NA43: 0 | NB43: 0 | NC43: 0 | ND43: 0
A44: 0 | B44: t.b.d. | C44: Blocked Starved [Min] | EH44: 0 | EI44: 0 | EJ44: 0 | EK44: 0 | EL44: 0 | EP44: 0 | EQ44: 0 | ER44: 0 | ES44: 0 | ET44: 0 | EV44: 0 | EW44: 0 | EX44: 0 | EY44: 0 | EZ44: 0 | FC44: 0 | FD44: 0 | FE44: 0 | FF44: 0 | FG44: 0 | FJ44: 0 | FK44: 0 | FL44: 0 | FM44: 0 | FN44: 0 | FO44: 0 | FQ44: 0 | FR44: 0 | FS44: 0 | FT44: 0 | FU44: 0 | FX44: 0 | FY44: 0 | FZ44: 0 | GA44: 0 | GB44: 0 | GE44: 0 | GF44: 0 | GG44: 0 | GH44: 0 | GI44: 0 | GJ44: 0 | GL44: 0 | GM44: 0 | GN44: 0 | GO44: 0 | GP44: 0 | GS44: 0 | GT44: 0 | GU44: 0 | GV44: 0 | HU44: 0 | HV44: 0 | HW44: 0 | HX44: 0 | HY44: 0 | HZ44: 0 | IB44: 0 | IC44: 0 | ID44: 0 | IE44: 0 | IF44: 0 | II44: 0 | IJ44: 0 | IK44: 0 | IL44: 0 | IM44: 0 | IP44: 0 | IQ44: 0 | IR44: 0 | IS44: 0 | IT44: 0 | IU44: 0 | IW44: 0 | IX44: 0 | IY44: 0 | IZ44: 0 | JA44: 0 | JD44: 0 | JE44: 0 | JF44: 0 | JG44: 0 | JH44: 0 | JK44: 0 | JL44: 0 | JM44: 0 | JN44: 0 | JO44: 0 | JP44: 0 | JR44: 0 | JS44: 0 | JT44: 0 | JU44: 0 | JV44: 0
A45: 0 | B45: t.b.d. | C45: Parts at Break [Aantal] | EH45: 23 | EI45: 1 | EJ45: 2 | EK45: 4 | EL45: 6 | EP45: 2 | EQ45: 2 | ER45: 4 | ES45: 4 | ET45: 5 | EV45: 0 | EW45: 4 | EX45: 23 | EY45: 6 | EZ45: 7 | FC45: 0 | FD45: 0 | FE45: 0 | FF45: 4 | FG45: 12 | FJ45: 2 | FK45: 4 | FL45: 0 | FM45: 0 | FN45: 0 | FO45: 1 | FQ45: 10 | FR45: 6 | FS45: 2 | FT45: 8 | FU45: 4 | FX45: 3 | FY45: 4 | FZ45: 3 | GA45: 1 | GB45: 0 | GE45: 4 | GF45: 2 | GG45: 3 | GH45: 12 | GI45: 1 | GJ45: 2 | GL45: 3 | GM45: 7 | GN45: 1 | GO45: 3 | GP45: 1 | GS45: 4 | GT45: 0 | GU45: 0 | GV45: 0 | HU45: 5 | HV45: 5 | HW45: 4 | HX45: 5 | HY45: 5 | HZ45: 7 | IB45: 4 | IC45: 5 | ID45: 10 | IE45: 0 | IF45: 4 | II45: 2 | IJ45: 3 | IK45: 0 | IL45: 7 | IM45: 0 | IP45: 0 | IQ45: 0 | IR45: 0 | IS45: 2 | IT45: 3 | IU45: 13 | IW45: 3 | IX45: 4 | IY45: 7 | IZ45: 2 | JA45: 5 | JD45: 2 | JE45: 0 | JF45: 0 | JG45: 5 | JH45: 0 | JK45: 2 | JL45: 3 | JM45: 1 | JN45: 4 | JO45: 1 | JP45: 0 | JR45: 2 | JS45: 1 | JT45: 0 | JU45: 13 | JV45: 2
A46: 0 | B46: t.b.d. | C46: Planned Stop [Min] | EH46: 0 | EI46: 0 | EJ46: 0 | EK46: 0 | EL46: 0 | EP46: 0 | EQ46: 0 | ER46: 0 | ES46: 0 | ET46: 0 | EV46: 0 | EW46: 0 | EX46: 0 | EY46: 0 | EZ46: 0 | FC46: 0 | FD46: 0 | FE46: 0 | FF46: 0 | FG46: 0 | FJ46: 0 | FK46: 0 | FL46: 0 | FM46: 0 | FN46: 0 | FO46: 0 | FQ46: 0 | FR46: 0 | FS46: 0 | FT46: 0 | FU46: 0 | FX46: 0 | FY46: 0 | FZ46: 0 | GA46: 0 | GB46: 0 | GE46: 0 | GF46: 0 | GG46: 0 | GH46: 0 | GI46: 35 | GJ46: 0 | GL46: 0 | GM46: 0 | GN46: 0 | GO46: 0 | GP46: 0 | GS46: 0 | GT46: 30 | GU46: 0 | GV46: 0 | HU46: 0 | HV46: 0 | HW46: 0 | HX46: 60 | HY46: 0 | HZ46: 0 | IB46: 0 | IC46: 0 | ID46: 0 | IE46: 0 | IF46: 0 | II46: 0 | IJ46: 0 | IK46: 30 | IL46: 0 | IM46: 0 | IP46: 0 | IQ46: 0 | IR46: 0 | IS46: 0 | IT46: 0 | IU46: 0 | IW46: 0 | IX46: 0 | IY46: 0 | IZ46: 0 | JA46: 0 | JD46: 0 | JE46: 0 | JF46: 0 | JG46: 0 | JH46: 0 | JK46: 0 | JL46: 0 | JM46: 0 | JN46: 0 | JO46: 35 | JP46: 0 | JR46: 0 | JS46: 0 | JT46: 0 | JU46: 0 | JV46: 0
A47: Plan | B47: Plan | C47: Realized SILL1 RH | EH47: 309 | EI47: 200 | EJ47: 242 | EK47: 281 | EL47: 144 | EP47: 278 | EQ47: 249 | ER47: 257 | ES47: 227 | ET47: 116 | EV47: 209 | EW47: 194 | EX47: 271 | EY47: 332 | EZ47: 212 | FC47: 244 | FD47: 231 | FE47: 291 | FF47: 287 | FG47: 258 | FJ47: 287 | FK47: 273 | FL47: 211 | FM47: 238 | FN47: 202 | FO47: 175 | FQ47: 238 | FR47: 160 | FS47: 269 | FT47: 253 | FU47: 175 | FX47: 259 | FY47: 247 | FZ47: 275 | GA47: 254 | GB47: 79 | GE47: 174 | GF47: 303 | GG47: 267 | GH47: 297 | GI47: 213 | GJ47: 220 | GL47: 232 | GM47: 278 | GN47: 239 | GO47: 189 | GP47: 216 | GS47: 214 | GT47: 184 | GU47: 253 | GV47: 30 | HU47: 200 | HV47: 256 | HW47: 239 | HX47: 229 | HY47: 245 | HZ47: 367 | IB47: 206 | IC47: 201 | ID47: 153 | IE47: 173 | IF47: 198 | II47: 311 | IJ47: 252 | IK47: 223 | IL47: 298 | IM47: 284 | IP47: 314 | IQ47: 269 | IR47: 233 | IS47: 198 | IT47: 139 | IU47: 234 | IW47: 184 | IX47: 231 | IY47: 200 | IZ47: 254 | JA47: 207 | JD47: 245 | JE47: 261 | JF47: 297 | JG47: 322 | JH47: 314 | JK47: 276 | JL47: 291 | JM47: 308 | JN47: 295 | JO47: 286 | JP47: 207 | JR47: 307 | JS47: 259 | JT47: 278 | JU47: 312 | JV47: 244
A48: 40 | B48: t.b.d. | C48: Downtime Technical SILL1 RH [Min] | E48: =VLOOKUP(E4,[1]SILL1!$S$4:$Z$368,8,0) -> 0 | F48: =VLOOKUP(F4,[1]SILL1!$S$4:$Z$368,8,0) -> 0 | G48: =VLOOKUP(G4,[1]SILL1!$S$4:$Z$368,8,0) -> 0 | H48: =VLOOKUP(H4,[1]SILL1!$S$4:$Z$368,8,0) -> 0 | I48: =VLOOKUP(I4,[1]SILL1!$S$4:$Z$368,8,0) -> 0 | J48: =VLOOKUP(J4,[1]SILL1!$S$4:$Z$368,8,0) -> 0 | K48: =VLOOKUP(K4,[1]SILL1!$S$4:$Z$368,8,0) -> 0 | L48: =VLOOKUP(L4,[1]SILL1!$S$4:$Z$368,7,0) -> 0 | M48: =VLOOKUP(M4,[1]SILL1!$S$4:$Z$368,7,0) -> 0 | N48: =VLOOKUP(N4,[1]SILL1!$S$4:$Z$368,7,0) -> 10 | O48: =VLOOKUP(O4,[1]SILL1!$S$4:$Z$368,7,0) -> 15 | P48: =VLOOKUP(P4,[1]SILL1!$S$4:$Z$368,7,0) -> 3 | Q48: =VLOOKUP(Q4,[1]SILL1!$S$4:$Z$368,7,0) -> 0 | R48: =VLOOKUP(R4,[1]SILL1!$S$4:$Z$368,7,0) -> 0 | S48: =VLOOKUP(S4,[1]SILL1!$S$4:$Z$368,6,0) -> 0 | T48: =VLOOKUP(T4,[1]SILL1!$S$4:$Z$368,6,0) -> 0 | U48: =VLOOKUP(U4,[1]SILL1!$S$4:$Z$368,6,0) -> 0 | V48: =VLOOKUP(V4,[1]SILL1!$S$4:$Z$368,6,0) -> 15 | W48: =VLOOKUP(W4,[1]SILL1!$S$4:$Z$368,6,0) -> 0 | X48: =VLOOKUP(X4,[1]SILL1!$S$4:$Z$368,6,0) -> 0 | Y48: =VLOOKUP(Y4,[1]SILL1!$S$4:$Z$368,6,0) -> 0 | Z48: =VLOOKUP(Z4,[1]SILL1!$S$4:$Z$368,8,0) -> 0 | AA48: =VLOOKUP(AA4,[1]SILL1!$S$4:$Z$368,8,0) -> 0 | AB48: =VLOOKUP(AB4,[1]SILL1!$S$4:$Z$368,8,0) -> 0 | AC48: =VLOOKUP(AC4,[1]SILL1!$S$4:$Z$368,8,0) -> 0 | AD48: =VLOOKUP(AD4,[1]SILL1!$S$4:$Z$368,8,0) -> 0 | AE48: =VLOOKUP(AE4,[1]SILL1!$S$4:$Z$368,8,0) -> 0 | AF48: =VLOOKUP(AF4,[1]SILL1!$S$4:$Z$368,8,0) -> 0 | AG48: =VLOOKUP(AG4,[1]SILL1!$S$4:$Z$368,7,0) -> 0 | AH48: =VLOOKUP(AH4,[1]SILL1!$S$4:$Z$368,7,0) -> 0 | AI48: =VLOOKUP(AI4,[1]SILL1!$S$4:$Z$368,7,0) -> 0 | AJ48: =VLOOKUP(AJ4,[1]SILL1!$S$4:$Z$368,7,0) -> 0 | AK48: =VLOOKUP(AK4,[1]SILL1!$S$4:$Z$368,7,0) -> 0 | AL48: =VLOOKUP(AL4,[1]SILL1!$S$4:$Z$368,7,0) -> 0 | AM48: =VLOOKUP(AM4,[1]SILL1!$S$4:$Z$368,7,0) -> 0 | AN48: =VLOOKUP(AN4,[1]SILL1!$S$4:$Z$368,6,0) -> 0 | AO48: =VLOOKUP(AO4,[1]SILL1!$S$4:$Z$368,6,0) -> 0 | AP48: =VLOOKUP(AP4,[1]SILL1!$S$4:$Z$368,6,0) -> 180 | AQ48: =VLOOKUP(AQ4,[1]SILL1!$S$4:$Z$368,6,0) -> 0 | AR48: =VLOOKUP(AR4,[1]SILL1!$S$4:$Z$368,6,0) -> 0 | AS48: =VLOOKUP(AS4,[1]SILL1!$S$4:$Z$368,6,0) -> 0 | AT48: =VLOOKUP(AT4,[1]SILL1!$S$4:$Z$368,6,0) -> 0 | AU48: =VLOOKUP(AU4,[1]SILL1!$S$4:$Z$368,8,0) -> 0 | AV48: =VLOOKUP(AV4,[1]SILL1!$S$4:$Z$368,8,0) -> 0 | AW48: =VLOOKUP(AW4,[1]SILL1!$S$4:$Z$368,8,0) -> 0 | AX48: =VLOOKUP(AX4,[1]SILL1!$S$4:$Z$368,8,0) -> 0 | AY48: =VLOOKUP(AY4,[1]SILL1!$S$4:$Z$368,8,0) -> 10 | AZ48: =VLOOKUP(AZ4,[1]SILL1!$S$4:$Z$368,8,0) -> 0 | BA48: =VLOOKUP(BA4,[1]SILL1!$S$4:$Z$368,8,0) -> 0 | BB48: =VLOOKUP(BB4,[1]SILL1!$S$4:$Z$368,7,0) -> 0 | BC48: =VLOOKUP(BC4,[1]SILL1!$S$4:$Z$368,7,0) -> 0 | BD48: =VLOOKUP(BD4,[1]SILL1!$S$4:$Z$368,7,0) -> 10 | BE48: =VLOOKUP(BE4,[1]SILL1!$S$4:$Z$368,7,0) -> 0 | BF48: =VLOOKUP(BF4,[1]SILL1!$S$4:$Z$368,7,0) -> 0 | BG48: =VLOOKUP(BG4,[1]SILL1!$S$4:$Z$368,7,0) -> 0 | BH48: =VLOOKUP(BH4,[1]SILL1!$S$4:$Z$368,7,0) -> 0 | BI48: =VLOOKUP(BI4,[1]SILL1!$S$4:$Z$368,6,0) -> 3 | BJ48: =VLOOKUP(BJ4,[1]SILL1!$S$4:$Z$368,6,0) -> 0 | BK48: =VLOOKUP(BK4,[1]SILL1!$S$4:$Z$368,6,0) -> 0 | BL48: =VLOOKUP(BL4,[1]SILL1!$S$4:$Z$368,6,0) -> 0 | BM48: =VLOOKUP(BM4,[1]SILL1!$S$4:$Z$368,6,0) -> 6 | BN48: =VLOOKUP(BN4,[1]SILL1!$S$4:$Z$368,6,0) -> 0 | BO48: =VLOOKUP(BO4,[1]SILL1!$S$4:$Z$368,6,0) -> 0 | BP48: =VLOOKUP(BP4,[1]SILL1!$S$4:$Z$368,8,0) -> 0 | BQ48: =VLOOKUP(BQ4,[1]SILL1!$S$4:$Z$368,8,0) -> 0 | BR48: =VLOOKUP(BR4,[1]SILL1!$S$4:$Z$368,8,0) -> 0 | BS48: =VLOOKUP(BS4,[1]SILL1!$S$4:$Z$368,8,0) -> 0 | BT48: =VLOOKUP(BT4,[1]SILL1!$S$4:$Z$368,8,0) -> 0 | BU48: =VLOOKUP(BU4,[1]SILL1!$S$4:$Z$368,8,0) -> 0 | BV48: =VLOOKUP(BV4,[1]SILL1!$S$4:$Z$368,8,0) -> 0 | BW48: =VLOOKUP(BW4,[1]SILL1!$S$4:$Z$368,7,0) -> 0 | BX48: =VLOOKUP(BX4,[1]SILL1!$S$4:$Z$368,7,0) -> 0 | BY48: =VLOOKUP(BY4,[1]SILL1!$S$4:$Z$368,7,0) -> 0 | BZ48: =VLOOKUP(BZ4,[1]SILL1!$S$4:$Z$368,7,0) -> 0 | CA48: =VLOOKUP(CA4,[1]SILL1!$S$4:$Z$368,7,0) -> 20 | CB48: =VLOOKUP(CB4,[1]SILL1!$S$4:$Z$368,7,0) -> 0 | CC48: =VLOOKUP(CC4,[1]SILL1!$S$4:$Z$368,7,0) -> 0 | CD48: =VLOOKUP(CD4,[1]SILL1!$S$4:$Z$368,6,0) -> 0 | CE48: =VLOOKUP(CE4,[1]SILL1!$S$4:$Z$368,6,0) -> 10 | CF48: =VLOOKUP(CF4,[1]SILL1!$S$4:$Z$368,6,0) -> 0 | CG48: =VLOOKUP(CG4,[1]SILL1!$S$4:$Z$368,6,0) -> 0 | CH48: =VLOOKUP(CH4,[1]SILL1!$S$4:$Z$368,6,0) -> 0 | CI48: =VLOOKUP(CI4,[1]SILL1!$S$4:$Z$368,6,0) -> 0 | CJ48: =VLOOKUP(CJ4,[1]SILL1!$S$4:$Z$368,6,0) -> 0 | CK48: =VLOOKUP(CK4,[1]SILL1!$S$4:$Z$368,8,0) -> 0 | CL48: =VLOOKUP(CL4,[1]SILL1!$S$4:$Z$368,8,0) -> 0 | CM48: =VLOOKUP(CM4,[1]SILL1!$S$4:$Z$368,8,0) -> 0 | CN48: =VLOOKUP(CN4,[1]SILL1!$S$4:$Z$368,8,0) -> 0 | CO48: =VLOOKUP(CO4,[1]SILL1!$S$4:$Z$368,8,0) -> 0 | CP48: =VLOOKUP(CP4,[1]SILL1!$S$4:$Z$368,8,0) -> 0 | CQ48: =VLOOKUP(CQ4,[1]SILL1!$S$4:$Z$368,8,0) -> 0 | CR48: =VLOOKUP(CR4,[1]SILL1!$S$4:$Z$368,7,0) -> 0 | CS48: =VLOOKUP(CS4,[1]SILL1!$S$4:$Z$368,7,0) -> 6 | CT48: =VLOOKUP(CT4,[1]SILL1!$S$4:$Z$368,7,0) -> 4 | CU48: =VLOOKUP(CU4,[1]SILL1!$S$4:$Z$368,7,0) -> 4 | CV48: =VLOOKUP(CV4,[1]SILL1!$S$4:$Z$368,7,0) -> 5 | CW48: =VLOOKUP(CW4,[1]SILL1!$S$4:$Z$368,7,0) -> 0 | CX48: =VLOOKUP(CX4,[1]SILL1!$S$4:$Z$368,7,0) -> 0 | CY48: =VLOOKUP(CY4,[1]SILL1!$S$4:$Z$368,6,0) -> 0 | CZ48: =VLOOKUP(CZ4,[1]SILL1!$S$4:$Z$368,6,0) -> 0 | DA48: =VLOOKUP(DA4,[1]SILL1!$S$4:$Z$368,6,0) -> 0 | DB48: =VLOOKUP(DB4,[1]SILL1!$S$4:$Z$368,6,0) -> 4 | DC48: =VLOOKUP(DC4,[1]SILL1!$S$4:$Z$368,6,0) -> 4 | DD48: =VLOOKUP(DD4,[1]SILL1!$S$4:$Z$368,6,0) -> 0 | DE48: =VLOOKUP(DE4,[1]SILL1!$S$4:$Z$368,6,0) -> 0 | DF48: =VLOOKUP(DF4,[1]SILL1!$S$4:$Z$368,8,0) -> 0 | DG48: =VLOOKUP(DG4,[1]SILL1!$S$4:$Z$368,8,0) -> 0 | DH48: =VLOOKUP(DH4,[1]SILL1!$S$4:$Z$368,8,0) -> 0 | DI48: =VLOOKUP(DI4,[1]SILL1!$S$4:$Z$368,8,0) -> 0 | DJ48: =VLOOKUP(DJ4,[1]SILL1!$S$4:$Z$368,8,0) -> 0 | DK48: =VLOOKUP(DK4,[1]SILL1!$S$4:$Z$368,8,0) -> 0 | DL48: =VLOOKUP(DL4,[1]SILL1!$S$4:$Z$368,8,0) -> 0 | DM48: =VLOOKUP(DM4,[1]SILL1!$S$4:$Z$368,7,0) -> 0 | DN48: =VLOOKUP(DN4,[1]SILL1!$S$4:$Z$368,7,0) -> 0 | DO48: =VLOOKUP(DO4,[1]SILL1!$S$4:$Z$368,7,0) -> 0 | DP48: =VLOOKUP(DP4,[1]SILL1!$S$4:$Z$368,7,0) -> 0 | DQ48: =VLOOKUP(DQ4,[1]SILL1!$S$4:$Z$368,7,0) -> 0 | DR48: =VLOOKUP(DR4,[1]SILL1!$S$4:$Z$368,7,0) -> 0 | DS48: =VLOOKUP(DS4,[1]SILL1!$S$4:$Z$368,7,0) -> 0 | DT48: =VLOOKUP(DT4,[1]SILL1!$S$4:$Z$368,6,0) -> 0 | DU48: =VLOOKUP(DU4,[1]SILL1!$S$4:$Z$368,6,0) -> 0 | DV48: =VLOOKUP(DV4,[1]SILL1!$S$4:$Z$368,6,0) -> 0 | DW48: =VLOOKUP(DW4,[1]SILL1!$S$4:$Z$368,6,0) -> 0 | DX48: =VLOOKUP(DX4,[1]SILL1!$S$4:$Z$368,6,0) -> 135 | DY48: =VLOOKUP(DY4,[1]SILL1!$S$4:$Z$368,6,0) -> 16 | DZ48: =VLOOKUP(DZ4,[1]SILL1!$S$4:$Z$368,6,0) -> 0 | EA48: =VLOOKUP(EA4,[1]SILL1!$S$4:$Z$368,8,0) -> 10 | EB48: =VLOOKUP(EB4,[1]SILL1!$S$4:$Z$368,8,0) -> 12 | EC48: =VLOOKUP(EC4,[1]SILL1!$S$4:$Z$368,8,0) -> 15 | ED48: =VLOOKUP(ED4,[1]SILL1!$S$4:$Z$368,8,0) -> 0 | EE48: =VLOOKUP(EE4,[1]SILL1!$S$4:$Z$368,8,0) -> 0 | EF48: =VLOOKUP(EF4,[1]SILL1!$S$4:$Z$368,8,0) -> 0 | EG48: =VLOOKUP(EG4,[1]SILL1!$S$4:$Z$368,8,0) -> 0 | EH48: =VLOOKUP(EH4,[1]SILL1!$S$4:$Z$368,7,0) -> 0 | EI48: =VLOOKUP(EI4,[1]SILL1!$S$4:$Z$368,7,0) -> 0 | EJ48: =VLOOKUP(EJ4,[1]SILL1!$S$4:$Z$368,7,0) -> 13 | EK48: =VLOOKUP(EK4,[1]SILL1!$S$4:$Z$368,7,0) -> 0 | EL48: =VLOOKUP(EL4,[1]SILL1!$S$4:$Z$368,7,0) -> 10 | EM48: =VLOOKUP(EM4,[1]SILL1!$S$4:$Z$368,7,0) -> 0 | EN48: =VLOOKUP(EN4,[1]SILL1!$S$4:$Z$368,7,0) -> 0 | EO48: =VLOOKUP(EO4,[1]SILL1!$S$4:$Z$368,6,0) -> 0 | EP48: =VLOOKUP(EP4,[1]SILL1!$S$4:$Z$368,6,0) -> 49 | EQ48: =VLOOKUP(EQ4,[1]SILL1!$S$4:$Z$368,6,0) -> 0 | ER48: =VLOOKUP(ER4,[1]SILL1!$S$4:$Z$368,6,0) -> 4 | ES48: =VLOOKUP(ES4,[1]SILL1!$S$4:$Z$368,6,0) -> 0 | ET48: =VLOOKUP(ET4,[1]SILL1!$S$4:$Z$368,6,0) -> 0 | EU48: =VLOOKUP(EU4,[1]SILL1!$S$4:$Z$368,6,0) -> 0 | EV48: =VLOOKUP(EV4,[1]SILL1!$S$4:$Z$368,8,0) -> 0 | EW48: =VLOOKUP(EW4,[1]SILL1!$S$4:$Z$368,8,0) -> 0 | EX48: =VLOOKUP(EX4,[1]SILL1!$S$4:$Z$368,8,0) -> 0 | EY48: =VLOOKUP(EY4,[1]SILL1!$S$4:$Z$368,8,0) -> 0 | EZ48: =VLOOKUP(EZ4,[1]SILL1!$S$4:$Z$368,8,0) -> 0 | FA48: =VLOOKUP(FA4,[1]SILL1!$S$4:$Z$368,8,0) -> 0 | FB48: =VLOOKUP(FB4,[1]SILL1!$S$4:$Z$368,8,0) -> 0 | FC48: =VLOOKUP(FC4,[1]SILL1!$S$4:$Z$368,7,0) -> 9 | FD48: =VLOOKUP(FD4,[1]SILL1!$S$4:$Z$368,7,0) -> 0 | FE48: =VLOOKUP(FE4,[1]SILL1!$S$4:$Z$368,7,0) -> 15 | FF48: =VLOOKUP(FF4,[1]SILL1!$S$4:$Z$368,7,0) -> 15 | FG48: =VLOOKUP(FG4,[1]SILL1!$S$4:$Z$368,7,0) -> 12 | FH48: =VLOOKUP(FH4,[1]SILL1!$S$4:$Z$368,7,0) -> 0 | FI48: =VLOOKUP(FI4,[1]SILL1!$S$4:$Z$368,7,0) -> 0 | FJ48: =VLOOKUP(FJ4,[1]SILL1!$S$4:$Z$368,6,0) -> 4 | FK48: =VLOOKUP(FK4,[1]SILL1!$S$4:$Z$368,6,0) -> 4 | FL48: =VLOOKUP(FL4,[1]SILL1!$S$4:$Z$368,6,0) -> 33 | FM48: =VLOOKUP(FM4,[1]SILL1!$S$4:$Z$368,6,0) -> 0 | FN48: =VLOOKUP(FN4,[1]SILL1!$S$4:$Z$368,6,0) -> 10 | FO48: =VLOOKUP(FO4,[1]SILL1!$S$4:$Z$368,6,0) -> 0 | FP48: =VLOOKUP(FP4,[1]SILL1!$S$4:$Z$368,6,0) -> 0 | FQ48: =VLOOKUP(FQ4,[1]SILL1!$S$4:$Z$368,8,0) -> 4 | FR48: =VLOOKUP(FR4,[1]SILL1!$S$4:$Z$368,8,0) -> 0 | FS48: =VLOOKUP(FS4,[1]SILL1!$S$4:$Z$368,8,0) -> 0 | FT48: =VLOOKUP(FT4,[1]SILL1!$S$4:$Z$368,8,0) -> 0 | FU48: =VLOOKUP(FU4,[1]SILL1!$S$4:$Z$368,8,0) -> 0 | FV48: =VLOOKUP(FV4,[1]SILL1!$S$4:$Z$368,8,0) -> 0 | FW48: =VLOOKUP(FW4,[1]SILL1!$S$4:$Z$368,8,0) -> 0 | FX48: =VLOOKUP(FX4,[1]SILL1!$S$4:$Z$368,7,0) -> 0 | FY48: =VLOOKUP(FY4,[1]SILL1!$S$4:$Z$368,7,0) -> 0 | FZ48: =VLOOKUP(FZ4,[1]SILL1!$S$4:$Z$368,7,0) -> 0 | GA48: =VLOOKUP(GA4,[1]SILL1!$S$4:$Z$368,7,0) -> 0 | GB48: =VLOOKUP(GB4,[1]SILL1!$S$4:$Z$368,7,0) -> 0 | GC48: =VLOOKUP(GC4,[1]SILL1!$S$4:$Z$368,7,0) -> 0 | GD48: =VLOOKUP(GD4,[1]SILL1!$S$4:$Z$368,7,0) -> 0 | GE48: =VLOOKUP(GE4,[1]SILL1!$S$4:$Z$368,6,0) -> 0 | GF48: =VLOOKUP(GF4,[1]SILL1!$S$4:$Z$368,6,0) -> 3 | GG48: =VLOOKUP(GG4,[1]SILL1!$S$4:$Z$368,6,0) -> 9 | GH48: =VLOOKUP(GH4,[1]SILL1!$S$4:$Z$368,6,0) -> 0 | GI48: =VLOOKUP(GI4,[1]SILL1!$S$4:$Z$368,6,0) -> 0 | GJ48: =VLOOKUP(GJ4,[1]SILL1!$S$4:$Z$368,6,0) -> 0 | GK48: =VLOOKUP(GK4,[1]SILL1!$S$4:$Z$368,6,0) -> 0 | GL48: =VLOOKUP(GL4,[1]SILL1!$S$4:$Z$368,8,0) -> 5 | GM48: =VLOOKUP(GM4,[1]SILL1!$S$4:$Z$368,8,0) -> 30 | GN48: =VLOOKUP(GN4,[1]SILL1!$S$4:$Z$368,8,0) -> 15 | GO48: =VLOOKUP(GO4,[1]SILL1!$S$4:$Z$368,8,0) -> 0 | GP48: =VLOOKUP(GP4,[1]SILL1!$S$4:$Z$368,8,0) -> 0 | GQ48: =VLOOKUP(GQ4,[1]SILL1!$S$4:$Z$368,8,0) -> 0 | GR48: =VLOOKUP(GR4,[1]SILL1!$S$4:$Z$368,8,0) -> 0 | GS48: =VLOOKUP(GS4,[1]SILL1!$S$4:$Z$368,7,0) -> 0 | GT48: =VLOOKUP(GT4,[1]SILL1!$S$4:$Z$368,7,0) -> 0 | GU48: =VLOOKUP(GU4,[1]SILL1!$S$4:$Z$368,7,0) -> 0 | GV48: =VLOOKUP(GV4,[1]SILL1!$S$4:$Z$368,7,0) -> 0 | GW48: =VLOOKUP(GW4,[1]SILL1!$S$4:$Z$368,7,0) -> 0 | GX48: =VLOOKUP(GX4,[1]SILL1!$S$4:$Z$368,7,0) -> 0 | GY48: =VLOOKUP(GY4,[1]SILL1!$S$4:$Z$368,7,0) -> 0 | GZ48: =VLOOKUP(GZ4,[1]SILL1!$S$4:$Z$368,6,0) -> 0 | HA48: =VLOOKUP(HA4,[1]SILL1!$S$4:$Z$368,6,0) -> 0 | HB48: =VLOOKUP(HB4,[1]SILL1!$S$4:$Z$368,6,0) -> 0 | HC48: =VLOOKUP(HC4,[1]SILL1!$S$4:$Z$368,6,0) -> 0 | HD48: =VLOOKUP(HD4,[1]SILL1!$S$4:$Z$368,6,0) -> 0 | HE48: =VLOOKUP(HE4,[1]SILL1!$S$4:$Z$368,6,0) -> 0 | HF48: =VLOOKUP(HF4,[1]SILL1!$S$4:$Z$368,6,0) -> 0 | HG48: =VLOOKUP(HG4,[1]SILL1!$S$4:$Z$368,8,0) -> 0 | HH48: =VLOOKUP(HH4,[1]SILL1!$S$4:$Z$368,8,0) -> 0 | HI48: =VLOOKUP(HI4,[1]SILL1!$S$4:$Z$368,8,0) -> 0 | HJ48: =VLOOKUP(HJ4,[1]SILL1!$S$4:$Z$368,8,0) -> 0 | HK48: =VLOOKUP(HK4,[1]SILL1!$S$4:$Z$368,8,0) -> 0 | HL48: =VLOOKUP(HL4,[1]SILL1!$S$4:$Z$368,8,0) -> 0 | HM48: =VLOOKUP(HM4,[1]SILL1!$S$4:$Z$368,8,0) -> 0 | HN48: =VLOOKUP(HN4,[1]SILL1!$S$4:$Z$368,7,0) -> 0 | HO48: =VLOOKUP(HO4,[1]SILL1!$S$4:$Z$368,7,0) -> 0 | HP48: =VLOOKUP(HP4,[1]SILL1!$S$4:$Z$368,7,0) -> 0 | HQ48: =VLOOKUP(HQ4,[1]SILL1!$S$4:$Z$368,7,0) -> 0 | HR48: =VLOOKUP(HR4,[1]SILL1!$S$4:$Z$368,7,0) -> 0 | HS48: =VLOOKUP(HS4,[1]SILL1!$S$4:$Z$368,7,0) -> 0 | HT48: =VLOOKUP(HT4,[1]SILL1!$S$4:$Z$368,7,0) -> 0 | HU48: =VLOOKUP(HU4,[1]SILL1!$S$4:$Z$368,6,0) -> 0 | HV48: =VLOOKUP(HV4,[1]SILL1!$S$4:$Z$368,6,0) -> 0 | HW48: =VLOOKUP(HW4,[1]SILL1!$S$4:$Z$368,6,0) -> 0 | HX48: =VLOOKUP(HX4,[1]SILL1!$S$4:$Z$368,6,0) -> 35 | HY48: =VLOOKUP(HY4,[1]SILL1!$S$4:$Z$368,6,0) -> 20 | HZ48: =VLOOKUP(HZ4,[1]SILL1!$S$4:$Z$368,6,0) -> 0 | IA48: =VLOOKUP(IA4,[1]SILL1!$S$4:$Z$368,6,0) -> 0 | IB48: =VLOOKUP(IB4,[1]SILL1!$S$4:$Z$368,8,0) -> 0 | IC48: =VLOOKUP(IC4,[1]SILL1!$S$4:$Z$368,8,0) -> 0 | ID48: =VLOOKUP(ID4,[1]SILL1!$S$4:$Z$368,8,0) -> 0 | IE48: =VLOOKUP(IE4,[1]SILL1!$S$4:$Z$368,8,0) -> 0 | IF48: =VLOOKUP(IF4,[1]SILL1!$S$4:$Z$368,8,0) -> 0 | IG48: =VLOOKUP(IG4,[1]SILL1!$S$4:$Z$368,8,0) -> 0 | IH48: =VLOOKUP(IH4,[1]SILL1!$S$4:$Z$368,8,0) -> 0 | II48: =VLOOKUP(II4,[1]SILL1!$S$4:$Z$368,7,0) -> 0 | IJ48: =VLOOKUP(IJ4,[1]SILL1!$S$4:$Z$368,7,0) -> 0 | IK48: =VLOOKUP(IK4,[1]SILL1!$S$4:$Z$368,7,0) -> 9 | IL48: =VLOOKUP(IL4,[1]SILL1!$S$4:$Z$368,7,0) -> 35 | IM48: =VLOOKUP(IM4,[1]SILL1!$S$4:$Z$368,7,0) -> 0 | IN48: =VLOOKUP(IN4,[1]SILL1!$S$4:$Z$368,7,0) -> 0 | IO48: =VLOOKUP(IO4,[1]SILL1!$S$4:$Z$368,7,0) -> 0 | IP48: =VLOOKUP(IP4,[1]SILL1!$S$4:$Z$368,6,0) -> 0 | IQ48: =VLOOKUP(IQ4,[1]SILL1!$S$4:$Z$368,6,0) -> 1 | IR48: =VLOOKUP(IR4,[1]SILL1!$S$4:$Z$368,6,0) -> 0 | IS48: =VLOOKUP(IS4,[1]SILL1!$S$4:$Z$368,6,0) -> 0 | IT48: =VLOOKUP(IT4,[1]SILL1!$S$4:$Z$368,6,0) -> 0 | IU48: =VLOOKUP(IU4,[1]SILL1!$S$4:$Z$368,6,0) -> 0 | IV48: =VLOOKUP(IV4,[1]SILL1!$S$4:$Z$368,6,0) -> 0 | IW48: =VLOOKUP(IW4,[1]SILL1!$S$4:$Z$368,8,0) -> 0 | IX48: =VLOOKUP(IX4,[1]SILL1!$S$4:$Z$368,8,0) -> 0 | IY48: =VLOOKUP(IY4,[1]SILL1!$S$4:$Z$368,8,0) -> 0 | IZ48: =VLOOKUP(IZ4,[1]SILL1!$S$4:$Z$368,8,0) -> 30 | JA48: =VLOOKUP(JA4,[1]SILL1!$S$4:$Z$368,8,0) -> 0 | JB48: =VLOOKUP(JB4,[1]SILL1!$S$4:$Z$368,8,0) -> 0 | JC48: =VLOOKUP(JC4,[1]SILL1!$S$4:$Z$368,8,0) -> 0 | JD48: =VLOOKUP(JD4,[1]SILL1!$S$4:$Z$368,7,0) -> 0 | JE48: =VLOOKUP(JE4,[1]SILL1!$S$4:$Z$368,7,0) -> 4 | JF48: =VLOOKUP(JF4,[1]SILL1!$S$4:$Z$368,7,0) -> 0 | JG48: =VLOOKUP(JG4,[1]SILL1!$S$4:$Z$368,7,0) -> 10 | JH48: =VLOOKUP(JH4,[1]SILL1!$S$4:$Z$368,7,0) -> 10 | JI48: =VLOOKUP(JI4,[1]SILL1!$S$4:$Z$368,7,0) -> 0 | JJ48: =VLOOKUP(JJ4,[1]SILL1!$S$4:$Z$368,7,0) -> 0 | JK48: =VLOOKUP(JK4,[1]SILL1!$S$4:$Z$368,6,0) -> 0 | JL48: =VLOOKUP(JL4,[1]SILL1!$S$4:$Z$368,6,0) -> 10 | JM48: =VLOOKUP(JM4,[1]SILL1!$S$4:$Z$368,6,0) -> 0 | JN48: =VLOOKUP(JN4,[1]SILL1!$S$4:$Z$368,6,0) -> 0 | JO48: =VLOOKUP(JO4,[1]SILL1!$S$4:$Z$368,6,0) -> 0 | JP48: =VLOOKUP(JP4,[1]SILL1!$S$4:$Z$368,6,0) -> 0 | JQ48: =VLOOKUP(JQ4,[1]SILL1!$S$4:$Z$368,6,0) -> 0 | JR48: =VLOOKUP(JR4,[1]SILL1!$S$4:$Z$368,8,0) -> 7 | JS48: =VLOOKUP(JS4,[1]SILL1!$S$4:$Z$368,8,0) -> 0 | JT48: =VLOOKUP(JT4,[1]SILL1!$S$4:$Z$368,8,0) -> 0 | JU48: =VLOOKUP(JU4,[1]SILL1!$S$4:$Z$368,8,0) -> 0 | JV48: =VLOOKUP(JV4,[1]SILL1!$S$4:$Z$368,8,0) -> 0 | JW48: =VLOOKUP(JW4,[1]SILL1!$S$4:$Z$368,8,0) -> 0 | JX48: =VLOOKUP(JX4,[1]SILL1!$S$4:$Z$368,8,0) -> 0 | JY48: =VLOOKUP(JY4,[1]SILL1!$S$4:$Z$368,7,0) -> 0 | JZ48: =VLOOKUP(JZ4,[1]SILL1!$S$4:$Z$368,7,0) -> 0 | KA48: =VLOOKUP(KA4,[1]SILL1!$S$4:$Z$368,7,0) -> 0 | KB48: =VLOOKUP(KB4,[1]SILL1!$S$4:$Z$368,7,0) -> 0 | KC48: =VLOOKUP(KC4,[1]SILL1!$S$4:$Z$368,7,0) -> 0 | KD48: =VLOOKUP(KD4,[1]SILL1!$S$4:$Z$368,7,0) -> 0 | KE48: =VLOOKUP(KE4,[1]SILL1!$S$4:$Z$368,7,0) -> 0 | KF48: =VLOOKUP(KF4,[1]SILL1!$S$4:$Z$368,6,0) -> 0 | KG48: =VLOOKUP(KG4,[1]SILL1!$S$4:$Z$368,6,0) -> 0 | KH48: =VLOOKUP(KH4,[1]SILL1!$S$4:$Z$368,6,0) -> 0 | KI48: =VLOOKUP(KI4,[1]SILL1!$S$4:$Z$368,6,0) -> 0 | KJ48: =VLOOKUP(KJ4,[1]SILL1!$S$4:$Z$368,6,0) -> 0 | KK48: =VLOOKUP(KK4,[1]SILL1!$S$4:$Z$368,6,0) -> 0 | KL48: =VLOOKUP(KL4,[1]SILL1!$S$4:$Z$368,6,0) -> 0 | KM48: =VLOOKUP(KM4,[1]SILL1!$S$4:$Z$368,8,0) -> 0 | KN48: =VLOOKUP(KN4,[1]SILL1!$S$4:$Z$368,8,0) -> 0 | KO48: =VLOOKUP(KO4,[1]SILL1!$S$4:$Z$368,8,0) -> 0 | KP48: =VLOOKUP(KP4,[1]SILL1!$S$4:$Z$368,8,0) -> 0 | KQ48: =VLOOKUP(KQ4,[1]SILL1!$S$4:$Z$368,8,0) -> 0 | KR48: =VLOOKUP(KR4,[1]SILL1!$S$4:$Z$368,8,0) -> 0 | KS48: =VLOOKUP(KS4,[1]SILL1!$S$4:$Z$368,8,0) -> 0 | KT48: =VLOOKUP(KT4,[1]SILL1!$S$4:$Z$368,7,0) -> 0 | KU48: =VLOOKUP(KU4,[1]SILL1!$S$4:$Z$368,7,0) -> 0 | KV48: =VLOOKUP(KV4,[1]SILL1!$S$4:$Z$368,7,0) -> 0 | KW48: =VLOOKUP(KW4,[1]SILL1!$S$4:$Z$368,7,0) -> 0 | KX48: =VLOOKUP(KX4,[1]SILL1!$S$4:$Z$368,7,0) -> 0 | KY48: =VLOOKUP(KY4,[1]SILL1!$S$4:$Z$368,7,0) -> 0 | KZ48: =VLOOKUP(KZ4,[1]SILL1!$S$4:$Z$368,7,0) -> 0 | LA48: =VLOOKUP(LA4,[1]SILL1!$S$4:$Z$368,6,0) -> 0 | LB48: =VLOOKUP(LB4,[1]SILL1!$S$4:$Z$368,6,0) -> 0 | LC48: =VLOOKUP(LC4,[1]SILL1!$S$4:$Z$368,6,0) -> 0 | LD48: =VLOOKUP(LD4,[1]SILL1!$S$4:$Z$368,6,0) -> 0 | LE48: =VLOOKUP(LE4,[1]SILL1!$S$4:$Z$368,6,0) -> 0 | LF48: =VLOOKUP(LF4,[1]SILL1!$S$4:$Z$368,6,0) -> 0 | LG48: =VLOOKUP(LG4,[1]SILL1!$S$4:$Z$368,6,0) -> 0 | LH48: =VLOOKUP(LH4,[1]SILL1!$S$4:$Z$368,8,0) -> 0 | LI48: =VLOOKUP(LI4,[1]SILL1!$S$4:$Z$368,8,0) -> 0 | LJ48: =VLOOKUP(LJ4,[1]SILL1!$S$4:$Z$368,8,0) -> 0 | LK48: =VLOOKUP(LK4,[1]SILL1!$S$4:$Z$368,8,0) -> 0 | LL48: =VLOOKUP(LL4,[1]SILL1!$S$4:$Z$368,8,0) -> 0 | LM48: =VLOOKUP(LM4,[1]SILL1!$S$4:$Z$368,8,0) -> 0 | LN48: =VLOOKUP(LN4,[1]SILL1!$S$4:$Z$368,8,0) -> 0 | LO48: =VLOOKUP(LO4,[1]SILL1!$S$4:$Z$368,7,0) -> 0 | LP48: =VLOOKUP(LP4,[1]SILL1!$S$4:$Z$368,7,0) -> 0 | LQ48: =VLOOKUP(LQ4,[1]SILL1!$S$4:$Z$368,7,0) -> 0 | LR48: =VLOOKUP(LR4,[1]SILL1!$S$4:$Z$368,7,0) -> 0 | LS48: =VLOOKUP(LS4,[1]SILL1!$S$4:$Z$368,7,0) -> 0 | LT48: =VLOOKUP(LT4,[1]SILL1!$S$4:$Z$368,7,0) -> 0 | LU48: =VLOOKUP(LU4,[1]SILL1!$S$4:$Z$368,7,0) -> 0 | LV48: =VLOOKUP(LV4,[1]SILL1!$S$4:$Z$368,6,0) -> 0 | LW48: =VLOOKUP(LW4,[1]SILL1!$S$4:$Z$368,6,0) -> 0 | LX48: =VLOOKUP(LX4,[1]SILL1!$S$4:$Z$368,6,0) -> 0 | LY48: =VLOOKUP(LY4,[1]SILL1!$S$4:$Z$368,6,0) -> 0 | LZ48: =VLOOKUP(LZ4,[1]SILL1!$S$4:$Z$368,6,0) -> 0 | MA48: =VLOOKUP(MA4,[1]SILL1!$S$4:$Z$368,6,0) -> 0 | MB48: =VLOOKUP(MB4,[1]SILL1!$S$4:$Z$368,6,0) -> 0 | MC48: =VLOOKUP(MC4,[1]SILL1!$S$4:$Z$368,8,0) -> 0 | MD48: =VLOOKUP(MD4,[1]SILL1!$S$4:$Z$368,8,0) -> 0 | ME48: =VLOOKUP(ME4,[1]SILL1!$S$4:$Z$368,8,0) -> 0 | MF48: =VLOOKUP(MF4,[1]SILL1!$S$4:$Z$368,8,0) -> 0 | MG48: =VLOOKUP(MG4,[1]SILL1!$S$4:$Z$368,8,0) -> 0 | MH48: =VLOOKUP(MH4,[1]SILL1!$S$4:$Z$368,8,0) -> 0 | MI48: =VLOOKUP(MI4,[1]SILL1!$S$4:$Z$368,8,0) -> 0 | MJ48: =VLOOKUP(MJ4,[1]SILL1!$S$4:$Z$368,7,0) -> 0 | MK48: =VLOOKUP(MK4,[1]SILL1!$S$4:$Z$368,7,0) -> 0 | ML48: =VLOOKUP(ML4,[1]SILL1!$S$4:$Z$368,7,0) -> 0 | MM48: =VLOOKUP(MM4,[1]SILL1!$S$4:$Z$368,7,0) -> 0 | MN48: =VLOOKUP(MN4,[1]SILL1!$S$4:$Z$368,7,0) -> 0 | MO48: =VLOOKUP(MO4,[1]SILL1!$S$4:$Z$368,7,0) -> 0 | MP48: =VLOOKUP(MP4,[1]SILL1!$S$4:$Z$368,7,0) -> 0 | MQ48: =VLOOKUP(MQ4,[1]SILL1!$S$4:$Z$368,6,0) -> 0 | MR48: =VLOOKUP(MR4,[1]SILL1!$S$4:$Z$368,6,0) -> 0 | MS48: =VLOOKUP(MS4,[1]SILL1!$S$4:$Z$368,6,0) -> 0 | MT48: =VLOOKUP(MT4,[1]SILL1!$S$4:$Z$368,6,0) -> 0 | MU48: =VLOOKUP(MU4,[1]SILL1!$S$4:$Z$368,6,0) -> 0 | MV48: =VLOOKUP(MV4,[1]SILL1!$S$4:$Z$368,6,0) -> 0 | MW48: =VLOOKUP(MW4,[1]SILL1!$S$4:$Z$368,6,0) -> 0 | MX48: =VLOOKUP(MX4,[1]SILL1!$S$4:$Z$368,8,0) -> 0 | MY48: =VLOOKUP(MY4,[1]SILL1!$S$4:$Z$368,8,0) -> 0 | MZ48: =VLOOKUP(MZ4,[1]SILL1!$S$4:$Z$368,8,0) -> 0 | NA48: =VLOOKUP(NA4,[1]SILL1!$S$4:$Z$368,8,0) -> 0 | NB48: =VLOOKUP(NB4,[1]SILL1!$S$4:$Z$368,8,0) -> 0 | NC48: =VLOOKUP(NC4,[1]SILL1!$S$4:$Z$368,8,0) -> 0 | ND48: =VLOOKUP(ND4,[1]SILL1!$S$4:$Z$368,8,0) -> 0
A49: 0.089 | B49: t.b.d. | C49: Downtime Technical SILL1 RH [%] | E49: =IF(E47="",0%,(E48*60)/((E47*62)+(E48*60))) -> 0 | F49: =IF(F47="",0%,(F48*60)/((F47*62)+(F48*60))) -> 0 | G49: 0 | H49: 0 | I49: 0 | J49: 0 | K49: 0 | L49: 0 | M49: 0 | N49: 0 | O49: 0 | P49: 0 | Q49: 0 | R49: 0 | S49: 0 | T49: 0 | U49: 0 | V49: 0 | W49: 0 | X49: 0 | Y49: 0 | Z49: 0 | AA49: 0 | AB49: 0 | AC49: 0 | AD49: 0 | AE49: 0 | AF49: 0 | AG49: 0 | AH49: 0 | AI49: 0 | AJ49: 0 | AK49: 0 | AL49: 0 | AM49: 0 | AN49: 0 | AO49: 0 | AP49: 0 | AQ49: 0 | AR49: 0 | AS49: 0 | AT49: 0 | AU49: 0 | AV49: 0 | AW49: 0 | AX49: 0 | AY49: 0 | AZ49: 0 | BA49: 0 | BB49: 0 | BC49: 0 | BD49: 0 | BE49: 0 | BF49: 0 | BG49: 0 | BH49: 0 | BI49: 0 | BJ49: 0 | BK49: 0 | BL49: 0 | BM49: 0 | BN49: 0 | BO49: 0 | BP49: 0 | BQ49: 0 | BR49: =IF(BR47="",0%,(BR48*60)/((BR47*62)+(BR48*60))) -> 0 | BS49: 0 | BT49: 0 | BU49: 0 | BV49: 0 | BW49: 0 | BX49: 0 | BY49: 0 | BZ49: 0 | CA49: 0 | CB49: 0 | CC49: 0 | CD49: 0 | CE49: 0 | CF49: 0 | CG49: 0 | CH49: 0 | CI49: 0 | CJ49: 0 | CK49: 0 | CL49: 0 | CM49: 0 | CN49: 0 | CO49: 0 | CP49: 0 | CQ49: 0 | CR49: 0 | CS49: 0 | CT49: 0 | CU49: 0 | CV49: 0 | CW49: 0 | CX49: 0 | CY49: 0 | CZ49: 0 | DA49: 0 | DB49: 0 | DC49: 0 | DD49: 0 | DE49: 0 | DF49: 0 | DG49: 0 | DH49: 0 | DI49: 0 | DJ49: 0 | DK49: 0 | DL49: 0 | DM49: 0 | DN49: 0 | DO49: 0 | DP49: 0 | DQ49: 0 | DR49: 0 | DS49: 0 | DT49: 0 | DU49: 0 | DV49: 0 | DW49: 0 | DX49: 0 | DY49: 0 | DZ49: 0 | EA49: 0 | EB49: 0 | EC49: 0 | ED49: =IF(ED47="",0%,(ED48*60)/((ED47*62)+(ED48*60))) -> 0 | EE49: 0 | EF49: 0 | EG49: 0 | EH49: 0 | EI49: 0 | EJ49: 0.04941713127 | EK49: 0 | EL49: 0.06297229219 | EM49: 0 | EN49: 0 | EO49: 0 | EP49: 0.1457176844 | EQ49: 0 | ER49: 0.0148386299 | ES49: 0 | ET49: 0 | EU49: 0 | EV49: 0 | EW49: 0 | EX49: 0 | EY49: 0 | EZ49: 0 | FA49: 0 | FB49: 0 | FC49: 0.0344651519 | FD49: 0 | FE49: 0.04751346215 | FF49: 0.04814378945 | FG49: 0.04307250538 | FH49: 0 | FI49: 0 | FJ49: 0.01330819563 | FK49: 0.01398112548 | FL49: 0.1314566459 | FM49: 0 | FN49: 0.04571776897 | FO49: 0 | FP49: 0 | FQ49: 0.0160042678 | FR49: 0 | FS49: 0 | FT49: 0 | FU49: 0 | FV49: 0 | FW49: 0 | FX49: 0 | FY49: 0 | FZ49: 0 | GA49: 0 | GB49: 0 | GC49: 0 | GD49: 0 | GE49: 0 | GF49: 0.00949066751 | GG49: 0.03159003159 | GH49: 0 | GI49: 0 | GJ49: 0 | GK49: 0 | GL49: 0.02043040044 | GM49: 0.09455768018 | GN49: 0.05725919328 | GO49: 0 | GP49: =IF(GP47="",0%,(GP48*60)/((GP47*62)+(GP48*60))) -> 0 | GQ49: 0 | GR49: 0 | GS49: 0 | GT49: 0 | GU49: 0 | GV49: 0 | GW49: 0 | GX49: 0 | GY49: 0 | GZ49: 0 | HA49: 0 | HB49: 0 | HC49: 0 | HD49: 0 | HE49: 0 | HF49: 0 | HG49: 0 | HH49: 0 | HI49: 0 | HJ49: 0 | HK49: 0 | HL49: 0 | HM49: 0 | HN49: 0 | HO49: 0 | HP49: 0 | HQ49: 0 | HR49: 0 | HS49: 0 | HT49: 0 | HU49: 0 | HV49: 0 | HW49: 0 | HX49: 0.1288501657 | HY49: 0.07321537523 | HZ49: 0 | IA49: 0 | IB49: 0 | IC49: 0 | ID49: 0 | IE49: 0 | IF49: 0 | IG49: 0 | IH49: 0 | II49: 0 | IJ49: 0 | IK49: 0.03758875122 | IL49: 0.1020606532 | IM49: 0 | IN49: 0 | IO49: 0 | IP49: 0 | IQ49: 0.003584657665 | IR49: 0 | IS49: 0 | IT49: 0 | IU49: 0 | IV49: 0 | IW49: 0 | IX49: 0 | IY49: 0 | IZ49: 0.1025757921 | JA49: 0 | JB49: =IF(JB47="",0%,(JB48*60)/((JB47*62)+(JB48*60))) -> 0 | JC49: 0 | JD49: 0 | JE49: 0.01461454147 | JF49: 0 | JG49: 0.02917720288 | JH49: 0.02989834562 | JI49: 0 | JJ49: 0 | JK49: 0 | JL49: 0.03218538783 | JM49: 0 | JN49: 0 | JO49: 0 | JP49: 0 | JQ49: 0 | JR49: 0.02158939036 | JS49: 0 | JT49: 0 | JU49: 0 | JV49: 0 | JW49: 0 | JX49: 0 | JY49: 0 | JZ49: 0 | KA49: 0 | KB49: 0 | KC49: 0 | KD49: 0 | KE49: 0 | KF49: 0 | KG49: 0 | KH49: 0 | KI49: 0 | KJ49: 0 | KK49: 0 | KL49: 0 | KM49: 0 | KN49: 0 | KO49: 0 | KP49: 0 | KQ49: 0 | KR49: 0 | KS49: 0 | KT49: 0 | KU49: 0 | KV49: 0 | KW49: 0 | KX49: 0 | KY49: 0 | KZ49: 0 | LA49: 0 | LB49: 0 | LC49: 0 | LD49: 0 | LE49: 0 | LF49: 0 | LG49: 0 | LH49: 0 | LI49: 0 | LJ49: 0 | LK49: 0 | LL49: 0 | LM49: 0 | LN49: =IF(LN47="",0%,(LN48*60)/((LN47*62)+(LN48*60))) -> 0 | LO49: 0 | LP49: 0 | LQ49: 0 | LR49: 0 | LS49: 0 | LT49: 0 | LU49: 0 | LV49: 0 | LW49: 0 | LX49: 0 | LY49: 0 | LZ49: 0 | MA49: 0 | MB49: 0 | MC49: 0 | MD49: 0 | ME49: 0 | MF49: 0 | MG49: 0 | MH49: 0 | MI49: 0 | MJ49: 0 | MK49: 0 | ML49: 0 | MM49: 0 | MN49: 0 | MO49: 0 | MP49: 0 | MQ49: 0 | MR49: 0 | MS49: 0 | MT49: 0 | MU49: 0 | MV49: 0 | MW49: 0 | MX49: 0 | MY49: 0 | MZ49: 0 | NA49: 0 | NB49: 0 | NC49: 0 | ND49: 0
A50: 0 | B50: t.b.d. | C50: Blocked Starved [Min] | EH50: 0 | EI50: 0 | EJ50: 0 | EK50: 0 | EL50: 0 | EP50: 0 | EQ50: 0 | ER50: 0 | ES50: 0 | ET50: 0 | EV50: 0 | EW50: 0 | EX50: 0 | EY50: 0 | EZ50: 0 | FC50: 0 | FD50: 0 | FE50: 0 | FF50: 0 | FG50: 0 | FJ50: 0 | FK50: 0 | FL50: 0 | FM50: 0 | FN50: 0 | FO50: 0 | FQ50: 0 | FR50: 0 | FS50: 0 | FT50: 0 | FU50: 0 | FX50: 0 | FY50: 0 | FZ50: 0 | GA50: 0 | GB50: 0 | GE50: 0 | GF50: 0 | GG50: 0 | GH50: 0 | GI50: 0 | GJ50: 0 | GL50: 0 | GM50: 0 | GN50: 0 | GO50: 0 | GP50: 0 | GS50: 0 | GT50: 0 | GU50: 0 | GV50: 0 | HU50: 0 | HV50: 0 | HW50: 0 | HX50: 0 | HY50: 0 | HZ50: 8 | IB50: 0 | IC50: 0 | ID50: 0 | IE50: 0 | IF50: 0 | II50: 0 | IJ50: 0 | IK50: 0 | IL50: 0 | IM50: 0 | IP50: 0 | IQ50: 0 | IR50: 0 | IS50: 0 | IT50: 0 | IU50: 0 | IW50: 0 | IX50: 0 | IY50: 0 | IZ50: 34 | JA50: 0 | JD50: 0 | JE50: 0 | JF50: 0 | JG50: 0 | JH50: 0 | JK50: 0 | JL50: 0 | JM50: 0 | JN50: 0 | JO50: 0 | JP50: 0 | JR50: 0 | JS50: 0 | JT50: 0 | JU50: 0 | JV50: 0
A51: 0 | B51: t.b.d. | C51: Parts at Break [Aantal] | EH51: 0 | EI51: 2 | EJ51: 8 | EK51: 10 | EL51: 3 | EP51: 10 | EQ51: 6 | ER51: 2 | ES51: 4 | ET51: 0 | EV51: 0 | EW51: 2 | EX51: 25 | EY51: 5 | EZ51: 6 | FC51: 1 | FD51: 2 | FE51: 1 | FF51: 3 | FG51: 3 | FJ51: 1 | FK51: 3 | FL51: 0 | FM51: 0 | FN51: 0 | FO51: 4 | FQ51: 10 | FR51: 0 | FS51: 9 | FT51: 7 | FU51: 0 | FX51: 4 | FY51: 5 | FZ51: 2 | GA51: 1 | GB51: 4 | GE51: 1 | GF51: 7 | GG51: 2 | GH51: 0 | GI51: 1 | GJ51: 5 | GL51: 5 | GM51: 3 | GN51: 2 | GO51: 4 | GP51: 6 | GS51: 3 | GT51: 0 | GU51: 0 | GV51: 0 | HU51: 9 | HV51: 4 | HW51: 1 | HX51: 9 | HY51: 25 | HZ51: 0 | IB51: 6 | IC51: 7 | ID51: 0 | IE51: 3 | IF51: 0 | II51: 0 | IJ51: 3 | IK51: 0 | IL51: 6 | IM51: 0 | IP51: 1 | IQ51: 0 | IR51: 0 | IS51: 3 | IT51: 1 | IU51: 4 | IW51: 5 | IX51: 8 | IY51: 1 | IZ51: 23 | JA51: 4 | JD51: 2 | JE51: 4 | JF51: 1 | JG51: 7 | JH51: 0 | JK51: 1 | JL51: 3 | JM51: 1 | JN51: 5 | JO51: 4 | JP51: 1 | JR51: 0 | JS51: 0 | JT51: 5 | JU51: 6 | JV51: 4
A52: 0 | B52: t.b.d. | C52: Planned Stop [Min] | EH52: 0 | EI52: 0 | EJ52: 0 | EK52: 0 | EL52: 0 | EP52: 0 | EQ52: 0 | ER52: 0 | ES52: 0 | ET52: 0 | EV52: 0 | EW52: 0 | EX52: 0 | EY52: 0 | EZ52: 0 | FC52: 0 | FD52: 0 | FE52: 0 | FF52: 0 | FG52: 0 | FJ52: 0 | FK52: 0 | FL52: 0 | FM52: 0 | FN52: 0 | FO52: 0 | FQ52: 0 | FR52: 0 | FS52: 0 | FT52: 0 | FU52: 0 | FX52: 0 | FY52: 0 | FZ52: 0 | GA52: 0 | GB52: 0 | GE52: 0 | GF52: 0 | GG52: 0 | GH52: 0 | GI52: 35 | GJ52: 0 | GL52: 0 | GM52: 0 | GN52: 0 | GO52: 0 | GP52: 0 | GS52: 0 | GT52: 30 | GU52: 0 | GV52: 0 | HU52: 0 | HV52: 0 | HW52: 0 | HX52: 0 | HY52: 0 | HZ52: 0 | IB52: 0 | IC52: 0 | ID52: 0 | IE52: 0 | IF52: 0 | II52: 0 | IJ52: 0 | IK52: 30 | IL52: 0 | IM52: 0 | IP52: 0 | IQ52: 0 | IR52: 0 | IS52: 0 | IT52: 0 | IU52: 0 | IW52: 0 | IX52: 0 | IY52: 0 | IZ52: 0 | JA52: 0 | JD52: 0 | JE52: 0 | JF52: 0 | JG52: 0 | JH52: 0 | JK52: 0 | JL52: 0 | JM52: 0 | JN52: 0 | JO52: 35 | JP52: 0 | JR52: 0 | JS52: 0 | JT52: 0 | JU52: 0 | JV52: 0
A53: Plan | B53: Plan | C53: Realized Average | E53: =IFERROR((E29+E35+E41+E47)/4,"-") -> 0 | F53: 0 | G53: 0 | H53: 0 | I53: 0 | J53: 0 | K53: 0 | L53: 0 | M53: 0 | N53: 0 | O53: 0 | P53: 0 | Q53: 0 | R53: 0 | S53: 0 | T53: 0 | U53: 0 | V53: 0 | W53: 0 | X53: 0 | Y53: 0 | Z53: 0 | AA53: 0 | AB53: 0 | AC53: 0 | AD53: 0 | AE53: 0 | AF53: 0 | AG53: 0 | AH53: 0 | AI53: 0 | AJ53: 0 | AK53: 0 | AL53: 0 | AM53: 0 | AN53: 0 | AO53: 0 | AP53: 0 | AQ53: 0 | AR53: 0 | AS53: 0 | AT53: 0 | AU53: 0 | AV53: 0 | AW53: 0 | AX53: 0 | AY53: 0 | AZ53: 0 | BA53: 0 | BB53: 0 | BC53: 0 | BD53: 0 | BE53: 0 | BF53: 0 | BG53: 0 | BH53: 0 | BI53: 0 | BJ53: 0 | BK53: 0 | BL53: 0 | BM53: 0 | BN53: 0 | BO53: 0 | BP53: 0 | BQ53: =IFERROR((BQ29+BQ35+BQ41+BQ47)/4,"-") -> 0 | BR53: 0 | BS53: 0 | BT53: 0 | BU53: 0 | BV53: 0 | BW53: 0 | BX53: 0 | BY53: 0 | BZ53: 0 | CA53: 0 | CB53: 0 | CC53: 0 | CD53: 0 | CE53: 0 | CF53: 0 | CG53: 0 | CH53: 0 | CI53: 0 | CJ53: 0 | CK53: 0 | CL53: 0 | CM53: 0 | CN53: 0 | CO53: 0 | CP53: 0 | CQ53: 0 | CR53: =IFERROR((CR29+CR35+CR41+CR47)/4,"-") -> 0 | CS53: =IFERROR((CS29+CS35+CS41+CS47)/4,"-") -> 0 | CT53: 0 | CU53: 0 | CV53: 0 | CW53: =IFERROR((CW29+CW35+CW41+CW47)/4,"-") -> 0 | CX53: =IFERROR((CX29+CX35+CX41+CX47)/4,"-") -> 0 | CY53: 0 | CZ53: 0 | DA53: 0 | DB53: 0 | DC53: 0 | DD53: =IFERROR((DD29+DD35+DD41+DD47)/4,"-") -> 0 | DE53: 0 | DF53: =IFERROR((DF29+DF35+DF41+DF47)/4,"-") -> 0 | DG53: 0 | DH53: 0 | DI53: 0 | DJ53: 0 | DK53: 0 | DL53: 0 | DM53: 0 | DN53: 0 | DO53: 0 | DP53: 0 | DQ53: 0 | DR53: 0 | DS53: 0 | DT53: 0 | DU53: 0 | DV53: 0 | DW53: 0 | DX53: 0 | DY53: 0 | DZ53: 0 | EA53: 0 | EB53: 0 | EC53: 0 | ED53: 0 | EE53: 0 | EF53: 0 | EG53: 0 | EH53: 300.75 | EI53: 263.5 | EJ53: 280.75 | EK53: 275.25 | EL53: 234.25 | EM53: 0 | EN53: 0 | EO53: 0 | EP53: 273.5 | EQ53: 284 | ER53: 275 | ES53: 256.75 | ET53: 220.5 | EU53: 0 | EV53: 245 | EW53: 252.75 | EX53: 295.5 | EY53: 313 | EZ53: 270.75 | FA53: 0 | FB53: 0 | FC53: 247.75 | FD53: 270 | FE53: 283.75 | FF53: 297.5 | FG53: 315 | FH53: 0 | FI53: 0 | FJ53: 277.75 | FK53: 302.75 | FL53: 317.5 | FM53: 260.25 | FN53: 245.5 | FO53: 113.5 | FP53: 0 | FQ53: 235.5 | FR53: =IFERROR((FR29+FR35+FR41+FR47)/4,"-") -> 125.25 | FS53: 289.5 | FT53: 293.25 | FU53: 204.75 | FV53: 0 | FW53: 0 | FX53: 295.25 | FY53: 307 | FZ53: 303.5 | GA53: 306.5 | GB53: 19.75 | GC53: 0 | GD53: 0 | GE53: 239.5 | GF53: 321.25 | GG53: 299.5 | GH53: 282.5 | GI53: 257.25 | GJ53: 179.75 | GK53: 0 | GL53: 271.5 | GM53: 323 | GN53: 295.25 | GO53: 252.25 | GP53: 297 | GQ53: 0 | GR53: 0 | GS53: 265.5 | GT53: 217.75 | GU53: 299 | GV53: 64.25 | GW53: 0 | GX53: 0 | GY53: 0 | GZ53: 0 | HA53: 0 | HB53: 0 | HC53: 0 | HD53: 0 | HE53: 0 | HF53: 0 | HG53: 0 | HH53: 0 | HI53: 0 | HJ53: 0 | HK53: 0 | HL53: 0 | HM53: 0 | HN53: 0 | HO53: 0 | HP53: 0 | HQ53: 0 | HR53: 0 | HS53: 0 | HT53: 0 | HU53: 244 | HV53: 283 | HW53: 245.5 | HX53: 204.5 | HY53: 297.25 | HZ53: 371.25 | IA53: 0 | IB53: 211.25 | IC53: 275 | ID53: =IFERROR((ID29+ID35+ID41+ID47)/4,"-") -> 226.5 | IE53: 261.25 | IF53: 261.75 | IG53: 0 | IH53: 0 | II53: 327.5 | IJ53: 305.75 | IK53: 285.75 | IL53: 333.75 | IM53: 334.75 | IN53: 0 | IO53: 0 | IP53: 297.75 | IQ53: 283.5 | IR53: 299.5 | IS53: 269.25 | IT53: 207.75 | IU53: 212.75 | IV53: 0 | IW53: 264 | IX53: 279.75 | IY53: 293 | IZ53: 309.5 | JA53: 301 | JB53: 0 | JC53: 0 | JD53: 238.25 | JE53: 281.75 | JF53: 313.5 | JG53: 338 | JH53: 311.25 | JI53: 0 | JJ53: 0 | JK53: 326.25 | JL53: 343.25 | JM53: 351.75 | JN53: 293.75 | JO53: 271.25 | JP53: 254.25 | JQ53: 0 | JR53: 336 | JS53: 275.25 | JT53: 304.75 | JU53: 316.25 | JV53: 280.75 | JW53: 0 | JX53: 0 | JY53: 0 | JZ53: 0 | KA53: 0 | KB53: 0 | KC53: 0 | KD53: 0 | KE53: 0 | KF53: 0 | KG53: 0 | KH53: 0 | KI53: 0 | KJ53: 0 | KK53: 0 | KL53: 0 | KM53: 0 | KN53: 0 | KO53: 0 | KP53: =IFERROR((KP29+KP35+KP41+KP47)/4,"-") -> 0 | KQ53: 0 | KR53: 0 | KS53: 0 | KT53: 0 | KU53: 0 | KV53: 0 | KW53: 0 | KX53: 0 | KY53: 0 | KZ53: 0 | LA53: 0 | LB53: 0 | LC53: 0 | LD53: 0 | LE53: 0 | LF53: 0 | LG53: 0 | LH53: 0 | LI53: 0 | LJ53: 0 | LK53: 0 | LL53: 0 | LM53: 0 | LN53: 0 | LO53: 0 | LP53: 0 | LQ53: 0 | LR53: 0 | LS53: 0 | LT53: 0 | LU53: 0 | LV53: 0 | LW53: 0 | LX53: 0 | LY53: 0 | LZ53: 0 | MA53: 0 | MB53: 0 | MC53: 0 | MD53: 0 | ME53: 0 | MF53: 0 | MG53: 0 | MH53: 0 | MI53: 0 | MJ53: 0 | MK53: 0 | ML53: 0 | MM53: 0 | MN53: 0 | MO53: 0 | MP53: 0 | MQ53: 0 | MR53: 0 | MS53: 0 | MT53: 0 | MU53: 0 | MV53: 0 | MW53: 0 | MX53: 0 | MY53: 0 | MZ53: 0 | NA53: 0 | NB53: =IFERROR((NB29+NB35+NB41+NB47)/4,"-") -> 0 | NC53: 0 | ND53: 0
A54: 0.089 | B54: t.b.d. | C54: Downtime Technical Gemiddeld [Min] | E54: =SUM(E30,E36,E42,E48)/4 -> 0 | F54: =SUM(F30,F36,F42,F48)/4 -> 0 | G54: =SUM(G30,G36,G42,G48)/4 -> 0 | H54: 0 | I54: 0 | J54: 0 | K54: 0 | L54: 14.25 | M54: 7.5 | N54: 22.5 | O54: 27.5 | P54: 19 | Q54: 0 | R54: 0 | S54: 42.25 | T54: 19 | U54: 17.5 | V54: 17.5 | W54: 18 | X54: 0 | Y54: 0 | Z54: 0 | AA54: 0 | AB54: 0 | AC54: 0 | AD54: 0 | AE54: 0 | AF54: 0 | AG54: 11.25 | AH54: 14 | AI54: 11.25 | AJ54: 8.75 | AK54: 11.5 | AL54: 0 | AM54: 0 | AN54: 12 | AO54: 19 | AP54: 77.25 | AQ54: 19.25 | AR54: 22.5 | AS54: 0 | AT54: 0 | AU54: 0 | AV54: 0 | AW54: 0 | AX54: 0 | AY54: 8.75 | AZ54: 0 | BA54: 0 | BB54: 19.5 | BC54: 13.25 | BD54: 24 | BE54: 14 | BF54: 11 | BG54: 0 | BH54: 0 | BI54: 0.75 | BJ54: 10.25 | BK54: 10.25 | BL54: 18.5 | BM54: 21 | BN54: 0 | BO54: 0 | BP54: 0 | BQ54: 0 | BR54: 0 | BS54: =SUM(BS30,BS36,BS42,BS48)/4 -> 0 | BT54: 0 | BU54: 0 | BV54: 0 | BW54: 31 | BX54: 17.5 | BY54: 14.25 | BZ54: 8.75 | CA54: 36.25 | CB54: 0 | CC54: 0 | CD54: 12.25 | CE54: 11.75 | CF54: 12.75 | CG54: 10 | CH54: 22.75 | CI54: 0 | CJ54: 0 | CK54: 0 | CL54: 0 | CM54: 0 | CN54: 0 | CO54: 0 | CP54: 0 | CQ54: 0 | CR54: 0 | CS54: 22.75 | CT54: 26.25 | CU54: 15.5 | CV54: 22 | CW54: 0 | CX54: 0 | CY54: 35.25 | CZ54: 24.25 | DA54: 21.75 | DB54: 22 | DC54: 29.75 | DD54: 0 | DE54: 0 | DF54: 14 | DG54: 18.75 | DH54: 42.5 | DI54: 8 | DJ54: 20.25 | DK54: 0 | DL54: 0 | DM54: 21 | DN54: 46.75 | DO54: 22 | DP54: 17 | DQ54: 0 | DR54: 0 | DS54: 0 | DT54: 17.5 | DU54: 29.5 | DV54: 56 | DW54: 26.25 | DX54: 55.5 | DY54: 39.5 | DZ54: 0 | EA54: 17.75 | EB54: 33.5 | EC54: 40 | ED54: 0 | EE54: =SUM(EE30,EE36,EE42,EE48)/4 -> 12.5 | EF54: 0 | EG54: 0 | EH54: 38.5 | EI54: 28 | EJ54: 32.25 | EK54: 16.25 | EL54: 29.5 | EM54: 0 | EN54: 0 | EO54: 0 | EP54: 35.5 | EQ54: 13.25 | ER54: 26.75 | ES54: 10.25 | ET54: 19 | EU54: 0 | EV54: 6 | EW54: 26.75 | EX54: 20 | EY54: 21 | EZ54: 1.5 | FA54: 0 | FB54: 0 | FC54: 15.5 | FD54: 6.75 | FE54: 25.25 | FF54: 44.25 | FG54: 34 | FH54: 0 | FI54: 0 | FJ54: 40.5 | FK54: 15.25 | FL54: 28.5 | FM54: 11.25 | FN54: 8.5 | FO54: 0 | FP54: 0 | FQ54: 15 | FR54: 0 | FS54: 22.5 | FT54: 28 | FU54: 0 | FV54: 0 | FW54: 0 | FX54: 28.5 | FY54: 33.25 | FZ54: 24 | GA54: 10 | GB54: 0 | GC54: 0 | GD54: 0 | GE54: 19 | GF54: 13.25 | GG54: 18.75 | GH54: 11.25 | GI54: 27.75 | GJ54: 0 | GK54: 0 | GL54: 42.5 | GM54: 33.5 | GN54: 14.25 | GO54: 0 | GP54: 0 | GQ54: =SUM(GQ30,GQ36,GQ42,GQ48)/4 -> 0 | GR54: 0 | GS54: 30.25 | GT54: 48 | GU54: 25.75 | GV54: 0 | GW54: 0 | GX54: 0 | GY54: 0 | GZ54: 0 | HA54: 0 | HB54: 0 | HC54: 0 | HD54: 0 | HE54: 0 | HF54: 0 | HG54: 0 | HH54: 0 | HI54: 0 | HJ54: 0 | HK54: 0 | HL54: 0 | HM54: 0 | HN54: 0 | HO54: 0 | HP54: 0 | HQ54: 0 | HR54: 0 | HS54: 0 | HT54: 0 | HU54: 30.75 | HV54: 17.75 | HW54: 7.5 | HX54: 22.5 | HY54: 17.75 | HZ54: 0 | IA54: 0 | IB54: 25.75 | IC54: 6.25 | ID54: 14 | IE54: 23.75 | IF54: 0 | IG54: 0 | IH54: 0 | II54: 18.75 | IJ54: 43 | IK54: 44.25 | IL54: 29 | IM54: 42.5 | IN54: 0 | IO54: 0 | IP54: 21.75 | IQ54: 47.25 | IR54: 34.5 | IS54: 19.75 | IT54: 9.75 | IU54: 0 | IV54: 0 | IW54: 34.75 | IX54: 20.25 | IY54: 8 | IZ54: 11.5 | JA54: 0 | JB54: 0 | JC54: =SUM(JC30,JC36,JC42,JC48)/4 -> 0 | JD54: 29.75 | JE54: 18.75 | JF54: 30.75 | JG54: 24.25 | JH54: 14.5 | JI54: 0 | JJ54: 0 | JK54: 17.5 | JL54: 15 | JM54: 37.25 | JN54: 21.75 | JO54: 0 | JP54: 0 | JQ54: 0 | JR54: 24.25 | JS54: 9 | JT54: 9.5 | JU54: 0 | JV54: 0 | JW54: 0 | JX54: 0 | JY54: 0 | JZ54: 0 | KA54: 0 | KB54: 0 | KC54: 0 | KD54: 0 | KE54: 0 | KF54: 0 | KG54: 0 | KH54: 0 | KI54: 0 | KJ54: 0 | KK54: 0 | KL54: 0 | KM54: 0 | KN54: 0 | KO54: 0 | KP54: 0 | KQ54: 0 | KR54: 0 | KS54: 0 | KT54: 0 | KU54: 0 | KV54: 0 | KW54: 0 | KX54: 0 | KY54: 0 | KZ54: 0 | LA54: 0 | LB54: 0 | LC54: 0 | LD54: 0 | LE54: 0 | LF54: 0 | LG54: 0 | LH54: 0 | LI54: 0 | LJ54: 0 | LK54: 0 | LL54: 0 | LM54: 0 | LN54: 0 | LO54: =SUM(LO30,LO36,LO42,LO48)/4 -> 0 | LP54: 0 | LQ54: 0 | LR54: 0 | LS54: 0 | LT54: 0 | LU54: 0 | LV54: 0 | LW54: 0 | LX54: 0 | LY54: 0 | LZ54: 0 | MA54: 0 | MB54: 0 | MC54: 0 | MD54: 0 | ME54: 0 | MF54: 0 | MG54: 0 | MH54: 0 | MI54: 0 | MJ54: 0 | MK54: 0 | ML54: 0 | MM54: 0 | MN54: 0 | MO54: 0 | MP54: 0 | MQ54: 0 | MR54: 0 | MS54: 0 | MT54: 0 | MU54: 0 | MV54: 0 | MW54: 0 | MX54: 0 | MY54: 0 | MZ54: 0 | NA54: 0 | NB54: 0 | NC54: 0 | ND54: 0
A55: 0.089 | B55: t.b.d. | C55: Downtime Technical Gemiddeld [%] | E55: =SUM(E31,E37,E43,E49)/4 -> 0 | F55: =SUM(F31,F37,F43,F49)/4 -> 0 | G55: 0 | H55: 0 | I55: 0 | J55: 0 | K55: 0 | L55: 0 | M55: 0 | N55: 0 | O55: 0 | P55: 0 | Q55: 0 | R55: 0 | S55: 0 | T55: 0 | U55: 0 | V55: 0 | W55: 0 | X55: 0 | Y55: 0 | Z55: 0 | AA55: 0 | AB55: 0 | AC55: 0 | AD55: 0 | AE55: 0 | AF55: 0 | AG55: 0 | AH55: 0 | AI55: 0 | AJ55: 0 | AK55: 0 | AL55: 0 | AM55: 0 | AN55: 0 | AO55: 0 | AP55: 0 | AQ55: 0 | AR55: 0 | AS55: 0 | AT55: 0 | AU55: 0 | AV55: 0 | AW55: 0 | AX55: 0 | AY55: 0 | AZ55: 0 | BA55: 0 | BB55: 0 | BC55: 0 | BD55: 0 | BE55: 0 | BF55: 0 | BG55: 0 | BH55: 0 | BI55: 0 | BJ55: 0 | BK55: 0 | BL55: 0 | BM55: 0 | BN55: 0 | BO55: 0 | BP55: 0 | BQ55: 0 | BR55: =SUM(BR31,BR37,BR43,BR49)/4 -> 0 | BS55: 0 | BT55: 0 | BU55: 0 | BV55: 0 | BW55: 0 | BX55: 0 | BY55: 0 | BZ55: 0 | CA55: 0 | CB55: 0 | CC55: 0 | CD55: 0 | CE55: 0 | CF55: 0 | CG55: 0 | CH55: 0 | CI55: 0 | CJ55: 0 | CK55: 0 | CL55: 0 | CM55: 0 | CN55: 0 | CO55: 0 | CP55: 0 | CQ55: 0 | CR55: 0 | CS55: 0 | CT55: 0 | CU55: 0 | CV55: 0 | CW55: 0 | CX55: 0 | CY55: 0 | CZ55: 0 | DA55: 0 | DB55: 0 | DC55: 0 | DD55: 0 | DE55: 0 | DF55: 0 | DG55: 0 | DH55: 0 | DI55: 0 | DJ55: 0 | DK55: 0 | DL55: 0 | DM55: 0 | DN55: 0 | DO55: 0 | DP55: 0 | DQ55: 0 | DR55: 0 | DS55: 0 | DT55: 0 | DU55: 0 | DV55: 0 | DW55: 0 | DX55: 0 | DY55: 0 | DZ55: 0 | EA55: 0 | EB55: 0 | EC55: 0 | ED55: =SUM(ED31,ED37,ED43,ED49)/4 -> 0 | EE55: 0 | EF55: 0 | EG55: 0 | EH55: 0.1084614699 | EI55: 0.09723903423 | EJ55: 0.08442897561 | EK55: 0.04827162554 | EL55: 0.1048052192 | EM55: 0 | EN55: 0 | EO55: 0 | EP55: 0.1105219036 | EQ55: 0.03670888305 | ER55: 0.0824790638 | ES55: 0.03182959629 | ET55: 0.05311647492 | EU55: 0 | EV55: 0.01959270595 | EW55: 0.0769662206 | EX55: 0.05761351956 | EY55: 0.0601821431 | EZ55: 0.004271881526 | FA55: 0 | FB55: 0 | FC55: 0.05300343977 | FD55: 0.02018086282 | FE55: 0.07234386313 | FF55: 0.1152372169 | FG55: 0.0842030324 | FH55: 0 | FI55: 0 | FJ55: 0.1202075306 | FK55: 0.04348091815 | FL55: 0.07778344342 | FM55: 0.0352665539 | FN55: 0.03045290451 | FO55: 0 | FP55: 0 | FQ55: 0.05021077099 | FR55: 0 | FS55: 0.05487242393 | FT55: 0.06908098117 | FU55: 0 | FV55: 0 | FW55: 0 | FX55: 0.07798087688 | FY55: 0.07518850269 | FZ55: 0.06841422731 | GA55: 0.02510630327 | GC55: 0 | GD55: 0 | GE55: 0.06576403898 | GF55: 0.03615313561 | GG55: 0.05207313531 | GH55: 0.03374054534 | GI55: 0.07557895051 | GJ55: 0 | GK55: 0 | GL55: 0.1200845991 | GM55: 0.09354367278 | GN55: 0.04476636275 | GO55: 0 | GP55: =SUM(GP31,GP37,GP43,GP49)/4 -> 0 | GQ55: 0 | GR55: 0 | GS55: 0.09327504895 | GT55: 0.1436194676 | GU55: 0.08026639657 | GV55: 0 | GW55: 0 | GX55: 0 | GY55: 0 | GZ55: 0 | HA55: 0 | HB55: 0 | HC55: 0 | HD55: 0 | HE55: 0 | HF55: 0 | HG55: 0 | HH55: 0 | HI55: 0 | HJ55: 0 | HK55: 0 | HL55: 0 | HM55: 0 | HN55: 0 | HO55: 0 | HP55: 0 | HQ55: 0 | HR55: 0 | HS55: 0 | HT55: 0 | HU55: 0.09240141511 | HV55: 0.05330994937 | HW55: 0.02676276949 | HX55: 0.09787044421 | HY55: 0.0521280803 | HZ55: 0 | IA55: 0 | IB55: 0.09943464022 | IC55: 0.01753005887 | ID55: 0.04590432796 | IE55: 0.05695320992 | IF55: 0 | IG55: 0 | IH55: 0 | II55: 0.04750826173 | IJ55: 0.09545588942 | IK55: 0.1080540836 | IL55: 0.07170836306 | IM55: 0.09026755146 | IN55: 0 | IO55: 0 | IP55: 0.0643147531 | IQ55: 0.1171800052 | IR55: 0.07530812356 | IS55: 0.05142995904 | IT55: 0.03252845491 | IU55: 0 | IV55: 0 | IW55: 0.08334772024 | IX55: 0.05868367406 | IY55: 0.02094874642 | IZ55: 0.03654145521 | JA55: 0 | JB55: =SUM(JB31,JB37,JB43,JB49)/4 -> 0 | JC55: 0 | JD55: 0.08553759806 | JE55: 0.0505359081 | JF55: 0.08084373529 | JG55: 0.05950639228 | JH55: 0.04144040203 | JI55: 0 | JJ55: 0 | JK55: 0.04224612251 | JL55: 0.03752810093 | JM55: 0.07784505943 | JN55: 0.06009143594 | JO55: 0 | JP55: 0 | JQ55: 0 | JR55: 0.05846781695 | JS55: 0.02663794426 | JT55: 0.02610861401 | JU55: 0 | JV55: 0 | JW55: 0 | JX55: 0 | JY55: 0 | JZ55: 0 | KA55: 0 | KB55: 0 | KC55: 0 | KD55: 0 | KE55: 0 | KF55: 0 | KG55: 0 | KH55: 0 | KI55: 0 | KJ55: 0 | KK55: 0 | KL55: 0 | KM55: 0 | KN55: 0 | KO55: 0 | KP55: 0 | KQ55: 0 | KR55: 0 | KS55: 0 | KT55: 0 | KU55: 0 | KV55: 0 | KW55: 0 | KX55: 0 | KY55: 0 | KZ55: 0 | LA55: 0 | LB55: 0 | LC55: 0 | LD55: 0 | LE55: 0 | LF55: 0 | LG55: 0 | LH55: 0 | LI55: 0 | LJ55: 0 | LK55: 0 | LL55: 0 | LM55: 0 | LN55: =SUM(LN31,LN37,LN43,LN49)/4 -> 0 | LO55: 0 | LP55: 0 | LQ55: 0 | LR55: 0 | LS55: 0 | LT55: 0 | LU55: 0 | LV55: 0 | LW55: 0 | LX55: 0 | LY55: 0 | LZ55: 0 | MA55: 0 | MB55: 0 | MC55: 0 | MD55: 0 | ME55: 0 | MF55: 0 | MG55: 0 | MH55: 0 | MI55: 0 | MJ55: 0 | MK55: 0 | ML55: 0 | MM55: 0 | MN55: 0 | MO55: 0 | MP55: 0 | MQ55: 0 | MR55: 0 | MS55: 0 | MT55: 0 | MU55: 0 | MV55: 0 | MW55: 0 | MX55: 0 | MY55: 0 | MZ55: 0 | NA55: 0 | NB55: 0 | NC55: 0 | ND55: 0
A56: 3 | B56: Quality (Q)
A57: Goal | C57: K.P.I.
A59: 0 | B59: 0 | C59: Q-Remarks | D59: COÖRDINATOR / STERSPELER | EH59: 0 | EI59: 0 | EJ59: 0 | EK59: 0 | EL59: 0 | EP59: 0 | EQ59: 0 | ER59: 0 | ES59: 0 | ET59: 0 | EV59: 0 | EW59: 0 | EX59: 0 | EY59: 0 | EZ59: 0 | FC59: 0 | FD59: 0 | FE59: 0 | FF59: 0 | FG59: 0 | FJ59: 0 | FK59: 0 | FL59: 0 | FM59: 0 | FN59: 0 | FO59: 0 | FQ59: 0 | FR59: 0 | FS59: 0 | FT59: 0 | FU59: 0 | FX59: 0 | FY59: 0 | FZ59: 0 | GA59: 0 | GB59: 0 | GE59: 0 | GF59: 0 | GG59: 0 | GH59: 0 | GI59: 0 | GJ59: 0 | GL59: 0 | GM59: 0 | GN59: 0 | GO59: 0 | GP59: 0 | GS59: 0 | GT59: 0 | GU59: 0 | GV59: 0 | HU59: 0 | HV59: 0 | HW59: 0 | HX59: 0 | HY59: 0 | HZ59: 0 | IB59: 0 | IC59: 0 | ID59: 0 | IE59: 0 | IF59: 0 | II59: 0 | IJ59: 0 | IK59: 0 | IL59: 0 | IM59: 0 | IP59: 0 | IQ59: 0 | IR59: 0 | IS59: 0 | IT59: 0 | IU59: 0 | IW59: 0 | IX59: 0 | IY59: 0 | IZ59: 0 | JA59: 0 | JD59: 0 | JE59: 0 | JF59: 0 | JG59: 0 | JH59: 0 | JK59: 0 | JL59: 0 | JM59: 0 | JN59: 0 | JO59: 0 | JP59: 0 | JR59: 0 | JS59: 0 | JT59: 0 | JU59: 0 | JV59: 0
A60: 1 | B60: 1 | C60: SQA Reports | EH60: 0 | EI60: 0 | EJ60: 0 | EK60: 0 | EL60: 0 | EP60: 0 | EQ60: 0 | ER60: 0 | ES60: 0 | ET60: 0 | EV60: 0 | EW60: 0 | EX60: 0 | EY60: 0 | EZ60: 0 | FC60: 0 | FD60: 0 | FE60: 0 | FF60: 0 | FG60: 0 | FJ60: 0 | FK60: 0 | FL60: 0 | FM60: 0 | FN60: 0 | FO60: 0 | FQ60: 0 | FR60: 0 | FS60: 0 | FT60: 0 | FU60: 0 | FX60: 0 | FY60: 0 | FZ60: 0 | GA60: 0 | GB60: 0 | GE60: 0 | GF60: 0 | GG60: 0 | GH60: 0 | GI60: 0 | GJ60: 0 | GL60: 0 | GM60: 0 | GN60: 0 | GO60: 0 | GP60: 0 | GS60: 0 | GT60: 0 | GU60: 0 | GV60: 0 | HU60: 0 | HV60: 0 | HW60: 0 | HX60: 0 | HY60: 0 | HZ60: 0 | IB60: 0 | IC60: 0 | ID60: 0 | IE60: 0 | IF60: 0 | II60: 0 | IJ60: 0 | IK60: 0 | IL60: 0 | IM60: 0 | IP60: 0 | IQ60: 0 | IR60: 0 | IS60: 0 | IT60: 0 | IU60: 0 | IW60: 0 | IX60: 0 | IY60: 0 | IZ60: 0 | JA60: 0 | JD60: 0 | JE60: 0 | JF60: 0 | JG60: 0 | JH60: 0 | JK60: 0 | JL60: 0 | JM60: 0 | JN60: 0 | JO60: 0 | JP60: 0 | JR60: 1 | JS60: 0 | JT60: 0 | JU60: 0 | JV60: 0
A61: 0.995 | B61: t.b.d. | C61: No Touch | EH61: 0.9952 | EI61: 0.9971 | EJ61: 0.9874 | EK61: 0.9993 | EL61: 0.9934 | EP61: 0.9879 | EQ61: 0.9873 | ER61: 0.9921 | ES61: 0.9111 | ET61: 0.9873 | EV61: 0.9755 | EW61: 0.9816 | EX61: 0.9925 | EY61: 0.9908 | EZ61: 0.9876 | FC61: 0.9842 | FD61: 0.9898 | FE61: 0.9877 | FF61: 0.99 | FG61: 0.9832 | FJ61: 0.9961 | FK61: 0.9865 | FL61: 0.9924 | FM61: 0.9872 | FN61: 0.9917 | FO61: 1 | FQ61: 0.9967 | FR61: 0.99 | FS61: 0.984 | FT61: 0.9937 | FU61: 0.9831 | FX61: 0.9869 | FY61: 0.9882 | FZ61: 0.988 | GA61: 0.9892 | GB61: 0.9897 | GE61: 0.9919 | GF61: 0.9876 | GG61: 0.9942 | GH61: 0.9867 | GI61: 0.9897 | GJ61: 0.9837 | GL61: 0.9879 | GM61: 0.9824 | GN61: 0.9897 | GO61: 0.9897 | GP61: 0.9898 | GS61: 0.9872 | GT61: 0.9876 | GU61: 0.9922 | GV61: 0.9893 | HR61: 0.9793 | HU61: 0.9927 | HV61: 0.9918 | HW61: 0.995 | HX61: 0.9903 | HY61: 0.9903 | HZ61: 0.994 | IB61: 0.9922 | IC61: 0.9966 | ID61: 0.991 | IE61: 0.9934 | IF61: 0.991 | II61: 0.9924 | IJ61: 0.9888 | IK61: 0.9865 | IL61: 0.9851 | IM61: 0.9897 | IP61: 0.9964 | IQ61: 0.9854 | IR61: 0.9937 | IS61: 0.9696 | IT61: 0.9678 | IU61: 0.9721 | IW61: 0.9793 | IX61: 0.9667 | IY61: 0.9765 | IZ61: 0.9905 | JA61: 0.9881 | JD61: 0.9922 | JE61: 0.991 | JF61: 0.99 | JG61: 0.9893 | JH61: 98.41% | JK61: 98.76% | JL61: 98.71% | JM61: 0.9831 | JN61: 98.23% | JO61: 98.37% | JP61: 98.52% | JR61: 99.38% | JS61: 0.9776 | JT61: 98.88% | JU61: 0.9949 | JV61: 97.24%
A62: 0 | B62: t.b.d.
A63: 0 | B63: t.b.d.
A64: 0 | B64: t.b.d.
A65: 0 | B65: t.b.d.
A66: 1 | B66: 0 | C66: FTC Finishline [#] | EH66: 0 | EI66: 0 | EJ66: 0 | EK66: 0 | EL66: 0 | EP66: 0 | EQ66: 0 | ER66: 0 | ES66: 0 | ET66: 0 | EV66: 0 | EW66: 0 | EX66: 0 | EY66: 0 | EZ66: 0 | FC66: 0 | FD66: 0 | FE66: 0 | FF66: 0 | FG66: 0 | FJ66: 0 | FK66: 0 | FL66: 0 | FM66: 0 | FN66: 0 | FO66: 0 | FQ66: 0 | FR66: 0 | FS66: 0 | FT66: 0 | FU66: 0 | FX66: 0 | FY66: 0 | FZ66: 0 | GA66: 0 | GB66: 0 | GE66: 0 | GI66: 0 | GL66: 0 | GM66: 0 | GN66: 0 | GO66: 0 | GP66: 0 | GS66: 0 | GT66: 0 | GU66: 0 | GV66: 0 | HU66: 0 | HV66: 0 | HW66: 0 | HX66: 0 | HZ66: 0 | IB66: 0 | IC66: 0 | ID66: 0 | IE66: 0 | IF66: 0 | II66: 0 | IJ66: 0 | IK66: 0 | IL66: 0 | IM66: 0 | IP66: 0 | IQ66: 0 | IR66: 0 | IS66: 0 | IW66: 0 | IX66: 0 | IY66: 0 | IZ66: 0 | JA66: 0 | JD66: 0 | JE66: 0 | JF66: 0 | JG66: 0 | JH66: 0 | JK66: 0 | JL66: 0 | JM66: 0 | JN66: 0 | JO66: 0 | JP66: 0 | JR66: 0 | JS66: 0 | JT66: 0 | JU66: 0 | JV66: 0
A67: 0 | B67: 0 | C67: FTC Big Panel [#] | EH67: 0 | EI67: 0 | EJ67: 0 | EK67: 0 | EL67: 0 | EP67: 0 | EQ67: 0 | ER67: 0 | ES67: 0 | ET67: 0 | EV67: 0 | EW67: 0 | EX67: 0 | EY67: 0 | EZ67: 0 | FC67: 0 | FD67: 0 | FE67: 0 | FF67: 0 | FG67: 0 | FJ67: 0 | FK67: 0 | FL67: 0 | FM67: 0 | FN67: 0 | FO67: 0 | FQ67: 0 | FR67: 0 | FS67: 0 | FT67: 0 | FU67: 0 | FX67: 0 | FY67: 0 | FZ67: 0 | GA67: 0 | GB67: 0 | GE67: 0 | GI67: 0 | GL67: 0 | GM67: 0 | GN67: 0 | GO67: 0 | GP67: 0 | GS67: 0 | GT67: 0 | GU67: 0 | GV67: 0 | HU67: 0 | HV67: 0 | HW67: 0 | HX67: 0 | HZ67: 0 | IB67: 0 | IC67: 0 | ID67: 0 | IE67: 0 | IF67: 0 | II67: 0 | IJ67: 0 | IK67: 0 | IL67: 0 | IM67: 0 | IP67: 0 | IQ67: 0 | IR67: 0 | IS67: 0 | IW67: 0 | IX67: 0 | IY67: 0 | IZ67: 0 | JA67: 0 | JD67: 0 | JE67: 0 | JF67: 0 | JG67: 0 | JH67: 0 | JK67: 0 | JL67: 0 | JM67: 0 | JN67: 0 | JO67: 0 | JP67: 0 | JR67: 0 | JS67: 0 | JT67: 0 | JU67: 0 | JV67: 0
A68: 0 | B68: 0 | C68: FTC FAS [#] | EH68: 0 | EI68: 0 | EJ68: 0 | EK68: 0 | EL68: 0 | EP68: 0 | EQ68: 0 | ER68: 0 | ES68: 0 | ET68: 0 | EV68: 0 | EW68: 0 | EX68: 0 | EY68: 0 | EZ68: 0 | FC68: 0 | FD68: 0 | FE68: 0 | FF68: 0 | FG68: 0 | FJ68: 0 | FK68: 0 | FL68: 0 | FM68: 0 | FN68: 0 | FO68: 0 | FQ68: 0 | FR68: 0 | FS68: 0 | FT68: 0 | FU68: 0 | FX68: 0 | FY68: 0 | FZ68: 0 | GA68: 0 | GB68: 0 | GE68: 0 | GI68: 0 | GL68: 0 | GM68: 0 | GN68: 0 | GO68: 0 | GP68: 0 | GS68: 0 | GT68: 0 | GU68: 0 | GV68: 0 | HU68: 0 | HV68: 0 | HW68: 0 | HX68: 0 | HZ68: 0 | IB68: 0 | IC68: 0 | ID68: 0 | IE68: 0 | IF68: 0 | II68: 0 | IJ68: 0 | IK68: 0 | IL68: 0 | IM68: 0 | IP68: 0 | IQ68: 0 | IR68: 0 | IS68: 0 | IW68: 0 | IX68: 0 | IY68: 0 | IZ68: 0 | JA68: 0 | JD68: 0 | JE68: 0 | JF68: 0 | JG68: 0 | JH68: 1 | JK68: 0 | JL68: 0 | JM68: 0 | JN68: 0 | JO68: 0 | JP68: 0 | JR68: 0 | JS68: 0 | JT68: 0 | JU68: 0 | JV68: 0
A69: 0.95 | B69: t.b.d. | C69: FTC [%] | E69: =IFERROR((1-(E66+E67+E68)/E53),0%) -> 0 | F69: =IFERROR((1-(F66+F67+F68)/F53),0%) -> 0 | G69: =IFERROR((1-(G66+G67+G68)/G53),0%) -> 0 | H69: =IFERROR((1-(H66+H67+H68)/H53),0%) -> 0 | I69: =IFERROR((1-(I66+I67+I68)/I53),0%) -> 0 | J69: =IFERROR((1-(J66+J67+J68)/J53),0%) -> 0 | K69: =IFERROR((1-(K66+K67+K68)/K53),0%) -> 0 | L69: =IFERROR((1-(L66+L67+L68)/L53),0%) -> 0 | M69: =IFERROR((1-(M66+M67+M68)/M53),0%) -> 0 | N69: =IFERROR((1-(N66+N67+N68)/N53),0%) -> 0 | O69: =IFERROR((1-(O66+O67+O68)/O53),0%) -> 0 | P69: =IFERROR((1-(P66+P67+P68)/P53),0%) -> 0 | Q69: =IFERROR((1-(Q66+Q67+Q68)/Q53),0%) -> 0 | R69: =IFERROR((1-(R66+R67+R68)/R53),0%) -> 0 | S69: =IFERROR((1-(S66+S67+S68)/S53),0%) -> 0 | T69: =IFERROR((1-(T66+T67+T68)/T53),0%) -> 0 | U69: =IFERROR((1-(U66+U67+U68)/U53),0%) -> 0 | V69: =IFERROR((1-(V66+V67+V68)/V53),0%) -> 0 | W69: =IFERROR((1-(W66+W67+W68)/W53),0%) -> 0 | X69: =IFERROR((1-(X66+X67+X68)/X53),0%) -> 0 | Y69: =IFERROR((1-(Y66+Y67+Y68)/Y53),0%) -> 0 | Z69: =IFERROR((1-(Z66+Z67+Z68)/Z53),0%) -> 0 | AA69: =IFERROR((1-(AA66+AA67+AA68)/AA53),0%) -> 0 | AB69: =IFERROR((1-(AB66+AB67+AB68)/AB53),0%) -> 0 | AC69: =IFERROR((1-(AC66+AC67+AC68)/AC53),0%) -> 0 | AD69: =IFERROR((1-(AD66+AD67+AD68)/AD53),0%) -> 0 | AE69: =IFERROR((1-(AE66+AE67+AE68)/AE53),0%) -> 0 | AF69: =IFERROR((1-(AF66+AF67+AF68)/AF53),0%) -> 0 | AG69: =IFERROR((1-(AG66+AG67+AG68)/AG53),0%) -> 0 | AH69: =IFERROR((1-(AH66+AH67+AH68)/AH53),0%) -> 0 | AI69: =IFERROR((1-(AI66+AI67+AI68)/AI53),0%) -> 0 | AJ69: =IFERROR((1-(AJ66+AJ67+AJ68)/AJ53),0%) -> 0 | AK69: =IFERROR((1-(AK66+AK67+AK68)/AK53),0%) -> 0 | AL69: =IFERROR((1-(AL66+AL67+AL68)/AL53),0%) -> 0 | AM69: =IFERROR((1-(AM66+AM67+AM68)/AM53),0%) -> 0 | AN69: =IFERROR((1-(AN66+AN67+AN68)/AN53),0%) -> 0 | AO69: =IFERROR((1-(AO66+AO67+AO68)/AO53),0%) -> 0 | AP69: =IFERROR((1-(AP66+AP67+AP68)/AP53),0%) -> 0 | AQ69: =IFERROR((1-(AQ66+AQ67+AQ68)/AQ53),0%) -> 0 | AR69: =IFERROR((1-(AR66+AR67+AR68)/AR53),0%) -> 0 | AS69: =IFERROR((1-(AS66+AS67+AS68)/AS53),0%) -> 0 | AT69: =IFERROR((1-(AT66+AT67+AT68)/AT53),0%) -> 0 | AU69: =IFERROR((1-(AU66+AU67+AU68)/AU53),0%) -> 0 | AV69: =IFERROR((1-(AV66+AV67+AV68)/AV53),0%) -> 0 | AW69: =IFERROR((1-(AW66+AW67+AW68)/AW53),0%) -> 0 | AX69: =IFERROR((1-(AX66+AX67+AX68)/AX53),0%) -> 0 | AY69: =IFERROR((1-(AY66+AY67+AY68)/AY53),0%) -> 0 | AZ69: =IFERROR((1-(AZ66+AZ67+AZ68)/AZ53),0%) -> 0 | BA69: =IFERROR((1-(BA66+BA67+BA68)/BA53),0%) -> 0 | BB69: =IFERROR((1-(BB66+BB67+BB68)/BB53),0%) -> 0 | BC69: =IFERROR((1-(BC66+BC67+BC68)/BC53),0%) -> 0 | BD69: =IFERROR((1-(BD66+BD67+BD68)/BD53),0%) -> 0 | BE69: =IFERROR((1-(BE66+BE67+BE68)/BE53),0%) -> 0 | BF69: =IFERROR((1-(BF66+BF67+BF68)/BF53),0%) -> 0 | BG69: =IFERROR((1-(BG66+BG67+BG68)/BG53),0%) -> 0 | BH69: =IFERROR((1-(BH66+BH67+BH68)/BH53),0%) -> 0 | BI69: =IFERROR((1-(BI66+BI67+BI68)/BI53),0%) -> 0 | BJ69: =IFERROR((1-(BJ66+BJ67+BJ68)/BJ53),0%) -> 0 | BK69: =IFERROR((1-(BK66+BK67+BK68)/BK53),0%) -> 0 | BL69: =IFERROR((1-(BL66+BL67+BL68)/BL53),0%) -> 0 | BM69: =IFERROR((1-(BM66+BM67+BM68)/BM53),0%) -> 0 | BN69: =IFERROR((1-(BN66+BN67+BN68)/BN53),0%) -> 0 | BO69: =IFERROR((1-(BO66+BO67+BO68)/BO53),0%) -> 0 | BP69: =IFERROR((1-(BP66+BP67+BP68)/BP53),0%) -> 0 | BQ69: =IFERROR((1-(BQ66+BQ67+BQ68)/BQ53),0%) -> 0 | BR69: =IFERROR((1-(BR66+BR67+BR68)/BR53),0%) -> 0 | BS69: =IFERROR((1-(BS66+BS67+BS68)/BS53),0%) -> 0 | BT69: =IFERROR((1-(BT66+BT67+BT68)/BT53),0%) -> 0 | BU69: =IFERROR((1-(BU66+BU67+BU68)/BU53),0%) -> 0 | BV69: =IFERROR((1-(BV66+BV67+BV68)/BV53),0%) -> 0 | BW69: =IFERROR((1-(BW66+BW67+BW68)/BW53),0%) -> 0 | BX69: =IFERROR((1-(BX66+BX67+BX68)/BX53),0%) -> 0 | BY69: =IFERROR((1-(BY66+BY67+BY68)/BY53),0%) -> 0 | BZ69: =IFERROR((1-(BZ66+BZ67+BZ68)/BZ53),0%) -> 0 | CA69: =IFERROR((1-(CA66+CA67+CA68)/CA53),0%) -> 0 | CB69: =IFERROR((1-(CB66+CB67+CB68)/CB53),0%) -> 0 | CC69: =IFERROR((1-(CC66+CC67+CC68)/CC53),0%) -> 0 | CD69: =IFERROR((1-(CD66+CD67+CD68)/CD53),0%) -> 0 | CE69: =IFERROR((1-(CE66+CE67+CE68)/CE53),0%) -> 0 | CF69: =IFERROR((1-(CF66+CF67+CF68)/CF53),0%) -> 0 | CG69: =IFERROR((1-(CG66+CG67+CG68)/CG53),0%) -> 0 | CH69: =IFERROR((1-(CH66+CH67+CH68)/CH53),0%) -> 0 | CI69: =IFERROR((1-(CI66+CI67+CI68)/CI53),0%) -> 0 | CJ69: =IFERROR((1-(CJ66+CJ67+CJ68)/CJ53),0%) -> 0 | CK69: =IFERROR((1-(CK66+CK67+CK68)/CK53),0%) -> 0 | CL69: =IFERROR((1-(CL66+CL67+CL68)/CL53),0%) -> 0 | CM69: =IFERROR((1-(CM66+CM67+CM68)/CM53),0%) -> 0 | CN69: =IFERROR((1-(CN66+CN67+CN68)/CN53),0%) -> 0 | CO69: =IFERROR((1-(CO66+CO67+CO68)/CO53),0%) -> 0 | CP69: =IFERROR((1-(CP66+CP67+CP68)/CP53),0%) -> 0 | CQ69: =IFERROR((1-(CQ66+CQ67+CQ68)/CQ53),0%) -> 0 | CR69: =IFERROR((1-(CR66+CR67+CR68)/CR53),0%) -> 0 | CS69: =IFERROR((1-(CS66+CS67+CS68)/CS53),0%) -> 0 | CT69: =IFERROR((1-(CT66+CT67+CT68)/CT53),0%) -> 0 | CU69: =IFERROR((1-(CU66+CU67+CU68)/CU53),0%) -> 0 | CV69: =IFERROR((1-(CV66+CV67+CV68)/CV53),0%) -> 0 | CW69: =IFERROR((1-(CW66+CW67+CW68)/CW53),0%) -> 0 | CX69: =IFERROR((1-(CX66+CX67+CX68)/CX53),0%) -> 0 | CY69: =IFERROR((1-(CY66+CY67+CY68)/CY53),0%) -> 0 | CZ69: =IFERROR((1-(CZ66+CZ67+CZ68)/CZ53),0%) -> 0 | DA69: =IFERROR((1-(DA66+DA67+DA68)/DA53),0%) -> 0 | DB69: =IFERROR((1-(DB66+DB67+DB68)/DB53),0%) -> 0 | DC69: =IFERROR((1-(DC66+DC67+DC68)/DC53),0%) -> 0 | DD69: =IFERROR((1-(DD66+DD67+DD68)/DD53),0%) -> 0 | DE69: =IFERROR((1-(DE66+DE67+DE68)/DE53),0%) -> 0 | DF69: =IFERROR((1-(DF66+DF67+DF68)/DF53),0%) -> 0 | DG69: =IFERROR((1-(DG66+DG67+DG68)/DG53),0%) -> 0 | DH69: =IFERROR((1-(DH66+DH67+DH68)/DH53),0%) -> 0 | DI69: =IFERROR((1-(DI66+DI67+DI68)/DI53),0%) -> 0 | DJ69: =IFERROR((1-(DJ66+DJ67+DJ68)/DJ53),0%) -> 0 | DK69: =IFERROR((1-(DK66+DK67+DK68)/DK53),0%) -> 0 | DL69: =IFERROR((1-(DL66+DL67+DL68)/DL53),0%) -> 0 | DM69: =IFERROR((1-(DM66+DM67+DM68)/DM53),0%) -> 0 | DN69: =IFERROR((1-(DN66+DN67+DN68)/DN53),0%) -> 0 | DO69: =IFERROR((1-(DO66+DO67+DO68)/DO53),0%) -> 0 | DP69: =IFERROR((1-(DP66+DP67+DP68)/DP53),0%) -> 0 | DQ69: =IFERROR((1-(DQ66+DQ67+DQ68)/DQ53),0%) -> 0 | DR69: =IFERROR((1-(DR66+DR67+DR68)/DR53),0%) -> 0 | DS69: =IFERROR((1-(DS66+DS67+DS68)/DS53),0%) -> 0 | DT69: =IFERROR((1-(DT66+DT67+DT68)/DT53),0%) -> 0 | DU69: =IFERROR((1-(DU66+DU67+DU68)/DU53),0%) -> 0 | DV69: =IFERROR((1-(DV66+DV67+DV68)/DV53),0%) -> 0 | DW69: =IFERROR((1-(DW66+DW67+DW68)/DW53),0%) -> 0 | DX69: =IFERROR((1-(DX66+DX67+DX68)/DX53),0%) -> 0 | DY69: =IFERROR((1-(DY66+DY67+DY68)/DY53),0%) -> 0 | DZ69: =IFERROR((1-(DZ66+DZ67+DZ68)/DZ53),0%) -> 0 | EA69: =IFERROR((1-(EA66+EA67+EA68)/EA53),0%) -> 0 | EB69: =IFERROR((1-(EB66+EB67+EB68)/EB53),0%) -> 0 | EC69: =IFERROR((1-(EC66+EC67+EC68)/EC53),0%) -> 0 | ED69: =IFERROR((1-(ED66+ED67+ED68)/ED53),0%) -> 0 | EE69: =IFERROR((1-(EE66+EE67+EE68)/EE53),0%) -> 0 | EF69: =IFERROR((1-(EF66+EF67+EF68)/EF53),0%) -> 0 | EG69: =IFERROR((1-(EG66+EG67+EG68)/EG53),0%) -> 0 | EH69: =IFERROR((1-(EH66+EH67+EH68)/EH53),0%) -> 1 | EI69: =IFERROR((1-(EI66+EI67+EI68)/EI53),0%) -> 1 | EJ69: =IFERROR((1-(EJ66+EJ67+EJ68)/EJ53),0%) -> 1 | EK69: =IFERROR((1-(EK66+EK67+EK68)/EK53),0%) -> 1 | EL69: =IFERROR((1-(EL66+EL67+EL68)/EL53),0%) -> 1 | EM69: =IFERROR((1-(EM66+EM67+EM68)/EM53),0%) -> 0 | EN69: =IFERROR((1-(EN66+EN67+EN68)/EN53),0%) -> 0 | EO69: =IFERROR((1-(EO66+EO67+EO68)/EO53),0%) -> 0 | EP69: =IFERROR((1-(EP66+EP67+EP68)/EP53),0%) -> 1 | EQ69: =IFERROR((1-(EQ66+EQ67+EQ68)/EQ53),0%) -> 1 | ER69: =IFERROR((1-(ER66+ER67+ER68)/ER53),0%) -> 1 | ES69: =IFERROR((1-(ES66+ES67+ES68)/ES53),0%) -> 1 | ET69: =IFERROR((1-(ET66+ET67+ET68)/ET53),0%) -> 1 | EU69: =IFERROR((1-(EU66+EU67+EU68)/EU53),0%) -> 0 | EV69: =IFERROR((1-(EV66+EV67+EV68)/EV53),0%) -> 1 | EW69: =IFERROR((1-(EW66+EW67+EW68)/EW53),0%) -> 1 | EX69: =IFERROR((1-(EX66+EX67+EX68)/EX53),0%) -> 1 | EY69: =IFERROR((1-(EY66+EY67+EY68)/EY53),0%) -> 1 | EZ69: =IFERROR((1-(EZ66+EZ67+EZ68)/EZ53),0%) -> 1 | FA69: =IFERROR((1-(FA66+FA67+FA68)/FA53),0%) -> 0 | FB69: =IFERROR((1-(FB66+FB67+FB68)/FB53),0%) -> 0 | FC69: =IFERROR((1-(FC66+FC67+FC68)/FC53),0%) -> 1 | FD69: =IFERROR((1-(FD66+FD67+FD68)/FD53),0%) -> 1 | FE69: =IFERROR((1-(FE66+FE67+FE68)/FE53),0%) -> 1 | FF69: =IFERROR((1-(FF66+FF67+FF68)/FF53),0%) -> 1 | FG69: =IFERROR((1-(FG66+FG67+FG68)/FG53),0%) -> 1 | FH69: =IFERROR((1-(FH66+FH67+FH68)/FH53),0%) -> 0 | FI69: =IFERROR((1-(FI66+FI67+FI68)/FI53),0%) -> 0 | FJ69: =IFERROR((1-(FJ66+FJ67+FJ68)/FJ53),0%) -> 1 | FK69: =IFERROR((1-(FK66+FK67+FK68)/FK53),0%) -> 1 | FL69: =IFERROR((1-(FL66+FL67+FL68)/FL53),0%) -> 1 | FM69: =IFERROR((1-(FM66+FM67+FM68)/FM53),0%) -> 1 | FN69: =IFERROR((1-(FN66+FN67+FN68)/FN53),0%) -> 1 | FO69: =IFERROR((1-(FO66+FO67+FO68)/FO53),0%) -> 1 | FP69: =IFERROR((1-(FP66+FP67+FP68)/FP53),0%) -> 0 | FQ69: =IFERROR((1-(FQ66+FQ67+FQ68)/FQ53),0%) -> 1 | FR69: =IFERROR((1-(FR66+FR67+FR68)/FR53),0%) -> 1 | FS69: =IFERROR((1-(FS66+FS67+FS68)/FS53),0%) -> 1 | FT69: =IFERROR((1-(FT66+FT67+FT68)/FT53),0%) -> 1 | FU69: =IFERROR((1-(FU66+FU67+FU68)/FU53),0%) -> 1 | FV69: 0 | FW69: 0 | FX69: 1 | FY69: 1 | FZ69: 1 | GA69: 1 | GB69: 1 | GC69: 0 | GD69: 0 | GE69: 1 | GF69: 1 | GG69: 1 | GH69: 1 | GI69: 1 | GJ69: 1 | GK69: 0 | GL69: 1 | GM69: 1 | GN69: 1 | GO69: 1 | GP69: 1 | GQ69: 0 | GR69: 0 | GS69: 1 | GT69: 1 | GU69: 1 | GV69: 1 | GW69: 0 | GX69: 0 | GY69: 0 | GZ69: 0 | HA69: 0 | HB69: 0 | HC69: 0 | HD69: 0 | HE69: 0 | HF69: 0 | HG69: 0 | HH69: 0 | HI69: 0 | HJ69: 0 | HK69: 0 | HL69: 0 | HM69: 0 | HN69: 0 | HO69: 0 | HP69: 0 | HQ69: 0 | HR69: 0 | HS69: 0 | HT69: 0 | HU69: 1 | HV69: 1 | HW69: 1 | HX69: 1 | HY69: 1 | HZ69: 1 | IA69: =IFERROR((1-(IA66+IA67+IA68)/IA53),0%) -> 0 | IB69: 1 | IC69: 1 | ID69: 1 | IE69: 1 | IF69: 1 | IG69: 0 | IH69: 0 | II69: 1 | IJ69: 1 | IK69: 1 | IL69: 1 | IM69: 1 | IN69: 0 | IO69: 0 | IP69: 1 | IQ69: 1 | IR69: 1 | IS69: 1 | IT69: 1 | IU69: 1 | IV69: 0 | IW69: 1 | IX69: 1 | IY69: 1 | IZ69: 1 | JA69: 1 | JB69: 0 | JC69: 0 | JD69: 1 | JE69: 1 | JF69: 1 | JG69: 1 | JH69: 0.9967871486 | JI69: 0 | JJ69: 0 | JK69: 1 | JL69: 1 | JM69: 1 | JN69: 1 | JO69: 1 | JP69: 1 | JQ69: 0 | JR69: 1 | JS69: 1 | JT69: 1 | JU69: 1 | JV69: 1 | JW69: 0 | JX69: 0 | JY69: 0 | JZ69: 0 | KA69: 0 | KB69: 0 | KC69: 0 | KD69: 0 | KE69: 0 | KF69: 0 | KG69: 0 | KH69: 0 | KI69: 0 | KJ69: 0 | KK69: 0 | KL69: 0 | KM69: =IFERROR((1-(KM66+KM67+KM68)/KM53),0%) -> 0 | KN69: 0 | KO69: 0 | KP69: 0 | KQ69: 0 | KR69: 0 | KS69: 0 | KT69: 0 | KU69: 0 | KV69: 0 | KW69: 0 | KX69: 0 | KY69: 0 | KZ69: 0 | LA69: 0 | LB69: 0 | LC69: 0 | LD69: 0 | LE69: 0 | LF69: 0 | LG69: 0 | LH69: 0 | LI69: 0 | LJ69: 0 | LK69: 0 | LL69: 0 | LM69: 0 | LN69: 0 | LO69: 0 | LP69: 0 | LQ69: 0 | LR69: 0 | LS69: 0 | LT69: 0 | LU69: 0 | LV69: 0 | LW69: 0 | LX69: 0 | LY69: 0 | LZ69: 0 | MA69: 0 | MB69: 0 | MC69: 0 | MD69: 0 | ME69: 0 | MF69: 0 | MG69: 0 | MH69: 0 | MI69: 0 | MJ69: 0 | MK69: 0 | ML69: 0 | MM69: 0 | MN69: 0 | MO69: 0 | MP69: 0 | MQ69: 0 | MR69: 0 | MS69: 0 | MT69: 0 | MU69: 0 | MV69: 0 | MW69: 0 | MX69: 0 | MY69: =IFERROR((1-(MY66+MY67+MY68)/MY53),0%) -> 0 | MZ69: 0 | NA69: 0 | NB69: 0 | NC69: 0 | ND69: 0
A70: 0 | B70: t.b.d. | C70: Loose Spotwelds ICAF | IB70: 0 | IC70: 0 | ID70: 0 | IE70: 0 | IF70: 0 | II70: 0 | IJ70: 0 | IK70: 0 | IL70: 0 | IM70: 0 | IP70: 0 | IQ70: 0 | IR70: 0 | IS70: 0 | IW70: 0 | IX70: 0 | IY70: 0 | IZ70: 0
A71: 0 | B71: t.b.d.
A72: 0 | B72: t.b.d.
A73: 4 | B73: Cost (C)
A74: Goal | C74: K.P.I.
A76: t.b.d. | B76: t.b.d. | C76: Consumables | EH76: 0 | EI76: 0 | EJ76: 0 | EK76: 0 | EL76: 0 | EP76: 0 | EQ76: 0 | ER76: 0 | ES76: 0 | ET76: 0 | EV76: 0 | EW76: 0 | EX76: 0 | EY76: 0 | EZ76: 0 | FC76: 0 | FD76: 0 | FE76: 0 | FF76: 9.8 | FG76: 0 | FJ76: 62.84 | FK76: 0 | FL76: 0 | FM76: 26.07 | FN76: 271.16 | FO76: 0 | FQ76: 0 | GE76: 0 | GF76: 0 | GG76: 0 | GH76: 179.68 | GI76: 0 | GJ76: 0 | GL76: 0 | GM76: 0 | GN76: 199.25 | GO76: 0 | GP76: 0 | HU76: 0 | HV76: 0 | HW76: 0 | HX76: 0 | HY76: 0 | HZ76: 0 | IB76: 0 | IC76: 15.13 | ID76: 0 | IE76: 27.51 | IF76: 0 | IJ76: 0 | IK76: 78 | IQ76: 78 | JA76: 151.14 | JD76: 521.45 | JG76: 60.67 | JS76: 569.58
A77: t.b.d. | B77: t.b.d. | C77: Consumables / (Body) | E77: =IFERROR(E76/E53,"") ->  | BQ77: =IFERROR(BQ76/BQ53,"") ->  | DF77: =IFERROR(DF76/DF53,"") ->  | DG77: =IFERROR(DG76/DG53,"") ->  | EH77: 0 | EI77: 0 | EJ77: 0 | EK77: 0 | EL77: 0 | EP77: 0 | EQ77: 0 | ER77: 0 | ES77: 0 | ET77: 0 | EV77: 0 | EW77: 0 | EX77: 0 | EY77: 0 | EZ77: 0 | FC77: 0 | FD77: 0 | FE77: 0 | FF77: 0.03294117647 | FG77: 0 | FJ77: 0.2262466247 | FK77: 0 | FL77: 0 | FM77: 0.1001729107 | FN77: 1.104521385 | FO77: 0 | FQ77: 0 | FR77: 0 | FS77: =IFERROR(FS76/FS53,"") -> 0 | FT77: 0 | FU77: 0 | FX77: 0 | FY77: 0 | FZ77: 0 | GA77: 0 | GB77: 0 | GE77: 0 | GF77: 0 | GG77: 0 | GH77: 0.6360353982 | GI77: 0 | GJ77: 0 | GL77: 0 | GM77: 0 | GN77: 0.6748518205 | GO77: 0 | GP77: 0 | GS77: 0 | GT77: 0 | GU77: 0 | GV77: 0 | HU77: 0 | HV77: 0 | HW77: 0 | HX77: 0 | HY77: 0 | HZ77: 0 | IB77: 0 | IC77: 0.05501818182 | ID77: 0 | IE77: =IFERROR(IE76/IE53,"") -> 0.1053014354 | IF77: 0 | II77: 0 | IJ77: 0 | IK77: 0.2729658793 | IL77: 0 | IM77: 0 | IP77: 0 | IQ77: 0.2751322751 | IR77: 0 | IS77: 0 | IT77: 0 | IU77: 0 | IW77: 0 | IX77: 0 | IY77: 0 | IZ77: 0 | JA77: 0.5021262458 | JD77: 2.188667366 | JE77: 0 | JF77: 0 | JG77: 0.1794970414 | JH77: 0 | JK77: 0 | JL77: 0 | JM77: 0 | JN77: 0 | JO77: 0 | JP77: 0 | JR77: 0 | JS77: 2.069318801 | JT77: 0 | JU77: 0 | JV77: 0 | KQ77: =IFERROR(KQ76/KQ53,"") ->  | NC77: =IFERROR(NC76/NC53,"") -> 
A78: 150 | B78: 150 | C78: Scrap cost | E78: =IF(E10<>"",(HLOOKUP(E$3,Rekenblad!$E$3:$BE$123,118,0))/E$7,"") ->  | F78: =IF(F10<>"",(HLOOKUP(F$3,Rekenblad!$E$3:$BE$123,118,0))/F$7,"") ->  | G78: =IF(G10<>"",(HLOOKUP(G$3,Rekenblad!$E$3:$BE$123,118,0))/G$7,"") ->  | H78: =IF(H10<>"",(HLOOKUP(H$3,Rekenblad!$E$3:$BE$123,118,0))/H$7,"") ->  | I78: =IF(I10<>"",(HLOOKUP(I$3,Rekenblad!$E$3:$BE$123,118,0))/I$7,"") ->  | J78: =IF(J10<>"",(HLOOKUP(J$3,Rekenblad!$E$3:$BE$123,118,0))/J$7,"") ->  | K78: =IF(K10<>"",(HLOOKUP(K$3,Rekenblad!$E$3:$BE$123,118,0))/K$7,"") ->  | L78: =IF(L10<>"",(HLOOKUP(L$3,Rekenblad!$E$3:$BE$123,118,0))/L$7,"") ->  | M78: =IF(M10<>"",(HLOOKUP(M$3,Rekenblad!$E$3:$BE$123,118,0))/M$7,"") ->  | N78: =IF(N10<>"",(HLOOKUP(N$3,Rekenblad!$E$3:$BE$123,118,0))/N$7,"") ->  | O78: =IF(O10<>"",(HLOOKUP(O$3,Rekenblad!$E$3:$BE$123,118,0))/O$7,"") ->  | P78: =IF(P10<>"",(HLOOKUP(P$3,Rekenblad!$E$3:$BE$123,118,0))/P$7,"") ->  | Q78: =IF(Q10<>"",(HLOOKUP(Q$3,Rekenblad!$E$3:$BE$123,118,0))/Q$7,"") ->  | R78: =IF(R10<>"",(HLOOKUP(R$3,Rekenblad!$E$3:$BE$123,118,0))/R$7,"") ->  | S78: =IF(S10<>"",(HLOOKUP(S$3,Rekenblad!$E$3:$BE$123,118,0))/S$7,"") ->  | T78: =IF(T10<>"",(HLOOKUP(T$3,Rekenblad!$E$3:$BE$123,118,0))/T$7,"") ->  | U78: =IF(U10<>"",(HLOOKUP(U$3,Rekenblad!$E$3:$BE$123,118,0))/U$7,"") ->  | V78: =IF(V10<>"",(HLOOKUP(V$3,Rekenblad!$E$3:$BE$123,118,0))/V$7,"") ->  | W78: =IF(W10<>"",(HLOOKUP(W$3,Rekenblad!$E$3:$BE$123,118,0))/W$7,"") ->  | X78: =IF(X10<>"",(HLOOKUP(X$3,Rekenblad!$E$3:$BE$123,118,0))/X$7,"") ->  | Y78: =IF(Y10<>"",(HLOOKUP(Y$3,Rekenblad!$E$3:$BE$123,118,0))/Y$7,"") ->  | Z78: =IF(Z10<>"",(HLOOKUP(Z$3,Rekenblad!$E$3:$BE$123,118,0))/Z$7,"") ->  | AA78: =IF(AA10<>"",(HLOOKUP(AA$3,Rekenblad!$E$3:$BE$123,118,0))/AA$7,"") ->  | AB78: =IF(AB10<>"",(HLOOKUP(AB$3,Rekenblad!$E$3:$BE$123,118,0))/AB$7,"") ->  | AC78: =IF(AC10<>"",(HLOOKUP(AC$3,Rekenblad!$E$3:$BE$123,118,0))/AC$7,"") ->  | AD78: =IF(AD10<>"",(HLOOKUP(AD$3,Rekenblad!$E$3:$BE$123,118,0))/AD$7,"") ->  | AE78: =IF(AE10<>"",(HLOOKUP(AE$3,Rekenblad!$E$3:$BE$123,118,0))/AE$7,"") ->  | AF78: =IF(AF10<>"",(HLOOKUP(AF$3,Rekenblad!$E$3:$BE$123,118,0))/AF$7,"") ->  | AG78: =IF(AG10<>"",(HLOOKUP(AG$3,Rekenblad!$E$3:$BE$123,118,0))/AG$7,"") ->  | AH78: =IF(AH10<>"",(HLOOKUP(AH$3,Rekenblad!$E$3:$BE$123,118,0))/AH$7,"") ->  | AI78: =IF(AI10<>"",(HLOOKUP(AI$3,Rekenblad!$E$3:$BE$123,118,0))/AI$7,"") ->  | AJ78: =IF(AJ10<>"",(HLOOKUP(AJ$3,Rekenblad!$E$3:$BE$123,118,0))/AJ$7,"") ->  | AK78: =IF(AK10<>"",(HLOOKUP(AK$3,Rekenblad!$E$3:$BE$123,118,0))/AK$7,"") ->  | AL78: =IF(AL10<>"",(HLOOKUP(AL$3,Rekenblad!$E$3:$BE$123,118,0))/AL$7,"") ->  | AM78: =IF(AM10<>"",(HLOOKUP(AM$3,Rekenblad!$E$3:$BE$123,118,0))/AM$7,"") ->  | AN78: =IF(AN10<>"",(HLOOKUP(AN$3,Rekenblad!$E$3:$BE$123,118,0))/AN$7,"") ->  | AO78: =IF(AO10<>"",(HLOOKUP(AO$3,Rekenblad!$E$3:$BE$123,118,0))/AO$7,"") ->  | AP78: =IF(AP10<>"",(HLOOKUP(AP$3,Rekenblad!$E$3:$BE$123,118,0))/AP$7,"") ->  | AQ78: =IF(AQ10<>"",(HLOOKUP(AQ$3,Rekenblad!$E$3:$BE$123,118,0))/AQ$7,"") ->  | AR78: =IF(AR10<>"",(HLOOKUP(AR$3,Rekenblad!$E$3:$BE$123,118,0))/AR$7,"") ->  | AS78: =IF(AS10<>"",(HLOOKUP(AS$3,Rekenblad!$E$3:$BE$123,118,0))/AS$7,"") ->  | AT78: =IF(AT10<>"",(HLOOKUP(AT$3,Rekenblad!$E$3:$BE$123,118,0))/AT$7,"") ->  | AU78: =IF(AU10<>"",(HLOOKUP(AU$3,Rekenblad!$E$3:$BE$123,118,0))/AU$7,"") ->  | AV78: =IF(AV10<>"",(HLOOKUP(AV$3,Rekenblad!$E$3:$BE$123,118,0))/AV$7,"") ->  | AW78: =IF(AW10<>"",(HLOOKUP(AW$3,Rekenblad!$E$3:$BE$123,118,0))/AW$7,"") ->  | AX78: =IF(AX10<>"",(HLOOKUP(AX$3,Rekenblad!$E$3:$BE$123,118,0))/AX$7,"") ->  | AY78: =IF(AY10<>"",(HLOOKUP(AY$3,Rekenblad!$E$3:$BE$123,118,0))/AY$7,"") ->  | AZ78: =IF(AZ10<>"",(HLOOKUP(AZ$3,Rekenblad!$E$3:$BE$123,118,0))/AZ$7,"") ->  | BA78: =IF(BA10<>"",(HLOOKUP(BA$3,Rekenblad!$E$3:$BE$123,118,0))/BA$7,"") ->  | BB78: =IF(BB10<>"",(HLOOKUP(BB$3,Rekenblad!$E$3:$BE$123,118,0))/BB$7,"") ->  | BC78: =IF(BC10<>"",(HLOOKUP(BC$3,Rekenblad!$E$3:$BE$123,118,0))/BC$7,"") ->  | BD78: =IF(BD10<>"",(HLOOKUP(BD$3,Rekenblad!$E$3:$BE$123,118,0))/BD$7,"") ->  | BE78: =IF(BE10<>"",(HLOOKUP(BE$3,Rekenblad!$E$3:$BE$123,118,0))/BE$7,"") ->  | BF78: =IF(BF10<>"",(HLOOKUP(BF$3,Rekenblad!$E$3:$BE$123,118,0))/BF$7,"") ->  | BG78: =IF(BG10<>"",(HLOOKUP(BG$3,Rekenblad!$E$3:$BE$123,118,0))/BG$7,"") ->  | BH78: =IF(BH10<>"",(HLOOKUP(BH$3,Rekenblad!$E$3:$BE$123,118,0))/BH$7,"") ->  | BI78: =IF(BI10<>"",(HLOOKUP(BI$3,Rekenblad!$E$3:$BE$123,118,0))/BI$7,"") ->  | BJ78: =IF(BJ10<>"",(HLOOKUP(BJ$3,Rekenblad!$E$3:$BE$123,118,0))/BJ$7,"") ->  | BK78: =IF(BK10<>"",(HLOOKUP(BK$3,Rekenblad!$E$3:$BE$123,118,0))/BK$7,"") ->  | BL78: =IF(BL10<>"",(HLOOKUP(BL$3,Rekenblad!$E$3:$BE$123,118,0))/BL$7,"") ->  | BM78: =IF(BM10<>"",(HLOOKUP(BM$3,Rekenblad!$E$3:$BE$123,118,0))/BM$7,"") ->  | BN78: =IF(BN10<>"",(HLOOKUP(BN$3,Rekenblad!$E$3:$BE$123,118,0))/BN$7,"") ->  | BO78: =IF(BO10<>"",(HLOOKUP(BO$3,Rekenblad!$E$3:$BE$123,118,0))/BO$7,"") ->  | BP78: =IF(BP10<>"",(HLOOKUP(BP$3,Rekenblad!$E$3:$BE$123,118,0))/BP$7,"") ->  | BQ78: =IF(BQ10<>"",(HLOOKUP(BQ$3,Rekenblad!$E$3:$BE$123,118,0))/BQ$7,"") ->  | BR78: =IF(BR10<>"",(HLOOKUP(BR$3,Rekenblad!$E$3:$BE$123,118,0))/BR$7,"") ->  | BS78: =IF(BS10<>"",(HLOOKUP(BS$3,Rekenblad!$E$3:$BE$123,118,0))/BS$7,"") ->  | BT78: =IF(BT10<>"",(HLOOKUP(BT$3,Rekenblad!$E$3:$BE$123,118,0))/BT$7,"") ->  | BU78: =IF(BU10<>"",(HLOOKUP(BU$3,Rekenblad!$E$3:$BE$123,118,0))/BU$7,"") ->  | BV78: =IF(BV10<>"",(HLOOKUP(BV$3,Rekenblad!$E$3:$BE$123,118,0))/BV$7,"") ->  | BW78: =IF(BW10<>"",(HLOOKUP(BW$3,Rekenblad!$E$3:$BE$123,118,0))/BW$7,"") ->  | BX78: =IF(BX10<>"",(HLOOKUP(BX$3,Rekenblad!$E$3:$BE$123,118,0))/BX$7,"") ->  | BY78: =IF(BY10<>"",(HLOOKUP(BY$3,Rekenblad!$E$3:$BE$123,118,0))/BY$7,"") ->  | BZ78: =IF(BZ10<>"",(HLOOKUP(BZ$3,Rekenblad!$E$3:$BE$123,118,0))/BZ$7,"") ->  | CA78: =IF(CA10<>"",(HLOOKUP(CA$3,Rekenblad!$E$3:$BE$123,118,0))/CA$7,"") ->  | CB78: =IF(CB10<>"",(HLOOKUP(CB$3,Rekenblad!$E$3:$BE$123,118,0))/CB$7,"") ->  | CC78: =IF(CC10<>"",(HLOOKUP(CC$3,Rekenblad!$E$3:$BE$123,118,0))/CC$7,"") ->  | CD78: =IF(CD10<>"",(HLOOKUP(CD$3,Rekenblad!$E$3:$BE$123,118,0))/CD$7,"") ->  | CE78: =IF(CE10<>"",(HLOOKUP(CE$3,Rekenblad!$E$3:$BE$123,118,0))/CE$7,"") ->  | CF78: =IF(CF10<>"",(HLOOKUP(CF$3,Rekenblad!$E$3:$BE$123,118,0))/CF$7,"") ->  | CG78: =IF(CG10<>"",(HLOOKUP(CG$3,Rekenblad!$E$3:$BE$123,118,0))/CG$7,"") ->  | CH78: =IF(CH10<>"",(HLOOKUP(CH$3,Rekenblad!$E$3:$BE$123,118,0))/CH$7,"") ->  | CI78: =IF(CI10<>"",(HLOOKUP(CI$3,Rekenblad!$E$3:$BE$123,118,0))/CI$7,"") ->  | CJ78: =IF(CJ10<>"",(HLOOKUP(CJ$3,Rekenblad!$E$3:$BE$123,118,0))/CJ$7,"") ->  | CK78: =IF(CK10<>"",(HLOOKUP(CK$3,Rekenblad!$E$3:$BE$123,118,0))/CK$7,"") ->  | CL78: =IF(CL10<>"",(HLOOKUP(CL$3,Rekenblad!$E$3:$BE$123,118,0))/CL$7,"") ->  | CM78: =IF(CM10<>"",(HLOOKUP(CM$3,Rekenblad!$E$3:$BE$123,118,0))/CM$7,"") ->  | CN78: =IF(CN10<>"",(HLOOKUP(CN$3,Rekenblad!$E$3:$BE$123,118,0))/CN$7,"") ->  | CO78: =IF(CO10<>"",(HLOOKUP(CO$3,Rekenblad!$E$3:$BE$123,118,0))/CO$7,"") ->  | CP78: =IF(CP10<>"",(HLOOKUP(CP$3,Rekenblad!$E$3:$BE$123,118,0))/CP$7,"") ->  | CQ78: =IF(CQ10<>"",(HLOOKUP(CQ$3,Rekenblad!$E$3:$BE$123,118,0))/CQ$7,"") ->  | CR78: =IF(CR10<>"",(HLOOKUP(CR$3,Rekenblad!$E$3:$BE$123,118,0))/CR$7,"") ->  | CS78: =IF(CS10<>"",(HLOOKUP(CS$3,Rekenblad!$E$3:$BE$123,118,0))/CS$7,"") ->  | CT78: =IF(CT10<>"",(HLOOKUP(CT$3,Rekenblad!$E$3:$BE$123,118,0))/CT$7,"") ->  | CU78: =IF(CU10<>"",(HLOOKUP(CU$3,Rekenblad!$E$3:$BE$123,118,0))/CU$7,"") ->  | CV78: =IF(CV10<>"",(HLOOKUP(CV$3,Rekenblad!$E$3:$BE$123,118,0))/CV$7,"") ->  | CW78: =IF(CW10<>"",(HLOOKUP(CW$3,Rekenblad!$E$3:$BE$123,118,0))/CW$7,"") ->  | CX78: =IF(CX10<>"",(HLOOKUP(CX$3,Rekenblad!$E$3:$BE$123,118,0))/CX$7,"") ->  | CY78: =IF(CY10<>"",(HLOOKUP(CY$3,Rekenblad!$E$3:$BE$123,118,0))/CY$7,"") ->  | CZ78: =IF(CZ10<>"",(HLOOKUP(CZ$3,Rekenblad!$E$3:$BE$123,118,0))/CZ$7,"") ->  | DA78: =IF(DA10<>"",(HLOOKUP(DA$3,Rekenblad!$E$3:$BE$123,118,0))/DA$7,"") ->  | DB78: =IF(DB10<>"",(HLOOKUP(DB$3,Rekenblad!$E$3:$BE$123,118,0))/DB$7,"") ->  | DC78: =IF(DC10<>"",(HLOOKUP(DC$3,Rekenblad!$E$3:$BE$123,118,0))/DC$7,"") ->  | DD78: =IF(DD10<>"",(HLOOKUP(DD$3,Rekenblad!$E$3:$BE$123,118,0))/DD$7,"") ->  | DE78: =IF(DE10<>"",(HLOOKUP(DE$3,Rekenblad!$E$3:$BE$123,118,0))/DE$7,"") ->  | DF78: =IF(DF10<>"",(HLOOKUP(DF$3,Rekenblad!$E$3:$BE$123,118,0))/DF$7,"") ->  | DG78: =IF(DG10<>"",(HLOOKUP(DG$3,Rekenblad!$E$3:$BE$123,118,0))/DG$7,"") ->  | DH78: =IF(DH10<>"",(HLOOKUP(DH$3,Rekenblad!$E$3:$BE$123,118,0))/DH$7,"") ->  | DI78: =IF(DI10<>"",(HLOOKUP(DI$3,Rekenblad!$E$3:$BE$123,118,0))/DI$7,"") ->  | DJ78: =IF(DJ10<>"",(HLOOKUP(DJ$3,Rekenblad!$E$3:$BE$123,118,0))/DJ$7,"") ->  | DK78: =IF(DK10<>"",(HLOOKUP(DK$3,Rekenblad!$E$3:$BE$123,118,0))/DK$7,"") ->  | DL78: =IF(DL10<>"",(HLOOKUP(DL$3,Rekenblad!$E$3:$BE$123,118,0))/DL$7,"") ->  | DM78: =IF(DM10<>"",(HLOOKUP(DM$3,Rekenblad!$E$3:$BE$123,118,0))/DM$7,"") ->  | DN78: =IF(DN10<>"",(HLOOKUP(DN$3,Rekenblad!$E$3:$BE$123,118,0))/DN$7,"") ->  | DO78: =IF(DO10<>"",(HLOOKUP(DO$3,Rekenblad!$E$3:$BE$123,118,0))/DO$7,"") ->  | DP78: =IF(DP10<>"",(HLOOKUP(DP$3,Rekenblad!$E$3:$BE$123,118,0))/DP$7,"") ->  | DQ78: =IF(DQ10<>"",(HLOOKUP(DQ$3,Rekenblad!$E$3:$BE$123,118,0))/DQ$7,"") ->  | DR78: =IF(DR10<>"",(HLOOKUP(DR$3,Rekenblad!$E$3:$BE$123,118,0))/DR$7,"") ->  | DS78: =IF(DS10<>"",(HLOOKUP(DS$3,Rekenblad!$E$3:$BE$123,118,0))/DS$7,"") ->  | DT78: =IF(DT10<>"",(HLOOKUP(DT$3,Rekenblad!$E$3:$BE$123,118,0))/DT$7,"") ->  | DU78: =IF(DU10<>"",(HLOOKUP(DU$3,Rekenblad!$E$3:$BE$123,118,0))/DU$7,"") ->  | DV78: =IF(DV10<>"",(HLOOKUP(DV$3,Rekenblad!$E$3:$BE$123,118,0))/DV$7,"") ->  | DW78: =IF(DW10<>"",(HLOOKUP(DW$3,Rekenblad!$E$3:$BE$123,118,0))/DW$7,"") ->  | DX78: =IF(DX10<>"",(HLOOKUP(DX$3,Rekenblad!$E$3:$BE$123,118,0))/DX$7,"") ->  | DY78: =IF(DY10<>"",(HLOOKUP(DY$3,Rekenblad!$E$3:$BE$123,118,0))/DY$7,"") ->  | DZ78: =IF(DZ10<>"",(HLOOKUP(DZ$3,Rekenblad!$E$3:$BE$123,118,0))/DZ$7,"") ->  | EA78: =IF(EA10<>"",(HLOOKUP(EA$3,Rekenblad!$E$3:$BE$123,118,0))/EA$7,"") ->  | EB78: =IF(EB10<>"",(HLOOKUP(EB$3,Rekenblad!$E$3:$BE$123,118,0))/EB$7,"") ->  | EC78: =IF(EC10<>"",(HLOOKUP(EC$3,Rekenblad!$E$3:$BE$123,118,0))/EC$7,"") ->  | ED78: =IF(ED10<>"",(HLOOKUP(ED$3,Rekenblad!$E$3:$BE$123,118,0))/ED$7,"") ->  | EE78: =IF(EE10<>"",(HLOOKUP(EE$3,Rekenblad!$E$3:$BE$123,118,0))/EE$7,"") ->  | EF78: =IF(EF10<>"",(HLOOKUP(EF$3,Rekenblad!$E$3:$BE$123,118,0))/EF$7,"") ->  | EG78: =IF(EG10<>"",(HLOOKUP(EG$3,Rekenblad!$E$3:$BE$123,118,0))/EG$7,"") ->  | EH78: =IF(EH10<>"",(HLOOKUP(EH$3,Rekenblad!$E$3:$BE$123,118,0))/EH$7,"") -> 82.643 | EI78: =IF(EI10<>"",(HLOOKUP(EI$3,Rekenblad!$E$3:$BE$123,118,0))/EI$7,"") -> 82.643 | EJ78: =IF(EJ10<>"",(HLOOKUP(EJ$3,Rekenblad!$E$3:$BE$123,118,0))/EJ$7,"") -> 82.643 | EK78: =IF(EK10<>"",(HLOOKUP(EK$3,Rekenblad!$E$3:$BE$123,118,0))/EK$7,"") -> 82.643 | EL78: =IF(EL10<>"",(HLOOKUP(EL$3,Rekenblad!$E$3:$BE$123,118,0))/EL$7,"") -> 82.643 | EM78: =IF(EM10<>"",(HLOOKUP(EM$3,Rekenblad!$E$3:$BE$123,118,0))/EM$7,"") ->  | EN78: =IF(EN10<>"",(HLOOKUP(EN$3,Rekenblad!$E$3:$BE$123,118,0))/EN$7,"") ->  | EO78: =IF(EO10<>"",(HLOOKUP(EO$3,Rekenblad!$E$3:$BE$123,118,0))/EO$7,"") ->  | EP78: =IF(EP10<>"",(HLOOKUP(EP$3,Rekenblad!$E$3:$BE$123,118,0))/EP$7,"") -> 36.962 | EQ78: =IF(EQ10<>"",(HLOOKUP(EQ$3,Rekenblad!$E$3:$BE$123,118,0))/EQ$7,"") -> 36.962 | ER78: =IF(ER10<>"",(HLOOKUP(ER$3,Rekenblad!$E$3:$BE$123,118,0))/ER$7,"") -> 36.962 | ES78: =IF(ES10<>"",(HLOOKUP(ES$3,Rekenblad!$E$3:$BE$123,118,0))/ES$7,"") -> 36.962 | ET78: =IF(ET10<>"",(HLOOKUP(ET$3,Rekenblad!$E$3:$BE$123,118,0))/ET$7,"") -> 36.962 | EU78: =IF(EU10<>"",(HLOOKUP(EU$3,Rekenblad!$E$3:$BE$123,118,0))/EU$7,"") ->  | EV78: =IF(EV10<>"",(HLOOKUP(EV$3,Rekenblad!$E$3:$BE$123,118,0))/EV$7,"") -> 6.746 | EW78: =IF(EW10<>"",(HLOOKUP(EW$3,Rekenblad!$E$3:$BE$123,118,0))/EW$7,"") -> 6.746 | EX78: =IF(EX10<>"",(HLOOKUP(EX$3,Rekenblad!$E$3:$BE$123,118,0))/EX$7,"") -> 6.746 | EY78: =IF(EY10<>"",(HLOOKUP(EY$3,Rekenblad!$E$3:$BE$123,118,0))/EY$7,"") -> 6.746 | EZ78: =IF(EZ10<>"",(HLOOKUP(EZ$3,Rekenblad!$E$3:$BE$123,118,0))/EZ$7,"") -> 6.746 | FA78: =IF(FA10<>"",(HLOOKUP(FA$3,Rekenblad!$E$3:$BE$123,118,0))/FA$7,"") ->  | FB78: =IF(FB10<>"",(HLOOKUP(FB$3,Rekenblad!$E$3:$BE$123,118,0))/FB$7,"") ->  | FC78: =IF(FC10<>"",(HLOOKUP(FC$3,Rekenblad!$E$3:$BE$123,118,0))/FC$7,"") -> 45.124 | FD78: =IF(FD10<>"",(HLOOKUP(FD$3,Rekenblad!$E$3:$BE$123,118,0))/FD$7,"") -> 45.124 | FE78: =IF(FE10<>"",(HLOOKUP(FE$3,Rekenblad!$E$3:$BE$123,118,0))/FE$7,"") -> 45.124 | FF78: =IF(FF10<>"",(HLOOKUP(FF$3,Rekenblad!$E$3:$BE$123,118,0))/FF$7,"") -> 45.124 | FG78: =IF(FG10<>"",(HLOOKUP(FG$3,Rekenblad!$E$3:$BE$123,118,0))/FG$7,"") -> 45.124 | FH78: =IF(FH10<>"",(HLOOKUP(FH$3,Rekenblad!$E$3:$BE$123,118,0))/FH$7,"") ->  | FI78: =IF(FI10<>"",(HLOOKUP(FI$3,Rekenblad!$E$3:$BE$123,118,0))/FI$7,"") ->  | FJ78: =IF(FJ10<>"",(HLOOKUP(FJ$3,Rekenblad!$E$3:$BE$123,118,0))/FJ$7,"") -> 23.615 | FK78: =IF(FK10<>"",(HLOOKUP(FK$3,Rekenblad!$E$3:$BE$123,118,0))/FK$7,"") -> 23.615 | FL78: =IF(FL10<>"",(HLOOKUP(FL$3,Rekenblad!$E$3:$BE$123,118,0))/FL$7,"") -> 23.615 | FM78: =IF(FM10<>"",(HLOOKUP(FM$3,Rekenblad!$E$3:$BE$123,118,0))/FM$7,"") -> 23.615 | FN78: =IF(FN10<>"",(HLOOKUP(FN$3,Rekenblad!$E$3:$BE$123,118,0))/FN$7,"") -> 23.615 | FO78: =IF(FO10<>"",(HLOOKUP(FO$3,Rekenblad!$E$3:$BE$123,118,0))/FO$7,"") -> 23.615 | FP78: =IF(FP10<>"",(HLOOKUP(FP$3,Rekenblad!$E$3:$BE$123,118,0))/FP$7,"") ->  | FQ78: =IF(FQ10<>"",(HLOOKUP(FQ$3,Rekenblad!$E$3:$BE$123,118,0))/FQ$7,"") -> 27.858 | FR78: =IF(FR10<>"",(HLOOKUP(FR$3,Rekenblad!$E$3:$BE$123,118,0))/FR$7,"") -> 27.858 | FS78: =IF(FS10<>"",(HLOOKUP(FS$3,Rekenblad!$E$3:$BE$123,118,0))/FS$7,"") -> 27.858 | FT78: =IF(FT10<>"",(HLOOKUP(FT$3,Rekenblad!$E$3:$BE$123,118,0))/FT$7,"") -> 27.858 | FU78: =IF(FU10<>"",(HLOOKUP(FU$3,Rekenblad!$E$3:$BE$123,118,0))/FU$7,"") -> 27.858 | FV78: =IF(FV10<>"",(HLOOKUP(FV$3,Rekenblad!$E$3:$BE$123,118,0))/FV$7,"") ->  | FW78: =IF(FW10<>"",(HLOOKUP(FW$3,Rekenblad!$E$3:$BE$123,118,0))/FW$7,"") ->  | FX78: =IF(FX10<>"",(HLOOKUP(FX$3,Rekenblad!$E$3:$BE$123,118,0))/FX$7,"") -> 11.9 | FY78: =IF(FY10<>"",(HLOOKUP(FY$3,Rekenblad!$E$3:$BE$123,118,0))/FY$7,"") -> 11.9 | FZ78: =IF(FZ10<>"",(HLOOKUP(FZ$3,Rekenblad!$E$3:$BE$123,118,0))/FZ$7,"") -> 11.9 | GA78: =IF(GA10<>"",(HLOOKUP(GA$3,Rekenblad!$E$3:$BE$123,118,0))/GA$7,"") -> 11.9 | GB78: =IF(GB10<>"",(HLOOKUP(GB$3,Rekenblad!$E$3:$BE$123,118,0))/GB$7,"") -> 11.9 | GC78: =IF(GC10<>"",(HLOOKUP(GC$3,Rekenblad!$E$3:$BE$123,118,0))/GC$7,"") ->  | GD78: =IF(GD10<>"",(HLOOKUP(GD$3,Rekenblad!$E$3:$BE$123,118,0))/GD$7,"") ->  | GE78: =IF(GE10<>"",(HLOOKUP(GE$3,Rekenblad!$E$3:$BE$123,118,0))/GE$7,"") -> 60.335 | GF78: =IF(GF10<>"",(HLOOKUP(GF$3,Rekenblad!$E$3:$BE$123,118,0))/GF$7,"") -> 60.335 | GG78: =IF(GG10<>"",(HLOOKUP(GG$3,Rekenblad!$E$3:$BE$123,118,0))/GG$7,"") -> 60.335 | GH78: =IF(GH10<>"",(HLOOKUP(GH$3,Rekenblad!$E$3:$BE$123,118,0))/GH$7,"") -> 60.335 | GI78: =IF(GI10<>"",(HLOOKUP(GI$3,Rekenblad!$E$3:$BE$123,118,0))/GI$7,"") -> 60.335 | GJ78: =IF(GJ10<>"",(HLOOKUP(GJ$3,Rekenblad!$E$3:$BE$123,118,0))/GJ$7,"") -> 60.335 | GK78: =IF(GK10<>"",(HLOOKUP(GK$3,Rekenblad!$E$3:$BE$123,118,0))/GK$7,"") ->  | GL78: =IF(GL10<>"",(HLOOKUP(GL$3,Rekenblad!$E$3:$BE$123,118,0))/GL$7,"") -> 47.456 | GM78: =IF(GM10<>"",(HLOOKUP(GM$3,Rekenblad!$E$3:$BE$123,118,0))/GM$7,"") -> 47.456 | GN78: =IF(GN10<>"",(HLOOKUP(GN$3,Rekenblad!$E$3:$BE$123,118,0))/GN$7,"") -> 47.456 | GO78: =IF(GO10<>"",(HLOOKUP(GO$3,Rekenblad!$E$3:$BE$123,118,0))/GO$7,"") -> 47.456 | GP78: =IF(GP10<>"",(HLOOKUP(GP$3,Rekenblad!$E$3:$BE$123,118,0))/GP$7,"") -> 47.456 | GQ78: =IF(GQ10<>"",(HLOOKUP(GQ$3,Rekenblad!$E$3:$BE$123,118,0))/GQ$7,"") ->  | GR78: =IF(GR10<>"",(HLOOKUP(GR$3,Rekenblad!$E$3:$BE$123,118,0))/GR$7,"") ->  | GS78: =IF(GS10<>"",(HLOOKUP(GS$3,Rekenblad!$E$3:$BE$123,118,0))/GS$7,"") -> 0 | GT78: =IF(GT10<>"",(HLOOKUP(GT$3,Rekenblad!$E$3:$BE$123,118,0))/GT$7,"") -> 0 | GU78: =IF(GU10<>"",(HLOOKUP(GU$3,Rekenblad!$E$3:$BE$123,118,0))/GU$7,"") -> 0 | GV78: =IF(GV10<>"",(HLOOKUP(GV$3,Rekenblad!$E$3:$BE$123,118,0))/GV$7,"") -> 0 | GW78: =IF(GW10<>"",(HLOOKUP(GW$3,Rekenblad!$E$3:$BE$123,118,0))/GW$7,"") -> 0 | GX78: =IF(GX10<>"",(HLOOKUP(GX$3,Rekenblad!$E$3:$BE$123,118,0))/GX$7,"") ->  | GY78: =IF(GY10<>"",(HLOOKUP(GY$3,Rekenblad!$E$3:$BE$123,118,0))/GY$7,"") ->  | GZ78: =IF(GZ10<>"",(HLOOKUP(GZ$3,Rekenblad!$E$3:$BE$123,118,0))/GZ$7,"") ->  | HA78: =IF(HA10<>"",(HLOOKUP(HA$3,Rekenblad!$E$3:$BE$123,118,0))/HA$7,"") ->  | HB78: =IF(HB10<>"",(HLOOKUP(HB$3,Rekenblad!$E$3:$BE$123,118,0))/HB$7,"") ->  | HC78: =IF(HC10<>"",(HLOOKUP(HC$3,Rekenblad!$E$3:$BE$123,118,0))/HC$7,"") ->  | HD78: =IF(HD10<>"",(HLOOKUP(HD$3,Rekenblad!$E$3:$BE$123,118,0))/HD$7,"") ->  | HE78: =IF(HE10<>"",(HLOOKUP(HE$3,Rekenblad!$E$3:$BE$123,118,0))/HE$7,"") ->  | HF78: =IF(HF10<>"",(HLOOKUP(HF$3,Rekenblad!$E$3:$BE$123,118,0))/HF$7,"") ->  | HG78: =IF(HG10<>"",(HLOOKUP(HG$3,Rekenblad!$E$3:$BE$123,118,0))/HG$7,"") ->  | HH78: =IF(HH10<>"",(HLOOKUP(HH$3,Rekenblad!$E$3:$BE$123,118,0))/HH$7,"") ->  | HI78: =IF(HI10<>"",(HLOOKUP(HI$3,Rekenblad!$E$3:$BE$123,118,0))/HI$7,"") ->  | HJ78: =IF(HJ10<>"",(HLOOKUP(HJ$3,Rekenblad!$E$3:$BE$123,118,0))/HJ$7,"") ->  | HK78: =IF(HK10<>"",(HLOOKUP(HK$3,Rekenblad!$E$3:$BE$123,118,0))/HK$7,"") ->  | HL78: =IF(HL10<>"",(HLOOKUP(HL$3,Rekenblad!$E$3:$BE$123,118,0))/HL$7,"") ->  | HM78: =IF(HM10<>"",(HLOOKUP(HM$3,Rekenblad!$E$3:$BE$123,118,0))/HM$7,"") ->  | HN78: =IF(HN10<>"",(HLOOKUP(HN$3,Rekenblad!$E$3:$BE$123,118,0))/HN$7,"") ->  | HO78: =IF(HO10<>"",(HLOOKUP(HO$3,Rekenblad!$E$3:$BE$123,118,0))/HO$7,"") ->  | HP78: =IF(HP10<>"",(HLOOKUP(HP$3,Rekenblad!$E$3:$BE$123,118,0))/HP$7,"") ->  | HQ78: =IF(HQ10<>"",(HLOOKUP(HQ$3,Rekenblad!$E$3:$BE$123,118,0))/HQ$7,"") ->  | HR78: =IF(HR10<>"",(HLOOKUP(HR$3,Rekenblad!$E$3:$BE$123,118,0))/HR$7,"") ->  | HS78: =IF(HS10<>"",(HLOOKUP(HS$3,Rekenblad!$E$3:$BE$123,118,0))/HS$7,"") ->  | HT78: =IF(HT10<>"",(HLOOKUP(HT$3,Rekenblad!$E$3:$BE$123,118,0))/HT$7,"") ->  | HU78: =IF(HU10<>"",(HLOOKUP(HU$3,Rekenblad!$E$3:$BE$123,118,0))/HU$7,"") -> 39.34 | HV78: =IF(HV10<>"",(HLOOKUP(HV$3,Rekenblad!$E$3:$BE$123,118,0))/HV$7,"") -> 39.34 | HW78: =IF(HW10<>"",(HLOOKUP(HW$3,Rekenblad!$E$3:$BE$123,118,0))/HW$7,"") -> 39.34 | HX78: =IF(HX10<>"",(HLOOKUP(HX$3,Rekenblad!$E$3:$BE$123,118,0))/HX$7,"") -> 39.34 | HY78: =IF(HY10<>"",(HLOOKUP(HY$3,Rekenblad!$E$3:$BE$123,118,0))/HY$7,"") -> 39.34 | HZ78: =IF(HZ10<>"",(HLOOKUP(HZ$3,Rekenblad!$E$3:$BE$123,118,0))/HZ$7,"") -> 39.34 | IA78: =IF(IA10<>"",(HLOOKUP(IA$3,Rekenblad!$E$3:$BE$123,118,0))/IA$7,"") ->  | IB78: =IF(IB10<>"",(HLOOKUP(IB$3,Rekenblad!$E$3:$BE$123,118,0))/IB$7,"") -> 64.202 | IC78: =IF(IC10<>"",(HLOOKUP(IC$3,Rekenblad!$E$3:$BE$123,118,0))/IC$7,"") -> 64.202 | ID78: =IF(ID10<>"",(HLOOKUP(ID$3,Rekenblad!$E$3:$BE$123,118,0))/ID$7,"") -> 64.202 | IE78: =IF(IE10<>"",(HLOOKUP(IE$3,Rekenblad!$E$3:$BE$123,118,0))/IE$7,"") -> 64.202 | IF78: =IF(IF10<>"",(HLOOKUP(IF$3,Rekenblad!$E$3:$BE$123,118,0))/IF$7,"") -> 64.202 | IG78: =IF(IG10<>"",(HLOOKUP(IG$3,Rekenblad!$E$3:$BE$123,118,0))/IG$7,"") ->  | IH78: =IF(IH10<>"",(HLOOKUP(IH$3,Rekenblad!$E$3:$BE$123,118,0))/IH$7,"") ->  | II78: =IF(II10<>"",(HLOOKUP(II$3,Rekenblad!$E$3:$BE$123,118,0))/II$7,"") -> 30.736 | IJ78: =IF(IJ10<>"",(HLOOKUP(IJ$3,Rekenblad!$E$3:$BE$123,118,0))/IJ$7,"") -> 30.736 | IK78: =IF(IK10<>"",(HLOOKUP(IK$3,Rekenblad!$E$3:$BE$123,118,0))/IK$7,"") -> 30.736 | IL78: =IF(IL10<>"",(HLOOKUP(IL$3,Rekenblad!$E$3:$BE$123,118,0))/IL$7,"") -> 30.736 | IM78: =IF(IM10<>"",(HLOOKUP(IM$3,Rekenblad!$E$3:$BE$123,118,0))/IM$7,"") -> 30.736 | IN78: =IF(IN10<>"",(HLOOKUP(IN$3,Rekenblad!$E$3:$BE$123,118,0))/IN$7,"") ->  | IO78: =IF(IO10<>"",(HLOOKUP(IO$3,Rekenblad!$E$3:$BE$123,118,0))/IO$7,"") ->  | IP78: =IF(IP10<>"",(HLOOKUP(IP$3,Rekenblad!$E$3:$BE$123,118,0))/IP$7,"") -> 22.19833333 | IQ78: =IF(IQ10<>"",(HLOOKUP(IQ$3,Rekenblad!$E$3:$BE$123,118,0))/IQ$7,"") -> 22.19833333 | IR78: =IF(IR10<>"",(HLOOKUP(IR$3,Rekenblad!$E$3:$BE$123,118,0))/IR$7,"") -> 22.19833333 | IS78: =IF(IS10<>"",(HLOOKUP(IS$3,Rekenblad!$E$3:$BE$123,118,0))/IS$7,"") -> 22.19833333 | IT78: =IF(IT10<>"",(HLOOKUP(IT$3,Rekenblad!$E$3:$BE$123,118,0))/IT$7,"") -> 22.19833333 | IU78: =IF(IU10<>"",(HLOOKUP(IU$3,Rekenblad!$E$3:$BE$123,118,0))/IU$7,"") -> 22.19833333 | IV78: =IF(IV10<>"",(HLOOKUP(IV$3,Rekenblad!$E$3:$BE$123,118,0))/IV$7,"") ->  | IW78: =IF(IW10<>"",(HLOOKUP(IW$3,Rekenblad!$E$3:$BE$123,118,0))/IW$7,"") -> 29.216 | IX78: =IF(IX10<>"",(HLOOKUP(IX$3,Rekenblad!$E$3:$BE$123,118,0))/IX$7,"") -> 29.216 | IY78: =IF(IY10<>"",(HLOOKUP(IY$3,Rekenblad!$E$3:$BE$123,118,0))/IY$7,"") -> 29.216 | IZ78: =IF(IZ10<>"",(HLOOKUP(IZ$3,Rekenblad!$E$3:$BE$123,118,0))/IZ$7,"") -> 29.216 | JA78: =IF(JA10<>"",(HLOOKUP(JA$3,Rekenblad!$E$3:$BE$123,118,0))/JA$7,"") -> 29.216 | JB78: =IF(JB10<>"",(HLOOKUP(JB$3,Rekenblad!$E$3:$BE$123,118,0))/JB$7,"") ->  | JC78: =IF(JC10<>"",(HLOOKUP(JC$3,Rekenblad!$E$3:$BE$123,118,0))/JC$7,"") ->  | JD78: =IF(JD10<>"",(HLOOKUP(JD$3,Rekenblad!$E$3:$BE$123,118,0))/JD$7,"") -> 97.019 | JE78: =IF(JE10<>"",(HLOOKUP(JE$3,Rekenblad!$E$3:$BE$123,118,0))/JE$7,"") -> 97.019 | JF78: =IF(JF10<>"",(HLOOKUP(JF$3,Rekenblad!$E$3:$BE$123,118,0))/JF$7,"") -> 97.019 | JG78: =IF(JG10<>"",(HLOOKUP(JG$3,Rekenblad!$E$3:$BE$123,118,0))/JG$7,"") -> 97.019 | JH78: =IF(JH10<>"",(HLOOKUP(JH$3,Rekenblad!$E$3:$BE$123,118,0))/JH$7,"") -> 97.019 | JI78: =IF(JI10<>"",(HLOOKUP(JI$3,Rekenblad!$E$3:$BE$123,118,0))/JI$7,"") ->  | JJ78: =IF(JJ10<>"",(HLOOKUP(JJ$3,Rekenblad!$E$3:$BE$123,118,0))/JJ$7,"") ->  | JK78: =IF(JK10<>"",(HLOOKUP(JK$3,Rekenblad!$E$3:$BE$123,118,0))/JK$7,"") -> 27.78333333 | JL78: =IF(JL10<>"",(HLOOKUP(JL$3,Rekenblad!$E$3:$BE$123,118,0))/JL$7,"") -> 27.78333333 | JM78: =IF(JM10<>"",(HLOOKUP(JM$3,Rekenblad!$E$3:$BE$123,118,0))/JM$7,"") -> 27.78333333 | JN78: =IF(JN10<>"",(HLOOKUP(JN$3,Rekenblad!$E$3:$BE$123,118,0))/JN$7,"") -> 27.78333333 | JO78: =IF(JO10<>"",(HLOOKUP(JO$3,Rekenblad!$E$3:$BE$123,118,0))/JO$7,"") -> 27.78333333 | JP78: =IF(JP10<>"",(HLOOKUP(JP$3,Rekenblad!$E$3:$BE$123,118,0))/JP$7,"") -> 27.78333333 | JQ78: =IF(JQ10<>"",(HLOOKUP(JQ$3,Rekenblad!$E$3:$BE$123,118,0))/JQ$7,"") ->  | JR78: =IF(JR10<>"",(HLOOKUP(JR$3,Rekenblad!$E$3:$BE$123,118,0))/JR$7,"") -> 57.383 | JS78: =IF(JS10<>"",(HLOOKUP(JS$3,Rekenblad!$E$3:$BE$123,118,0))/JS$7,"") -> 57.383 | JT78: =IF(JT10<>"",(HLOOKUP(JT$3,Rekenblad!$E$3:$BE$123,118,0))/JT$7,"") -> 57.383 | JU78: =IF(JU10<>"",(HLOOKUP(JU$3,Rekenblad!$E$3:$BE$123,118,0))/JU$7,"") -> 57.383 | JV78: =IF(JV10<>"",(HLOOKUP(JV$3,Rekenblad!$E$3:$BE$123,118,0))/JV$7,"") -> 57.383 | JW78: =IF(JW10<>"",(HLOOKUP(JW$3,Rekenblad!$E$3:$BE$123,118,0))/JW$7,"") ->  | JX78: =IF(JX10<>"",(HLOOKUP(JX$3,Rekenblad!$E$3:$BE$123,118,0))/JX$7,"") ->  | JY78: =IF(JY10<>"",(HLOOKUP(JY$3,Rekenblad!$E$3:$BE$123,118,0))/JY$7,"") ->  | JZ78: =IF(JZ10<>"",(HLOOKUP(JZ$3,Rekenblad!$E$3:$BE$123,118,0))/JZ$7,"") ->  | KA78: =IF(KA10<>"",(HLOOKUP(KA$3,Rekenblad!$E$3:$BE$123,118,0))/KA$7,"") ->  | KB78: =IF(KB10<>"",(HLOOKUP(KB$3,Rekenblad!$E$3:$BE$123,118,0))/KB$7,"") ->  | KC78: =IF(KC10<>"",(HLOOKUP(KC$3,Rekenblad!$E$3:$BE$123,118,0))/KC$7,"") ->  | KD78: =IF(KD10<>"",(HLOOKUP(KD$3,Rekenblad!$E$3:$BE$123,118,0))/KD$7,"") ->  | KE78: =IF(KE10<>"",(HLOOKUP(KE$3,Rekenblad!$E$3:$BE$123,118,0))/KE$7,"") ->  | KF78: =IF(KF10<>"",(HLOOKUP(KF$3,Rekenblad!$E$3:$BE$123,118,0))/KF$7,"") ->  | KG78: =IF(KG10<>"",(HLOOKUP(KG$3,Rekenblad!$E$3:$BE$123,118,0))/KG$7,"") ->  | KH78: =IF(KH10<>"",(HLOOKUP(KH$3,Rekenblad!$E$3:$BE$123,118,0))/KH$7,"") ->  | KI78: =IF(KI10<>"",(HLOOKUP(KI$3,Rekenblad!$E$3:$BE$123,118,0))/KI$7,"") ->  | KJ78: =IF(KJ10<>"",(HLOOKUP(KJ$3,Rekenblad!$E$3:$BE$123,118,0))/KJ$7,"") ->  | KK78: =IF(KK10<>"",(HLOOKUP(KK$3,Rekenblad!$E$3:$BE$123,118,0))/KK$7,"") ->  | KL78: =IF(KL10<>"",(HLOOKUP(KL$3,Rekenblad!$E$3:$BE$123,118,0))/KL$7,"") ->  | KM78: =IF(KM10<>"",(HLOOKUP(KM$3,Rekenblad!$E$3:$BE$123,118,0))/KM$7,"") ->  | KN78: =IF(KN10<>"",(HLOOKUP(KN$3,Rekenblad!$E$3:$BE$123,118,0))/KN$7,"") ->  | KO78: =IF(KO10<>"",(HLOOKUP(KO$3,Rekenblad!$E$3:$BE$123,118,0))/KO$7,"") ->  | KP78: =IF(KP10<>"",(HLOOKUP(KP$3,Rekenblad!$E$3:$BE$123,118,0))/KP$7,"") ->  | KQ78: =IF(KQ10<>"",(HLOOKUP(KQ$3,Rekenblad!$E$3:$BE$123,118,0))/KQ$7,"") ->  | KR78: =IF(KR10<>"",(HLOOKUP(KR$3,Rekenblad!$E$3:$BE$123,118,0))/KR$7,"") ->  | KS78: =IF(KS10<>"",(HLOOKUP(KS$3,Rekenblad!$E$3:$BE$123,118,0))/KS$7,"") ->  | KT78: =IF(KT10<>"",(HLOOKUP(KT$3,Rekenblad!$E$3:$BE$123,118,0))/KT$7,"") ->  | KU78: =IF(KU10<>"",(HLOOKUP(KU$3,Rekenblad!$E$3:$BE$123,118,0))/KU$7,"") ->  | KV78: =IF(KV10<>"",(HLOOKUP(KV$3,Rekenblad!$E$3:$BE$123,118,0))/KV$7,"") ->  | KW78: =IF(KW10<>"",(HLOOKUP(KW$3,Rekenblad!$E$3:$BE$123,118,0))/KW$7,"") ->  | KX78: =IF(KX10<>"",(HLOOKUP(KX$3,Rekenblad!$E$3:$BE$123,118,0))/KX$7,"") ->  | KY78: =IF(KY10<>"",(HLOOKUP(KY$3,Rekenblad!$E$3:$BE$123,118,0))/KY$7,"") ->  | KZ78: =IF(KZ10<>"",(HLOOKUP(KZ$3,Rekenblad!$E$3:$BE$123,118,0))/KZ$7,"") ->  | LA78: =IF(LA10<>"",(HLOOKUP(LA$3,Rekenblad!$E$3:$BE$123,118,0))/LA$7,"") ->  | LB78: =IF(LB10<>"",(HLOOKUP(LB$3,Rekenblad!$E$3:$BE$123,118,0))/LB$7,"") ->  | LC78: =IF(LC10<>"",(HLOOKUP(LC$3,Rekenblad!$E$3:$BE$123,118,0))/LC$7,"") ->  | LD78: =IF(LD10<>"",(HLOOKUP(LD$3,Rekenblad!$E$3:$BE$123,118,0))/LD$7,"") ->  | LE78: =IF(LE10<>"",(HLOOKUP(LE$3,Rekenblad!$E$3:$BE$123,118,0))/LE$7,"") ->  | LF78: =IF(LF10<>"",(HLOOKUP(LF$3,Rekenblad!$E$3:$BE$123,118,0))/LF$7,"") ->  | LG78: =IF(LG10<>"",(HLOOKUP(LG$3,Rekenblad!$E$3:$BE$123,118,0))/LG$7,"") ->  | LH78: =IF(LH10<>"",(HLOOKUP(LH$3,Rekenblad!$E$3:$BE$123,118,0))/LH$7,"") ->  | LI78: =IF(LI10<>"",(HLOOKUP(LI$3,Rekenblad!$E$3:$BE$123,118,0))/LI$7,"") ->  | LJ78: =IF(LJ10<>"",(HLOOKUP(LJ$3,Rekenblad!$E$3:$BE$123,118,0))/LJ$7,"") ->  | LK78: =IF(LK10<>"",(HLOOKUP(LK$3,Rekenblad!$E$3:$BE$123,118,0))/LK$7,"") ->  | LL78: =IF(LL10<>"",(HLOOKUP(LL$3,Rekenblad!$E$3:$BE$123,118,0))/LL$7,"") ->  | LM78: =IF(LM10<>"",(HLOOKUP(LM$3,Rekenblad!$E$3:$BE$123,118,0))/LM$7,"") ->  | LN78: =IF(LN10<>"",(HLOOKUP(LN$3,Rekenblad!$E$3:$BE$123,118,0))/LN$7,"") ->  | LO78: =IF(LO10<>"",(HLOOKUP(LO$3,Rekenblad!$E$3:$BE$123,118,0))/LO$7,"") ->  | LP78: =IF(LP10<>"",(HLOOKUP(LP$3,Rekenblad!$E$3:$BE$123,118,0))/LP$7,"") ->  | LQ78: =IF(LQ10<>"",(HLOOKUP(LQ$3,Rekenblad!$E$3:$BE$123,118,0))/LQ$7,"") ->  | LR78: =IF(LR10<>"",(HLOOKUP(LR$3,Rekenblad!$E$3:$BE$123,118,0))/LR$7,"") ->  | LS78: =IF(LS10<>"",(HLOOKUP(LS$3,Rekenblad!$E$3:$BE$123,118,0))/LS$7,"") ->  | LT78: =IF(LT10<>"",(HLOOKUP(LT$3,Rekenblad!$E$3:$BE$123,118,0))/LT$7,"") ->  | LU78: =IF(LU10<>"",(HLOOKUP(LU$3,Rekenblad!$E$3:$BE$123,118,0))/LU$7,"") ->  | LV78: =IF(LV10<>"",(HLOOKUP(LV$3,Rekenblad!$E$3:$BE$123,118,0))/LV$7,"") ->  | LW78: =IF(LW10<>"",(HLOOKUP(LW$3,Rekenblad!$E$3:$BE$123,118,0))/LW$7,"") ->  | LX78: =IF(LX10<>"",(HLOOKUP(LX$3,Rekenblad!$E$3:$BE$123,118,0))/LX$7,"") ->  | LY78: =IF(LY10<>"",(HLOOKUP(LY$3,Rekenblad!$E$3:$BE$123,118,0))/LY$7,"") ->  | LZ78: =IF(LZ10<>"",(HLOOKUP(LZ$3,Rekenblad!$E$3:$BE$123,118,0))/LZ$7,"") ->  | MA78: =IF(MA10<>"",(HLOOKUP(MA$3,Rekenblad!$E$3:$BE$123,118,0))/MA$7,"") ->  | MB78: =IF(MB10<>"",(HLOOKUP(MB$3,Rekenblad!$E$3:$BE$123,118,0))/MB$7,"") ->  | MC78: =IF(MC10<>"",(HLOOKUP(MC$3,Rekenblad!$E$3:$BE$123,118,0))/MC$7,"") ->  | MD78: =IF(MD10<>"",(HLOOKUP(MD$3,Rekenblad!$E$3:$BE$123,118,0))/MD$7,"") ->  | ME78: =IF(ME10<>"",(HLOOKUP(ME$3,Rekenblad!$E$3:$BE$123,118,0))/ME$7,"") ->  | MF78: =IF(MF10<>"",(HLOOKUP(MF$3,Rekenblad!$E$3:$BE$123,118,0))/MF$7,"") ->  | MG78: =IF(MG10<>"",(HLOOKUP(MG$3,Rekenblad!$E$3:$BE$123,118,0))/MG$7,"") ->  | MH78: =IF(MH10<>"",(HLOOKUP(MH$3,Rekenblad!$E$3:$BE$123,118,0))/MH$7,"") ->  | MI78: =IF(MI10<>"",(HLOOKUP(MI$3,Rekenblad!$E$3:$BE$123,118,0))/MI$7,"") ->  | MJ78: =IF(MJ10<>"",(HLOOKUP(MJ$3,Rekenblad!$E$3:$BE$123,118,0))/MJ$7,"") ->  | MK78: =IF(MK10<>"",(HLOOKUP(MK$3,Rekenblad!$E$3:$BE$123,118,0))/MK$7,"") ->  | ML78: =IF(ML10<>"",(HLOOKUP(ML$3,Rekenblad!$E$3:$BE$123,118,0))/ML$7,"") ->  | MM78: =IF(MM10<>"",(HLOOKUP(MM$3,Rekenblad!$E$3:$BE$123,118,0))/MM$7,"") ->  | MN78: =IF(MN10<>"",(HLOOKUP(MN$3,Rekenblad!$E$3:$BE$123,118,0))/MN$7,"") ->  | MO78: =IF(MO10<>"",(HLOOKUP(MO$3,Rekenblad!$E$3:$BE$123,118,0))/MO$7,"") ->  | MP78: =IF(MP10<>"",(HLOOKUP(MP$3,Rekenblad!$E$3:$BE$123,118,0))/MP$7,"") ->  | MQ78: =IF(MQ10<>"",(HLOOKUP(MQ$3,Rekenblad!$E$3:$BE$123,118,0))/MQ$7,"") ->  | MR78: =IF(MR10<>"",(HLOOKUP(MR$3,Rekenblad!$E$3:$BE$123,118,0))/MR$7,"") ->  | MS78: =IF(MS10<>"",(HLOOKUP(MS$3,Rekenblad!$E$3:$BE$123,118,0))/MS$7,"") ->  | MT78: =IF(MT10<>"",(HLOOKUP(MT$3,Rekenblad!$E$3:$BE$123,118,0))/MT$7,"") ->  | MU78: =IF(MU10<>"",(HLOOKUP(MU$3,Rekenblad!$E$3:$BE$123,118,0))/MU$7,"") ->  | MV78: =IF(MV10<>"",(HLOOKUP(MV$3,Rekenblad!$E$3:$BE$123,118,0))/MV$7,"") ->  | MW78: =IF(MW10<>"",(HLOOKUP(MW$3,Rekenblad!$E$3:$BE$123,118,0))/MW$7,"") ->  | MX78: =IF(MX10<>"",(HLOOKUP(MX$3,Rekenblad!$E$3:$BE$123,118,0))/MX$7,"") ->  | MY78: =IF(MY10<>"",(HLOOKUP(MY$3,Rekenblad!$E$3:$BE$123,118,0))/MY$7,"") ->  | MZ78: =IF(MZ10<>"",(HLOOKUP(MZ$3,Rekenblad!$E$3:$BE$123,118,0))/MZ$7,"") ->  | NA78: =IF(NA10<>"",(HLOOKUP(NA$3,Rekenblad!$E$3:$BE$123,118,0))/NA$7,"") ->  | NB78: =IF(NB10<>"",(HLOOKUP(NB$3,Rekenblad!$E$3:$BE$123,118,0))/NB$7,"") ->  | NC78: =IF(NC10<>"",(HLOOKUP(NC$3,Rekenblad!$E$3:$BE$123,118,0))/NC$7,"") ->  | ND78: =IF(ND10<>"",(HLOOKUP(ND$3,Rekenblad!$E$3:$BE$123,118,0))/ND$7,"") -> 
A79: t.b.d. | B79: t.b.d. | C79: Scrap cost / (Body) | E79: =IFERROR(E78/E53,"") ->  | BQ79: =IFERROR(BQ78/BQ53,"") ->  | DF79: =IFERROR(DF78/DF53,"") ->  | DG79: =IFERROR(DG78/DG53,"") ->  | EH79: 0.2747896924 | EI79: 0.3136356736 | EJ79: 0.2943650935 | EK79: 0.3002470481 | EL79: 0.3527982924 | EP79: 0.1351444241 | EQ79: 0.1301478873 | ER79: 0.1344072727 | ES79: 0.1439610516 | ET79: 0.1676281179 | EV79: 0.02753469388 | EW79: 0.02669040554 | EX79: 0.02282910321 | EY79: 0.02155271565 | EZ79: 0.02491597415 | FC79: 0.182135217 | FD79: 0.1671259259 | FE79: 0.1590273128 | FF79: 0.1516773109 | FG79: 0.1432507937 | FJ79: 0.08502250225 | FK79: 0.07800165153 | FL79: 0.07437795276 | FM79: 0.09073967339 | FN79: 0.09619144603 | FO79: 0.208061674 | FQ79: 0.1182929936 | FR79: 0.2224191617 | FS79: =IFERROR(FS78/FS53,"") -> 0.09622797927 | FT79: 0.09499744246 | FU79: 0.1360586081 | FX79: 0.04030482642 | FY79: 0.03876221498 | FZ79: 0.0392092257 | GA79: 0.03882544861 | GB79: 0.6025316456 | GE79: 0.2519206681 | GF79: 0.1878132296 | GG79: 0.2014524207 | GH79: 0.2135752212 | GI79: 0.2345383868 | GJ79: 0.3356606398 | GL79: 0.1747918969 | GM79: 0.1469226006 | GN79: 0.1607315834 | GO79: 0.1881308226 | GP79: 0.1597845118 | GS79: 0 | GT79: 0 | GU79: 0 | GV79: 0 | HU79: 0.1612295082 | HV79: 0.1390106007 | HW79: 0.1602443992 | HX79: 0.1923716381 | HY79: 0.1323465097 | HZ79: 0.10596633 | IB79: 0.3039147929 | IC79: 0.2334618182 | ID79: 0.2834525386 | IE79: =IFERROR(IE78/IE53,"") -> 0.2457492823 | IF79: 0.2452798472 | II79: 0.09385038168 | IJ79: 0.100526574 | IK79: 0.1075625547 | IL79: 0.0920928839 | IM79: 0.09181777446 | IP79: 0.07455359642 | IQ79: 0.07830099941 | IR79: 0.0741179744 | IS79: 0.08244506345 | IT79: 0.1068511833 | IU79: 0.1043399922 | IW79: 0.1106666667 | IX79: 0.1044361037 | IY79: 0.09971331058 | IZ79: 0.09439741519 | JA79: 0.09706312292 | JD79: 0.4072151102 | JE79: 0.3443442768 | JF79: 0.3094704944 | JG79: 0.2870384615 | JH79: 0.3117076305 | JK79: 0.0851596424 | JL79: 0.08094197621 | JM79: 0.07898602227 | JN79: 0.09458156028 | JO79: 0.1024270353 | JP79: 0.1092756473 | JR79: 0.1707827381 | JS79: 0.208475931 | JT79: 0.188295324 | JU79: 0.1814482213 | JV79: 0.2043918077 | KQ79: =IFERROR(KQ78/KQ53,"") ->  | NC79: =IFERROR(NC78/NC53,"") -> 
A80: 167 | B80: 167 | C80: Electrode & Maintenance mat.Sides | EH80: 0 | EI80: 0 | EJ80: 0 | EK80: 0 | EL80: 0 | EP80: 0 | EQ80: 0 | ER80: 0 | ES80: 0 | ET80: 0 | EV80: 0 | EW80: 0 | EX80: 0 | EY80: 0 | EZ80: 0 | FC80: 0 | FD80: 0 | FE80: 0 | FF80: 0 | FG80: 0 | FJ80: 0 | FK80: 0 | FL80: 0 | FM80: 0 | FN80: 0 | FO80: 0 | FQ80: 0 | FR80: 0 | FS80: 0 | FT80: 0 | FU80: 0 | GL80: 0 | GM80: 0 | GN80: 0 | GO80: 0 | GP80: 0 | IB80: 250.12
A81: t.b.d. | B81: t.b.d. | C81: Electrode & Maintenance mat.Sides / (Body) | E81: =IFERROR(E80/E53,"") ->  | BQ81: =IFERROR(BQ80/BQ53,"") ->  | DF81: =IFERROR(DF80/DF53,"") ->  | DG81: =IFERROR(DG80/DG53,"") ->  | DH81: =IFERROR(DH80/DH53,"") ->  | DI81: =IFERROR(DI80/DI53,"") ->  | DJ81: =IFERROR(DJ80/DJ53,"") ->  | DK81: =IFERROR(DK80/DK53,"") ->  | DL81: =IFERROR(DL80/DL53,"") ->  | DM81: =IFERROR(DM80/DM53,"") ->  | DN81: =IFERROR(DN80/DN53,"") ->  | DO81: =IFERROR(DO80/DO53,"") ->  | DP81: =IFERROR(DP80/DP53,"") ->  | DQ81: =IFERROR(DQ80/DQ53,"") ->  | DR81: =IFERROR(DR80/DR53,"") ->  | DS81: =IFERROR(DS80/DS53,"") ->  | DT81: =IFERROR(DT80/DT53,"") ->  | DU81: =IFERROR(DU80/DU53,"") ->  | DV81: =IFERROR(DV80/DV53,"") ->  | DW81: =IFERROR(DW80/DW53,"") ->  | DX81: =IFERROR(DX80/DX53,"") ->  | DY81: =IFERROR(DY80/DY53,"") ->  | DZ81: =IFERROR(DZ80/DZ53,"") ->  | EA81: =IFERROR(EA80/EA53,"") ->  | EB81: =IFERROR(EB80/EB53,"") ->  | EC81: =IFERROR(EC80/EC53,"") ->  | ED81: =IFERROR(ED80/ED53,"") ->  | EE81: =IFERROR(EE80/EE53,"") ->  | EF81: =IFERROR(EF80/EF53,"") ->  | EG81: =IFERROR(EG80/EG53,"") ->  | EH81: =IFERROR(EH80/EH53,"") -> 0 | EI81: =IFERROR(EI80/EI53,"") -> 0 | EJ81: =IFERROR(EJ80/EJ53,"") -> 0 | EK81: =IFERROR(EK80/EK53,"") -> 0 | EL81: =IFERROR(EL80/EL53,"") -> 0 | EM81: =IFERROR(EM80/EM53,"") ->  | EN81: =IFERROR(EN80/EN53,"") ->  | EO81: =IFERROR(EO80/EO53,"") ->  | EP81: =IFERROR(EP80/EP53,"") -> 0 | EQ81: =IFERROR(EQ80/EQ53,"") -> 0 | ER81: =IFERROR(ER80/ER53,"") -> 0 | ES81: =IFERROR(ES80/ES53,"") -> 0 | ET81: =IFERROR(ET80/ET53,"") -> 0 | EU81: =IFERROR(EU80/EU53,"") ->  | EV81: =IFERROR(EV80/EV53,"") -> 0 | EW81: =IFERROR(EW80/EW53,"") -> 0 | EX81: =IFERROR(EX80/EX53,"") -> 0 | EY81: =IFERROR(EY80/EY53,"") -> 0 | EZ81: =IFERROR(EZ80/EZ53,"") -> 0 | FA81: =IFERROR(FA80/FA53,"") ->  | FB81: =IFERROR(FB80/FB53,"") ->  | FC81: =IFERROR(FC80/FC53,"") -> 0 | FD81: =IFERROR(FD80/FD53,"") -> 0 | FE81: =IFERROR(FE80/FE53,"") -> 0 | FF81: =IFERROR(FF80/FF53,"") -> 0 | FG81: =IFERROR(FG80/FG53,"") -> 0 | FH81: =IFERROR(FH80/FH53,"") ->  | FI81: =IFERROR(FI80/FI53,"") ->  | FJ81: =IFERROR(FJ80/FJ53,"") -> 0 | FK81: =IFERROR(FK80/FK53,"") -> 0 | FL81: =IFERROR(FL80/FL53,"") -> 0 | FM81: =IFERROR(FM80/FM53,"") -> 0 | FN81: =IFERROR(FN80/FN53,"") -> 0 | FO81: =IFERROR(FO80/FO53,"") -> 0 | FP81: =IFERROR(FP80/FP53,"") ->  | FQ81: =IFERROR(FQ80/FQ53,"") -> 0 | FR81: =IFERROR(FR80/FR53,"") -> 0 | FS81: =IFERROR(FS80/FS53,"") -> 0 | FT81: =IFERROR(FT80/FT53,"") -> 0 | FU81: =IFERROR(FU80/FU53,"") -> 0 | FV81: =IFERROR(FV80/FV53,"") ->  | FW81: =IFERROR(FW80/FW53,"") ->  | FX81: =IFERROR(FX80/FX53,"") -> 0 | FY81: =IFERROR(FY80/FY53,"") -> 0 | FZ81: =IFERROR(FZ80/FZ53,"") -> 0 | GA81: =IFERROR(GA80/GA53,"") -> 0 | GB81: =IFERROR(GB80/GB53,"") -> 0 | GC81: =IFERROR(GC80/GC53,"") ->  | GD81: =IFERROR(GD80/GD53,"") ->  | GE81: =IFERROR(GE80/GE53,"") -> 0 | GF81: =IFERROR(GF80/GF53,"") -> 0 | GG81: =IFERROR(GG80/GG53,"") -> 0 | GH81: =IFERROR(GH80/GH53,"") -> 0 | GI81: =IFERROR(GI80/GI53,"") -> 0 | GJ81: =IFERROR(GJ80/GJ53,"") -> 0 | GK81: =IFERROR(GK80/GK53,"") ->  | GL81: =IFERROR(GL80/GL53,"") -> 0 | GM81: =IFERROR(GM80/GM53,"") -> 0 | GN81: =IFERROR(GN80/GN53,"") -> 0 | GO81: =IFERROR(GO80/GO53,"") -> 0 | GP81: =IFERROR(GP80/GP53,"") -> 0 | GQ81: =IFERROR(GQ80/GQ53,"") ->  | GR81: =IFERROR(GR80/GR53,"") ->  | GS81: =IFERROR(GS80/GS53,"") -> 0 | GT81: =IFERROR(GT80/GT53,"") -> 0 | GU81: =IFERROR(GU80/GU53,"") -> 0 | GV81: =IFERROR(GV80/GV53,"") -> 0 | GW81: =IFERROR(GW80/GW53,"") ->  | GX81: =IFERROR(GX80/GX53,"") ->  | GY81: =IFERROR(GY80/GY53,"") ->  | GZ81: =IFERROR(GZ80/GZ53,"") ->  | HA81: =IFERROR(HA80/HA53,"") ->  | HB81: =IFERROR(HB80/HB53,"") ->  | HC81: =IFERROR(HC80/HC53,"") ->  | HD81: =IFERROR(HD80/HD53,"") ->  | HE81: =IFERROR(HE80/HE53,"") ->  | HF81: =IFERROR(HF80/HF53,"") ->  | HG81: =IFERROR(HG80/HG53,"") ->  | HH81: =IFERROR(HH80/HH53,"") ->  | HI81: =IFERROR(HI80/HI53,"") ->  | HJ81: =IFERROR(HJ80/HJ53,"") ->  | HK81: =IFERROR(HK80/HK53,"") ->  | HL81: =IFERROR(HL80/HL53,"") ->  | HM81: =IFERROR(HM80/HM53,"") ->  | HN81: =IFERROR(HN80/HN53,"") ->  | HO81: =IFERROR(HO80/HO53,"") ->  | HP81: =IFERROR(HP80/HP53,"") ->  | HQ81: =IFERROR(HQ80/HQ53,"") ->  | HR81: =IFERROR(HR80/HR53,"") ->  | HS81: =IFERROR(HS80/HS53,"") ->  | HT81: =IFERROR(HT80/HT53,"") ->  | HU81: =IFERROR(HU80/HU53,"") -> 0 | HV81: =IFERROR(HV80/HV53,"") -> 0 | HW81: =IFERROR(HW80/HW53,"") -> 0 | HX81: =IFERROR(HX80/HX53,"") -> 0 | HY81: =IFERROR(HY80/HY53,"") -> 0 | HZ81: =IFERROR(HZ80/HZ53,"") -> 0 | IA81: =IFERROR(IA80/IA53,"") ->  | IB81: =IFERROR(IB80/IB53,"") -> 1.184 | IC81: =IFERROR(IC80/IC53,"") -> 0 | ID81: =IFERROR(ID80/ID53,"") -> 0 | IE81: =IFERROR(IE80/IE53,"") -> 0 | IF81: =IFERROR(IF80/IF53,"") -> 0 | IG81: =IFERROR(IG80/IG53,"") ->  | IH81: =IFERROR(IH80/IH53,"") ->  | II81: =IFERROR(II80/II53,"") -> 0 | IJ81: =IFERROR(IJ80/IJ53,"") -> 0 | IK81: =IFERROR(IK80/IK53,"") -> 0 | IL81: =IFERROR(IL80/IL53,"") -> 0 | IM81: =IFERROR(IM80/IM53,"") -> 0 | IN81: =IFERROR(IN80/IN53,"") ->  | IO81: =IFERROR(IO80/IO53,"") ->  | IP81: =IFERROR(IP80/IP53,"") -> 0 | IQ81: =IFERROR(IQ80/IQ53,"") -> 0 | IR81: =IFERROR(IR80/IR53,"") -> 0 | IS81: =IFERROR(IS80/IS53,"") -> 0 | IT81: =IFERROR(IT80/IT53,"") -> 0 | IU81: =IFERROR(IU80/IU53,"") -> 0 | IV81: =IFERROR(IV80/IV53,"") ->  | IW81: =IFERROR(IW80/IW53,"") -> 0 | IX81: =IFERROR(IX80/IX53,"") -> 0 | IY81: =IFERROR(IY80/IY53,"") -> 0 | IZ81: =IFERROR(IZ80/IZ53,"") -> 0 | JA81: =IFERROR(JA80/JA53,"") -> 0 | JB81: =IFERROR(JB80/JB53,"") ->  | JC81: =IFERROR(JC80/JC53,"") ->  | JD81: =IFERROR(JD80/JD53,"") -> 0 | JE81: =IFERROR(JE80/JE53,"") -> 0 | JF81: =IFERROR(JF80/JF53,"") -> 0 | JG81: =IFERROR(JG80/JG53,"") -> 0 | JH81: =IFERROR(JH80/JH53,"") -> 0 | JI81: =IFERROR(JI80/JI53,"") ->  | JJ81: =IFERROR(JJ80/JJ53,"") ->  | JK81: =IFERROR(JK80/JK53,"") -> 0 | JL81: =IFERROR(JL80/JL53,"") -> 0 | JM81: =IFERROR(JM80/JM53,"") -> 0 | JN81: =IFERROR(JN80/JN53,"") -> 0 | JO81: =IFERROR(JO80/JO53,"") -> 0 | JP81: =IFERROR(JP80/JP53,"") -> 0 | JQ81: =IFERROR(JQ80/JQ53,"") ->  | JR81: =IFERROR(JR80/JR53,"") -> 0 | JS81: =IFERROR(JS80/JS53,"") -> 0 | JT81: =IFERROR(JT80/JT53,"") -> 0 | JU81: =IFERROR(JU80/JU53,"") -> 0 | JV81: =IFERROR(JV80/JV53,"") -> 0 | JW81: =IFERROR(JW80/JW53,"") ->  | JX81: =IFERROR(JX80/JX53,"") ->  | JY81: =IFERROR(JY80/JY53,"") ->  | JZ81: =IFERROR(JZ80/JZ53,"") ->  | KA81: =IFERROR(KA80/KA53,"") ->  | KB81: =IFERROR(KB80/KB53,"") ->  | KC81: =IFERROR(KC80/KC53,"") ->  | KD81: =IFERROR(KD80/KD53,"") ->  | KE81: =IFERROR(KE80/KE53,"") ->  | KF81: =IFERROR(KF80/KF53,"") ->  | KG81: =IFERROR(KG80/KG53,"") ->  | KH81: =IFERROR(KH80/KH53,"") ->  | KI81: =IFERROR(KI80/KI53,"") ->  | KJ81: =IFERROR(KJ80/KJ53,"") ->  | KK81: =IFERROR(KK80/KK53,"") ->  | KL81: =IFERROR(KL80/KL53,"") ->  | KM81: =IFERROR(KM80/KM53,"") ->  | KN81: =IFERROR(KN80/KN53,"") ->  | KO81: =IFERROR(KO80/KO53,"") ->  | KP81: =IFERROR(KP80/KP53,"") ->  | KQ81: =IFERROR(KQ80/KQ53,"") ->  | KR81: =IFERROR(KR80/KR53,"") ->  | KS81: =IFERROR(KS80/KS53,"") ->  | KT81: =IFERROR(KT80/KT53,"") ->  | KU81: =IFERROR(KU80/KU53,"") ->  | KV81: =IFERROR(KV80/KV53,"") ->  | KW81: =IFERROR(KW80/KW53,"") ->  | KX81: =IFERROR(KX80/KX53,"") ->  | KY81: =IFERROR(KY80/KY53,"") ->  | KZ81: =IFERROR(KZ80/KZ53,"") ->  | LA81: =IFERROR(LA80/LA53,"") ->  | LB81: =IFERROR(LB80/LB53,"") ->  | LC81: =IFERROR(LC80/LC53,"") ->  | LD81: =IFERROR(LD80/LD53,"") ->  | LE81: =IFERROR(LE80/LE53,"") ->  | LF81: =IFERROR(LF80/LF53,"") ->  | LG81: =IFERROR(LG80/LG53,"") ->  | LH81: =IFERROR(LH80/LH53,"") ->  | LI81: =IFERROR(LI80/LI53,"") ->  | LJ81: =IFERROR(LJ80/LJ53,"") ->  | LK81: =IFERROR(LK80/LK53,"") ->  | LL81: =IFERROR(LL80/LL53,"") ->  | LM81: =IFERROR(LM80/LM53,"") ->  | LN81: =IFERROR(LN80/LN53,"") ->  | LO81: =IFERROR(LO80/LO53,"") ->  | LP81: =IFERROR(LP80/LP53,"") ->  | LQ81: =IFERROR(LQ80/LQ53,"") ->  | LR81: =IFERROR(LR80/LR53,"") ->  | LS81: =IFERROR(LS80/LS53,"") ->  | LT81: =IFERROR(LT80/LT53,"") ->  | LU81: =IFERROR(LU80/LU53,"") ->  | LV81: =IFERROR(LV80/LV53,"") ->  | LW81: =IFERROR(LW80/LW53,"") ->  | LX81: =IFERROR(LX80/LX53,"") ->  | LY81: =IFERROR(LY80/LY53,"") ->  | LZ81: =IFERROR(LZ80/LZ53,"") ->  | MA81: =IFERROR(MA80/MA53,"") ->  | MB81: =IFERROR(MB80/MB53,"") ->  | MC81: =IFERROR(MC80/MC53,"") ->  | MD81: =IFERROR(MD80/MD53,"") ->  | ME81: =IFERROR(ME80/ME53,"") ->  | MF81: =IFERROR(MF80/MF53,"") ->  | MG81: =IFERROR(MG80/MG53,"") ->  | MH81: =IFERROR(MH80/MH53,"") ->  | MI81: =IFERROR(MI80/MI53,"") ->  | MJ81: =IFERROR(MJ80/MJ53,"") ->  | MK81: =IFERROR(MK80/MK53,"") ->  | ML81: =IFERROR(ML80/ML53,"") ->  | MM81: =IFERROR(MM80/MM53,"") ->  | MN81: =IFERROR(MN80/MN53,"") ->  | MO81: =IFERROR(MO80/MO53,"") ->  | MP81: =IFERROR(MP80/MP53,"") ->  | MQ81: =IFERROR(MQ80/MQ53,"") ->  | MR81: =IFERROR(MR80/MR53,"") ->  | MS81: =IFERROR(MS80/MS53,"") ->  | MT81: =IFERROR(MT80/MT53,"") ->  | MU81: =IFERROR(MU80/MU53,"") ->  | MV81: =IFERROR(MV80/MV53,"") ->  | MW81: =IFERROR(MW80/MW53,"") ->  | MX81: =IFERROR(MX80/MX53,"") ->  | MY81: =IFERROR(MY80/MY53,"") ->  | MZ81: =IFERROR(MZ80/MZ53,"") ->  | NA81: =IFERROR(NA80/NA53,"") ->  | NB81: =IFERROR(NB80/NB53,"") ->  | NC81: =IFERROR(NC80/NC53,"") ->  | ND81: =IFERROR(ND80/ND53,"") -> 
A82: 5 | B82: Additional info
A83: Goal | C83: K.P.I.

Sheet Balanced Scorecard
D1: =$C$3&D$4&$D$2 -> 35MaE2 | E1: 35DiE2 | F1: 35WoE2 | G1: 35DoE2 | H1: 35VrE2 | I1: 35ZaE2 | J1: 35ZoE2
A2: Balanced Score Card | C2: ='Input E2'!A4 -> Taakgroep 286 | D2: ='Input E2'!C4 -> E2 | E2: Rayonleider: | H2: ='Input E2'!C5 -> J. op het Veld | L2: =MONTH(G3) -> 8
B3: Week | C3: 35 | D3: =HLOOKUP(D$1,'Input E2'!E1:ND5,4,0) -> 2018-08-27 | E3: =HLOOKUP(E$1,'Input E2'!F1:NE5,4,0) -> 2018-08-28 | F3: =HLOOKUP(F$1,'Input E2'!G1:NF5,4,0) -> 2018-08-29 | G3: =HLOOKUP(G$1,'Input E2'!H1:NG5,4,0) -> 2018-08-30 | H3: =HLOOKUP(H$1,'Input E2'!I1:NH5,4,0) -> 2018-08-31 | I3: =HLOOKUP(I$1,'Input E2'!J1:NI5,4,0) -> 2018-09-01 | J3: =HLOOKUP(J$1,'Input E2'!K1:NJ5,4,0) -> 2018-09-02 | K3: Weekresult | L3: Monthresult
A4: FTE Volgens SAP | C4: =A8 -> 18 | D4: Ma | E4: Di | F4: Wo | G4: Do | H4: Vr | I4: Za | J4: Zo
A5: 1 | B5: People (P) | C5: Status: Ready | D5: =IFERROR(INDEX(DATA!$A$1:$NI$21,MATCH($D2,DATA!$A$1:$A$21,0),MATCH(D$3,DATA!$A$1:$NJ$1,0)),"") -> MD | E5: =IFERROR(INDEX(DATA!$A$1:$NI$21,MATCH($D2,DATA!$A$1:$A$21,0),MATCH(E$3,DATA!$A$1:$NJ$1,0)),"") -> MD | F5: =IFERROR(INDEX(DATA!$A$1:$NI$21,MATCH($D2,DATA!$A$1:$A$21,0),MATCH(F$3,DATA!$A$1:$NJ$1,0)),"") -> MD | G5: =IFERROR(INDEX(DATA!$A$1:$NI$21,MATCH($D2,DATA!$A$1:$A$21,0),MATCH(G$3,DATA!$A$1:$NJ$1,0)),"") -> MD | H5: =IFERROR(INDEX(DATA!$A$1:$NI$21,MATCH($D2,DATA!$A$1:$A$21,0),MATCH(H$3,DATA!$A$1:$NJ$1,0)),"") -> MD | I5: =IFERROR(INDEX(DATA!$A$1:$NI$21,MATCH($D2,DATA!$A$1:$A$21,0),MATCH(I$3,DATA!$A$1:$NJ$1,0)),"") -> Za | J5: =IFERROR(INDEX(DATA!$A$1:$NI$21,MATCH($D2,DATA!$A$1:$A$21,0),MATCH(J$3,DATA!$A$1:$NJ$1,0)),"") -> Zo | K5: =C3 -> 35 | L5: =TEXT(G3,"MMM") -> aug
A6: Goal | C6: K.P.I.
A8: ='Input E2'!A10 -> 18 | B8: ='Input E2'!B10 -> 18 | C8: ='Input E2'!C10 -> FTE SAP [#] | D8: =HLOOKUP(D$1,'Input E2'!$E$1:$ND$106,10,0) -> 18 | E8: =HLOOKUP(E$1,'Input E2'!$E$1:$ND$106,10,0) -> 18 | F8: =HLOOKUP(F$1,'Input E2'!$E$1:$ND$106,10,0) -> 18 | G8: =HLOOKUP(G$1,'Input E2'!$E$1:$ND$106,10,0) -> 18 | H8: =HLOOKUP(H$1,'Input E2'!$E$1:$ND$106,10,0) -> 18 | I8: =HLOOKUP(I$1,'Input E2'!$E$1:$ND$106,10,0) -> 0 | J8: =HLOOKUP(J$1,'Input E2'!$E$1:$ND$106,10,0) -> 0 | K8: =SUM(D8:J8) -> 90 | L8: =HLOOKUP($L$2,Rekenblad!$BJ$3:$BU$200,2,0) -> 288
A9: ='Input E2'!A11 -> 16 | B9: ='Input E2'!B11 -> 16 | C9: ='Input E2'!C11 -> Functions required [#l] | D9: =HLOOKUP(D$1,'Input E2'!$E$1:$ND$106,11,0) -> 16 | E9: =HLOOKUP(E$1,'Input E2'!$E$1:$ND$106,11,0) -> 16 | F9: =HLOOKUP(F$1,'Input E2'!$E$1:$ND$106,11,0) -> 16 | G9: =HLOOKUP(G$1,'Input E2'!$E$1:$ND$106,11,0) -> 16 | H9: =HLOOKUP(H$1,'Input E2'!$E$1:$ND$106,11,0) -> 16 | I9: =HLOOKUP(I$1,'Input E2'!$E$1:$ND$106,11,0) -> 0 | J9: =HLOOKUP(J$1,'Input E2'!$E$1:$ND$106,11,0) -> 0 | K9: =SUM(D9:J9) -> 80 | L9: =HLOOKUP($L$2,Rekenblad!$BJ$3:$BU$200,3,0) -> 256
A10: ='Input E2'!A12 -> 20 | B10: ='Input E2'!B12 -> 20 | C10: ='Input E2'!C12 -> Direct blue collar present [#] | D10: =HLOOKUP(D$1,'Input E2'!$E$1:$ND$106,12,0) -> 17 | E10: =HLOOKUP(E$1,'Input E2'!$E$1:$ND$106,12,0) -> 17 | F10: =HLOOKUP(F$1,'Input E2'!$E$1:$ND$106,12,0) -> 16 | G10: =HLOOKUP(G$1,'Input E2'!$E$1:$ND$106,12,0) -> 17 | H10: =HLOOKUP(H$1,'Input E2'!$E$1:$ND$106,12,0) -> 15 | I10: =HLOOKUP(I$1,'Input E2'!$E$1:$ND$106,12,0) -> 0 | J10: =HLOOKUP(J$1,'Input E2'!$E$1:$ND$106,12,0) -> 0 | K10: =SUM(D10:J10) -> 82 | L10: =HLOOKUP($L$2,Rekenblad!$BJ$3:$BU$200,4,0) -> 241
A11: ='Input E2'!A13 -> 0 | B11: ='Input E2'!B13 -> >=0 | C11: ='Input E2'!C13 -> Idle capacity | D11: =IFERROR(D10-D9,"") -> 1 | E11: =IFERROR(E10-E9,"") -> 1 | F11: 0 | G11: 1 | H11: -1 | I11: 0 | J11: 0 | K11: =IFERROR(SUM(D11:J11),"") -> 2 | L11: =HLOOKUP($L$2,Rekenblad!$BJ$3:$BU$200,5,0) -> -15
A12: ='Input E2'!A14 -> 0 | B12: ='Input E2'!B14 -> Max | C12: ='Input E2'!C14 -> Idle (aantal Medewerkers uitleen/ Opleiding) | D12: =HLOOKUP(D$1,'Input E2'!$E$1:$ND$106,14,0) -> 0 | E12: =HLOOKUP(E$1,'Input E2'!$E$1:$ND$106,14,0) -> 0 | F12: =HLOOKUP(F$1,'Input E2'!$E$1:$ND$106,14,0) -> 0 | G12: =HLOOKUP(G$1,'Input E2'!$E$1:$ND$106,14,0) -> 1 | H12: =HLOOKUP(H$1,'Input E2'!$E$1:$ND$106,14,0) -> 0 | I12: =HLOOKUP(I$1,'Input E2'!$E$1:$ND$106,14,0) -> 0 | J12: =HLOOKUP(J$1,'Input E2'!$E$1:$ND$106,14,0) -> 0 | K12: =SUM(D12:J12) -> 1 | L12: =HLOOKUP($L$2,Rekenblad!$BJ$3:$BU$200,6,0) -> 9
A13: ='Input E2'!A15 -> 0 | B13: ='Input E2'!B15 -> Max | C13: ='Input E2'!C15 -> Eigen Onderhoud | D13: =HLOOKUP(D$1,'Input E2'!$E$1:$ND$106,15,0) -> 0 | E13: =HLOOKUP(E$1,'Input E2'!$E$1:$ND$106,15,0) -> 0 | F13: =HLOOKUP(F$1,'Input E2'!$E$1:$ND$106,15,0) -> 0 | G13: =HLOOKUP(G$1,'Input E2'!$E$1:$ND$106,15,0) -> 0 | H13: =HLOOKUP(H$1,'Input E2'!$E$1:$ND$106,15,0) -> 0 | I13: =HLOOKUP(I$1,'Input E2'!$E$1:$ND$106,15,0) -> 0 | J13: =HLOOKUP(J$1,'Input E2'!$E$1:$ND$106,15,0) -> 0 | K13: =SUM(D13:J13) -> 0 | L13: =HLOOKUP($L$2,Rekenblad!$BJ$3:$BU$200,7,0) -> 1
A14: ='Input E2'!A16 -> 0 | B14: ='Input E2'!B16 -> 0 | C14: ='Input E2'!C16 -> Injury (F.g.p.) Zonder verzuim | D14: =HLOOKUP(D$1,'Input E2'!$E$1:$ND$106,16,0) -> 0 | E14: =HLOOKUP(E$1,'Input E2'!$E$1:$ND$106,16,0) -> 0 | F14: =HLOOKUP(F$1,'Input E2'!$E$1:$ND$106,16,0) -> 0 | G14: =HLOOKUP(G$1,'Input E2'!$E$1:$ND$106,16,0) -> 0 | H14: =HLOOKUP(H$1,'Input E2'!$E$1:$ND$106,16,0) -> 0 | I14: =HLOOKUP(I$1,'Input E2'!$E$1:$ND$106,16,0) -> 0 | J14: =HLOOKUP(J$1,'Input E2'!$E$1:$ND$106,16,0) -> 0 | K14: =SUM(D14:J14) -> 0 | L14: =HLOOKUP($L$2,Rekenblad!$BJ$3:$BU$200,8,0) -> 0
A15: ='Input E2'!A17 -> 0 | B15: ='Input E2'!B17 -> 0 | C15: ='Input E2'!C17 -> Injury (E.g.p.) Met verzuim | D15: =HLOOKUP(D$1,'Input E2'!$E$1:$ND$106,17,0) -> 0 | E15: =HLOOKUP(E$1,'Input E2'!$E$1:$ND$106,17,0) -> 0 | F15: =HLOOKUP(F$1,'Input E2'!$E$1:$ND$106,17,0) -> 0 | G15: =HLOOKUP(G$1,'Input E2'!$E$1:$ND$106,17,0) -> 0 | H15: =HLOOKUP(H$1,'Input E2'!$E$1:$ND$106,17,0) -> 0 | I15: =HLOOKUP(I$1,'Input E2'!$E$1:$ND$106,17,0) -> 0 | J15: =HLOOKUP(J$1,'Input E2'!$E$1:$ND$106,17,0) -> 0 | K15: =SUM(D15:J15) -> 0 | L15: =HLOOKUP($L$2,Rekenblad!$BJ$3:$BU$200,9,0) -> 1
A16: ='Input E2'!A18 -> 1 | B16: ='Input E2'!B18 -> <=1 | C16: ='Input E2'!C18 -> Illness direct blue collar | D16: =HLOOKUP(D$1,'Input E2'!$E$1:$ND$106,18,0) -> 2 | E16: =HLOOKUP(E$1,'Input E2'!$E$1:$ND$106,18,0) -> 2 | F16: =HLOOKUP(F$1,'Input E2'!$E$1:$ND$106,18,0) -> 2 | G16: =HLOOKUP(G$1,'Input E2'!$E$1:$ND$106,18,0) -> 2 | H16: =HLOOKUP(H$1,'Input E2'!$E$1:$ND$106,18,0) -> 3 | I16: =HLOOKUP(I$1,'Input E2'!$E$1:$ND$106,18,0) -> 0 | J16: =HLOOKUP(J$1,'Input E2'!$E$1:$ND$106,18,0) -> 0 | K16: =SUM(D16:J16) -> 11 | L16: =HLOOKUP($L$2,Rekenblad!$BJ$3:$BU$200,10,0) -> 36.25
A17: ='Input E2'!A19 -> 0.045 | B17: ='Input E2'!B19 -> <4,50% | C17: ='Input E2'!C19 -> Percentage Illness per day | D17: =HLOOKUP(D$1,'Input E2'!$E$1:$ND$106,19,0) -> 0.1111111111 | E17: =HLOOKUP(E$1,'Input E2'!$E$1:$ND$106,19,0) -> 0.1111111111 | F17: =HLOOKUP(F$1,'Input E2'!$E$1:$ND$106,19,0) -> 0.1111111111 | G17: =HLOOKUP(G$1,'Input E2'!$E$1:$ND$106,19,0) -> 0.1111111111 | H17: =HLOOKUP(H$1,'Input E2'!$E$1:$ND$106,19,0) -> 0.1666666667 | I17: =HLOOKUP(I$1,'Input E2'!$E$1:$ND$106,19,0) -> 0 | J17: =HLOOKUP(J$1,'Input E2'!$E$1:$ND$106,19,0) -> 0 | K17: =IFERROR(SUM(D17:J17)/K82,0) -> 0.1222222222 | L17: =HLOOKUP($L$2,Rekenblad!$BJ$3:$BU$200,11,0) -> 0.1258680556
A18: ='Input E2'!A20 -> 2 | B18: ='Input E2'!B20 -> 2/Week | C18: ='Input E2'!C20 -> Individual small improvements | D18: =HLOOKUP(D$1,'Input E2'!$E$1:$ND$106,20,0) -> 0 | E18: =HLOOKUP(E$1,'Input E2'!$E$1:$ND$106,20,0) -> 0 | F18: =HLOOKUP(F$1,'Input E2'!$E$1:$ND$106,20,0) -> 0 | G18: =HLOOKUP(G$1,'Input E2'!$E$1:$ND$106,20,0) -> 0 | H18: =HLOOKUP(H$1,'Input E2'!$E$1:$ND$106,20,0) -> 0 | I18: =HLOOKUP(I$1,'Input E2'!$E$1:$ND$106,20,0) -> 0 | J18: =HLOOKUP(J$1,'Input E2'!$E$1:$ND$106,20,0) -> 0 | K18: =SUM($D$18:$J$18) -> 0 | L18: =HLOOKUP($L$2,Rekenblad!$BJ$3:$BU$200,12,0) -> 0
A19: ='Input E2'!A21 -> 0 | B19: ='Input E2'!B21 -> - | C19: ='Input E2'!C21 -> Workshop Action Implementation | D19: =HLOOKUP(D$1,'Input E2'!$E$1:$ND$106,21,0) -> 0 | E19: =HLOOKUP(E$1,'Input E2'!$E$1:$ND$106,21,0) -> 0 | F19: =HLOOKUP(F$1,'Input E2'!$E$1:$ND$106,21,0) -> 0 | G19: =HLOOKUP(G$1,'Input E2'!$E$1:$ND$106,21,0) -> 0 | H19: =HLOOKUP(H$1,'Input E2'!$E$1:$ND$106,21,0) -> 0 | I19: =HLOOKUP(I$1,'Input E2'!$E$1:$ND$106,21,0) -> 0 | J19: =HLOOKUP(J$1,'Input E2'!$E$1:$ND$106,21,0) -> 0 | K19: =SUM($D$19:$J$19) -> 0 | L19: =HLOOKUP($L$2,Rekenblad!$BJ$3:$BU$200,13,0) -> 0
A20: ='Input E2'!A22 -> 0.8 | B20: ='Input E2'!B22 -> 0.8 | C20: ='Input E2'!C22 -> FCOM score borging | D20: =HLOOKUP(D$1,'Input E2'!$E$1:$ND$106,22,0) -> 0.6 | E20: =HLOOKUP(E$1,'Input E2'!$E$1:$ND$106,22,0) -> 0.6 | F20: =HLOOKUP(F$1,'Input E2'!$E$1:$ND$106,22,0) -> 0.6 | G20: =HLOOKUP(G$1,'Input E2'!$E$1:$ND$106,22,0) -> 0.6 | H20: =HLOOKUP(H$1,'Input E2'!$E$1:$ND$106,22,0) -> 0.6 | I20: =HLOOKUP(I$1,'Input E2'!$E$1:$ND$106,22,0) -> 0 | J20: =HLOOKUP(J$1,'Input E2'!$E$1:$ND$106,22,0) -> 0 | K20: =IFERROR(SUM($D$20:$J$20)/K82,0%) -> 0.6 | L20: =HLOOKUP($L$2,Rekenblad!$BJ$3:$BU$200,14,0) -> 0.6
A21: ='Input E2'!A23 -> 0.9 | B21: ='Input E2'!B23 -> 0.9 | C21: ='Input E2'!C23 -> FCOM score milieu | D21: =HLOOKUP(D$1,'Input E2'!$E$1:$ND$106,23,0) -> 0.9 | E21: =HLOOKUP(E$1,'Input E2'!$E$1:$ND$106,23,0) -> 0.9 | F21: =HLOOKUP(F$1,'Input E2'!$E$1:$ND$106,23,0) -> 0.9 | G21: =HLOOKUP(G$1,'Input E2'!$E$1:$ND$106,23,0) -> 0.9 | H21: =HLOOKUP(H$1,'Input E2'!$E$1:$ND$106,23,0) -> 0.9 | I21: =HLOOKUP(I$1,'Input E2'!$E$1:$ND$106,23,0) -> 0 | J21: =HLOOKUP(J$1,'Input E2'!$E$1:$ND$106,23,0) -> 0 | K21: =IFERROR(SUM($D$21:$J$21)/K82,0%) -> 0.9 | L21: =HLOOKUP($L$2,Rekenblad!$BJ$3:$BU$200,15,0) -> 0.9
A22: ='Input E2'!A24 -> 1 | B22: ='Input E2'!B24 -> 1/Week | C22: ='Input E2'!C24 -> Number of HR-Conversations | D22: =HLOOKUP(D$1,'Input E2'!$E$1:$ND$106,24,0) -> 0 | E22: =HLOOKUP(E$1,'Input E2'!$E$1:$ND$106,24,0) -> 0 | F22: =HLOOKUP(F$1,'Input E2'!$E$1:$ND$106,24,0) -> 1 | G22: =HLOOKUP(G$1,'Input E2'!$E$1:$ND$106,24,0) -> 0 | H22: =HLOOKUP(H$1,'Input E2'!$E$1:$ND$106,24,0) -> 0 | I22: =HLOOKUP(I$1,'Input E2'!$E$1:$ND$106,24,0) -> 0 | J22: =HLOOKUP(J$1,'Input E2'!$E$1:$ND$106,24,0) -> 0 | K22: =SUM(D22:J22) -> 1 | L22: =HLOOKUP($L$2,Rekenblad!$BJ$3:$BU$200,16,0) -> 1
A23: ='Input E2'!A25 -> 1 | B23: ='Input E2'!B25 -> 1/Dayshift | C23: Number of Taskgroupmeetings | D23: =HLOOKUP(D$1,'Input E2'!$E$1:$ND$106,25,0) -> 0 | E23: =HLOOKUP(E$1,'Input E2'!$E$1:$ND$106,25,0) -> 0 | F23: =HLOOKUP(F$1,'Input E2'!$E$1:$ND$106,25,0) -> 0 | G23: =HLOOKUP(G$1,'Input E2'!$E$1:$ND$106,25,0) -> 0 | H23: =HLOOKUP(H$1,'Input E2'!$E$1:$ND$106,25,0) -> 0 | I23: =HLOOKUP(I$1,'Input E2'!$E$1:$ND$106,25,0) -> 0 | J23: =HLOOKUP(J$1,'Input E2'!$E$1:$ND$106,25,0) -> 0 | K23: =SUM(D23:J23) -> 0 | L23: =HLOOKUP($L$2,Rekenblad!$BJ$3:$BU$200,17,0) -> 0
A24: 2 | B24: Delivery (D)
A25: Goal | C25: K.P.I.
A27: ='Input E2'!A29 -> Plan | B27: ='Input E2'!B29 -> Plan | C27: ='Input E2'!C29 -> Realized SRM LH | D27: =HLOOKUP(D$1,'Input E2'!$E$1:$ND$106,29,0) -> 369 | E27: =HLOOKUP(E$1,'Input E2'!$E$1:$ND$106,29,0) -> 345 | F27: =HLOOKUP(F$1,'Input E2'!$E$1:$ND$106,29,0) -> 321 | G27: =HLOOKUP(G$1,'Input E2'!$E$1:$ND$106,29,0) -> 365 | H27: =HLOOKUP(H$1,'Input E2'!$E$1:$ND$106,29,0) -> 374 | I27: =HLOOKUP(I$1,'Input E2'!$E$1:$ND$106,29,0) -> 0 | J27: =HLOOKUP(J$1,'Input E2'!$E$1:$ND$106,29,0) -> 0 | K27: =IFERROR(SUM(D27:J27),"-") -> 1774 | L27: =HLOOKUP($L$2,Rekenblad!$BJ$3:$BU$200,21,0) -> 5035
